Workbook

Sheet iMaps (hidden)

Sheet iWorks (hidden)
A1: GLOBALS
A3: ABOVE_AVERAGE_DOR | B3: ●
A4: NA SYMBOL | B4: – | D4: —
A5: WEIGHT_PROFILE_ID | B5: 1
A6: DIRTY_WEIGHTS | B6: =iWeights!Q48 -> 0 | C6: 1=TRUE, 0=FALSE
A7: DIRTY_WEIGHTS_TEXT | B7: =IF(B6=1,"WEIGHT PROFILE HAS BEEN MODIFIED - CLICK HERE TO UNDO","") -> 
A8: NON_DEFAULT_WARNING | B8: =IF(OR(B6=1,B5>1),"A CUSTOM WEIGHT PROFILE IS ACTIVE","") -> 
A9: TOTAL_COUNTRIES | B9: 20 | C9: =CONCATENATE("Rank / ",B9) -> Rank / 20
A10: TIE_TEXT | B10: = denotes tie in rank
A11: DELTA_TEXT | B11: Δ denotes change in score between 2012 and 2014
B12: Scores are normalized (0-100, where 100=most favorable)
B14: Scores of 0 and 100 represent the lowest or highest possible score respectively.
A26: MULTI SHEET SELECTIONS
A28: REGION_FILTER_ID | B28: 1
A29: ACTIVE_COUNTRY_COUNT | B29: =tblCountries!$L$7 -> 20
A30: COUNTRY_HIGHLIGHT_DD | B30: 1
A31: COUNTRY_HIGHLIGHT_ID | B31: =B30-1 -> 0
A33: REGION_HIGHLIGHT_DD | B33: 1
A34: REGION_HIGHLIGHT_ID | B34: =B33-1 -> 0
A36: COUNTRY1_ID | B36: 11 | C36: =INDEX(luCountries,$B36) -> Nigeria
A37: COUNTRY2_ID | B37: 18 | C37: =INDEX(luCountries,$B37) -> Spain
A38: REGION1_AVERAGE_ID | B38: 1 | C38: =INDEX(tblCountries!$O$3:$O$24,$B38) -> All Countries | D38: (Have this hard-coded to 1 actually, for "Index Average" in country sheets)
A39: REGION2_AVERAGE_ID | B39: 2 | C39: =INDEX(tblCountries!$O$3:$O$24,$B39) -> UN: Africa
A41: RANK_BY | B41: 1 | D41: 1=2014 score, 2=Score delta | F41: 2014 score
F42: Score change
A44: INIDCATOR RANKING
A46: CATEGORY_FILTER_ID | B46: 1
A47: FILTERED_INDICATOR_COUNT | B47: =INDEX(tblIndiSets!$G$127:$M$127,B46) -> 74
A48: INDI_DD | B48: 1 | C48: CODE | D48: PARENTCODE | E48: DEPTH | F48: REF | G48: INDICATOR | H48: UNIT | I48: SOURCE | J48: SCORING_NOTES | K48: DESCRIPTION | L48: QUESTION | M48: GUIDELINES | N48: G0 | O48: G1 | P48: G2 | Q48: G3 | R48: G4 | S48: G5 | T48: G6 | U48: G7 | V48: G8 | W48: NORM_ID | X48: Max | Y48: FACTOR | Z48: ISBG | AA48: FORMAT | AB48: MODE | AC48: DYNAMIC_UNIT | AD48: DYNAMIC_UNIT_2 | AE48: NumberDesc | AH48: Weight_row | AI48: Weight_nom | AJ48: Weight-% | AK48: SP#11 | AL48: SP#12
A49: INDI_ID | B49: =INDEX(tblIndiSets!$B$129:$B$206,B48) -> 1 | C49: =INDEX(tblIndicators!B$2:B$75,$B49) -> OVERALL | D49: =INDEX(tblIndicators!C$2:C$75,$B49) -> 0 | E49: =INDEX(tblIndicators!D$2:D$75,$B49) -> 0 | F49: =INDEX(tblIndicators!E$2:E$75,$B49) -> 0 | G49: =INDEX(tblIndicators!F$2:F$75,$B49) -> OVERALL SCORE | H49: =INDEX(tblIndicators!G$2:G$75,$B49) -> Scored 0-100 where 100=most favorable coastal governance environment | I49: =INDEX(tblIndicators!H$2:H$75,$B49) -> Calculated from category scores | J49: =INDEX(tblIndicators!I$2:I$75,$B49) -> Weighted total of the following six categories:\n1) Policy and Institutional Capacity \n2) Business Environment for Coastal Activities \n3) Water Quality \n4) Minerals and Energy \n5) Land \n6) Living Resources | K49: =IF(INDEX(tblIndicators!J$2:J$75,$B49)="","",INDEX(tblIndicators!J$2:J$75,$B49)) ->  | L49: =IF(INDEX(tblIndicators!K$2:K$75,$B49)="","",INDEX(tblIndicators!K$2:K$75,$B49)) -> The OVERALL SCORE is the combination of the six category scores, as determined by the weighting profile (see Scoring Notes). | M49: =INDEX(tblIndicators!L$2:L$75,$B49) -> 0 | N49: =INDEX(tblIndicators!M$2:M$75,$B49) -> 0 | O49: =INDEX(tblIndicators!N$2:N$75,$B49) -> 0 | P49: =INDEX(tblIndicators!O$2:O$75,$B49) -> 0 | Q49: =INDEX(tblIndicators!P$2:P$75,$B49) -> 0 | R49: =INDEX(tblIndicators!Q$2:Q$75,$B49) -> 0 | S49: =INDEX(tblIndicators!R$2:R$75,$B49) -> 0 | T49: =INDEX(tblIndicators!S$2:S$75,$B49) -> 0 | U49: =INDEX(tblIndicators!T$2:T$75,$B49) -> 0 | V49: =INDEX(tblIndicators!U$2:U$75,$B49) -> 0 | W49: =INDEX(tblIndicators!V$2:V$75,$B49) -> 1 | X49: =INDEX(tblIndicators!X$2:X$75,$B49) -> 100 | Y49: =INDEX(tblIndicators!Y$2:Y$75,$B49) -> 0 | Z49: =INDEX(tblIndicators!Z$2:Z$75,$B49) -> 0 | AA49: =INDEX(tblIndicators!AA$2:AA$75,$B49) -> #0 | AB49: =INDEX(tblIndicators!AB$2:AB$75,$B49) -> OVERALL SCORE | AC49: =INDEX(tblIndicators!AC$2:AC$75,$B49) -> Scored 0-100 where 100=most favorable conditions | AD49: =INDEX(tblIndicators!AD$2:AD$75,$B49) -> Scored 0-100 | AE49: =INDEX(tblIndicators!AE$2:AE$75,$B49) -> OVERALL SCORE | AF49: =INDEX(tblIndicators!AF$2:AF$75,$B49) -> 0 | AG49: =INDEX(tblIndicators!AG$2:AG$75,$B49) -> 0 | AH49: =INDEX(tblIndicators!AH$2:AH$75,$B49) -> 0 | AI49: =INDEX(tblIndicators!AI$2:AI$75,$B49) -> 0 | AJ49: =INDEX(tblIndicators!AJ$2:AJ$75,$B49) -> 0 | AK49: =INDEX(tblIndicators!AK$2:AK$75,$B49) -> 0 | AL49: =INDEX(tblIndicators!AL$2:AL$75,$B49) -> 0
A50: INDI_MAX | B50: =X49 -> 100
A52: HEADS | B52: =IF($AB$49="OVERALL SCORE", "",$AB$49) -> 
B54: =CHOOSE(E49+1,"overall","category","indicator","sub-indicator") -> overall
B55: =CHOOSE(E49+1,"category","indicator","sub-indicator","xxx") -> category
A58: =IF(E49=3,"Data / ","Score / ") -> Score /
A60: SUPER_SPECIAL_TEXT | B60: =IF($E49=3,CONCATENATE(L49,CHAR(10),CHAR(10),AC49),CONCATENATE(AC49,CHAR(10),CHAR(10),L49)) -> Scored 0-100 where 100=most favorable conditions The OVERALL SCORE is the combination of the six category scores, as determined by the weighting profile (see Scoring Notes).
A61: TABLE_HEAD | B61: =CONCATENATE(A58,X49) -> Score / 100
A63: WEIGHT_TEXT | B63: =IF(B49=1,"",IF(E49=3,"Sub-indicator - not weighted",CONCATENATE(TEXT(AJ49,"0.0%"),"; contributes to ",AK49))) -> 
A66: SCATTER
A67: INDI_X_DD | B67: 1
A68: INDI_X_ID | B68: =INDEX(tblIndiSets!$B$12:$B$42,B67) -> 1 | C68: =INDEX(tblIndicators!B$2:B$75,$B68) -> OVERALL | D68: =INDEX(tblIndicators!C$2:C$75,$B68) -> 0 | E68: =INDEX(tblIndicators!D$2:D$75,$B68) -> 0 | F68: =INDEX(tblIndicators!E$2:E$75,$B68) -> 0 | G68: =INDEX(tblIndicators!F$2:F$75,$B68) -> OVERALL SCORE | H68: =INDEX(tblIndicators!G$2:G$75,$B68) -> Scored 0-100 where 100=most favorable coastal governance environment | I68: =INDEX(tblIndicators!H$2:H$75,$B68) -> Calculated from category scores | J68: =INDEX(tblIndicators!I$2:I$75,$B68) -> Weighted total of the following six categories:\n1) Policy and Institutional Capacity \n2) Business Environment for Coastal Activities \n3) Water Quality \n4) Minerals and Energy \n5) Land \n6) Living Resources | K68: =INDEX(tblIndicators!J$2:J$75,$B68) -> 0 | L68: =INDEX(tblIndicators!K$2:K$75,$B68) -> The OVERALL SCORE is the combination of the six category scores, as determined by the weighting profile (see Scoring Notes). | M68: =INDEX(tblIndicators!L$2:L$75,$B68) -> 0 | N68: =INDEX(tblIndicators!M$2:M$75,$B68) -> 0 | O68: =INDEX(tblIndicators!N$2:N$75,$B68) -> 0 | P68: =INDEX(tblIndicators!O$2:O$75,$B68) -> 0 | Q68: =INDEX(tblIndicators!P$2:P$75,$B68) -> 0 | R68: =INDEX(tblIndicators!Q$2:Q$75,$B68) -> 0 | S68: =INDEX(tblIndicators!R$2:R$75,$B68) -> 0 | T68: =INDEX(tblIndicators!S$2:S$75,$B68) -> 0 | U68: =INDEX(tblIndicators!T$2:T$75,$B68) -> 0 | V68: =INDEX(tblIndicators!U$2:U$75,$B68) -> 0 | W68: =INDEX(tblIndicators!V$2:V$75,$B68) -> 1 | X68: =INDEX(tblIndicators!X$2:X$75,$B68) -> 100 | Y68: =INDEX(tblIndicators!Y$2:Y$75,$B68) -> 0 | Z68: =INDEX(tblIndicators!Z$2:Z$75,$B68) -> 0 | AA68: =INDEX(tblIndicators!AA$2:AA$75,$B68) -> #0 | AB68: =INDEX(tblIndicators!AB$2:AB$75,$B68) -> OVERALL SCORE | AC68: =INDEX(tblIndicators!AC$2:AC$75,$B68) -> Scored 0-100 where 100=most favorable conditions | AD68: =INDEX(tblIndicators!AD$2:AD$75,$B68) -> Scored 0-100 | AE68: =INDEX(tblIndicators!AE$2:AE$75,$B68) -> OVERALL SCORE | AF68: =INDEX(tblIndicators!AF$2:AF$75,$B68) -> 0 | AG68: =INDEX(tblIndicators!AG$2:AG$75,$B68) -> 0 | AH68: =INDEX(tblIndicators!AH$2:AH$75,$B68) -> 0 | AI68: =INDEX(tblIndicators!AI$2:AI$75,$B68) -> 0 | AJ68: =INDEX(tblIndicators!AJ$2:AJ$75,$B68) -> 0 | AK68: =INDEX(tblIndicators!AK$2:AK$75,$B68) -> 0 | AL68: =INDEX(tblIndicators!AL$2:AL$75,$B68) -> 0
A70: INDI_Y_DD | B70: 1
A71: INDI_Y_ID | B71: =B70 -> 1 | C71: =INDEX(tblIndicators!B$77:B$80,$B71) -> BG_01 | D71: =INDEX(tblIndicators!C$77:C$80,$B71) -> BG | E71: =INDEX(tblIndicators!D$77:D$80,$B71) -> - | F71: =INDEX(tblIndicators!E$77:E$80,$B71) -> 7.1 | G71: =INDEX(tblIndicators!F$77:F$80,$B71) -> GDP per head (PPP, $, 2014) | H71: =INDEX(tblIndicators!G$77:G$80,$B71) -> 0 | I71: =INDEX(tblIndicators!H$77:H$80,$B71) -> Economist Intelligence Unit | J71: =INDEX(tblIndicators!I$77:I$80,$B71) -> 0 | K71: =INDEX(tblIndicators!J$77:J$80,$B71) -> 0 | L71: =INDEX(tblIndicators!K$77:K$80,$B71) -> 0 | M71: =INDEX(tblIndicators!L$77:L$80,$B71) -> 0 | N71: =INDEX(tblIndicators!M$77:M$80,$B71) -> 0 | O71: =INDEX(tblIndicators!N$77:N$80,$B71) -> 0 | P71: =INDEX(tblIndicators!O$77:O$80,$B71) -> 0 | Q71: =INDEX(tblIndicators!P$77:P$80,$B71) -> 0 | R71: =INDEX(tblIndicators!Q$77:Q$80,$B71) -> 0 | S71: =INDEX(tblIndicators!R$77:R$80,$B71) -> 0 | T71: =INDEX(tblIndicators!S$77:S$80,$B71) -> 0 | U71: =INDEX(tblIndicators!T$77:T$80,$B71) -> 0 | V71: =INDEX(tblIndicators!U$77:U$80,$B71) -> 0 | W71: =INDEX(tblIndicators!V$77:V$80,$B71) -> 0 | X71: =INDEX(tblIndicators!W$77:W$80,$B71) -> 0 | Y71: =INDEX(tblIndicators!X$77:X$80,$B71) -> 0 | Z71: =INDEX(tblIndicators!Y$77:Y$80,$B71) -> 0 | AA71: =INDEX(tblIndicators!Z$77:Z$80,$B71) -> 0 | AB71: =INDEX(tblIndicators!AA$77:AA$80,$B71) -> #0 | AC71: =INDEX(tblIndicators!AB$77:AB$80,$B71) -> 0 | AD71: =INDEX(tblIndicators!AC$77:AC$80,$B71) -> 0 | AE71: =INDEX(tblIndicators!AD$77:AD$80,$B71) -> 0 | AF71: =INDEX(tblIndicators!AE$77:AE$80,$B71) -> 7.1) GDP per head (PPP, $, 2014) | AG71: =INDEX(tblIndicators!AF$77:AF$80,$B71) -> 0 | AH71: =INDEX(tblIndicators!AG$77:AG$80,$B71) -> 0 | AI71: =INDEX(tblIndicators!AH$77:AH$80,$B71) -> 0 | AJ71: =INDEX(tblIndicators!AI$77:AI$80,$B71) -> 0 | AK71: =INDEX(tblIndicators!AJ$77:AJ$80,$B71) -> 0 | AL71: =INDEX(tblIndicators!AK$77:AK$80,$B71) -> 0
A73: SHOW_LABELS | B73: FALSE
A74: SHOW_OUTLIERS | B74: FALSE
A77: SCATTER_X_MIN | B77: =IF(iWorks!Z68=0,0,W68) -> 0
A78: SCATTER_Y_MIN | B78: =IF(iWorks!Z71=0,0,W71) -> 0
A79: SCATTER_X_MAX | B79: =X68 -> 100
A80: SCATTER_Y_MAX | B80: =X71 -> 0
A82: MULTI COMPARISON
A83: REGION_AVERAGE_ID | B83: 1 | C83: =INDEX(tblCountries!$O$3:$O$30,B83) -> All Countries
A85: COMP_COUNTRY_ID_1 | B85: 1
A86: COMP_COUNTRY_ID_2 | B86: 7
A87: COMP_COUNTRY_ID_3 | B87: 20
A88: COMP_COUNTRY_ID_4 | B88: 13
A89: COMP_COUNTRY_ID_5 | B89: 14
A90: COMP_COUNTRY_ID_6 | B90: 16
A92: _X_COMP_COUNTRY_ID_1 | B92: TRUE | C92: =COUNTIF(B$85:B85,B85)-1 -> 0 | D92: =IF(AND(B92,C92=0),B85,-1) -> 1
A93: _X_COMP_COUNTRY_ID_2 | B93: TRUE | C93: =COUNTIF(B$85:B86,B86)-1 -> 0 | D93: 7
A94: _X_COMP_COUNTRY_ID_3 | B94: TRUE | C94: =COUNTIF(B$85:B87,B87)-1 -> 0 | D94: 20
A95: _X_COMP_COUNTRY_ID_4 | B95: TRUE | C95: =COUNTIF(B$85:B88,B88)-1 -> 0 | D95: 13
A96: _X_COMP_COUNTRY_ID_5 | B96: TRUE | C96: =COUNTIF(B$85:B89,B89)-1 -> 0 | D96: 14
A97: _X_COMP_COUNTRY_ID_6 | B97: TRUE | C97: =COUNTIF(B$85:B90,B90)-1 -> 0 | D97: 16
A99: EFFECTIVE_COMP_COUNTRY_ID_1 | B99: =D92 -> 1
A100: EFFECTIVE_COMP_COUNTRY_ID_2 | B100: 7
A101: EFFECTIVE_COMP_COUNTRY_ID_3 | B101: 20
A102: EFFECTIVE_COMP_COUNTRY_ID_4 | B102: 13
A103: EFFECTIVE_COMP_COUNTRY_ID_5 | B103: 14
A104: EFFECTIVE_COMP_COUNTRY_ID_6 | B104: 16
A106: COMP_SHOW_AVERAGE | B106: TRUE
A109: DEPENDENT VARIABLE RANKING
A111: DEP_INDI_DD | B111: 1
A112: DEP_INDI_DD | B112: =INDEX(tblIndiSets!#REF!,B111) ->  | C112: =INDEX(tblIndicators!B$2:B$75,$B112) ->  | D112: =INDEX(tblIndicators!C$2:C$75,$B112) ->  | E112: =INDEX(tblIndicators!D$2:D$75,$B112) ->  | F112: =INDEX(tblIndicators!E$2:E$75,$B112) ->  | G112: =INDEX(tblIndicators!F$2:F$75,$B112) ->  | H112: =INDEX(tblIndicators!G$2:G$75,$B112) ->  | I112: =INDEX(tblIndicators!H$2:H$75,$B112) ->  | J112: =INDEX(tblIndicators!I$2:I$75,$B112) ->  | K112: =INDEX(tblIndicators!J$2:J$75,$B112) ->  | L112: =INDEX(tblIndicators!K$2:K$75,$B112) ->  | M112: =INDEX(tblIndicators!L$2:L$75,$B112) ->  | N112: =INDEX(tblIndicators!M$2:M$75,$B112) ->  | O112: =INDEX(tblIndicators!N$2:N$75,$B112) ->  | P112: =INDEX(tblIndicators!O$2:O$75,$B112) ->  | Q112: =INDEX(tblIndicators!P$2:P$75,$B112) ->  | R112: =INDEX(tblIndicators!Q$2:Q$75,$B112) ->  | S112: =INDEX(tblIndicators!R$2:R$75,$B112) ->  | T112: =INDEX(tblIndicators!S$2:S$75,$B112) ->  | U112: =INDEX(tblIndicators!T$2:T$75,$B112) ->  | V112: =INDEX(tblIndicators!U$2:U$75,$B112) ->  | W112: =INDEX(tblIndicators!V$2:V$75,$B112) ->  | X112: =INDEX(tblIndicators!X$2:X$75,$B112) ->  | Y112: =INDEX(tblIndicators!Y$2:Y$75,$B112) ->  | Z112: =INDEX(tblIndicators!Z$2:Z$75,$B112) ->  | AA112: =INDEX(tblIndicators!AA$2:AA$75,$B112) ->  | AB112: =INDEX(tblIndicators!AB$2:AB$75,$B112) ->  | AC112: =INDEX(tblIndicators!AC$2:AC$75,$B112) ->  | AD112: =INDEX(tblIndicators!AD$2:AD$75,$B112) ->  | AE112: =INDEX(tblIndicators!AE$2:AE$75,$B112) ->  | AF112: =INDEX(tblIndicators!AF$2:AF$75,$B112) ->  | AG112: =INDEX(tblIndicators!AG$2:AG$75,$B112) -> 
A114: DEP_FORMAT | B114: =AA112 -> 

Sheet tblIndicators (hidden)
A1: ID | B1: CODE | C1: PARENTCODE | D1: DEPTH | E1: REF | F1: INDICATOR | G1: UNIT | H1: SOURCE | I1: SCORING_NOTES | J1: DESCRIPTION | K1: QUESTION | L1: HIGH IS GOOD = 0, Bad = 1 | V1: NORM_ID | W1: MIN | X1: Max | Y1: Is Already Normalized | Z1: ISBG | AA1: FORMAT | AB1: MODE | AC1: DYNAMIC_UNIT | AD1: DYNAMIC_UNIT_2 | AE1: NumberDesc | AH1: Weight_row | AI1: Weight_nom | AJ1: Weight-%
A2: 1 | B2: OVERALL | D2: 0 | F2: OVERALL SCORE | G2: Scored 0-100 where 100=most favorable coastal governance environment | H2: Calculated from category scores | I2: Weighted total of the following six categories:\n1) Policy and Institutional Capacity \n2) Business Environment for Coastal Activities \n3) Water Quality \n4) Minerals and Energy \n5) Land \n6) Living Resources | K2: The OVERALL SCORE is the combination of the six category scores, as determined by the weighting profile (see Scoring Notes). | V2: 1 | X2: 100 | Z2: 0 | AA2: #0 | AB2: OVERALL SCORE | AC2: =CONCATENATE(IF($D2=3,"Scored","Scored")," 0-",$X2," where ",$X2,"=most favorable conditions") -> Scored 0-100 where 100=most favorable conditions | AD2: =CONCATENATE(IF($D2=3,"Scored","Scored")," 0-",$X2) -> Scored 0-100 | AE2: =$F2 -> OVERALL SCORE
A3: 2 | B3: PLCAP | C3: OVERALL | D3: 1 | E3: 1 | F3: POLICY AND INSTITUTIONAL CAPACITY | G3: Scored 0-100 where 100=most favorable coastal governance environment | H3: Calculated from indicator scores | I3: Weighted total of the following seven indicators:\n1.1) Coastal management policy and strategy \n1.2) Presence of established institution(s) \n1.3) National strategy to adapt to climate change \n1.4) Maritime Spatial Planning \n1.5) Stakeholder engagement \n1.6) Extractive industries transparency \n1.7) Adoption of the United Nations Convention on the Law of the Sea (UNCLOS) | J3: This category is comprised of seven indicators and 10 sub-indicators related to the policy and institutional capacity of government with regard to coastal management. It assesses the extent to which a coastal management strategy exists, is implemented and engages stakeholders. | K3: The POLICY AND INSTITUTIONAL CAPACITY category score is the combination of the indicator scores within this category (see Scoring Notes). | V3: 1 | X3: 100 | Z3: 0 | AA3: #0 | AB3: =CHOOSE($D3,"CATEGORY","INDICATOR","SUB-INDICATOR") -> CATEGORY | AC3: =CONCATENATE(IF($D3=3,"Scored","Scored")," 0-",$X3," where ",$X3,"=most favorable conditions") -> Scored 0-100 where 100=most favorable conditions | AD3: =CONCATENATE(IF($D3=3,"Scored","Scored")," 0-",$X3) -> Scored 0-100 | AE3: =CONCATENATE($E3,") ",$F3) -> 1) POLICY AND INSTITUTIONAL CAPACITY | AH3: =MATCH($B3,Weights!$C$7:$C$45,0) -> 1 | AI3: =IF(ISERROR(AH3),1,INDEX(Weights!$G$7:$G$45,AH3)) -> 1 | AJ3: =IF(ISERROR(AI3/SUMIF($C$2:$C$75,$C3,AI$2:AI$75)),0,AI3/SUMIF($C$2:$C$75,$C3,AI$2:AI$75)) -> 0.1666666667 | AK3: =CHOOSE(D3,"OVERALL score",CONCATENATE(INDEX(F$2:F$77,MATCH(C3,$B$2:$B$77,0))," category score"),CONCATENATE(INDEX(F$2:F$77,MATCH(C3,$B$2:$B$77,0))," indicator score")) -> OVERALL score
A4: 3 | B4: PLCAP_1 | C4: PLCAP | D4: 2 | E4: 1.1 | F4: Coastal management policy and strategy | G4: Scored 0-100 where 100=most favorable coastal governance environment | H4: Calculated from sub-indicators | I4: Scored as the aggregation of normalized scores of the following two sub-indicators:\n\nIs there a domestic coastal management policy?\n0=No\n1=Yes\n\nIs there a strategy in place to implement the coastal management policy identified in 1.1.1 across sectors?\n0=No or no coastal management policy was identified in 1.1.1\n1=Yes, but strategy is not integrated across sectors\n2=Yes, integrated strategy is in place | V4: 1 | X4: 100 | Z4: 0 | AA4: #0 | AB4: =CHOOSE($D4,"CATEGORY","INDICATOR","SUB-INDICATOR") -> INDICATOR | AC4: =CONCATENATE(IF($D4=3,"Scored","Scored")," 0-",$X4," where ",$X4,"=most favorable conditions") -> Scored 0-100 where 100=most favorable conditions | AD4: Scored 0-100 | AE4: =CONCATENATE($E4,") ",$F4) -> 1.1) Coastal management policy and strategy | AH4: =MATCH($B4,Weights!$C$7:$C$45,0) -> 11 | AI4: =IF(ISERROR(AH4),1,INDEX(Weights!$G$7:$G$45,AH4)) -> 1 | AJ4: 0.1428571429 | AK4: POLICY AND INSTITUTIONAL CAPACITY category score
A5: 4 | B5: PLCAP_1_1 | C5: PLCAP_1 | D5: 3 | E5: 1.1.1 | F5: Coastal management policy | G5: Scored 0-1 | H5: EIU qualitative assessment | I5: Is there a domestic coastal management policy?\n\n0=No\n1=Yes | K5: Is there a domestic coastal management policy? | L5: 0 | V5: 3 | W5: 0 | X5: 1 | Z5: 0 | AA5: #0 | AB5: SUB-INDICATOR | AC5: Scored 0-1 where 1=most favorable conditions | AD5: Scored 0-1 | AE5: 1.1.1) Coastal management policy | AH5: =MATCH($B5,Weights!$C$7:$C$45,0) ->  | AI5: =IF(ISERROR(AH5),1,INDEX(Weights!$G$7:$G$45,AH5)) -> 1 | AJ5: 0.5 | AK5: Coastal management policy and strategy indicator score
A6: 5 | B6: PLCAP_1_2 | C6: PLCAP_1 | D6: 3 | E6: 1.1.2 | F6: Coastal management strategy | G6: Scored 0-2 | H6: EIU qualitative assessment | I6: Is there a strategy in place to implement the coastal management policy identified in 1.1.1 across sectors?\n\n0=No or no coastal management policy was identified in 1.1.1\n1=Yes, but strategy is not integrated across sectors\n2=Yes, integrated strategy is in place\n\nA strategy refers to the plan of action to implement the coastal management policy. | K6: Is there a strategy in place to implement the coastal management policy identified in 1.1.1 across sectors? | L6: 0 | V6: 3 | W6: 0 | X6: 2 | Z6: 0 | AA6: #0 | AB6: SUB-INDICATOR | AC6: Scored 0-2 where 2=most favorable conditions | AD6: Scored 0-2 | AE6: 1.1.2) Coastal management strategy | AH6: =MATCH($B6,Weights!$C$7:$C$45,0) ->  | AI6: =IF(ISERROR(AH6),1,INDEX(Weights!$G$7:$G$45,AH6)) -> 1 | AJ6: 0.5 | AK6: Coastal management policy and strategy indicator score
A7: 6 | B7: PLCAP_2 | C7: PLCAP | D7: 2 | E7: 1.2 | F7: Presence of established institution(s) | G7: Scored 0-100 where 100=most favorable coastal government governance environment | H7: Calculated from sub-indicator | I7: Scored as the total of the following sub-indicator:\n\nIs there a national authority(ies) for implementation of the coastal management strategy identified in 1.1.2?\n\n0= No or no coastal management strategy was identified\n1= Yes, there are multiple entities responsible for the implementation or coordination of implementation of the coastal management strategy identified in 1.1.2 or there is an entity in charge of designing a coastal management strategy\n2= Yes, there is one entity responsible for implementation or coordination of implementation of the coastal management strategy identified in 1.1.2 | V7: 1 | X7: 100 | Z7: 0 | AA7: #0 | AB7: INDICATOR | AC7: Scored 0-100 where 100=most favorable conditions | AD7: Scored 0-100 | AE7: 1.2) Presence of established institution(s) | AH7: =MATCH($B7,Weights!$C$7:$C$45,0) -> 12 | AI7: =IF(ISERROR(AH7),1,INDEX(Weights!$G$7:$G$45,AH7)) -> 1 | AJ7: 0.1428571429 | AK7: POLICY AND INSTITUTIONAL CAPACITY category score
A8: 7 | B8: PLCAP_2_1 | C8: PLCAP_2 | D8: 3 | E8: 1.2.1 | F8: Presence of coastal management strategy authority | G8: Scored 0-2 | H8: EIU qualitative assessment | I8: Is there a national authority(ies) for implementation of the coastal management strategy identified in 1.1.2?\n\n0= No or no coastal management strategy was identified\n1= Yes, there are multiple entities responsible for the implementation or coordination of implementation of the coastal management strategy identified in 1.1.2 or there is an entity in charge of designing a coastal management strategy \n2= Yes, there is one entity responsible for implementation or coordination of implementation of the coastal management strategy identified in 1.1.2 | K8: Is there a national authority(ies) for implementation of the coastal management strategy identified in 1.1.2? | L8: 0 | V8: 3 | W8: 0 | X8: 2 | Z8: 0 | AA8: #0 | AB8: SUB-INDICATOR | AC8: Scored 0-2 where 2=most favorable conditions | AD8: Scored 0-2 | AE8: 1.2.1) Presence of coastal management strategy authority | AH8: =MATCH($B8,Weights!$C$7:$C$45,0) ->  | AI8: =IF(ISERROR(AH8),1,INDEX(Weights!$G$7:$G$45,AH8)) -> 1 | AJ8: 1 | AK8: Presence of established institution(s) indicator score
A9: 8 | B9: PLCAP_3 | C9: PLCAP | D9: 2 | E9: 1.3 | F9: National strategy to adapt to climate change | G9: Scored 0-100 where 100=most favorable coastal governance environment | H9: Calculated from sub-indicator | I9: Scored as the normalized score of the following sub-indicator:\n\nIs there a strategy in place to adapt coastal areas to climate change?\n\n0=No\n1=Yes | V9: 1 | X9: 100 | Z9: 0 | AA9: #0 | AB9: INDICATOR | AC9: Scored 0-100 where 100=most favorable conditions | AD9: Scored 0-100 | AE9: 1.3) National strategy to adapt to climate change | AH9: =MATCH($B9,Weights!$C$7:$C$45,0) -> 13 | AI9: =IF(ISERROR(AH9),1,INDEX(Weights!$G$7:$G$45,AH9)) -> 1 | AJ9: 0.1428571429 | AK9: POLICY AND INSTITUTIONAL CAPACITY category score
A10: 9 | B10: PLCAP_3_1 | C10: PLCAP_3 | D10: 3 | E10: 1.3.1 | F10: Strategy to adapt coastal areas to climate change | G10: Scored 0-2 | H10: EIU qualitative assessment | I10: Is there a strategy in place to adapt coastal areas to climate change? 0=No 1=Yes, the strategy is partially described 2=Yes, the strategy is fully described This question refers to the existence of a national strategy that addresses the coastal impacts of climate change, e.g. sea level rise and/or coastal floating. Adaptation refers to any efforts to adapt coastal areas to mitigate these risks. | K10: Is there a strategy in place to adapt coastal areas to climate change? | L10: 0 | V10: 3 | W10: 0 | X10: 2 | Z10: 0 | AA10: #0 | AB10: SUB-INDICATOR | AC10: Scored 0-2 where 2=most favorable conditions | AD10: Scored 0-2 | AE10: 1.3.1) Strategy to adapt coastal areas to climate change | AH10: =MATCH($B10,Weights!$C$7:$C$45,0) ->  | AI10: =IF(ISERROR(AH10),1,INDEX(Weights!$G$7:$G$45,AH10)) -> 1 | AJ10: 1 | AK10: National strategy to adapt to climate change indicator score
A11: 10 | B11: PLCAP_4 | C11: PLCAP | D11: 2 | E11: 1.4 | F11: Maritime Spatial Planning | G11: Scored 0-100 where 100=most favorable coastal governance environment | H11: Calculated from sub-indicators | I11: Scored as the aggregation of normalized scores of the following two sub-indicators: Is there a domestic legal or regulatory basis for maritime spatial planning (MSP)? 0=No 1=Yes, there is a legal or regulatory basis at the subnational level or MSP is at the planning stage 2=Yes, there is a legal or regulatory basis at the national level Is there a government entity responsible for maritime spatial planning? 0=No 1=Yes, there is a government entity responsible at the subnational level 2=Yes, there is a government entity responsible at the national level | V11: 1 | X11: 100 | Z11: 0 | AA11: #0 | AB11: INDICATOR | AC11: Scored 0-100 where 100=most favorable conditions | AD11: Scored 0-100 | AE11: 1.4) Maritime Spatial Planning | AH11: =MATCH($B11,Weights!$C$7:$C$45,0) -> 14 | AI11: =IF(ISERROR(AH11),1,INDEX(Weights!$G$7:$G$45,AH11)) -> 1 | AJ11: 0.1428571429 | AK11: POLICY AND INSTITUTIONAL CAPACITY category score
A12: 11 | B12: PLCAP_4_1 | C12: PLCAP_4 | D12: 3 | E12: 1.4.1 | F12: Legal basis for maritime spatial planning | G12: Scored 0-2 | H12: EIU qualitative assessment | I12: Is there a domestic legal or regulatory basis for maritime spatial planning (MSP)? 0=No 1=Yes, there is a regulatory basis at the subnational level or MSP is at the planning stage 2=Yes, there is a regulatory basis at the national level | K12: Is there a domestic legal or regulatory basis for maritime spatial planning (MSP)? | L12: 0 | V12: 3 | W12: 0 | X12: 2 | Z12: 0 | AA12: #0 | AB12: SUB-INDICATOR | AC12: Scored 0-2 where 2=most favorable conditions | AD12: Scored 0-2 | AE12: 1.4.1) Legal basis for maritime spatial planning | AH12: =MATCH($B12,Weights!$C$7:$C$45,0) ->  | AI12: =IF(ISERROR(AH12),1,INDEX(Weights!$G$7:$G$45,AH12)) -> 1 | AJ12: 0.5 | AK12: Maritime Spatial Planning indicator score
A13: 12 | B13: PLCAP_4_2 | C13: PLCAP_4 | D13: 3 | E13: 1.4.2 | F13: Institution for maritime spatial planning | G13: Scored 0-2 | H13: EIU qualitative assessment | I13: Is there a government entity responsible for maritime spatial planning (MSP)? 0=No 1=Yes, there is a government entity responsible for MSP at the subnational level 2=Yes, there is a government entity responsible for MSP at the national level | K13: Is there a government entity responsible for maritime spatial planning? | L13: 0 | V13: 3 | W13: 0 | X13: 2 | Z13: 0 | AA13: #0 | AB13: SUB-INDICATOR | AC13: Scored 0-2 where 2=most favorable conditions | AD13: Scored 0-2 | AE13: 1.4.2) Institution for maritime spatial planning | AH13: =MATCH($B13,Weights!$C$7:$C$45,0) ->  | AI13: =IF(ISERROR(AH13),1,INDEX(Weights!$G$7:$G$45,AH13)) -> 1 | AJ13: 0.5 | AK13: Maritime Spatial Planning indicator score
A14: 13 | B14: PLCAP_5 | C14: PLCAP | D14: 2 | E14: 1.5 | F14: Stakeholder engagement | G14: Scored 0-100 where 100=most favorable coastal governance environment | H14: Calculated from sub-indicators | I14: Scored as the aggregation of normalized scores of the following two sub-indicators:\n\nDo institutions provide citizens with the opportunity to successfully petition government to redress grievances?\n\n0= No\n1= Some opportunities\n2= Yes\n\nDoes the strategy referred to in sub-indicator 1.1.2 require multi-stakeholder engagement (i.e. private sector, public sector, third-sector and private citizens)?\n\n0=No\n1=Yes | V14: 1 | X14: 100 | Z14: 0 | AA14: #0 | AB14: INDICATOR | AC14: Scored 0-100 where 100=most favorable conditions | AD14: Scored 0-100 | AE14: 1.5) Stakeholder engagement | AH14: =MATCH($B14,Weights!$C$7:$C$45,0) -> 15 | AI14: =IF(ISERROR(AH14),1,INDEX(Weights!$G$7:$G$45,AH14)) -> 1 | AJ14: 0.1428571429 | AK14: POLICY AND INSTITUTIONAL CAPACITY category score
A15: 14 | B15: PLCAP_5_1 | C15: PLCAP_5 | D15: 3 | E15: 1.5.1 | F15: Grievance redress | G15: Scored 0-2 | H15: EIU qualitative assessment | I15: Do institutions provide citizens with the opportunity to successfully petition government to redress grievances?\n\n0= No\n1= Some opportunities\n2= Yes | K15: Do institutions provide citizens with the opportunity to successfully petition government to redress grievances? | L15: 0 | V15: 3 | W15: 0 | X15: 2 | Z15: 0 | AA15: #0 | AB15: SUB-INDICATOR | AC15: Scored 0-2 where 2=most favorable conditions | AD15: Scored 0-2 | AE15: 1.5.1) Grievance redress | AH15: =MATCH($B15,Weights!$C$7:$C$45,0) ->  | AI15: =IF(ISERROR(AH15),1,INDEX(Weights!$G$7:$G$45,AH15)) -> 1 | AJ15: 0.5 | AK15: Stakeholder engagement indicator score
A16: 15 | B16: PLCAP_5_2 | C16: PLCAP_5 | D16: 3 | E16: 1.5.2 | F16: Multi-stakeholder engagement | G16: Scored 0-1 | H16: EIU qualitative assessment | I16: Does the strategy referred to in sub-indicator 1.1.2 require multi-stakeholder engagement (i.e. private sector, public sector, third-sector and private citizens)?\n\n0=No\n1=Yes\n\nThe strategy noted in 1.1.2 must specifically address multi-stakeholder engagement. | K16: Does the strategy referred to in sub-indicator 1.1.2 require multi-stakeholder engagement (i.e. private sector, public sector, third sector and private citizens)? | L16: 0 | V16: 3 | W16: 0 | X16: 1 | Z16: 0 | AA16: #0 | AB16: SUB-INDICATOR | AC16: Scored 0-1 where 1=most favorable conditions | AD16: Scored 0-1 | AE16: 1.5.2) Multi-stakeholder engagement | AH16: =MATCH($B16,Weights!$C$7:$C$45,0) ->  | AI16: =IF(ISERROR(AH16),1,INDEX(Weights!$G$7:$G$45,AH16)) -> 1 | AJ16: 0.5 | AK16: Stakeholder engagement indicator score
A17: 16 | B17: PLCAP_6 | C17: PLCAP | D17: 2 | E17: 1.6 | F17: Extractive industries transparency | G17: Scored 0-100 where 100=most favorable coastal governance environment | H17: Calculated from sub-indicator | I17: Scored as the normalized score total of the following sub-indicator:\n\n1.6.1 Has the country adopted the Extractive Industries Transparency Initiative (EITI) standards?\n\n0=No\n1=Membership has been suspended\n2=EITI candidate country\n3=EITI compliant country or extractive industries are not a significant economic activity in the country | J17: This indicator measures the extent to which rent distribution coming from the exploitation of natural resources is done in a transparent fashion. | V17: 1 | X17: 100 | Z17: 0 | AA17: #0 | AB17: INDICATOR | AC17: Scored 0-100 where 100=most favorable conditions | AD17: Scored 0-100 | AE17: 1.6) Extractive industries transparency | AH17: =MATCH($B17,Weights!$C$7:$C$45,0) -> 16 | AI17: =IF(ISERROR(AH17),1,INDEX(Weights!$G$7:$G$45,AH17)) -> 1 | AJ17: 0.1428571429 | AK17: POLICY AND INSTITUTIONAL CAPACITY category score
A18: 17 | B18: PLCAP_6_1 | C18: PLCAP_6 | D18: 3 | E18: 1.6.1 | F18: Adoption of EITI standards | G18: Scored 0-3 | H18: Extractive Industries Transparency Initiative (EITI) | I18: 1.6.1 Has the country adopted the Extractive Industries Transparency Initiative (EITI) standards?\n\n0=No\n1=Membership has been suspended\n2=EITI candidate country\n3=EITI compliant or extractive industries are not a significant economic activity in the country\n\nThe Extractive Industries Transparency Initiative (EITI) is a global standard led by a coalition of governments, companies, investors, civil society organisations, and partner organisations to promote openness and accountable management of natural resources. It seeks to strengthen government and company systems, inform public debate, and enhance trust. | K18: Has the country adopted the Extractive Industries Transparency Initiative (EITI) standards? | L18: 0 | V18: 3 | W18: 0 | X18: 3 | Z18: 0 | AA18: #0 | AB18: SUB-INDICATOR | AC18: Scored 0-3 where 3=most favorable conditions | AD18: Scored 0-3 | AE18: 1.6.1) Adoption of EITI standards | AH18: =MATCH($B18,Weights!$C$7:$C$45,0) ->  | AI18: =IF(ISERROR(AH18),1,INDEX(Weights!$G$7:$G$45,AH18)) -> 1 | AJ18: 1 | AK18: Extractive industries transparency indicator score
A19: 18 | B19: PLCAP_7 | C19: PLCAP | D19: 2 | E19: 1.7 | F19: Adoption of the United Nations Convention on the Law of the Sea (UNCLOS) | G19: Scored 0-100 where 100=most favorable coastal governance environment | H19: Calculated from sub-indicator | I19: Scored as the normalized score of the following sub-indicator:\n\nIs the state a party to the United Nations Convention on the Law of the Sea (UNCLOS)?\n\n0= Not a member\n1= Signed\n2 = Signed and ratified (or action having the same legal effect) | V19: 1 | X19: 100 | Z19: 0 | AA19: #0 | AB19: INDICATOR | AC19: Scored 0-100 where 100=most favorable conditions | AD19: Scored 0-100 | AE19: 1.7) Adoption of the United Nations Convention on the Law of the Sea (UNCLOS) | AH19: =MATCH($B19,Weights!$C$7:$C$45,0) -> 17 | AI19: =IF(ISERROR(AH19),1,INDEX(Weights!$G$7:$G$45,AH19)) -> 1 | AJ19: 0.1428571429 | AK19: POLICY AND INSTITUTIONAL CAPACITY category score
A20: 19 | B20: PLCAP_7_1 | C20: PLCAP_7 | D20: 3 | E20: 1.7.1 | F20: Adoption of UNCLOS | G20: Scored 0-2 | H20: United Nations Treaty Collection (UNTC) | I20: Is the state a party to the United Nations Convention on the Law of the Sea (UNCLOS)?\n\n0= Not a member\n1= Signed\n2 = Signed and ratified (or action having the same legal effect) | K20: Is the state a party to the United Nations Convention on the Law of the Sea (UNCLOS)? | L20: 0 | V20: 3 | W20: 0 | X20: 2 | Z20: 0 | AA20: #0 | AB20: SUB-INDICATOR | AC20: Scored 0-2 where 2=most favorable conditions | AD20: Scored 0-2 | AE20: 1.7.1) Adoption of UNCLOS | AH20: =MATCH($B20,Weights!$C$7:$C$45,0) ->  | AI20: =IF(ISERROR(AH20),1,INDEX(Weights!$G$7:$G$45,AH20)) -> 1 | AJ20: 1 | AK20: Adoption of the United Nations Convention on the Law of the Sea (UNCLOS) indicator score
A21: 20 | B21: BUSENV | C21: OVERALL | D21: 1 | E21: 2 | F21: BUSINESS ENVIRONMENT FOR COASTAL ACTIVITIES | G21: Scored 0-100 where 100=most favorable environment for coastal activities | H21: Calculated from indicator scores | I21: Weighted total of the following four indicators:\n2.1) Ease of doing business \n2.2) Corruption perception \n2.3) Effectiveness of dispute resolution mechanisms \n2.4) Quality of coastal infrastructure | J21: This category is comprised of four indicators and nine sub-indicators related to the business operating environment for developing coastal economic activities. It assesses the attributes for private sector activities in coastal areas. | K21: The BUSINESS ENVIRONMENT FOR COASTAL ACTIVITIES category score is the combination of the indicator scores within this category (see Scoring Notes). | V21: 1 | X21: 100 | Z21: 0 | AA21: #0 | AB21: CATEGORY | AC21: Scored 0-100 where 100=most favorable conditions | AD21: Scored 0-100 | AE21: 2) BUSINESS ENVIRONMENT FOR COASTAL ACTIVITIES | AH21: =MATCH($B21,Weights!$C$7:$C$45,0) -> 2 | AI21: =IF(ISERROR(AH21),1,INDEX(Weights!$G$7:$G$45,AH21)) -> 1 | AJ21: 0.1666666667 | AK21: OVERALL score
A22: 21 | B22: BUSENV_1 | C22: BUSENV | D22: 2 | E22: 2.1 | F22: Ease of doing business | G22: Scored 0-100 where 100=most favorable coastal governance environment | H22: Calculated from sub-indicator | I22: Scored as the normalized score of the following sub-indicator:\n\nThis indicator is informed by EIU’s Business Environment Rankings. \n\nCountries may score anywhere from 0 to 9 where:\n\n0=Worst environment\n9=Best environment | V22: 1 | X22: 100 | Z22: 0 | AA22: #0 | AB22: INDICATOR | AC22: Scored 0-100 where 100=most favorable conditions | AD22: Scored 0-100 | AE22: 2.1) Ease of doing business | AH22: =MATCH($B22,Weights!$C$7:$C$45,0) -> 19 | AI22: =IF(ISERROR(AH22),1,INDEX(Weights!$G$7:$G$45,AH22)) -> 1 | AJ22: 0.25 | AK22: BUSINESS ENVIRONMENT FOR COASTAL ACTIVITIES category score
A23: 22 | B23: BUSENV_1_1 | C23: BUSENV_1 | D23: 3 | E23: 2.1.1 | F23: Business environment | G23: Scored 0-9 | H23: EIU Business Environment Rankings, 2015 | I23: The EIU business environment rankings quantify the attractiveness of the business environment. The overall score is derived as an unweighted average of ten component category scores. \n\nCountries may score anywhere from 0 to 9 where:\n\n0=Worst environment\n9=Best environment | K23: This indicator is informed by EIU’s Business Environment Rankings. | L23: 0 | V23: 3 | W23: 0 | X23: 9 | Z23: 0 | AA23: 0.0 | AB23: SUB-INDICATOR | AC23: Scored 0-9 where 9=most favorable conditions | AD23: Scored 0-9 | AE23: 2.1.1) Business environment | AH23: =MATCH($B23,Weights!$C$7:$C$45,0) ->  | AI23: =IF(ISERROR(AH23),1,INDEX(Weights!$G$7:$G$45,AH23)) -> 1 | AJ23: 1 | AK23: Ease of doing business indicator score
A24: 23 | B24: BUSENV_2 | C24: BUSENV | D24: 2 | E24: 2.2 | F24: Corruption perception | G24: Scored 0-100 where 100=most favorable coastal governance environment | H24: Calculated from sub-indicator | I24: Scored as the normalized score of the following sub-indicator:\n\nThis indicator is informed by World Bank’s Worldwide Governance Indicators, specifically Control of Corruption.\n\nCountries may score anywhere from 0 to 100 where:\n\n0=Lowest control of corruption\n100=Highest control of corruption | V24: 1 | X24: 100 | Z24: 0 | AA24: #0 | AB24: INDICATOR | AC24: Scored 0-100 where 100=most favorable conditions | AD24: Scored 0-100 | AE24: 2.2) Corruption perception | AH24: =MATCH($B24,Weights!$C$7:$C$45,0) -> 20 | AI24: =IF(ISERROR(AH24),1,INDEX(Weights!$G$7:$G$45,AH24)) -> 1 | AJ24: 0.25 | AK24: BUSINESS ENVIRONMENT FOR COASTAL ACTIVITIES category score
A25: 24 | B25: BUSENV_2_1 | C25: BUSENV_2 | D25: 3 | E25: 2.2.1 | F25: Control of corruption | G25: Scored 0-100 | H25: World Bank, Worldwide Governance Indicators, 2013 | I25: Captures perceptions of the extent to which public power is exercised for private gain, including both petty and grand forms of corruption, as well as "capture" of the state by elites and private interests. \n\nCountries may score anywhere from 0 to 100 where: \n\n0=Lowest control of corruption\n100=Highest control of corruption | K25: This indicator is informed by World Bank’s Worldwide Governance Indicators, specifically Control of Corruption. | L25: 0 | V25: 3 | W25: 0 | X25: 100 | Z25: 0 | AA25: 0.0 | AB25: SUB-INDICATOR | AC25: Scored 0-100 where 100=most favorable conditions | AD25: Scored 0-100 | AE25: 2.2.1) Control of corruption | AH25: =MATCH($B25,Weights!$C$7:$C$45,0) ->  | AI25: =IF(ISERROR(AH25),1,INDEX(Weights!$G$7:$G$45,AH25)) -> 1 | AJ25: 1 | AK25: Corruption perception indicator score
A26: 25 | B26: BUSENV_3 | C26: BUSENV | D26: 2 | E26: 2.3 | F26: Effectiveness of dispute resolution mechanisms | G26: Scored 0-100 where 100=most favorable coastal governance environment | H26: Calculated from sub-indicators | I26: Scored as the aggregation of normalized scores of the following two sub-indicators:\n\nFairness of judicial process:\n\n0=Very low degree – the legal process is extremely susceptible to distortion by particular interests\n1=Low degree – the legal process is often distorted by particular interests\n2=Moderate degree - the legal process is sometimes distorted by particular interests\n3=High degree - the legal process is rarely distorted by particular interests\n4=Very high degree - the legal process is entirely independent\n\nEnforceability of contracts:\n\n0=Minimal – businesses cannot rely on contractual rights being enforced at all\n1=Small – businesses will often find that contractual rights are not enforced\n2=Moderate – businesses will sometimes find that contractual rights are not enforced\n3=High – businesses can usually rely on contractual rights being enforced\n4=Very High – businesses can rely on all contractual rights being enforced by the authorities | V26: 1 | X26: 100 | Z26: 0 | AA26: #0 | AB26: INDICATOR | AC26: Scored 0-100 where 100=most favorable conditions | AD26: Scored 0-100 | AE26: 2.3) Effectiveness of dispute resolution mechanisms | AH26: =MATCH($B26,Weights!$C$7:$C$45,0) -> 21 | AI26: =IF(ISERROR(AH26),1,INDEX(Weights!$G$7:$G$45,AH26)) -> 1 | AJ26: 0.25 | AK26: BUSINESS ENVIRONMENT FOR COASTAL ACTIVITIES category score
A27: 26 | B27: BUSENV_3_1 | C27: BUSENV_3 | D27: 3 | E27: 2.3.1 | F27: Fairness of judicial process | G27: Scored 0-4 | H27: EIU Risk Briefing, 2015 | I27: Assesses the extent to which the legal process/the courts are independent and can avoid interference or distortion by particular interests.\n\n0=Very low degree – the legal process is extremely susceptible to distortion by particular interests\n1=Low degree – the legal process is often distorted by particular interests\n2=Moderate degree - the legal process is sometimes distorted by particular interests\n3=High degree - the legal process is rarely distorted by particular interests\n4=Very high degree - the legal process is entirely independent | K27: Fairness of judicial process: Assesses the extent to which the legal process/the courts are independent and can avoid interference or distortion by particular interests | L27: 0 | V27: 3 | W27: 0 | X27: 4 | Z27: 0 | AA27: #0 | AB27: SUB-INDICATOR | AC27: Scored 0-4 where 4=most favorable conditions | AD27: Scored 0-4 | AE27: 2.3.1) Fairness of judicial process | AH27: =MATCH($B27,Weights!$C$7:$C$45,0) ->  | AI27: =IF(ISERROR(AH27),1,INDEX(Weights!$G$7:$G$45,AH27)) -> 1 | AJ27: 0.5 | AK27: Effectiveness of dispute resolution mechanisms indicator score
A28: 27 | B28: BUSENV_3_2 | C28: BUSENV_3 | D28: 3 | E28: 2.3.2 | F28: Enforceability of contracts | G28: Scored 0-4 | H28: EIU Risk Briefing, 2015 | I28: Assesses the likelihood that contract rights will be enforced.\n\n0=Minimal – businesses cannot rely on contractual rights being enforced at all\n1=Small – businesses will often find that contractual rights are not enforced\n2=Moderate – businesses will sometimes find that contractual rights are not enforced\n3=High – businesses can usually rely on contractual rights being enforced\n4=Very High – businesses can rely on all contractual rights being enforced by the authorities | K28: Enforceability of contracts: Assesses the likelihood that contract rights will be enforced | L28: 0 | V28: 3 | W28: 0 | X28: 4 | Z28: 0 | AA28: #0 | AB28: SUB-INDICATOR | AC28: Scored 0-4 where 4=most favorable conditions | AD28: Scored 0-4 | AE28: 2.3.2) Enforceability of contracts | AH28: =MATCH($B28,Weights!$C$7:$C$45,0) ->  | AI28: =IF(ISERROR(AH28),1,INDEX(Weights!$G$7:$G$45,AH28)) -> 1 | AJ28: 0.5 | AK28: Effectiveness of dispute resolution mechanisms indicator score
A29: 28 | B29: BUSENV_4 | C29: BUSENV | D29: 2 | E29: 2.4 | F29: Quality of coastal infrastructure | G29: Scored 0-100 where 100=most favorable coastal governance environment | H29: Calculated from sub-indicators | I29: Scored as the aggregation of normalized scores of the following five sub-indicators :\n\nHow would you assess port facilities in your country?\nCountries may score anywhere from 0 to 6 where:\n\n0=Extremely underdeveloped – among the worst in the world\n6=Extensive and efficient – among the best in the world\n\nHow would you assess the reliability of electricity supply (lack of interruptions and lack of voltage fluctuations)?\nCountries may score anywhere from 0 to 6 where:\n\n0=Not reliable at all\n6=Extremely reliable\n\nHow would you assess roads in your country?\nCountries may score anywhere from 0 to 6 where:\n\n0=Extremely underdeveloped – among the worst in the world\n6=Extensive and efficient – among the best in the world\n\nHow would you assess railroads in your country?\nCountries may score anywhere from 0 to 6 where:\n\n0=Extremely underdeveloped – among the worst in the world\n6=Extensive and efficient – among the best in the world\n\nTo what extent is improved drinking water and sanitation infrastructure accessible in the country?\nCountries may score anywhere from 0 to 100 where:\n\n0=Lowest access\n100=Highest access | V29: 1 | X29: 100 | Z29: 0 | AA29: #0 | AB29: INDICATOR | AC29: Scored 0-100 where 100=most favorable conditions | AD29: Scored 0-100 | AE29: 2.4) Quality of coastal infrastructure | AH29: =MATCH($B29,Weights!$C$7:$C$45,0) -> 22 | AI29: =IF(ISERROR(AH29),1,INDEX(Weights!$G$7:$G$45,AH29)) -> 1 | AJ29: 0.25 | AK29: BUSINESS ENVIRONMENT FOR COASTAL ACTIVITIES category score
A30: 29 | B30: BUSENV_4_1 | C30: BUSENV_4 | D30: 3 | E30: 2.4.1 | F30: Quality of port facilities | G30: Scored 0-6 | H30: World Economic Forum, Global Competitiveness Report, 2014-2015 | I30: How would you assess port facilities in your country?\n\nCountries may score anywhere from 0 to 6 where: \n\n0=Extremely underdeveloped – among the worst in the world\n6=Extensive and efficient – among the best in the world | K30: How would you assess port facilities in your country? | L30: 0 | V30: 3 | W30: 0 | X30: 6 | Z30: 0 | AA30: 0.0 | AB30: SUB-INDICATOR | AC30: Scored 0-6 where 6=most favorable conditions | AD30: Scored 0-6 | AE30: 2.4.1) Quality of port facilities | AH30: =MATCH($B30,Weights!$C$7:$C$45,0) ->  | AI30: =IF(ISERROR(AH30),1,INDEX(Weights!$G$7:$G$45,AH30)) -> 1 | AJ30: 0.2 | AK30: Quality of coastal infrastructure indicator score
A31: 30 | B31: BUSENV_4_2 | C31: BUSENV_4 | D31: 3 | E31: 2.4.2 | F31: Quality of electricity supply | G31: Scored 0-6 | H31: World Economic Forum, Global Competitiveness Report, 2014-2015 | I31: How would you assess the reliability of electricity supply (lack of interruptions and lack of voltage fluctuations)?\n\nCountries may score anywhere from 0 to 6 where:\n\n0=Not reliable at all\n6=Extremely reliable | K31: How would you assess the reliability of electricity supply (lack of interruptions and lack of voltage fluctuations)? | L31: 0 | V31: 3 | W31: 0 | X31: 6 | Z31: 0 | AA31: 0.0 | AB31: SUB-INDICATOR | AC31: Scored 0-6 where 6=most favorable conditions | AD31: Scored 0-6 | AE31: 2.4.2) Quality of electricity supply | AH31: =MATCH($B31,Weights!$C$7:$C$45,0) ->  | AI31: =IF(ISERROR(AH31),1,INDEX(Weights!$G$7:$G$45,AH31)) -> 1 | AJ31: 0.2 | AK31: Quality of coastal infrastructure indicator score
A32: 31 | B32: BUSENV_4_3 | C32: BUSENV_4 | D32: 3 | E32: 2.4.3 | F32: Quality of road infrastructure | G32: Scored 0-6 | H32: World Economic Forum, Global Competitiveness Report, 2014-2015 | I32: How would you assess roads in your country?\n\nCountries may score anywhere from 0 to 6 where:\n\n0=Extremely underdeveloped – among the worst in the world\n6=Extensive and efficient – among the best in the world | K32: How would you assess roads in your country? | L32: 0 | V32: 3 | W32: 0 | X32: 6 | Z32: 0 | AA32: 0.0 | AB32: SUB-INDICATOR | AC32: Scored 0-6 where 6=most favorable conditions | AD32: Scored 0-6 | AE32: 2.4.3) Quality of road infrastructure | AH32: =MATCH($B32,Weights!$C$7:$C$45,0) ->  | AI32: =IF(ISERROR(AH32),1,INDEX(Weights!$G$7:$G$45,AH32)) -> 1 | AJ32: 0.2 | AK32: Quality of coastal infrastructure indicator score
A33: 32 | B33: BUSENV_4_4 | C33: BUSENV_4 | D33: 3 | E33: 2.4.4 | F33: Quality of railroad infrastructure | G33: Scored 0-6 | H33: World Economic Forum, Global Competitiveness Report, 2014-2015 | I33: How would you assess railroads in your country?\n\nCountries may score anywhere from 0 to 6 where:\n\n0=Extremely underdeveloped – among the worst in the world\n6=Extensive and efficient – among the best in the world | K33: How would you assess railroads in your country? | L33: 0 | V33: 3 | W33: 0 | X33: 6 | Z33: 0 | AA33: 0.0 | AB33: SUB-INDICATOR | AC33: Scored 0-6 where 6=most favorable conditions | AD33: Scored 0-6 | AE33: 2.4.4) Quality of railroad infrastructure | AH33: =MATCH($B33,Weights!$C$7:$C$45,0) ->  | AI33: =IF(ISERROR(AH33),1,INDEX(Weights!$G$7:$G$45,AH33)) -> 1 | AJ33: 0.2 | AK33: Quality of coastal infrastructure indicator score
A34: 33 | B34: BUSENV_4_5 | C34: BUSENV_4 | D34: 3 | E34: 2.4.5 | F34: Quality of water infrastructure | G34: Scored 0-100 | H34: Yale University, Environmental Performance Index, 2014 | I34: To what extent is improved drinking water and sanitation infrastructure accessible in the country?\n\nCountries may score anywhere from 0 to 100 where:\n\n0=Lowest access\n100=Highest access | K34: To what extent is improved drinking water and sanitation infrastructure accessible in the country? | L34: 0 | V34: 3 | W34: 0 | X34: 100 | Z34: 0 | AA34: 0.0 | AB34: SUB-INDICATOR | AC34: Scored 0-100 where 100=most favorable conditions | AD34: Scored 0-100 | AE34: 2.4.5) Quality of water infrastructure | AH34: =MATCH($B34,Weights!$C$7:$C$45,0) ->  | AI34: =IF(ISERROR(AH34),1,INDEX(Weights!$G$7:$G$45,AH34)) -> 1 | AJ34: 0.2 | AK34: Quality of coastal infrastructure indicator score
A35: 34 | B35: WATQUAL | C35: OVERALL | D35: 1 | E35: 3 | F35: WATER QUALITY | G35: Scored 0-100 where 100=most favorable environment for water management | H35: Calculated from indicator scores | I35: Weighted total of the following three indicators:\n3.1) Agency \n3.2) Regulatory standards for water pollution \n3.3) Monitoring and enforcement | J35: This category is comprised of three indicators and six sub-indicators related to the management and preservation of water quality. It assesses the coastal management of the water resource and the extent to which it ensures the quality of the asset. | K35: The WATER QUALITY category score is the combination of the indicator scores within this category (see Scoring Notes). | V35: 1 | X35: 100 | Z35: 0 | AA35: #0 | AB35: CATEGORY | AC35: Scored 0-100 where 100=most favorable conditions | AD35: Scored 0-100 | AE35: 3) WATER QUALITY | AH35: =MATCH($B35,Weights!$C$7:$C$45,0) -> 3 | AI35: =IF(ISERROR(AH35),1,INDEX(Weights!$G$7:$G$45,AH35)) -> 1 | AJ35: =IF(ISERROR(AI35/SUMIF($C$2:$C$75,$C35,AI$2:AI$75)),0,AI35/SUMIF($C$2:$C$75,$C35,AI$2:AI$75)) -> 0.1666666667 | AK35: =CHOOSE(D35,"OVERALL score",CONCATENATE(INDEX(F$2:F$77,MATCH(C35,$B$2:$B$77,0))," category score"),CONCATENATE(INDEX(F$2:F$77,MATCH(C35,$B$2:$B$77,0))," indicator score")) -> OVERALL score
A36: 35 | B36: WATQUAL_1 | C36: WATQUAL | D36: 2 | E36: 3.1 | F36: Agency | G36: Scored 0-100 where 100=most favorable coastal governance environment | H36: Calculated from sub-indicator | I36: Scored as the normalized score of the following sub-indicator:\n\nIs there a national environmental agency responsible for setting freshwater pollution controls?\n\n0= No\n1= No, but standards are set by regional (state, provincial) bodies/agencies\n2 = Yes | V36: 1 | X36: 100 | Z36: 0 | AA36: #0 | AB36: INDICATOR | AC36: Scored 0-100 where 100=most favorable conditions | AD36: Scored 0-100 | AE36: 3.1) Agency | AH36: =MATCH($B36,Weights!$C$7:$C$45,0) -> 24 | AI36: =IF(ISERROR(AH36),1,INDEX(Weights!$G$7:$G$45,AH36)) -> 1 | AJ36: 0.3333333333 | AK36: WATER QUALITY category score
A37: 36 | B37: WATQUAL_1_1 | C37: WATQUAL_1 | D37: 3 | E37: 3.1.1 | F37: Agency responsible for freshwater pollution controls | G37: Scored 0-2 | H37: EIU qualitative assessment | I37: Is there a national environmental agency responsible for setting freshwater pollution controls?\n\n0= No\n1= No, but standards are set by regional (state, provincial) bodies/agencies\n2 = Yes | K37: Is there a national environmental agency responsible for setting freshwater pollution controls? | L37: 0 | V37: 3 | W37: 0 | X37: 2 | Z37: 0 | AA37: #0 | AB37: SUB-INDICATOR | AC37: Scored 0-2 where 2=most favorable conditions | AD37: Scored 0-2 | AE37: 3.1.1) Agency responsible for freshwater pollution controls | AH37: =MATCH($B37,Weights!$C$7:$C$45,0) ->  | AI37: =IF(ISERROR(AH37),1,INDEX(Weights!$G$7:$G$45,AH37)) -> 1 | AJ37: 1 | AK37: Agency indicator score
A38: 37 | B38: WATQUAL_2 | C38: WATQUAL | D38: 2 | E38: 3.2 | F38: Regulatory standards for water pollution | G38: Scored 0-100 where 100=most favorable coastal governance environment | H38: Calculated from sub-indicators | I38: Scored as the aggregation of normalized scores of the following three sub-indicators :\n\nDo regulations set water quality standards for point source pollution?\n\n0= No\n1= Yes\n\nDo regulations restrict or ban the “Dirty Dozen” Persistent Pollutants under the Stockholm Convention?\n\nCountries’ scores range from 0 to 25 where:\n\n0= Less restrictive regulation\n25=Most restrictive regulation\n\nThe answer to this question is based on EPI’s indicator on pesticide regulation. This indicator assesses whether countries allow, restrict or ban the ‘Dirty Dozen’ Persistent Organic Pollutants under the Stockholm Convention. The scores range from 0 to 25 based on EPI’s methodology.\n\nTo what extent is wastewater treated?\n\nCountries’ scores range from 0 to 100 where:\n\n0=Lowest\n100=Highest rate\n\nThis indicator is based on EPI’s water resources indicator, which tracks the extent to which wastewater from households and industrial sources is treated before releasing it back into the environment. More specifically, it is defined as wastewater treatment level weighted by connection to wastewater treatment rate. | V38: 1 | X38: 100 | Z38: 0 | AA38: #0 | AB38: INDICATOR | AC38: Scored 0-100 where 100=most favorable conditions | AD38: Scored 0-100 | AE38: 3.2) Regulatory standards for water pollution | AH38: =MATCH($B38,Weights!$C$7:$C$45,0) -> 25 | AI38: =IF(ISERROR(AH38),1,INDEX(Weights!$G$7:$G$45,AH38)) -> 1 | AJ38: 0.3333333333 | AK38: WATER QUALITY category score
A39: 38 | B39: WATQUAL_2_1 | C39: WATQUAL_2 | D39: 3 | E39: 3.2.1 | F39: Standards for point source pollution | G39: Scored 0-1 | H39: EIU qualitative assessment | I39: Do regulations set water quality standards for point source pollution?\n\n0= No\n1= Yes | K39: Do regulations set water quality standards for point source pollution? | L39: 0 | V39: 3 | W39: 0 | X39: 1 | Z39: 0 | AA39: #0 | AB39: SUB-INDICATOR | AC39: Scored 0-1 where 1=most favorable conditions | AD39: Scored 0-1 | AE39: 3.2.1) Standards for point source pollution | AH39: =MATCH($B39,Weights!$C$7:$C$45,0) ->  | AI39: =IF(ISERROR(AH39),1,INDEX(Weights!$G$7:$G$45,AH39)) -> 1 | AJ39: 0.3333333333 | AK39: Regulatory standards for water pollution indicator score
A40: 39 | B40: WATQUAL_2_2 | C40: WATQUAL_2 | D40: 3 | E40: 3.2.2 | F40: Restrictions on "Dirty Dozen" persistent pollutants | G40: Scored 0-25 | H40: Yale University, Environmental Performance Index, 2014 | I40: Do regulations restrict or ban the “Dirty Dozen” Persistent Pollutants under the Stockholm Convention?\n\nCountries’ scores range from 0 to 25 where:\n\n0= Less restrictive regulation\n25=Most restrictive regulation\n\nAssesses whether countries allow, restrict or ban the ‘Dirty Dozen’ Persistent Organic Pollutants under the Stockholm Convention based on EPI’s methodology. | K40: Do regulations restrict or ban the “Dirty Dozen” Persistent Pollutants under the Stockholm Convention? | L40: 0 | V40: 3 | W40: 0 | X40: 25 | Z40: 0 | AA40: #0 | AB40: SUB-INDICATOR | AC40: Scored 0-25 where 25=most favorable conditions | AD40: Scored 0-25 | AE40: 3.2.2) Restrictions on "Dirty Dozen" persistent pollutants | AH40: =MATCH($B40,Weights!$C$7:$C$45,0) ->  | AI40: =IF(ISERROR(AH40),1,INDEX(Weights!$G$7:$G$45,AH40)) -> 1 | AJ40: 0.3333333333 | AK40: Regulatory standards for water pollution indicator score
A41: 40 | B41: WATQUAL_2_3 | C41: WATQUAL_2 | D41: 3 | E41: 3.2.3 | F41: Wastewater treatment | G41: Scored 0-100 | H41: Yale University, Environmental Performance Index, 2014 | I41: To what extent is wastewater treated?\n\nCountries’ scores range from 0 to 100 where:\n\n0=Lowest\n100=Highest rate\n\nAssesses the extent to which wastewater from households and industrial sources is treated before releasing it back into the environment. It is defined as wastewater treatment level weighted by connection to wastewater treatment rate. | K41: To what extent is wastewater treated? | L41: 0 | V41: 3 | W41: 0 | X41: 100 | Z41: 0 | AA41: 0.0 | AB41: SUB-INDICATOR | AC41: Scored 0-100 where 100=most favorable conditions | AD41: Scored 0-100 | AE41: 3.2.3) Wastewater treatment | AH41: =MATCH($B41,Weights!$C$7:$C$45,0) ->  | AI41: =IF(ISERROR(AH41),1,INDEX(Weights!$G$7:$G$45,AH41)) -> 1 | AJ41: 0.3333333333 | AK41: Regulatory standards for water pollution indicator score
A42: 41 | B42: WATQUAL_3 | C42: WATQUAL | D42: 2 | E42: 3.3 | F42: Monitoring and enforcement | G42: Scored 0-100 where 100=most favorable coastal governance environment | H42: Calculated from sub-indicators | I42: Scored as the aggregation of normalized scores of the following two sub-indicators:\n\nIs data on coastal water quality collected?\n\n0= There is no data collection or information about data collection not publicly available\n1= Data is collected but frequency is unclear\n2= Data is collected once a year\n3 = Data is collected more than once per year\n\nDo regulations establish penalties for violations of water quality standards noted in 3.2.1?\n\n0= No\n1= Yes | V42: 1 | X42: 100 | Z42: 0 | AA42: #0 | AB42: INDICATOR | AC42: Scored 0-100 where 100=most favorable conditions | AD42: Scored 0-100 | AE42: 3.3) Monitoring and enforcement | AH42: =MATCH($B42,Weights!$C$7:$C$45,0) -> 26 | AI42: =IF(ISERROR(AH42),1,INDEX(Weights!$G$7:$G$45,AH42)) -> 1 | AJ42: 0.3333333333 | AK42: WATER QUALITY category score
A43: 42 | B43: WATQUAL_3_1 | C43: WATQUAL_3 | D43: 3 | E43: 3.3.1 | F43: Coastal water quality data | G43: Scored 0-3 | H43: EIU qualitative assessment | I43: Is data on coastal water quality collected?\n\n0= There is no data collection or information about data collection not publicly available\n1= Data is collected but frequency is unclear\n2= Data is collected once per year\n3 = Data is collected more than once per year | K43: Is data on coastal water quality collected? | L43: 0 | V43: 3 | W43: 0 | X43: 3 | Z43: 0 | AA43: #0 | AB43: SUB-INDICATOR | AC43: Scored 0-3 where 3=most favorable conditions | AD43: Scored 0-3 | AE43: 3.3.1) Coastal water quality data | AH43: =MATCH($B43,Weights!$C$7:$C$45,0) ->  | AI43: =IF(ISERROR(AH43),1,INDEX(Weights!$G$7:$G$45,AH43)) -> 1 | AJ43: 0.5 | AK43: Monitoring and enforcement indicator score
A44: 43 | B44: WATQUAL_3_2 | C44: WATQUAL_3 | D44: 3 | E44: 3.3.2 | F44: Penalties for water quality violations | G44: Scored 0-1 | H44: EIU qualitative assessment | I44: Do regulations establish penalties for violations of water quality standards noted in 3.2.1?\n\n0= No\n1= Yes | K44: Do regulations establish penalties for violations of water quality standards noted in 3.2.1? | L44: 0 | V44: 3 | W44: 0 | X44: 1 | Z44: 0 | AA44: #0 | AB44: SUB-INDICATOR | AC44: Scored 0-1 where 1=most favorable conditions | AD44: Scored 0-1 | AE44: 3.3.2) Penalties for water quality violations | AH44: =MATCH($B44,Weights!$C$7:$C$45,0) ->  | AI44: =IF(ISERROR(AH44),1,INDEX(Weights!$G$7:$G$45,AH44)) -> 1 | AJ44: 0.5 | AK44: Monitoring and enforcement indicator score
A45: 44 | B45: MINENG | C45: OVERALL | D45: 1 | E45: 4 | F45: MINERALS AND ENERGY | G45: Scored 0-100 where 100=most favorable coastal governance environment for the minerals and oil and gas industries | H45: Calculated from indicator scores | I45: Weighted total of the following three indicators:\n4.1) Permitting and licensing \n4.2) Monitoring and enforcement \n4.3) Risk mitigation | J45: This category is comprised of three indicators and nine sub-indicators related to the exploitation and use of minerals and production of energy. It measures the coastal governance environment for the minerals and oil and gas industries. | K45: The MINERALS AND ENERGY category score is the combination of the indicator scores within this category (see Scoring Notes). | V45: 1 | X45: 100 | Z45: 0 | AA45: #0 | AB45: CATEGORY | AC45: Scored 0-100 where 100=most favorable conditions | AD45: Scored 0-100 | AE45: 4) MINERALS AND ENERGY | AH45: =MATCH($B45,Weights!$C$7:$C$45,0) -> 4 | AI45: =IF(ISERROR(AH45),1,INDEX(Weights!$G$7:$G$45,AH45)) -> 1 | AJ45: 0.1666666667 | AK45: OVERALL score
A46: 45 | B46: MINENG_1 | C46: MINENG | D46: 2 | E46: 4.1 | F46: Permitting and licensing | G46: Scored 0-100 where 100=most favorable coastal governance environment | H46: Calculated from sub-indicators | I46: Scored as the aggregation of normalized scores of the following two sub-indicators:\n\nAre there clear rules for obtaining and maintaining tenure for oil and gas?\n\n0=No or information not publicly available\n1=The tenure process is partially described\n2=The tenure process is fully described and publicly available or the oil and gas industry is not a significant economic activity in the country\n\nAre there clear rules for obtaining and maintaining tenure for mining activities?\n\n0=No or information not publicly available\n1=The tenure process is partially described\n2=The tenure process is fully described and publicly available or the mining industry is not a significant economic activity in the country | V46: 1 | X46: 100 | Z46: 0 | AA46: #0 | AB46: INDICATOR | AC46: Scored 0-100 where 100=most favorable conditions | AD46: Scored 0-100 | AE46: 4.1) Permitting and licensing | AH46: =MATCH($B46,Weights!$C$7:$C$45,0) -> 28 | AI46: =IF(ISERROR(AH46),1,INDEX(Weights!$G$7:$G$45,AH46)) -> 1 | AJ46: 0.3333333333 | AK46: MINERALS AND ENERGY category score
A47: 46 | B47: MINENG_1_1 | C47: MINENG_1 | D47: 3 | E47: 4.1.1 | F47: Oil and gas tenure | G47: Scored 0-2 | H47: EIU qualitative assessment | I47: Are there clear rules for obtaining and maintaining tenure for oil and gas?\n\n0=No or information not publicly available\n1=The tenure process is partially described\n2=The tenure process is fully described and publicly available or the oil and gas industry is not a significant economic activity in the country\n\nTenure is the process of leasing and administering oil/gas rights owned by the state/provincial or national government. | K47: Are there clear rules for obtaining and maintaining tenure for oil and gas? | L47: 0 | V47: 3 | W47: 0 | X47: 2 | Z47: 0 | AA47: #0 | AB47: SUB-INDICATOR | AC47: Scored 0-2 where 2=most favorable conditions | AD47: Scored 0-2 | AE47: 4.1.1) Oil and gas tenure | AH47: =MATCH($B47,Weights!$C$7:$C$45,0) ->  | AI47: =IF(ISERROR(AH47),1,INDEX(Weights!$G$7:$G$45,AH47)) -> 1 | AJ47: 0.5 | AK47: Permitting and licensing indicator score
A48: 47 | B48: MINENG_1_2 | C48: MINENG_1 | D48: 3 | E48: 4.1.2 | F48: Mining and minerals tenure | G48: Scored 0-2 | H48: EIU qualitative assessment | I48: Are there clear rules for obtaining and maintaining tenure for mining activities?\n\n0=No or information not publicly available\n1=The tenure process is partially described\n2=The tenure process is fully described and publicly available or the mining industry is not a significant economic activity in the country\n\nTenure is the process of leasing and administering mining rights owned by the state/provincial or national government. | K48: Are there clear rules for obtaining and maintaining tenure for mining activities? | L48: 0 | V48: 3 | W48: 0 | X48: 2 | Z48: 0 | AA48: #0 | AB48: SUB-INDICATOR | AC48: Scored 0-2 where 2=most favorable conditions | AD48: Scored 0-2 | AE48: 4.1.2) Mining and minerals tenure | AH48: =MATCH($B48,Weights!$C$7:$C$45,0) ->  | AI48: =IF(ISERROR(AH48),1,INDEX(Weights!$G$7:$G$45,AH48)) -> 1 | AJ48: 0.5 | AK48: Permitting and licensing indicator score
A49: 48 | B49: MINENG_2 | C49: MINENG | D49: 2 | E49: 4.2 | F49: Monitoring and enforcement | G49: Scored 0-100 where 100=most favorable coastal governance environment | H49: Calculated from sub-indicators | I49: Scored as the aggregation of normalized scores of the following four sub-indicators:\n\nDo mineral and energy projects require environmental impact assessments (EIA) for oil and gas?\n\n0=No\n1=Yes or the oil and gas industry is not a significant economic activity in the country\n\nDo mineral and energy projects require environmental impact assessments (EIA) for mining activities?\n\n0=No\n1=Yes or the mining industry is not a significant economic activity in the country\n\nDo regulations require on-site inspections to monitor environmental impact?\n\n0=No\n1=Yes\n\nIs data on oil spills collected by a government entity? 0=No 1=Yes, data is collected but it is not publicy available 2=Yes, data is collected and it is publicly available | V49: 1 | X49: 100 | Z49: 0 | AA49: #0 | AB49: INDICATOR | AC49: Scored 0-100 where 100=most favorable conditions | AD49: Scored 0-100 | AE49: 4.2) Monitoring and enforcement | AH49: =MATCH($B49,Weights!$C$7:$C$45,0) -> 29 | AI49: =IF(ISERROR(AH49),1,INDEX(Weights!$G$7:$G$45,AH49)) -> 1 | AJ49: 0.3333333333 | AK49: MINERALS AND ENERGY category score
A50: 49 | B50: MINENG_2_1 | C50: MINENG_2 | D50: 3 | E50: 4.2.1 | F50: Environmental impact assessment for oil and gas | G50: Scored 0-1 | H50: EIU qualitative assessment | I50: Do mineral and energy projects require environmental impact assessments (EIA) for oil and gas?\n\n0=No\n1=Yes or the oil and gas industry is not a significant economic activity in the country | K50: Do mineral and energy projects require environmental impact assessments (EIA) for oil and gas? | L50: 0 | V50: 3 | W50: 0 | X50: 1 | Z50: 0 | AA50: #0 | AB50: SUB-INDICATOR | AC50: Scored 0-1 where 1=most favorable conditions | AD50: Scored 0-1 | AE50: 4.2.1) Environmental impact assessment for oil and gas | AH50: =MATCH($B50,Weights!$C$7:$C$45,0) ->  | AI50: =IF(ISERROR(AH50),1,INDEX(Weights!$G$7:$G$45,AH50)) -> 1 | AJ50: 0.25 | AK50: Monitoring and enforcement indicator score
A51: 50 | B51: MINENG_2_2 | C51: MINENG_2 | D51: 3 | E51: 4.2.2 | F51: Environment impact assessment for mining and minerals | G51: Scored 0-1 | H51: EIU qualitative assessment | I51: Do mineral and energy projects require environmental impact assessments (EIA) for mining activities?\n\n0=No\n1=Yes or the mining industry is not a significant economic activity in the country | K51: Do mineral and energy projects require environmental impact assessments (EIA) for mining activities? | L51: 0 | V51: 3 | W51: 0 | X51: 1 | Z51: 0 | AA51: #0 | AB51: SUB-INDICATOR | AC51: Scored 0-1 where 1=most favorable conditions | AD51: Scored 0-1 | AE51: 4.2.2) Environment impact assessment for mining and minerals | AH51: =MATCH($B51,Weights!$C$7:$C$45,0) ->  | AI51: =IF(ISERROR(AH51),1,INDEX(Weights!$G$7:$G$45,AH51)) -> 1 | AJ51: 0.25 | AK51: Monitoring and enforcement indicator score
A52: 51 | B52: MINENG_2_3 | C52: MINENG_2 | D52: 3 | E52: 4.2.3 | F52: On-site reviews | G52: Scored 0-1 | H52: EIU qualitative assessment | I52: Do regulations require on-site inspections to monitor environmental impact?\n\n0=No\n1=Yes | K52: Do regulations require on-site inspections to monitor environmental impact? | L52: 0 | V52: 3 | W52: 0 | X52: 1 | Z52: 0 | AA52: #0 | AB52: SUB-INDICATOR | AC52: Scored 0-1 where 1=most favorable conditions | AD52: Scored 0-1 | AE52: 4.2.3) On-site reviews | AH52: =MATCH($B52,Weights!$C$7:$C$45,0) ->  | AI52: =IF(ISERROR(AH52),1,INDEX(Weights!$G$7:$G$45,AH52)) -> 1 | AJ52: 0.25 | AK52: Monitoring and enforcement indicator score
A53: 52 | B53: MINENG_2_4 | C53: MINENG_2 | D53: 3 | E53: 4.2.4 | F53: Collection of oil spills data | G53: Scored 0-2 | H53: EIU qualitative assessment | I53: Is data on oil spills collected by a government entity? 0=No 1=Yes, data is collected but it is not publicly available 2=Yes, data is collected and it is publicly available | K53: Is data on oil spills collected by a government entity? | L53: 0 | V53: 3 | W53: 0 | X53: 2 | Z53: 0 | AA53: #0 | AB53: SUB-INDICATOR | AC53: Scored 0-2 where 2=most favorable conditions | AD53: Scored 0-2 | AE53: 4.2.4) Collection of oil spills data | AH53: =MATCH($B53,Weights!$C$7:$C$45,0) ->  | AI53: =IF(ISERROR(AH53),1,INDEX(Weights!$G$7:$G$45,AH53)) -> 1 | AJ53: 0.25 | AK53: Monitoring and enforcement indicator score
A54: 53 | B54: MINENG_3 | C54: MINENG | D54: 2 | E54: 4.3 | F54: Risk mitigation | G54: Scored 0-100 where 100=most favorable coastal governance environment | H54: Calculated from sub-indicators | I54: Scored as the aggregation of normalized scores of the following three sub-indicators :\n\nIs the country a signatory of the Convention on Oil Pollution Preparedness, Response and Co-operation (OPRC) and the Protocol on Preparedness, Response and Co-Operation to Pollution Incidents by Hazardous and Noxious Substances (OPRC-HNS)?\n\n0=The country has not signed the OPRC\n1=The country has ratified the OPRC\n2=The country has ratified the OPRC and the OPRC-HNS\n\nDo licensing requirements for oil extraction require licensees to have emergency plans to deal with marine emergencies caused by oil and other harmful substances?\n\n0=No\n1=Yes\n\nAre there off-shore areas that are off limits to mineral and/or oil and gas extraction?\n\n0=No\n1=Yes | V54: 1 | X54: 100 | Z54: 0 | AA54: #0 | AB54: INDICATOR | AC54: Scored 0-100 where 100=most favorable conditions | AD54: Scored 0-100 | AE54: 4.3) Risk mitigation | AH54: =MATCH($B54,Weights!$C$7:$C$45,0) -> 30 | AI54: =IF(ISERROR(AH54),1,INDEX(Weights!$G$7:$G$45,AH54)) -> 1 | AJ54: 0.3333333333 | AK54: MINERALS AND ENERGY category score
A55: 54 | B55: MINENG_3_1 | C55: MINENG_3 | D55: 3 | E55: 4.3.1 | F55: Adoption of the OPRC | G55: Scored 0-2 | H55: EIU qualitative assessment | I55: Is the country a signatory of the Convention on Oil Pollution Preparedness, Response and Co-operation (OPRC) and the Protocol on Preparedness, Response and Co-Operation to Pollution Incidents by Hazardous and Noxious Substances (OPRC-HNS)?\n\n0=The country has not signed the OPRC\n1=The country has ratified the OPRC\n2= The country has ratified the OPRC and the OPRC-HNS | K55: Is the country a signatory of the Convention on Oil Pollution Preparedness, Response and Co-operation (OPRC) and the Protocol on Preparedness, Response and Co-Operation to Pollution Incidents by Hazardous and Noxious Substances (OPRC-HNS)? | L55: 0 | V55: 3 | W55: 0 | X55: 2 | Z55: 0 | AA55: #0 | AB55: SUB-INDICATOR | AC55: Scored 0-2 where 2=most favorable conditions | AD55: Scored 0-2 | AE55: 4.3.1) Adoption of the OPRC | AH55: =MATCH($B55,Weights!$C$7:$C$45,0) ->  | AI55: =IF(ISERROR(AH55),1,INDEX(Weights!$G$7:$G$45,AH55)) -> 1 | AJ55: 0.3333333333 | AK55: Risk mitigation indicator score
A56: 55 | B56: MINENG_3_2 | C56: MINENG_3 | D56: 3 | E56: 4.3.2 | F56: Emergency plan | G56: Scored 0-1 | H56: EIU qualitative assessment | I56: Do licensing requirements for oil extraction require licensees to have emergency plans to deal with marine emergencies caused by oil and other harmful substances?\n\n0=No\n1=Yes | K56: Do licensing requirements for oil extraction require licensees to have emergency plans to deal with marine emergencies caused by oil and other harmful substances? | L56: 0 | V56: 3 | W56: 0 | X56: 1 | Z56: 0 | AA56: #0 | AB56: SUB-INDICATOR | AC56: Scored 0-1 where 1=most favorable conditions | AD56: Scored 0-1 | AE56: 4.3.2) Emergency plan | AH56: =MATCH($B56,Weights!$C$7:$C$45,0) ->  | AI56: =IF(ISERROR(AH56),1,INDEX(Weights!$G$7:$G$45,AH56)) -> 1 | AJ56: 0.3333333333 | AK56: Risk mitigation indicator score
A57: 56 | B57: MINENG_3_3 | C57: MINENG_3 | D57: 3 | E57: 4.3.3 | F57: Off-limit areas | G57: Scored 0-1 | H57: EIU qualitative assessment | I57: Are there off-shore areas that are off limits to mineral and/or oil and gas extraction?\n\n0=No\n1=Yes | K57: Are there off-shore areas that are off limits to mineral and/or oil and gas extraction? | L57: 0 | V57: 3 | W57: 0 | X57: 1 | Z57: 0 | AA57: #0 | AB57: SUB-INDICATOR | AC57: Scored 0-1 where 1=most favorable conditions | AD57: Scored 0-1 | AE57: 4.3.3) Off-limit areas | AH57: =MATCH($B57,Weights!$C$7:$C$45,0) ->  | AI57: =IF(ISERROR(AH57),1,INDEX(Weights!$G$7:$G$45,AH57)) -> 1 | AJ57: 0.3333333333 | AK57: Risk mitigation indicator score
A58: 57 | B58: LAND | C58: OVERALL | D58: 1 | E58: 5 | F58: LAND | G58: Scored 0-100 where 100=most favorable coastal governance environment for the real estate and tourism industries | H58: Calculated from indicator scores | I58: Weighted total of the following four indicators:\n5.1) Prevalence of coastal protected areas \n5.2) Environmental impact of coastal development \n5.3) Government commitment to sustainability in coastal tourism development \n5.4) Natural disaster risk mitigation | J58: This category is comprised of four indicators and five sub-indicators. This category measures the coastal governance environment for the tourism and real estate (residential and commercial) industries. | K58: The LAND category score is the combination of the indicator scores within this category (see Scoring Notes). | V58: 1 | X58: 100 | Z58: 0 | AA58: #0 | AB58: =CHOOSE($D58,"CATEGORY","INDICATOR","SUB-INDICATOR") -> CATEGORY | AC58: Scored 0-100 where 100=most favorable conditions | AD58: Scored 0-100 | AE58: 5) LAND | AH58: =MATCH($B58,Weights!$C$7:$C$45,0) -> 5 | AI58: =IF(ISERROR(AH58),1,INDEX(Weights!$G$7:$G$45,AH58)) -> 1 | AJ58: 0.1666666667 | AK58: OVERALL score
A59: 58 | B59: LAND_1 | C59: LAND | D59: 2 | E59: 5.1 | F59: Prevalence of coastal protected areas | G59: Scored 0-100 where 100=most favorable coastal governance environment | H59: Calculated from sub-indicator | I59: Scored as the normalized scored of the following sub-indicator:\n\nAre there any terrestrial protected areas?\n\n0=No, or the share protected is less than 10% of the total terrestrial area\n1=Share protected is at least 10% and less than 17% of the total terrestrial area\n2=Share protected is at least 17% of the total terrestrial area | V59: 1 | X59: 100 | Z59: 0 | AA59: #0 | AB59: INDICATOR | AC59: Scored 0-100 where 100=most favorable conditions | AD59: Scored 0-100 | AE59: 5.1) Prevalence of coastal protected areas | AH59: =MATCH($B59,Weights!$C$7:$C$45,0) -> 32 | AI59: =IF(ISERROR(AH59),1,INDEX(Weights!$G$7:$G$45,AH59)) -> 1 | AJ59: 0.25 | AK59: LAND category score
A60: 59 | B60: LAND_1_1 | C60: LAND_1 | D60: 3 | E60: 5.1.1 | F60: Terrestrial protected areas | G60: Scored 0-2 | H60: United Nations Environment Programme and World Conservation Monitoring Centre, 2012 | I60: Are there any terrestrial protected areas?\n\n0=No, or the share protected is less than 10% of the total terrestrial area\n1=Share protected is at least 10% and less than 17% of the total terrestrial area\n2=Share protected is at least 17% of the total terrestrial area\n\nScoring scheme is based on the Convention on Biological Diversity’s target that at least 17% of terrestrial and inland water should be protected by 2020. | K60: Are there any terrestrial protected areas? | L60: 0 | V60: 3 | W60: 0 | X60: 2 | Z60: 0 | AA60: #0 | AB60: SUB-INDICATOR | AC60: Scored 0-2 where 2=most favorable conditions | AD60: Scored 0-2 | AE60: 5.1.1) Terrestrial protected areas | AH60: =MATCH($B60,Weights!$C$7:$C$45,0) ->  | AI60: =IF(ISERROR(AH60),1,INDEX(Weights!$G$7:$G$45,AH60)) -> 1 | AJ60: 1 | AK60: Prevalence of coastal protected areas indicator score
A61: 60 | B61: LAND_2 | C61: LAND | D61: 2 | E61: 5.2 | F61: Environmental impact of coastal development | G61: Scored 0-100 where 100=most favorable coastal governance environment | H61: Calculated from sub-indicators | I61: Scored as the aggregation of normalized scores of the following two sub-indicators :\n\nDo coastal development projects require environmental impact assessments?\n\n0= No\n1= Yes\n\nDo regulations require on-site review to monitor environmental impact?\n\n0= No\n1= Yes | V61: 1 | X61: 100 | Z61: 0 | AA61: #0 | AB61: INDICATOR | AC61: Scored 0-100 where 100=most favorable conditions | AD61: Scored 0-100 | AE61: 5.2) Environmental impact of coastal development | AH61: =MATCH($B61,Weights!$C$7:$C$45,0) -> 33 | AI61: =IF(ISERROR(AH61),1,INDEX(Weights!$G$7:$G$45,AH61)) -> 1 | AJ61: 0.25 | AK61: LAND category score
A62: 61 | B62: LAND_2_1 | C62: LAND_2 | D62: 3 | E62: 5.2.1 | F62: Environment impact assessment for coastal development | G62: Scored 0-1 | H62: EIU qualitative assessment | I62: Do coastal development projects require environmental impact assessments?\n\n0= No\n1= Yes | K62: Do coastal development projects require environmental impact assessments? | L62: 0 | V62: 3 | W62: 0 | X62: 1 | Z62: 0 | AA62: #0 | AB62: SUB-INDICATOR | AC62: Scored 0-1 where 1=most favorable conditions | AD62: Scored 0-1 | AE62: 5.2.1) Environment impact assessment for coastal development | AH62: =MATCH($B62,Weights!$C$7:$C$45,0) ->  | AI62: =IF(ISERROR(AH62),1,INDEX(Weights!$G$7:$G$45,AH62)) -> 1 | AJ62: 0.5 | AK62: Environmental impact of coastal development indicator score
A63: 62 | B63: LAND_2_2 | C63: LAND_2 | D63: 3 | E63: 5.2.2 | F63: On-site reviews | G63: Scored 0-1 | H63: EIU qualitative assessment | I63: Do regulations require on-site reviews to monitor environmental impact?\n\n0= No\n1= Yes | K63: Do regulations require on-site reviews to monitor environmental impact? | L63: 0 | V63: 3 | W63: 0 | X63: 1 | Z63: 0 | AA63: #0 | AB63: SUB-INDICATOR | AC63: Scored 0-1 where 1=most favorable conditions | AD63: Scored 0-1 | AE63: 5.2.2) On-site reviews | AH63: =MATCH($B63,Weights!$C$7:$C$45,0) ->  | AI63: =IF(ISERROR(AH63),1,INDEX(Weights!$G$7:$G$45,AH63)) -> 1 | AJ63: 0.5 | AK63: Environmental impact of coastal development indicator score
A64: 63 | B64: LAND_3 | C64: LAND | D64: 2 | E64: 5.3 | F64: Government commitment to sustainability in coastal tourism development | G64: Scored 0-100 where 100=most favorable coastal governance environment | H64: Calculated from sub-indicator | I64: Scored as the normalized score of the following sub-indicator:\n\nHow would you assess the effectiveness of government efforts to ensure that tourism is being developed in a sustainable way?\n\nCountries may score anywhere from 0 to 6 where:\n\n0=Very ineffective – development of the sector does not take into account issues related to environmental protection and sustainable development\n6=Very effective – issues related to environmental protection and sustainable development are at the core of the government’s strategy | V64: 1 | X64: 100 | Z64: 0 | AA64: #0 | AB64: INDICATOR | AC64: Scored 0-100 where 100=most favorable conditions | AD64: =CONCATENATE(IF($D64=3,"Scored","Scored")," 0-",$X64) -> Scored 0-100 | AE64: 5.3) Government commitment to sustainability in coastal tourism development | AH64: =MATCH($B64,Weights!$C$7:$C$45,0) -> 34 | AI64: =IF(ISERROR(AH64),1,INDEX(Weights!$G$7:$G$45,AH64)) -> 1 | AJ64: 0.25 | AK64: LAND category score
A65: 64 | B65: LAND_3_1 | C65: LAND_3 | D65: 3 | E65: 5.3.1 | F65: Sustainability of tourism | G65: Scored 0-6 | H65: World Economic Forum, Travel and Tourism Competitiveness Report, 2013 | I65: How would you assess the effectiveness of government efforts to ensure that tourism is being developed in a sustainable way?\n\nCountries may score anywhere from 0 to 6 where:\n\n0=Very ineffective – development of the sector does not take into account issues related to environmental protection and sustainable development\n6=Very effective – issues related to environmental protection and sustainable development are at the core of the government’s strategy | K65: How would you assess the effectiveness of government efforts to ensure that tourism is being developed in a sustainable way? | L65: 0 | V65: 3 | W65: 0 | X65: 6 | Z65: 0 | AA65: 0.0 | AB65: SUB-INDICATOR | AC65: =CONCATENATE(IF($D65=3,"Scored","Scored")," 0-",$X65," where ",$X65,"=most favorable conditions") -> Scored 0-6 where 6=most favorable conditions | AD65: Scored 0-6 | AE65: =CONCATENATE($E65,") ",$F65) -> 5.3.1) Sustainability of tourism | AH65: =MATCH($B65,Weights!$C$7:$C$45,0) ->  | AI65: =IF(ISERROR(AH65),1,INDEX(Weights!$G$7:$G$45,AH65)) -> 1 | AJ65: 1 | AK65: Government commitment to sustainability in coastal tourism development indicator score
A66: 65 | B66: LAND_4 | C66: LAND | D66: 2 | E66: 5.4 | F66: Natural disaster risk mitigation | G66: Scored 0-100 where 100=most favorable coastal governance environment | H66: Calculated from sub-indicator | I66: Scored as the normalized score of the following sub-indicator:\n\nDoes the country have a natural disaster risk mitigation strategy that addresses coastal zones?\n\n0= No\n1= Yes | V66: 1 | X66: 100 | Z66: 0 | AA66: #0 | AB66: INDICATOR | AC66: Scored 0-100 where 100=most favorable conditions | AD66: Scored 0-100 | AE66: 5.4) Natural disaster risk mitigation | AH66: =MATCH($B66,Weights!$C$7:$C$45,0) -> 35 | AI66: =IF(ISERROR(AH66),1,INDEX(Weights!$G$7:$G$45,AH66)) -> 1 | AJ66: 0.25 | AK66: LAND category score
A67: 66 | B67: LAND_4_1 | C67: LAND_4 | D67: 3 | E67: 5.4.1 | F67: Strategy for risk mitigation | G67: Scored 0-1 | H67: EIU qualitative assessment | I67: Does the country have a natural disaster risk mitigation strategy that addresses coastal zones?\n\n0= No\n1= Yes | K67: Does the country have a natural disaster risk mitigation strategy that addresses coastal zones? | L67: 0 | V67: 3 | W67: 0 | X67: 1 | Z67: 0 | AA67: #0 | AB67: SUB-INDICATOR | AC67: Scored 0-1 where 1=most favorable conditions | AD67: Scored 0-1 | AE67: 5.4.1) Strategy for risk mitigation | AH67: =MATCH($B67,Weights!$C$7:$C$45,0) ->  | AI67: =IF(ISERROR(AH67),1,INDEX(Weights!$G$7:$G$45,AH67)) -> 1 | AJ67: =IF(ISERROR(AI67/SUMIF($C$2:$C$75,$C67,AI$2:AI$75)),0,AI67/SUMIF($C$2:$C$75,$C67,AI$2:AI$75)) -> 1 | AK67: =CHOOSE(D67,"OVERALL score",CONCATENATE(INDEX(F$2:F$77,MATCH(C67,$B$2:$B$77,0))," category score"),CONCATENATE(INDEX(F$2:F$77,MATCH(C67,$B$2:$B$77,0))," indicator score")) -> Natural disaster risk mitigation indicator score
A68: 67 | B68: LIVRES | C68: OVERALL | D68: 1 | E68: 6 | F68: LIVING RESOURCES | G68: Scored 0-100 where 100=most favorable coastal governance environment for living resources | H68: Calculated from indicator scores | I68: Weighted total of the following three indicators:\n6.1) Fisheries management \n6.2) Protections for marine/coastal species \n6.3) Ballast water treatment | J68: This category comprises three indicators and four sub-indicators on coastal management of living resources, including fisheries and wildlife. | K68: The LIVING RESOURCES category score is the combination of the indicator scores within this category (see Scoring Notes). | V68: 1 | X68: 100 | Z68: 0 | AA68: #0 | AB68: CATEGORY | AC68: Scored 0-100 where 100=most favorable conditions | AD68: Scored 0-100 | AE68: 6) LIVING RESOURCES | AH68: =MATCH($B68,Weights!$C$7:$C$45,0) -> 6 | AI68: =IF(ISERROR(AH68),1,INDEX(Weights!$G$7:$G$45,AH68)) -> 1 | AJ68: 0.1666666667 | AK68: OVERALL score
A69: 68 | B69: LIVRES_1 | C69: LIVRES | D69: 2 | E69: 6.1 | F69: Fisheries governance and management effectiveness | G69: Scored 0-100 where 100=most favorable coastal governance environment | H69: Calculated from sub-indicators | I69: Scored as the average of scores across four dimensions focused on: a) Research, monitoring and assessment of fisheries stocks b) Management response to stock status c) Enforcement of management measures d) Social and economic attributes (e.g. controls on access and entry into fishery, transparency and community involvement, subsidies) | V69: 1 | X69: 100 | Z69: 0 | AA69: #0 | AB69: INDICATOR | AC69: Scored 0-100 where 100=most favorable conditions | AD69: Scored 0-100 | AE69: 6.1) Fisheries governance and management effectiveness | AH69: =MATCH($B69,Weights!$C$7:$C$45,0) -> 37 | AI69: =IF(ISERROR(AH69),1,INDEX(Weights!$G$7:$G$45,AH69)) -> 1 | AJ69: 0.3333333333 | AK69: LIVING RESOURCES category score
A70: 69 | B70: LIVRES_1_1 | C70: LIVRES_1 | D70: 3 | E70: 6.1.1 | F70: Fisheries governance and management effectiveness | G70: Scored 0-1 | H70: California Environmental Associates and Drs. Ray Hilborn and Michael Melnychuk (University of Washington) | I70: Scored as the average of scores across four dimensions focused on: a) Research, monitoring and assessment of fisheries stocks b) Management response to stock status c) Enforcement of management measures d) Social and economic attributes (e.g. controls on access and entry into fishery, transparency and community involvement, subsidies) Survey respondents assessed governance and effectiveness based on a list of 10 key fish species caught by country. The 10 species include: • The four species with greatest landings caught by the country in FAO areas adjacent to the main EEZ • The four species with greatest estimated landed value (based on FAO adjacent landings data and estimated ex-vessel prices) • The remainder of the 10 species, randomly sampled in proportion to their landings and landed value Answers were provided in a global context, recognizing that the survey was conducted across a wide range of countries differing in the development of their fisheries governance systems. | K70: This indicator measures the status of fisheries management and regulations in the top fishing nations of the world. Using data gathered through an expert survey that covers several aspects of management systems—including stock status, management approach, monitoring and enforcement, and socioeconomics—this indicator is intended to characterize the level of fisheries governance and management effectiveness by country. | L70: 0 | V70: 3 | W70: 0 | X70: 1 | Z70: 0 | AA70: #0.00 | AB70: SUB-INDICATOR | AC70: Scored 0-1 where 1=most favorable conditions | AD70: Scored 0-1 | AE70: 6.1.1) Fisheries governance and management effectiveness | AH70: =MATCH($B70,Weights!$C$7:$C$45,0) ->  | AI70: =IF(ISERROR(AH70),1,INDEX(Weights!$G$7:$G$45,AH70)) -> 1 | AJ70: 1 | AK70: Fisheries governance and management effectiveness indicator score
A71: 70 | B71: LIVRES_2 | C71: LIVRES | D71: 2 | E71: 6.2 | F71: Protection for marine/coastal species | G71: Scored 0-100 where 100=most favorable coastal governance environment | H71: Calculated from sub-indicators | I71: Scored as the aggregation of normalized scores of the following two sub-indicators:\n\nDo domestic laws and/or regulations require the protection of threatened species and populations in coastal areas?\n\n0=No\n1=Yes\n\nProtections should, at a minimum, cover sea turtles and marine mammals.\n\nExtent of Marine Protected Areas (MPAs):\n\n0=No marine protected areas, or the share protected is less than 5% of the total marine area\n1=Share protected is 5%-10% of the total marine area\n2=Share protected is at least 10% of the total marine area\n\nScoring scheme is based on the Convention on Biological Diversity’s target that at least 10% of marine areas should be protected by 2020. | V71: 1 | X71: 100 | Z71: 0 | AA71: #0 | AB71: INDICATOR | AC71: Scored 0-100 where 100=most favorable conditions | AD71: Scored 0-100 | AE71: 6.2) Protection for marine/coastal species | AH71: =MATCH($B71,Weights!$C$7:$C$45,0) -> 38 | AI71: =IF(ISERROR(AH71),1,INDEX(Weights!$G$7:$G$45,AH71)) -> 1 | AJ71: 0.3333333333 | AK71: LIVING RESOURCES category score
A72: 71 | B72: LIVRES_2_1 | C72: LIVRES_2 | D72: 3 | E72: 6.2.1 | F72: Protection of threatened species and populations | G72: Scored 0-1 | H72: EIU qualitative assessment | I72: Do domestic laws and/or regulations require the protection of threatened species and populations in coastal areas?\n\n0=No \n1=Yes\n\nProtections should, at a minimum, cover sea turtles and marine mammals. | K72: Do domestic laws and/or regulations require the protection of threatened species and populations in coastal areas? | L72: 0 | V72: 3 | W72: 0 | X72: 1 | Z72: 0 | AA72: #0 | AB72: SUB-INDICATOR | AC72: Scored 0-1 where 1=most favorable conditions | AD72: Scored 0-1 | AE72: 6.2.1) Protection of threatened species and populations | AH72: =MATCH($B72,Weights!$C$7:$C$45,0) ->  | AI72: =IF(ISERROR(AH72),1,INDEX(Weights!$G$7:$G$45,AH72)) -> 1 | AJ72: 0.5 | AK72: Protection for marine/coastal species indicator score
A73: 72 | B73: LIVRES_2_2 | C73: LIVRES_2 | D73: 3 | E73: 6.2.2 | F73: Prevalence of marine protected areas | G73: Scored 0-2 | H73: United Nations Environment Programme and World Conservation Monitoring Centre, 2012 | I73: Extent of Marine Protected Areas:\n\n0=No marine protected areas, or the share protected is less than 5% of the total marine area\n1=Share protected is 5%-10% of the total marine area\n2=Share protected is at least 10% of the total marine area\n\nScoring scheme is based on the Convention on Biological Diversity’s target that at least 10% of marine areas should be protected by 2020. | K73: Extent of Marine Protected Areas (MPAs) | L73: 0 | V73: 3 | W73: 0 | X73: 2 | Z73: 0 | AA73: #0 | AB73: SUB-INDICATOR | AC73: Scored 0-2 where 2=most favorable conditions | AD73: Scored 0-2 | AE73: 6.2.2) Prevalence of marine protected areas | AH73: =MATCH($B73,Weights!$C$7:$C$45,0) ->  | AI73: =IF(ISERROR(AH73),1,INDEX(Weights!$G$7:$G$45,AH73)) -> 1 | AJ73: 0.5 | AK73: Protection for marine/coastal species indicator score
A74: 73 | B74: LIVRES_3 | C74: LIVRES | D74: 2 | E74: 6.3 | F74: Ballast water treatment | G74: Scored 0-100 where 100=most favorable coastal governance environment | H74: Calculated from sub-indicator | I74: Scored as the normalized score of the following sub-indicator:\n\nAre there mechanisms in place to control pathways of introduction of alien species in the marine and coastal environment from ballast water?\n\n0=No\n1=Yes | V74: 1 | X74: 100 | Z74: 0 | AA74: #0 | AB74: INDICATOR | AC74: Scored 0-100 where 100=most favorable conditions | AD74: Scored 0-100 | AE74: 6.3) Ballast water treatment | AH74: =MATCH($B74,Weights!$C$7:$C$45,0) -> 39 | AI74: =IF(ISERROR(AH74),1,INDEX(Weights!$G$7:$G$45,AH74)) -> 1 | AJ74: 0.3333333333 | AK74: LIVING RESOURCES category score
A75: 74 | B75: LIVRES_3_1 | C75: LIVRES_3 | D75: 3 | E75: 6.3.1 | F75: Mechanisms to control pathways of introduction | G75: Scored 0-1 | H75: EIU qualitative assessment | I75: Are there mechanisms in place to control pathways of introduction of alien species in the marine and coastal environment from ballast water?\n\n0=No\n1=Yes | K75: Are there mechanisms in place to control pathways of introduction of alien species in the marine and coastal environment from ballast water? | L75: 0 | V75: 3 | W75: 0 | X75: 1 | Z75: 0 | AA75: #0 | AB75: SUB-INDICATOR | AC75: Scored 0-1 where 1=most favorable conditions | AD75: Scored 0-1 | AE75: 6.3.1) Mechanisms to control pathways of introduction | AH75: =MATCH($B75,Weights!$C$7:$C$45,0) ->  | AI75: =IF(ISERROR(AH75),1,INDEX(Weights!$G$7:$G$45,AH75)) -> 1 | AJ75: 1 | AK75: Ballast water treatment indicator score
A76: 75 | B76: BG | C76: OVERALL | D76: - | E76: 7 | F76: BACKGROUND INDICATORS | AE76: 7) BACKGROUND INDICATORS
A77: 76 | B77: BG_01 | C77: BG | D77: - | E77: 7.1 | F77: GDP per head (PPP, $, 2014) | H77: Economist Intelligence Unit | AA77: #0 | AE77: 7.1) GDP per head (PPP, $, 2014)
A78: 77 | B78: BG_02 | C78: BG | D78: - | E78: 7.2 | F78: Environmental Performance Index scores (2014) | H78: Yale University | AA78: #0.00 | AE78: 7.2) Environmental Performance Index scores (2014)
A79: 78 | B79: BG_03 | C79: BG | D79: - | E79: 7.3 | F79: Human Development Index (2013) | H79: United Nations | AA79: #0.000 | AE79: 7.3) Human Development Index (2013)
A80: 79 | B80: BG_04 | C80: BG | D80: - | E80: 7.4 | F80: Democracy Index (2014) | H80: Economist Intelligence Unit | AA80: #0.0 | AE80: 7.4) Democracy Index (2014)

Sheet tblIndiSets (hidden)
A2: CATEGORY | D2: DEPTH | E2: MAX | J2: SPECIAL FOR CAT SELECTOR
A3: OVERALL | B3: =MATCH(A3,lu_indicode,0) -> 1 | C3: =INDEX(tblIndicators!$AE$2:$AE$75,$B3) -> OVERALL SCORE | D3: =INDEX(tblIndicators!$D$2:$D$75,$B3) -> 0 | E3: =INDEX(tblIndicators!$X$2:$X$75,$B3) -> 100 | J3: ALL CATEGORIES | N3: OVERALL | O3: OVERALL | P3: OVERALL | Q3: OVERALL
A4: PLCAP | B4: =MATCH(A4,lu_indicode,0) -> 2 | C4: =INDEX(tblIndicators!$AE$2:$AE$75,$B4) -> 1) POLICY AND INSTITUTIONAL CAPACITY | D4: =INDEX(tblIndicators!$D$2:$D$75,$B4) -> 1 | E4: =INDEX(tblIndicators!$X$2:$X$75,$B4) -> 100 | J4: =C4 -> 1) POLICY AND INSTITUTIONAL CAPACITY | N4: PLCAP | O4: PLCAP | P4: PLCAP | Q4: PLCAP
A5: BUSENV | B5: 20 | C5: =INDEX(tblIndicators!$AE$2:$AE$75,$B5) -> 2) BUSINESS ENVIRONMENT FOR COASTAL ACTIVITIES | D5: =INDEX(tblIndicators!$D$2:$D$75,$B5) -> 1 | E5: =INDEX(tblIndicators!$X$2:$X$75,$B5) -> 100 | J5: =C5 -> 2) BUSINESS ENVIRONMENT FOR COASTAL ACTIVITIES | N5: PLCAP_1 | O5: PLCAP_1 | P5: PLCAP_1 | Q5: BUSENV
A6: WATQUAL | B6: 34 | C6: =INDEX(tblIndicators!$AE$2:$AE$75,$B6) -> 3) WATER QUALITY | D6: =INDEX(tblIndicators!$D$2:$D$75,$B6) -> 1 | E6: =INDEX(tblIndicators!$X$2:$X$75,$B6) -> 100 | J6: =C6 -> 3) WATER QUALITY | N6: PLCAP_1_1 | O6: PLCAP_1_1 | P6: PLCAP_2 | Q6: WATQUAL
A7: MINENG | B7: 44 | C7: =INDEX(tblIndicators!$AE$2:$AE$75,$B7) -> 4) MINERALS AND ENERGY | D7: =INDEX(tblIndicators!$D$2:$D$75,$B7) -> 1 | E7: =INDEX(tblIndicators!$X$2:$X$75,$B7) -> 100 | J7: =C7 -> 4) MINERALS AND ENERGY | N7: PLCAP_1_2 | O7: PLCAP_1_2 | P7: PLCAP_3 | Q7: MINENG
A8: LAND | B8: 57 | C8: =INDEX(tblIndicators!$AE$2:$AE$75,$B8) -> 5) LAND | D8: =INDEX(tblIndicators!$D$2:$D$75,$B8) -> 1 | E8: =INDEX(tblIndicators!$X$2:$X$75,$B8) -> 100 | J8: =C8 -> 5) LAND | N8: PLCAP_2 | O8: PLCAP_2 | P8: PLCAP_4 | Q8: LAND
A9: LIVRES | B9: 67 | C9: =INDEX(tblIndicators!$AE$2:$AE$75,$B9) -> 6) LIVING RESOURCES | D9: =INDEX(tblIndicators!$D$2:$D$75,$B9) -> 1 | E9: =INDEX(tblIndicators!$X$2:$X$75,$B9) -> 100 | J9: 6) LIVING RESOURCES | N9: PLCAP_2_1 | O9: PLCAP_2_1 | P9: PLCAP_5 | Q9: LIVRES
N10: PLCAP_3 | O10: PLCAP_3 | P10: PLCAP_6
A11: INDICATORS+ABOVE | N11: PLCAP_3_1 | O11: PLCAP_3_1 | P11: PLCAP_7
A12: OVERALL | B12: =MATCH(A12,lu_indicode,0) -> 1 | C12: =INDEX(tblIndicators!$AE$2:$AE$75,$B12) -> OVERALL SCORE | D12: =INDEX(tblIndicators!$D$2:$D$75,$B12) -> 0 | E12: =INDEX(tblIndicators!$X$2:$X$75,$B12) -> 100 | N12: PLCAP_4 | O12: PLCAP_4 | P12: BUSENV
A13: PLCAP | B13: =MATCH(A13,lu_indicode,0) -> 2 | C13: =INDEX(tblIndicators!$AE$2:$AE$75,$B13) -> 1) POLICY AND INSTITUTIONAL CAPACITY | D13: =INDEX(tblIndicators!$D$2:$D$75,$B13) -> 1 | E13: =INDEX(tblIndicators!$X$2:$X$75,$B13) -> 100 | N13: PLCAP_4_1 | O13: PLCAP_4_1 | P13: BUSENV_1
A14: PLCAP_1 | B14: 3 | C14: =INDEX(tblIndicators!$AE$2:$AE$75,$B14) -> 1.1) Coastal management policy and strategy | D14: =INDEX(tblIndicators!$D$2:$D$75,$B14) -> 2 | E14: =INDEX(tblIndicators!$X$2:$X$75,$B14) -> 100 | N14: PLCAP_4_2 | O14: PLCAP_4_2 | P14: BUSENV_2
A15: PLCAP_2 | B15: 6 | C15: =INDEX(tblIndicators!$AE$2:$AE$75,$B15) -> 1.2) Presence of established institution(s) | D15: =INDEX(tblIndicators!$D$2:$D$75,$B15) -> 2 | E15: =INDEX(tblIndicators!$X$2:$X$75,$B15) -> 100 | N15: PLCAP_5 | O15: PLCAP_5 | P15: BUSENV_3
A16: PLCAP_3 | B16: 8 | C16: =INDEX(tblIndicators!$AE$2:$AE$75,$B16) -> 1.3) National strategy to adapt to climate change | D16: =INDEX(tblIndicators!$D$2:$D$75,$B16) -> 2 | E16: =INDEX(tblIndicators!$X$2:$X$75,$B16) -> 100 | N16: PLCAP_5_1 | O16: PLCAP_5_1 | P16: BUSENV_4
A17: PLCAP_4 | B17: 10 | C17: =INDEX(tblIndicators!$AE$2:$AE$75,$B17) -> 1.4) Maritime Spatial Planning | D17: =INDEX(tblIndicators!$D$2:$D$75,$B17) -> 2 | E17: =INDEX(tblIndicators!$X$2:$X$75,$B17) -> 100 | N17: PLCAP_5_2 | O17: PLCAP_5_2 | P17: WATQUAL
A18: PLCAP_5 | B18: 13 | C18: =INDEX(tblIndicators!$AE$2:$AE$75,$B18) -> 1.5) Stakeholder engagement | D18: =INDEX(tblIndicators!$D$2:$D$75,$B18) -> 2 | E18: =INDEX(tblIndicators!$X$2:$X$75,$B18) -> 100 | N18: PLCAP_6 | O18: PLCAP_6 | P18: WATQUAL_1
A19: PLCAP_6 | B19: 16 | C19: =INDEX(tblIndicators!$AE$2:$AE$75,$B19) -> 1.6) Extractive industries transparency | D19: =INDEX(tblIndicators!$D$2:$D$75,$B19) -> 2 | E19: =INDEX(tblIndicators!$X$2:$X$75,$B19) -> 100 | N19: PLCAP_6_1 | O19: PLCAP_6_1 | P19: WATQUAL_2
A20: PLCAP_7 | B20: 18 | C20: =INDEX(tblIndicators!$AE$2:$AE$75,$B20) -> 1.7) Adoption of the United Nations Convention on the Law of the Sea (UNCLOS) | D20: =INDEX(tblIndicators!$D$2:$D$75,$B20) -> 2 | E20: =INDEX(tblIndicators!$X$2:$X$75,$B20) -> 100 | N20: PLCAP_7 | O20: PLCAP_7 | P20: WATQUAL_3
A21: BUSENV | B21: 20 | C21: =INDEX(tblIndicators!$AE$2:$AE$75,$B21) -> 2) BUSINESS ENVIRONMENT FOR COASTAL ACTIVITIES | D21: =INDEX(tblIndicators!$D$2:$D$75,$B21) -> 1 | E21: =INDEX(tblIndicators!$X$2:$X$75,$B21) -> 100 | N21: PLCAP_7_1 | O21: PLCAP_7_1 | P21: MINENG
A22: BUSENV_1 | B22: 21 | C22: =INDEX(tblIndicators!$AE$2:$AE$75,$B22) -> 2.1) Ease of doing business | D22: =INDEX(tblIndicators!$D$2:$D$75,$B22) -> 2 | E22: =INDEX(tblIndicators!$X$2:$X$75,$B22) -> 100 | N22: BUSENV | O22: BUSENV | P22: MINENG_1
A23: BUSENV_2 | B23: 23 | C23: =INDEX(tblIndicators!$AE$2:$AE$75,$B23) -> 2.2) Corruption perception | D23: =INDEX(tblIndicators!$D$2:$D$75,$B23) -> 2 | E23: =INDEX(tblIndicators!$X$2:$X$75,$B23) -> 100 | N23: BUSENV_1 | O23: BUSENV_1 | P23: MINENG_2
A24: BUSENV_3 | B24: 25 | C24: =INDEX(tblIndicators!$AE$2:$AE$75,$B24) -> 2.3) Effectiveness of dispute resolution mechanisms | D24: =INDEX(tblIndicators!$D$2:$D$75,$B24) -> 2 | E24: =INDEX(tblIndicators!$X$2:$X$75,$B24) -> 100 | N24: BUSENV_1_1 | O24: BUSENV_1_1 | P24: MINENG_3
A25: BUSENV_4 | B25: 28 | C25: =INDEX(tblIndicators!$AE$2:$AE$75,$B25) -> 2.4) Quality of coastal infrastructure | D25: =INDEX(tblIndicators!$D$2:$D$75,$B25) -> 2 | E25: =INDEX(tblIndicators!$X$2:$X$75,$B25) -> 100 | N25: BUSENV_2 | O25: BUSENV_2 | P25: LAND
A26: WATQUAL | B26: 34 | C26: =INDEX(tblIndicators!$AE$2:$AE$75,$B26) -> 3) WATER QUALITY | D26: =INDEX(tblIndicators!$D$2:$D$75,$B26) -> 1 | E26: =INDEX(tblIndicators!$X$2:$X$75,$B26) -> 100 | N26: BUSENV_2_1 | O26: BUSENV_2_1 | P26: LAND_1
A27: WATQUAL_1 | B27: 35 | C27: =INDEX(tblIndicators!$AE$2:$AE$75,$B27) -> 3.1) Agency | D27: =INDEX(tblIndicators!$D$2:$D$75,$B27) -> 2 | E27: =INDEX(tblIndicators!$X$2:$X$75,$B27) -> 100 | N27: BUSENV_3 | O27: BUSENV_3 | P27: LAND_2
A28: WATQUAL_2 | B28: 37 | C28: =INDEX(tblIndicators!$AE$2:$AE$75,$B28) -> 3.2) Regulatory standards for water pollution | D28: =INDEX(tblIndicators!$D$2:$D$75,$B28) -> 2 | E28: =INDEX(tblIndicators!$X$2:$X$75,$B28) -> 100 | N28: BUSENV_3_1 | O28: BUSENV_3_1 | P28: LAND_3
A29: WATQUAL_3 | B29: 41 | C29: =INDEX(tblIndicators!$AE$2:$AE$75,$B29) -> 3.3) Monitoring and enforcement | D29: =INDEX(tblIndicators!$D$2:$D$75,$B29) -> 2 | E29: =INDEX(tblIndicators!$X$2:$X$75,$B29) -> 100 | N29: BUSENV_3_2 | O29: BUSENV_3_2 | P29: LAND_4
A30: MINENG | B30: 44 | C30: =INDEX(tblIndicators!$AE$2:$AE$75,$B30) -> 4) MINERALS AND ENERGY | D30: =INDEX(tblIndicators!$D$2:$D$75,$B30) -> 1 | E30: =INDEX(tblIndicators!$X$2:$X$75,$B30) -> 100 | N30: BUSENV_4 | O30: BUSENV_4 | P30: LAND_5
A31: MINENG_1 | B31: 45 | C31: =INDEX(tblIndicators!$AE$2:$AE$75,$B31) -> 4.1) Permitting and licensing | D31: =INDEX(tblIndicators!$D$2:$D$75,$B31) -> 2 | E31: =INDEX(tblIndicators!$X$2:$X$75,$B31) -> 100 | N31: BUSENV_4_1 | O31: BUSENV_4_1 | P31: LIVRES
A32: MINENG_2 | B32: 48 | C32: =INDEX(tblIndicators!$AE$2:$AE$75,$B32) -> 4.2) Monitoring and enforcement | D32: =INDEX(tblIndicators!$D$2:$D$75,$B32) -> 2 | E32: =INDEX(tblIndicators!$X$2:$X$75,$B32) -> 100 | N32: BUSENV_4_2 | O32: BUSENV_4_2 | P32: LIVRES_1
A33: MINENG_3 | B33: 53 | C33: =INDEX(tblIndicators!$AE$2:$AE$75,$B33) -> 4.3) Risk mitigation | D33: =INDEX(tblIndicators!$D$2:$D$75,$B33) -> 2 | E33: =INDEX(tblIndicators!$X$2:$X$75,$B33) -> 100 | N33: BUSENV_4_3 | O33: BUSENV_4_3 | P33: LIVRES_2
A34: LAND | B34: 57 | C34: =INDEX(tblIndicators!$AE$2:$AE$75,$B34) -> 5) LAND | D34: =INDEX(tblIndicators!$D$2:$D$75,$B34) -> 1 | E34: =INDEX(tblIndicators!$X$2:$X$75,$B34) -> 100 | N34: BUSENV_4_4 | O34: BUSENV_4_4 | P34: LIVRES_3
A35: LAND_1 | B35: 58 | C35: =INDEX(tblIndicators!$AE$2:$AE$75,$B35) -> 5.1) Prevalence of coastal protected areas | D35: =INDEX(tblIndicators!$D$2:$D$75,$B35) -> 2 | E35: =INDEX(tblIndicators!$X$2:$X$75,$B35) -> 100 | N35: BUSENV_4_5 | O35: BUSENV_4_5
A36: LAND_2 | B36: 60 | C36: =INDEX(tblIndicators!$AE$2:$AE$75,$B36) -> 5.2) Environmental impact of coastal development | D36: =INDEX(tblIndicators!$D$2:$D$75,$B36) -> 2 | E36: =INDEX(tblIndicators!$X$2:$X$75,$B36) -> 100 | N36: WATQUAL | O36: WATQUAL
A37: LAND_3 | B37: 63 | C37: =INDEX(tblIndicators!$AE$2:$AE$75,$B37) -> 5.3) Government commitment to sustainability in coastal tourism development | D37: =INDEX(tblIndicators!$D$2:$D$75,$B37) -> 2 | E37: =INDEX(tblIndicators!$X$2:$X$75,$B37) -> 100 | N37: WATQUAL_1 | O37: WATQUAL_1
A38: LAND_4 | B38: 65 | C38: =INDEX(tblIndicators!$AE$2:$AE$75,$B38) -> 5.4) Natural disaster risk mitigation | D38: =INDEX(tblIndicators!$D$2:$D$75,$B38) -> 2 | E38: =INDEX(tblIndicators!$X$2:$X$75,$B38) -> 100 | N38: WATQUAL_1_1 | O38: WATQUAL_1_1
A39: LIVRES | B39: 67 | C39: =INDEX(tblIndicators!$AE$2:$AE$75,$B39) -> 6) LIVING RESOURCES | D39: =INDEX(tblIndicators!$D$2:$D$75,$B39) -> 1 | E39: =INDEX(tblIndicators!$X$2:$X$75,$B39) -> 100 | N39: WATQUAL_2 | O39: WATQUAL_2
A40: LIVRES_1 | B40: 68 | C40: =INDEX(tblIndicators!$AE$2:$AE$75,$B40) -> 6.1) Fisheries governance and management effectiveness | D40: =INDEX(tblIndicators!$D$2:$D$75,$B40) -> 2 | E40: =INDEX(tblIndicators!$X$2:$X$75,$B40) -> 100 | N40: WATQUAL_2_1 | O40: WATQUAL_2_1
A41: LIVRES_2 | B41: 70 | C41: =INDEX(tblIndicators!$AE$2:$AE$75,$B41) -> 6.2) Protection for marine/coastal species | D41: =INDEX(tblIndicators!$D$2:$D$75,$B41) -> 2 | E41: =INDEX(tblIndicators!$X$2:$X$75,$B41) -> 100 | N41: WATQUAL_2_2 | O41: WATQUAL_2_2
A42: LIVRES_3 | B42: 73 | C42: =INDEX(tblIndicators!$AE$2:$AE$75,$B42) -> 6.3) Ballast water treatment | D42: =INDEX(tblIndicators!$D$2:$D$75,$B42) -> 2 | E42: =INDEX(tblIndicators!$X$2:$X$75,$B42) -> 100 | N42: WATQUAL_2_3 | O42: WATQUAL_2_3
N43: WATQUAL_2_4 | O43: WATQUAL_2_4
N44: WATQUAL_3 | O44: WATQUAL_3
N45: WATQUAL_3_1 | O45: WATQUAL_3_1
N46: WATQUAL_3_2 | O46: WATQUAL_3_2
A47: SUBINDICATORS+ABOVE | N47: MINENG | O47: MINENG
A48: OVERALL | B48: =MATCH(A48,lu_indicode,0) -> 1 | C48: =INDEX(tblIndicators!$AE$2:$AE$75,$B48) -> OVERALL SCORE | D48: =INDEX(tblIndicators!$D$2:$D$75,$B48) -> 0 | E48: =INDEX(tblIndicators!$X$2:$X$75,$B48) -> 100 | N48: MINENG_1 | O48: MINENG_1
A49: PLCAP | B49: 2 | C49: =INDEX(tblIndicators!$AE$2:$AE$75,$B49) -> 1) POLICY AND INSTITUTIONAL CAPACITY | D49: =INDEX(tblIndicators!$D$2:$D$75,$B49) -> 1 | E49: =INDEX(tblIndicators!$X$2:$X$75,$B49) -> 100 | N49: MINENG_1_1 | O49: MINENG_1_1
A50: PLCAP_1 | B50: 3 | C50: =INDEX(tblIndicators!$AE$2:$AE$75,$B50) -> 1.1) Coastal management policy and strategy | D50: =INDEX(tblIndicators!$D$2:$D$75,$B50) -> 2 | E50: =INDEX(tblIndicators!$X$2:$X$75,$B50) -> 100 | N50: MINENG_1_2 | O50: MINENG_1_2
A51: PLCAP_1_1 | B51: 4 | C51: =INDEX(tblIndicators!$AE$2:$AE$75,$B51) -> 1.1.1) Coastal management policy | D51: =INDEX(tblIndicators!$D$2:$D$75,$B51) -> 3 | E51: =INDEX(tblIndicators!$X$2:$X$75,$B51) -> 1 | N51: MINENG_2 | O51: MINENG_2
A52: PLCAP_1_2 | B52: 5 | C52: =INDEX(tblIndicators!$AE$2:$AE$75,$B52) -> 1.1.2) Coastal management strategy | D52: =INDEX(tblIndicators!$D$2:$D$75,$B52) -> 3 | E52: =INDEX(tblIndicators!$X$2:$X$75,$B52) -> 2 | N52: MINENG_2_1 | O52: MINENG_2_1
A53: PLCAP_2 | B53: 6 | C53: =INDEX(tblIndicators!$AE$2:$AE$75,$B53) -> 1.2) Presence of established institution(s) | D53: =INDEX(tblIndicators!$D$2:$D$75,$B53) -> 2 | E53: =INDEX(tblIndicators!$X$2:$X$75,$B53) -> 100 | N53: MINENG_2_2 | O53: MINENG_2_2
A54: PLCAP_2_1 | B54: 7 | C54: =INDEX(tblIndicators!$AE$2:$AE$75,$B54) -> 1.2.1) Presence of coastal management strategy authority | D54: =INDEX(tblIndicators!$D$2:$D$75,$B54) -> 3 | E54: =INDEX(tblIndicators!$X$2:$X$75,$B54) -> 2 | N54: MINENG_2_3 | O54: MINENG_2_3
A55: PLCAP_3 | B55: 8 | C55: =INDEX(tblIndicators!$AE$2:$AE$75,$B55) -> 1.3) National strategy to adapt to climate change | D55: =INDEX(tblIndicators!$D$2:$D$75,$B55) -> 2 | E55: =INDEX(tblIndicators!$X$2:$X$75,$B55) -> 100 | N55: MINENG_2_4 | O55: MINENG_2_4
A56: PLCAP_3_1 | B56: 9 | C56: =INDEX(tblIndicators!$AE$2:$AE$75,$B56) -> 1.3.1) Strategy to adapt coastal areas to climate change | D56: =INDEX(tblIndicators!$D$2:$D$75,$B56) -> 3 | E56: =INDEX(tblIndicators!$X$2:$X$75,$B56) -> 2 | N56: MINENG_3 | O56: MINENG_3
A57: PLCAP_4 | B57: 10 | C57: =INDEX(tblIndicators!$AE$2:$AE$75,$B57) -> 1.4) Maritime Spatial Planning | D57: =INDEX(tblIndicators!$D$2:$D$75,$B57) -> 2 | E57: =INDEX(tblIndicators!$X$2:$X$75,$B57) -> 100 | N57: MINENG_3_1 | O57: MINENG_3_1
A58: PLCAP_4_1 | B58: 11 | C58: =INDEX(tblIndicators!$AE$2:$AE$75,$B58) -> 1.4.1) Legal basis for maritime spatial planning | D58: =INDEX(tblIndicators!$D$2:$D$75,$B58) -> 3 | E58: =INDEX(tblIndicators!$X$2:$X$75,$B58) -> 2 | N58: MINENG_3_2 | O58: MINENG_3_2
A59: PLCAP_4_2 | B59: 12 | C59: =INDEX(tblIndicators!$AE$2:$AE$75,$B59) -> 1.4.2) Institution for maritime spatial planning | D59: =INDEX(tblIndicators!$D$2:$D$75,$B59) -> 3 | E59: =INDEX(tblIndicators!$X$2:$X$75,$B59) -> 2 | N59: MINENG_3_3 | O59: MINENG_3_3
A60: PLCAP_5 | B60: 13 | C60: =INDEX(tblIndicators!$AE$2:$AE$75,$B60) -> 1.5) Stakeholder engagement | D60: =INDEX(tblIndicators!$D$2:$D$75,$B60) -> 2 | E60: =INDEX(tblIndicators!$X$2:$X$75,$B60) -> 100 | N60: LAND | O60: LAND
A61: PLCAP_5_1 | B61: 14 | C61: =INDEX(tblIndicators!$AE$2:$AE$75,$B61) -> 1.5.1) Grievance redress | D61: =INDEX(tblIndicators!$D$2:$D$75,$B61) -> 3 | E61: =INDEX(tblIndicators!$X$2:$X$75,$B61) -> 2 | N61: LAND_1 | O61: LAND_1
A62: PLCAP_5_2 | B62: 15 | C62: =INDEX(tblIndicators!$AE$2:$AE$75,$B62) -> 1.5.2) Multi-stakeholder engagement | D62: =INDEX(tblIndicators!$D$2:$D$75,$B62) -> 3 | E62: =INDEX(tblIndicators!$X$2:$X$75,$B62) -> 1 | N62: LAND_1_1 | O62: LAND_1_1
A63: PLCAP_6 | B63: 16 | C63: =INDEX(tblIndicators!$AE$2:$AE$75,$B63) -> 1.6) Extractive industries transparency | D63: =INDEX(tblIndicators!$D$2:$D$75,$B63) -> 2 | E63: =INDEX(tblIndicators!$X$2:$X$75,$B63) -> 100 | N63: LAND_2 | O63: LAND_2
A64: PLCAP_6_1 | B64: 17 | C64: =INDEX(tblIndicators!$AE$2:$AE$75,$B64) -> 1.6.1) Adoption of EITI standards | D64: =INDEX(tblIndicators!$D$2:$D$75,$B64) -> 3 | E64: =INDEX(tblIndicators!$X$2:$X$75,$B64) -> 3 | N64: LAND_2_1 | O64: LAND_2_1
A65: PLCAP_7 | B65: 18 | C65: =INDEX(tblIndicators!$AE$2:$AE$75,$B65) -> 1.7) Adoption of the United Nations Convention on the Law of the Sea (UNCLOS) | D65: =INDEX(tblIndicators!$D$2:$D$75,$B65) -> 2 | E65: =INDEX(tblIndicators!$X$2:$X$75,$B65) -> 100 | N65: LAND_3 | O65: LAND_3
A66: PLCAP_7_1 | B66: 19 | C66: =INDEX(tblIndicators!$AE$2:$AE$75,$B66) -> 1.7.1) Adoption of UNCLOS | D66: =INDEX(tblIndicators!$D$2:$D$75,$B66) -> 3 | E66: =INDEX(tblIndicators!$X$2:$X$75,$B66) -> 2 | N66: LAND_3_1 | O66: LAND_3_1
A67: BUSENV | B67: 20 | C67: =INDEX(tblIndicators!$AE$2:$AE$75,$B67) -> 2) BUSINESS ENVIRONMENT FOR COASTAL ACTIVITIES | D67: =INDEX(tblIndicators!$D$2:$D$75,$B67) -> 1 | E67: =INDEX(tblIndicators!$X$2:$X$75,$B67) -> 100 | N67: LAND_3_2 | O67: LAND_3_2
A68: BUSENV_1 | B68: 21 | C68: =INDEX(tblIndicators!$AE$2:$AE$75,$B68) -> 2.1) Ease of doing business | D68: =INDEX(tblIndicators!$D$2:$D$75,$B68) -> 2 | E68: =INDEX(tblIndicators!$X$2:$X$75,$B68) -> 100 | N68: LAND_4 | O68: LAND_4
A69: BUSENV_1_1 | B69: 22 | C69: =INDEX(tblIndicators!$AE$2:$AE$75,$B69) -> 2.1.1) Business environment | D69: =INDEX(tblIndicators!$D$2:$D$75,$B69) -> 3 | E69: =INDEX(tblIndicators!$X$2:$X$75,$B69) -> 9 | N69: LAND_4_1 | O69: LAND_4_1
A70: BUSENV_2 | B70: 23 | C70: =INDEX(tblIndicators!$AE$2:$AE$75,$B70) -> 2.2) Corruption perception | D70: =INDEX(tblIndicators!$D$2:$D$75,$B70) -> 2 | E70: =INDEX(tblIndicators!$X$2:$X$75,$B70) -> 100 | N70: LAND_5 | O70: LAND_5
A71: BUSENV_2_1 | B71: 24 | C71: =INDEX(tblIndicators!$AE$2:$AE$75,$B71) -> 2.2.1) Control of corruption | D71: =INDEX(tblIndicators!$D$2:$D$75,$B71) -> 3 | E71: =INDEX(tblIndicators!$X$2:$X$75,$B71) -> 100 | N71: LAND_5_1 | O71: LAND_5_1
A72: BUSENV_3 | B72: 25 | C72: =INDEX(tblIndicators!$AE$2:$AE$75,$B72) -> 2.3) Effectiveness of dispute resolution mechanisms | D72: =INDEX(tblIndicators!$D$2:$D$75,$B72) -> 2 | E72: =INDEX(tblIndicators!$X$2:$X$75,$B72) -> 100 | N72: LIVRES | O72: LIVRES
A73: BUSENV_3_1 | B73: 26 | C73: =INDEX(tblIndicators!$AE$2:$AE$75,$B73) -> 2.3.1) Fairness of judicial process | D73: =INDEX(tblIndicators!$D$2:$D$75,$B73) -> 3 | E73: =INDEX(tblIndicators!$X$2:$X$75,$B73) -> 4 | N73: LIVRES_1 | O73: LIVRES_1
A74: BUSENV_3_2 | B74: 27 | C74: =INDEX(tblIndicators!$AE$2:$AE$75,$B74) -> 2.3.2) Enforceability of contracts | D74: =INDEX(tblIndicators!$D$2:$D$75,$B74) -> 3 | E74: =INDEX(tblIndicators!$X$2:$X$75,$B74) -> 4 | N74: LIVRES_1_1 | O74: LIVRES_1_1
A75: BUSENV_4 | B75: 28 | C75: =INDEX(tblIndicators!$AE$2:$AE$75,$B75) -> 2.4) Quality of coastal infrastructure | D75: =INDEX(tblIndicators!$D$2:$D$75,$B75) -> 2 | E75: =INDEX(tblIndicators!$X$2:$X$75,$B75) -> 100 | N75: LIVRES_2 | O75: LIVRES_2
A76: BUSENV_4_1 | B76: 29 | C76: =INDEX(tblIndicators!$AE$2:$AE$75,$B76) -> 2.4.1) Quality of port facilities | D76: =INDEX(tblIndicators!$D$2:$D$75,$B76) -> 3 | E76: =INDEX(tblIndicators!$X$2:$X$75,$B76) -> 6 | N76: LIVRES_2_1 | O76: LIVRES_2_1
A77: BUSENV_4_2 | B77: 30 | C77: =INDEX(tblIndicators!$AE$2:$AE$75,$B77) -> 2.4.2) Quality of electricity supply | D77: =INDEX(tblIndicators!$D$2:$D$75,$B77) -> 3 | E77: =INDEX(tblIndicators!$X$2:$X$75,$B77) -> 6 | N77: LIVRES_2_2 | O77: LIVRES_2_2
A78: BUSENV_4_3 | B78: 31 | C78: =INDEX(tblIndicators!$AE$2:$AE$75,$B78) -> 2.4.3) Quality of road infrastructure | D78: =INDEX(tblIndicators!$D$2:$D$75,$B78) -> 3 | E78: =INDEX(tblIndicators!$X$2:$X$75,$B78) -> 6 | N78: LIVRES_3 | O78: LIVRES_3
A79: BUSENV_4_4 | B79: 32 | C79: =INDEX(tblIndicators!$AE$2:$AE$75,$B79) -> 2.4.4) Quality of railroad infrastructure | D79: =INDEX(tblIndicators!$D$2:$D$75,$B79) -> 3 | E79: =INDEX(tblIndicators!$X$2:$X$75,$B79) -> 6 | N79: LIVRES_3_1 | O79: LIVRES_3_1
A80: BUSENV_4_5 | B80: =MATCH(A80,lu_indicode,0) -> 33 | C80: =INDEX(tblIndicators!$AE$2:$AE$75,$B80) -> 2.4.5) Quality of water infrastructure | D80: =INDEX(tblIndicators!$D$2:$D$75,$B80) -> 3 | E80: =INDEX(tblIndicators!$X$2:$X$75,$B80) -> 100
A81: WATQUAL | B81: 34 | C81: =INDEX(tblIndicators!$AE$2:$AE$75,$B81) -> 3) WATER QUALITY | D81: =INDEX(tblIndicators!$D$2:$D$75,$B81) -> 1 | E81: =INDEX(tblIndicators!$X$2:$X$75,$B81) -> 100
A82: WATQUAL_1 | B82: 35 | C82: =INDEX(tblIndicators!$AE$2:$AE$75,$B82) -> 3.1) Agency | D82: =INDEX(tblIndicators!$D$2:$D$75,$B82) -> 2 | E82: =INDEX(tblIndicators!$X$2:$X$75,$B82) -> 100
A83: WATQUAL_1_1 | B83: 36 | C83: =INDEX(tblIndicators!$AE$2:$AE$75,$B83) -> 3.1.1) Agency responsible for freshwater pollution controls | D83: =INDEX(tblIndicators!$D$2:$D$75,$B83) -> 3 | E83: =INDEX(tblIndicators!$X$2:$X$75,$B83) -> 2
A84: WATQUAL_2 | B84: 37 | C84: =INDEX(tblIndicators!$AE$2:$AE$75,$B84) -> 3.2) Regulatory standards for water pollution | D84: =INDEX(tblIndicators!$D$2:$D$75,$B84) -> 2 | E84: =INDEX(tblIndicators!$X$2:$X$75,$B84) -> 100
A85: WATQUAL_2_1 | B85: 38 | C85: =INDEX(tblIndicators!$AE$2:$AE$75,$B85) -> 3.2.1) Standards for point source pollution | D85: =INDEX(tblIndicators!$D$2:$D$75,$B85) -> 3 | E85: =INDEX(tblIndicators!$X$2:$X$75,$B85) -> 1
A86: WATQUAL_2_2 | B86: 39 | C86: =INDEX(tblIndicators!$AE$2:$AE$75,$B86) -> 3.2.2) Restrictions on "Dirty Dozen" persistent pollutants | D86: =INDEX(tblIndicators!$D$2:$D$75,$B86) -> 3 | E86: =INDEX(tblIndicators!$X$2:$X$75,$B86) -> 25
A87: WATQUAL_2_3 | B87: 40 | C87: =INDEX(tblIndicators!$AE$2:$AE$75,$B87) -> 3.2.3) Wastewater treatment | D87: =INDEX(tblIndicators!$D$2:$D$75,$B87) -> 3 | E87: =INDEX(tblIndicators!$X$2:$X$75,$B87) -> 100
A88: WATQUAL_3 | B88: 41 | C88: =INDEX(tblIndicators!$AE$2:$AE$75,$B88) -> 3.3) Monitoring and enforcement | D88: =INDEX(tblIndicators!$D$2:$D$75,$B88) -> 2 | E88: =INDEX(tblIndicators!$X$2:$X$75,$B88) -> 100
A89: WATQUAL_3_1 | B89: 42 | C89: =INDEX(tblIndicators!$AE$2:$AE$75,$B89) -> 3.3.1) Coastal water quality data | D89: =INDEX(tblIndicators!$D$2:$D$75,$B89) -> 3 | E89: =INDEX(tblIndicators!$X$2:$X$75,$B89) -> 3
A90: WATQUAL_3_2 | B90: 43 | C90: =INDEX(tblIndicators!$AE$2:$AE$75,$B90) -> 3.3.2) Penalties for water quality violations | D90: =INDEX(tblIndicators!$D$2:$D$75,$B90) -> 3 | E90: =INDEX(tblIndicators!$X$2:$X$75,$B90) -> 1
A91: MINENG | B91: 44 | C91: =INDEX(tblIndicators!$AE$2:$AE$75,$B91) -> 4) MINERALS AND ENERGY | D91: =INDEX(tblIndicators!$D$2:$D$75,$B91) -> 1 | E91: =INDEX(tblIndicators!$X$2:$X$75,$B91) -> 100
A92: MINENG_1 | B92: 45 | C92: =INDEX(tblIndicators!$AE$2:$AE$75,$B92) -> 4.1) Permitting and licensing | D92: =INDEX(tblIndicators!$D$2:$D$75,$B92) -> 2 | E92: =INDEX(tblIndicators!$X$2:$X$75,$B92) -> 100
A93: MINENG_1_1 | B93: 46 | C93: =INDEX(tblIndicators!$AE$2:$AE$75,$B93) -> 4.1.1) Oil and gas tenure | D93: =INDEX(tblIndicators!$D$2:$D$75,$B93) -> 3 | E93: =INDEX(tblIndicators!$X$2:$X$75,$B93) -> 2
A94: MINENG_1_2 | B94: 47 | C94: =INDEX(tblIndicators!$AE$2:$AE$75,$B94) -> 4.1.2) Mining and minerals tenure | D94: =INDEX(tblIndicators!$D$2:$D$75,$B94) -> 3 | E94: =INDEX(tblIndicators!$X$2:$X$75,$B94) -> 2
A95: MINENG_2 | B95: 48 | C95: =INDEX(tblIndicators!$AE$2:$AE$75,$B95) -> 4.2) Monitoring and enforcement | D95: =INDEX(tblIndicators!$D$2:$D$75,$B95) -> 2 | E95: =INDEX(tblIndicators!$X$2:$X$75,$B95) -> 100
A96: MINENG_2_1 | B96: 49 | C96: =INDEX(tblIndicators!$AE$2:$AE$75,$B96) -> 4.2.1) Environmental impact assessment for oil and gas | D96: =INDEX(tblIndicators!$D$2:$D$75,$B96) -> 3 | E96: =INDEX(tblIndicators!$X$2:$X$75,$B96) -> 1
A97: MINENG_2_2 | B97: 50 | C97: =INDEX(tblIndicators!$AE$2:$AE$75,$B97) -> 4.2.2) Environment impact assessment for mining and minerals | D97: =INDEX(tblIndicators!$D$2:$D$75,$B97) -> 3 | E97: =INDEX(tblIndicators!$X$2:$X$75,$B97) -> 1
A98: MINENG_2_3 | B98: 51 | C98: =INDEX(tblIndicators!$AE$2:$AE$75,$B98) -> 4.2.3) On-site reviews | D98: =INDEX(tblIndicators!$D$2:$D$75,$B98) -> 3 | E98: =INDEX(tblIndicators!$X$2:$X$75,$B98) -> 1
A99: MINENG_2_4 | B99: 52 | C99: =INDEX(tblIndicators!$AE$2:$AE$75,$B99) -> 4.2.4) Collection of oil spills data | D99: =INDEX(tblIndicators!$D$2:$D$75,$B99) -> 3 | E99: =INDEX(tblIndicators!$X$2:$X$75,$B99) -> 2
A100: MINENG_3 | B100: 53 | C100: =INDEX(tblIndicators!$AE$2:$AE$75,$B100) -> 4.3) Risk mitigation | D100: =INDEX(tblIndicators!$D$2:$D$75,$B100) -> 2 | E100: =INDEX(tblIndicators!$X$2:$X$75,$B100) -> 100
A101: MINENG_3_1 | B101: 54 | C101: =INDEX(tblIndicators!$AE$2:$AE$75,$B101) -> 4.3.1) Adoption of the OPRC | D101: =INDEX(tblIndicators!$D$2:$D$75,$B101) -> 3 | E101: =INDEX(tblIndicators!$X$2:$X$75,$B101) -> 2
A102: MINENG_3_2 | B102: 55 | C102: =INDEX(tblIndicators!$AE$2:$AE$75,$B102) -> 4.3.2) Emergency plan | D102: =INDEX(tblIndicators!$D$2:$D$75,$B102) -> 3 | E102: =INDEX(tblIndicators!$X$2:$X$75,$B102) -> 1
A103: MINENG_3_3 | B103: 56 | C103: =INDEX(tblIndicators!$AE$2:$AE$75,$B103) -> 4.3.3) Off-limit areas | D103: =INDEX(tblIndicators!$D$2:$D$75,$B103) -> 3 | E103: =INDEX(tblIndicators!$X$2:$X$75,$B103) -> 1
A104: LAND | B104: 57 | C104: =INDEX(tblIndicators!$AE$2:$AE$75,$B104) -> 5) LAND | D104: =INDEX(tblIndicators!$D$2:$D$75,$B104) -> 1 | E104: =INDEX(tblIndicators!$X$2:$X$75,$B104) -> 100
A105: LAND_1 | B105: 58 | C105: =INDEX(tblIndicators!$AE$2:$AE$75,$B105) -> 5.1) Prevalence of coastal protected areas | D105: =INDEX(tblIndicators!$D$2:$D$75,$B105) -> 2 | E105: =INDEX(tblIndicators!$X$2:$X$75,$B105) -> 100
A106: LAND_1_1 | B106: 59 | C106: =INDEX(tblIndicators!$AE$2:$AE$75,$B106) -> 5.1.1) Terrestrial protected areas | D106: =INDEX(tblIndicators!$D$2:$D$75,$B106) -> 3 | E106: =INDEX(tblIndicators!$X$2:$X$75,$B106) -> 2
A107: LAND_2 | B107: 60 | C107: =INDEX(tblIndicators!$AE$2:$AE$75,$B107) -> 5.2) Environmental impact of coastal development | D107: =INDEX(tblIndicators!$D$2:$D$75,$B107) -> 2 | E107: =INDEX(tblIndicators!$X$2:$X$75,$B107) -> 100
A108: LAND_2_1 | B108: 61 | C108: =INDEX(tblIndicators!$AE$2:$AE$75,$B108) -> 5.2.1) Environment impact assessment for coastal development | D108: =INDEX(tblIndicators!$D$2:$D$75,$B108) -> 3 | E108: =INDEX(tblIndicators!$X$2:$X$75,$B108) -> 1
A109: LAND_2_2 | B109: 62 | C109: =INDEX(tblIndicators!$AE$2:$AE$75,$B109) -> 5.2.2) On-site reviews | D109: =INDEX(tblIndicators!$D$2:$D$75,$B109) -> 3 | E109: =INDEX(tblIndicators!$X$2:$X$75,$B109) -> 1
A110: LAND_3 | B110: 63 | C110: =INDEX(tblIndicators!$AE$2:$AE$75,$B110) -> 5.3) Government commitment to sustainability in coastal tourism development | D110: =INDEX(tblIndicators!$D$2:$D$75,$B110) -> 2 | E110: =INDEX(tblIndicators!$X$2:$X$75,$B110) -> 100
A111: LAND_3_1 | B111: =MATCH(A111,lu_indicode,0) -> 64 | C111: =INDEX(tblIndicators!$AE$2:$AE$75,$B111) -> 5.3.1) Sustainability of tourism | D111: =INDEX(tblIndicators!$D$2:$D$75,$B111) -> 3 | E111: =INDEX(tblIndicators!$X$2:$X$75,$B111) -> 6
A112: LAND_4 | B112: 65 | C112: =INDEX(tblIndicators!$AE$2:$AE$75,$B112) -> 5.4) Natural disaster risk mitigation | D112: =INDEX(tblIndicators!$D$2:$D$75,$B112) -> 2 | E112: =INDEX(tblIndicators!$X$2:$X$75,$B112) -> 100
A113: LAND_4_1 | B113: 66 | C113: =INDEX(tblIndicators!$AE$2:$AE$75,$B113) -> 5.4.1) Strategy for risk mitigation | D113: =INDEX(tblIndicators!$D$2:$D$75,$B113) -> 3 | E113: =INDEX(tblIndicators!$X$2:$X$75,$B113) -> 1
A114: LIVRES | B114: 67 | C114: =INDEX(tblIndicators!$AE$2:$AE$75,$B114) -> 6) LIVING RESOURCES | D114: =INDEX(tblIndicators!$D$2:$D$75,$B114) -> 1 | E114: =INDEX(tblIndicators!$X$2:$X$75,$B114) -> 100
A115: LIVRES_1 | B115: 68 | C115: =INDEX(tblIndicators!$AE$2:$AE$75,$B115) -> 6.1) Fisheries governance and management effectiveness | D115: =INDEX(tblIndicators!$D$2:$D$75,$B115) -> 2 | E115: =INDEX(tblIndicators!$X$2:$X$75,$B115) -> 100
A116: LIVRES_1_1 | B116: 69 | C116: =INDEX(tblIndicators!$AE$2:$AE$75,$B116) -> 6.1.1) Fisheries governance and management effectiveness | D116: =INDEX(tblIndicators!$D$2:$D$75,$B116) -> 3 | E116: =INDEX(tblIndicators!$X$2:$X$75,$B116) -> 1
A117: LIVRES_2 | B117: =MATCH(A117,lu_indicode,0) -> 70 | C117: =INDEX(tblIndicators!$AE$2:$AE$75,$B117) -> 6.2) Protection for marine/coastal species | D117: =INDEX(tblIndicators!$D$2:$D$75,$B117) -> 2 | E117: =INDEX(tblIndicators!$X$2:$X$75,$B117) -> 100
A118: LIVRES_2_1 | B118: 71 | C118: =INDEX(tblIndicators!$AE$2:$AE$75,$B118) -> 6.2.1) Protection of threatened species and populations | D118: =INDEX(tblIndicators!$D$2:$D$75,$B118) -> 3 | E118: =INDEX(tblIndicators!$X$2:$X$75,$B118) -> 1
A119: LIVRES_2_2 | B119: =MATCH(A119,lu_indicode,0) -> 72 | C119: =INDEX(tblIndicators!$AE$2:$AE$75,$B119) -> 6.2.2) Prevalence of marine protected areas | D119: =INDEX(tblIndicators!$D$2:$D$75,$B119) -> 3 | E119: =INDEX(tblIndicators!$X$2:$X$75,$B119) -> 2
A120: LIVRES_3 | B120: 73 | C120: =INDEX(tblIndicators!$AE$2:$AE$75,$B120) -> 6.3) Ballast water treatment | D120: =INDEX(tblIndicators!$D$2:$D$75,$B120) -> 2 | E120: =INDEX(tblIndicators!$X$2:$X$75,$B120) -> 100
A121: LIVRES_3_1 | B121: 74 | C121: =INDEX(tblIndicators!$AE$2:$AE$75,$B121) -> 6.3.1) Mechanisms to control pathways of introduction | D121: =INDEX(tblIndicators!$D$2:$D$75,$B121) -> 3 | E121: =INDEX(tblIndicators!$X$2:$X$75,$B121) -> 1
A127: DYNAMIC (BASED ON USER CATEGORY SELECT) | G127: =COUNTA(G129:G206) -> 74 | H127: =COUNTA(H129:H206) -> 18 | I127: =COUNTA(I129:I206) -> 14 | J127: 10 | K127: 13 | L127: 10 | M127: 8
A128: CAT_ID | B128: =iWorks!$B$46 -> 1 | G128: ALL
A129: =INDEX(G129:M129,$B$128) -> OVERALL | B129: =MATCH(A129,lu_indicode,0) -> 1 | C129: =INDEX(tblIndicators!$AE$2:$AE$75,$B129) -> OVERALL SCORE | D129: =INDEX(tblIndicators!$D$2:$D$75,$B129) -> 0 | E129: =INDEX(tblIndicators!$X$2:$X$75,$B129) -> 100 | G129: OVERALL | H129: PLCAP | I129: BUSENV | J129: WATQUAL | K129: MINENG | L129: LAND | M129: LIVRES
A130: =INDEX(G130:M130,$B$128) -> PLCAP | B130: =MATCH(A130,lu_indicode,0) -> 2 | C130: =INDEX(tblIndicators!$AE$2:$AE$75,$B130) -> 1) POLICY AND INSTITUTIONAL CAPACITY | D130: =INDEX(tblIndicators!$D$2:$D$75,$B130) -> 1 | E130: =INDEX(tblIndicators!$X$2:$X$75,$B130) -> 100 | G130: PLCAP | H130: PLCAP_1 | I130: BUSENV_1 | J130: WATQUAL_1 | K130: MINENG_1 | L130: LAND_1 | M130: LIVRES_1
A131: PLCAP_1 | B131: 3 | C131: =INDEX(tblIndicators!$AE$2:$AE$75,$B131) -> 1.1) Coastal management policy and strategy | D131: =INDEX(tblIndicators!$D$2:$D$75,$B131) -> 2 | E131: =INDEX(tblIndicators!$X$2:$X$75,$B131) -> 100 | G131: PLCAP_1 | H131: PLCAP_1_1 | I131: BUSENV_1_1 | J131: WATQUAL_1_1 | K131: MINENG_1_1 | L131: LAND_1_1 | M131: LIVRES_1_1
A132: PLCAP_1_1 | B132: 4 | C132: =INDEX(tblIndicators!$AE$2:$AE$75,$B132) -> 1.1.1) Coastal management policy | D132: =INDEX(tblIndicators!$D$2:$D$75,$B132) -> 3 | E132: =INDEX(tblIndicators!$X$2:$X$75,$B132) -> 1 | G132: PLCAP_1_1 | H132: PLCAP_1_2 | I132: BUSENV_2 | J132: WATQUAL_2 | K132: MINENG_1_2 | L132: LAND_2 | M132: LIVRES_2
A133: PLCAP_1_2 | B133: 5 | C133: =INDEX(tblIndicators!$AE$2:$AE$75,$B133) -> 1.1.2) Coastal management strategy | D133: =INDEX(tblIndicators!$D$2:$D$75,$B133) -> 3 | E133: =INDEX(tblIndicators!$X$2:$X$75,$B133) -> 2 | G133: PLCAP_1_2 | H133: PLCAP_2 | I133: BUSENV_2_1 | J133: WATQUAL_2_1 | K133: MINENG_2 | L133: LAND_2_1 | M133: LIVRES_2_1
A134: PLCAP_2 | B134: 6 | C134: =INDEX(tblIndicators!$AE$2:$AE$75,$B134) -> 1.2) Presence of established institution(s) | D134: =INDEX(tblIndicators!$D$2:$D$75,$B134) -> 2 | E134: =INDEX(tblIndicators!$X$2:$X$75,$B134) -> 100 | G134: PLCAP_2 | H134: PLCAP_2_1 | I134: BUSENV_3 | J134: WATQUAL_2_2 | K134: MINENG_2_1 | L134: LAND_2_2 | M134: LIVRES_2_2
A135: PLCAP_2_1 | B135: 7 | C135: =INDEX(tblIndicators!$AE$2:$AE$75,$B135) -> 1.2.1) Presence of coastal management strategy authority | D135: =INDEX(tblIndicators!$D$2:$D$75,$B135) -> 3 | E135: =INDEX(tblIndicators!$X$2:$X$75,$B135) -> 2 | G135: PLCAP_2_1 | H135: PLCAP_3 | I135: BUSENV_3_1 | J135: WATQUAL_2_3 | K135: MINENG_2_2 | L135: LAND_3 | M135: LIVRES_3
A136: PLCAP_3 | B136: 8 | C136: =INDEX(tblIndicators!$AE$2:$AE$75,$B136) -> 1.3) National strategy to adapt to climate change | D136: =INDEX(tblIndicators!$D$2:$D$75,$B136) -> 2 | E136: =INDEX(tblIndicators!$X$2:$X$75,$B136) -> 100 | G136: PLCAP_3 | H136: PLCAP_3_1 | I136: BUSENV_3_2 | J136: WATQUAL_3 | K136: MINENG_2_3 | L136: LAND_3_1 | M136: LIVRES_3_1
A137: PLCAP_3_1 | B137: 9 | C137: =INDEX(tblIndicators!$AE$2:$AE$75,$B137) -> 1.3.1) Strategy to adapt coastal areas to climate change | D137: =INDEX(tblIndicators!$D$2:$D$75,$B137) -> 3 | E137: =INDEX(tblIndicators!$X$2:$X$75,$B137) -> 2 | G137: PLCAP_3_1 | H137: PLCAP_4 | I137: BUSENV_4 | J137: WATQUAL_3_1 | K137: MINENG_2_4 | L137: LAND_4
A138: PLCAP_4 | B138: 10 | C138: =INDEX(tblIndicators!$AE$2:$AE$75,$B138) -> 1.4) Maritime Spatial Planning | D138: =INDEX(tblIndicators!$D$2:$D$75,$B138) -> 2 | E138: =INDEX(tblIndicators!$X$2:$X$75,$B138) -> 100 | G138: PLCAP_4 | H138: PLCAP_4_1 | I138: BUSENV_4_1 | J138: WATQUAL_3_2 | K138: MINENG_3 | L138: LAND_4_1
A139: PLCAP_4_1 | B139: 11 | C139: =INDEX(tblIndicators!$AE$2:$AE$75,$B139) -> 1.4.1) Legal basis for maritime spatial planning | D139: =INDEX(tblIndicators!$D$2:$D$75,$B139) -> 3 | E139: =INDEX(tblIndicators!$X$2:$X$75,$B139) -> 2 | G139: PLCAP_4_1 | H139: PLCAP_4_2 | I139: BUSENV_4_2 | K139: MINENG_3_1
A140: PLCAP_4_2 | B140: 12 | C140: =INDEX(tblIndicators!$AE$2:$AE$75,$B140) -> 1.4.2) Institution for maritime spatial planning | D140: =INDEX(tblIndicators!$D$2:$D$75,$B140) -> 3 | E140: =INDEX(tblIndicators!$X$2:$X$75,$B140) -> 2 | G140: PLCAP_4_2 | H140: PLCAP_5 | I140: BUSENV_4_3 | K140: MINENG_3_2
A141: PLCAP_5 | B141: 13 | C141: =INDEX(tblIndicators!$AE$2:$AE$75,$B141) -> 1.5) Stakeholder engagement | D141: =INDEX(tblIndicators!$D$2:$D$75,$B141) -> 2 | E141: =INDEX(tblIndicators!$X$2:$X$75,$B141) -> 100 | G141: PLCAP_5 | H141: PLCAP_5_1 | I141: BUSENV_4_4 | K141: MINENG_3_3
A142: PLCAP_5_1 | B142: 14 | C142: =INDEX(tblIndicators!$AE$2:$AE$75,$B142) -> 1.5.1) Grievance redress | D142: =INDEX(tblIndicators!$D$2:$D$75,$B142) -> 3 | E142: =INDEX(tblIndicators!$X$2:$X$75,$B142) -> 2 | G142: PLCAP_5_1 | H142: PLCAP_5_2 | I142: BUSENV_4_5
A143: PLCAP_5_2 | B143: 15 | C143: =INDEX(tblIndicators!$AE$2:$AE$75,$B143) -> 1.5.2) Multi-stakeholder engagement | D143: =INDEX(tblIndicators!$D$2:$D$75,$B143) -> 3 | E143: =INDEX(tblIndicators!$X$2:$X$75,$B143) -> 1 | G143: PLCAP_5_2 | H143: PLCAP_6
A144: PLCAP_6 | B144: 16 | C144: =INDEX(tblIndicators!$AE$2:$AE$75,$B144) -> 1.6) Extractive industries transparency | D144: =INDEX(tblIndicators!$D$2:$D$75,$B144) -> 2 | E144: =INDEX(tblIndicators!$X$2:$X$75,$B144) -> 100 | G144: PLCAP_6 | H144: PLCAP_6_1
A145: PLCAP_6_1 | B145: 17 | C145: =INDEX(tblIndicators!$AE$2:$AE$75,$B145) -> 1.6.1) Adoption of EITI standards | D145: =INDEX(tblIndicators!$D$2:$D$75,$B145) -> 3 | E145: =INDEX(tblIndicators!$X$2:$X$75,$B145) -> 3 | G145: PLCAP_6_1 | H145: PLCAP_7
A146: PLCAP_7 | B146: 18 | C146: =INDEX(tblIndicators!$AE$2:$AE$75,$B146) -> 1.7) Adoption of the United Nations Convention on the Law of the Sea (UNCLOS) | D146: =INDEX(tblIndicators!$D$2:$D$75,$B146) -> 2 | E146: =INDEX(tblIndicators!$X$2:$X$75,$B146) -> 100 | G146: PLCAP_7 | H146: PLCAP_7_1
A147: PLCAP_7_1 | B147: 19 | C147: =INDEX(tblIndicators!$AE$2:$AE$75,$B147) -> 1.7.1) Adoption of UNCLOS | D147: =INDEX(tblIndicators!$D$2:$D$75,$B147) -> 3 | E147: =INDEX(tblIndicators!$X$2:$X$75,$B147) -> 2 | G147: PLCAP_7_1
A148: BUSENV | B148: 20 | C148: =INDEX(tblIndicators!$AE$2:$AE$75,$B148) -> 2) BUSINESS ENVIRONMENT FOR COASTAL ACTIVITIES | D148: =INDEX(tblIndicators!$D$2:$D$75,$B148) -> 1 | E148: =INDEX(tblIndicators!$X$2:$X$75,$B148) -> 100 | G148: BUSENV
A149: BUSENV_1 | B149: 21 | C149: =INDEX(tblIndicators!$AE$2:$AE$75,$B149) -> 2.1) Ease of doing business | D149: =INDEX(tblIndicators!$D$2:$D$75,$B149) -> 2 | E149: =INDEX(tblIndicators!$X$2:$X$75,$B149) -> 100 | G149: BUSENV_1
A150: BUSENV_1_1 | B150: 22 | C150: =INDEX(tblIndicators!$AE$2:$AE$75,$B150) -> 2.1.1) Business environment | D150: =INDEX(tblIndicators!$D$2:$D$75,$B150) -> 3 | E150: =INDEX(tblIndicators!$X$2:$X$75,$B150) -> 9 | G150: BUSENV_1_1
A151: BUSENV_2 | B151: 23 | C151: =INDEX(tblIndicators!$AE$2:$AE$75,$B151) -> 2.2) Corruption perception | D151: =INDEX(tblIndicators!$D$2:$D$75,$B151) -> 2 | E151: =INDEX(tblIndicators!$X$2:$X$75,$B151) -> 100 | G151: BUSENV_2
A152: BUSENV_2_1 | B152: 24 | C152: =INDEX(tblIndicators!$AE$2:$AE$75,$B152) -> 2.2.1) Control of corruption | D152: =INDEX(tblIndicators!$D$2:$D$75,$B152) -> 3 | E152: =INDEX(tblIndicators!$X$2:$X$75,$B152) -> 100 | G152: BUSENV_2_1
A153: BUSENV_3 | B153: 25 | C153: =INDEX(tblIndicators!$AE$2:$AE$75,$B153) -> 2.3) Effectiveness of dispute resolution mechanisms | D153: =INDEX(tblIndicators!$D$2:$D$75,$B153) -> 2 | E153: =INDEX(tblIndicators!$X$2:$X$75,$B153) -> 100 | G153: BUSENV_3
A154: BUSENV_3_1 | B154: 26 | C154: =INDEX(tblIndicators!$AE$2:$AE$75,$B154) -> 2.3.1) Fairness of judicial process | D154: =INDEX(tblIndicators!$D$2:$D$75,$B154) -> 3 | E154: =INDEX(tblIndicators!$X$2:$X$75,$B154) -> 4 | G154: BUSENV_3_1
A155: BUSENV_3_2 | B155: 27 | C155: =INDEX(tblIndicators!$AE$2:$AE$75,$B155) -> 2.3.2) Enforceability of contracts | D155: =INDEX(tblIndicators!$D$2:$D$75,$B155) -> 3 | E155: =INDEX(tblIndicators!$X$2:$X$75,$B155) -> 4 | G155: BUSENV_3_2
A156: BUSENV_4 | B156: 28 | C156: =INDEX(tblIndicators!$AE$2:$AE$75,$B156) -> 2.4) Quality of coastal infrastructure | D156: =INDEX(tblIndicators!$D$2:$D$75,$B156) -> 2 | E156: =INDEX(tblIndicators!$X$2:$X$75,$B156) -> 100 | G156: BUSENV_4
A157: BUSENV_4_1 | B157: 29 | C157: =INDEX(tblIndicators!$AE$2:$AE$75,$B157) -> 2.4.1) Quality of port facilities | D157: =INDEX(tblIndicators!$D$2:$D$75,$B157) -> 3 | E157: =INDEX(tblIndicators!$X$2:$X$75,$B157) -> 6 | G157: BUSENV_4_1
A158: BUSENV_4_2 | B158: 30 | C158: =INDEX(tblIndicators!$AE$2:$AE$75,$B158) -> 2.4.2) Quality of electricity supply | D158: =INDEX(tblIndicators!$D$2:$D$75,$B158) -> 3 | E158: =INDEX(tblIndicators!$X$2:$X$75,$B158) -> 6 | G158: BUSENV_4_2
A159: BUSENV_4_3 | B159: 31 | C159: =INDEX(tblIndicators!$AE$2:$AE$75,$B159) -> 2.4.3) Quality of road infrastructure | D159: =INDEX(tblIndicators!$D$2:$D$75,$B159) -> 3 | E159: =INDEX(tblIndicators!$X$2:$X$75,$B159) -> 6 | G159: BUSENV_4_3
A160: BUSENV_4_4 | B160: 32 | C160: =INDEX(tblIndicators!$AE$2:$AE$75,$B160) -> 2.4.4) Quality of railroad infrastructure | D160: =INDEX(tblIndicators!$D$2:$D$75,$B160) -> 3 | E160: =INDEX(tblIndicators!$X$2:$X$75,$B160) -> 6 | G160: BUSENV_4_4
A161: BUSENV_4_5 | B161: 33 | C161: =INDEX(tblIndicators!$AE$2:$AE$75,$B161) -> 2.4.5) Quality of water infrastructure | D161: =INDEX(tblIndicators!$D$2:$D$75,$B161) -> 3 | E161: =INDEX(tblIndicators!$X$2:$X$75,$B161) -> 100 | G161: BUSENV_4_5
A162: WATQUAL | B162: 34 | C162: =INDEX(tblIndicators!$AE$2:$AE$75,$B162) -> 3) WATER QUALITY | D162: =INDEX(tblIndicators!$D$2:$D$75,$B162) -> 1 | E162: =INDEX(tblIndicators!$X$2:$X$75,$B162) -> 100 | G162: WATQUAL
A163: WATQUAL_1 | B163: 35 | C163: =INDEX(tblIndicators!$AE$2:$AE$75,$B163) -> 3.1) Agency | D163: =INDEX(tblIndicators!$D$2:$D$75,$B163) -> 2 | E163: =INDEX(tblIndicators!$X$2:$X$75,$B163) -> 100 | G163: WATQUAL_1
A164: WATQUAL_1_1 | B164: 36 | C164: =INDEX(tblIndicators!$AE$2:$AE$75,$B164) -> 3.1.1) Agency responsible for freshwater pollution controls | D164: =INDEX(tblIndicators!$D$2:$D$75,$B164) -> 3 | E164: =INDEX(tblIndicators!$X$2:$X$75,$B164) -> 2 | G164: WATQUAL_1_1
A165: WATQUAL_2 | B165: 37 | C165: =INDEX(tblIndicators!$AE$2:$AE$75,$B165) -> 3.2) Regulatory standards for water pollution | D165: =INDEX(tblIndicators!$D$2:$D$75,$B165) -> 2 | E165: =INDEX(tblIndicators!$X$2:$X$75,$B165) -> 100 | G165: WATQUAL_2
A166: WATQUAL_2_1 | B166: 38 | C166: =INDEX(tblIndicators!$AE$2:$AE$75,$B166) -> 3.2.1) Standards for point source pollution | D166: =INDEX(tblIndicators!$D$2:$D$75,$B166) -> 3 | E166: =INDEX(tblIndicators!$X$2:$X$75,$B166) -> 1 | G166: WATQUAL_2_1
A167: WATQUAL_2_2 | B167: 39 | C167: =INDEX(tblIndicators!$AE$2:$AE$75,$B167) -> 3.2.2) Restrictions on "Dirty Dozen" persistent pollutants | D167: =INDEX(tblIndicators!$D$2:$D$75,$B167) -> 3 | E167: =INDEX(tblIndicators!$X$2:$X$75,$B167) -> 25 | G167: WATQUAL_2_2
A168: WATQUAL_2_3 | B168: 40 | C168: =INDEX(tblIndicators!$AE$2:$AE$75,$B168) -> 3.2.3) Wastewater treatment | D168: =INDEX(tblIndicators!$D$2:$D$75,$B168) -> 3 | E168: =INDEX(tblIndicators!$X$2:$X$75,$B168) -> 100 | G168: WATQUAL_2_3
A169: WATQUAL_3 | B169: 41 | C169: =INDEX(tblIndicators!$AE$2:$AE$75,$B169) -> 3.3) Monitoring and enforcement | D169: =INDEX(tblIndicators!$D$2:$D$75,$B169) -> 2 | E169: =INDEX(tblIndicators!$X$2:$X$75,$B169) -> 100 | G169: WATQUAL_3
A170: WATQUAL_3_1 | B170: 42 | C170: =INDEX(tblIndicators!$AE$2:$AE$75,$B170) -> 3.3.1) Coastal water quality data | D170: =INDEX(tblIndicators!$D$2:$D$75,$B170) -> 3 | E170: =INDEX(tblIndicators!$X$2:$X$75,$B170) -> 3 | G170: WATQUAL_3_1
A171: WATQUAL_3_2 | B171: 43 | C171: =INDEX(tblIndicators!$AE$2:$AE$75,$B171) -> 3.3.2) Penalties for water quality violations | D171: =INDEX(tblIndicators!$D$2:$D$75,$B171) -> 3 | E171: =INDEX(tblIndicators!$X$2:$X$75,$B171) -> 1 | G171: WATQUAL_3_2
A172: MINENG | B172: 44 | C172: =INDEX(tblIndicators!$AE$2:$AE$75,$B172) -> 4) MINERALS AND ENERGY | D172: =INDEX(tblIndicators!$D$2:$D$75,$B172) -> 1 | E172: =INDEX(tblIndicators!$X$2:$X$75,$B172) -> 100 | G172: MINENG
A173: MINENG_1 | B173: 45 | C173: =INDEX(tblIndicators!$AE$2:$AE$75,$B173) -> 4.1) Permitting and licensing | D173: =INDEX(tblIndicators!$D$2:$D$75,$B173) -> 2 | E173: =INDEX(tblIndicators!$X$2:$X$75,$B173) -> 100 | G173: MINENG_1
A174: MINENG_1_1 | B174: 46 | C174: =INDEX(tblIndicators!$AE$2:$AE$75,$B174) -> 4.1.1) Oil and gas tenure | D174: =INDEX(tblIndicators!$D$2:$D$75,$B174) -> 3 | E174: =INDEX(tblIndicators!$X$2:$X$75,$B174) -> 2 | G174: MINENG_1_1
A175: MINENG_1_2 | B175: 47 | C175: =INDEX(tblIndicators!$AE$2:$AE$75,$B175) -> 4.1.2) Mining and minerals tenure | D175: =INDEX(tblIndicators!$D$2:$D$75,$B175) -> 3 | E175: =INDEX(tblIndicators!$X$2:$X$75,$B175) -> 2 | G175: MINENG_1_2
A176: MINENG_2 | B176: 48 | C176: =INDEX(tblIndicators!$AE$2:$AE$75,$B176) -> 4.2) Monitoring and enforcement | D176: =INDEX(tblIndicators!$D$2:$D$75,$B176) -> 2 | E176: =INDEX(tblIndicators!$X$2:$X$75,$B176) -> 100 | G176: MINENG_2
A177: MINENG_2_1 | B177: 49 | C177: =INDEX(tblIndicators!$AE$2:$AE$75,$B177) -> 4.2.1) Environmental impact assessment for oil and gas | D177: =INDEX(tblIndicators!$D$2:$D$75,$B177) -> 3 | E177: =INDEX(tblIndicators!$X$2:$X$75,$B177) -> 1 | G177: MINENG_2_1
A178: MINENG_2_2 | B178: 50 | C178: =INDEX(tblIndicators!$AE$2:$AE$75,$B178) -> 4.2.2) Environment impact assessment for mining and minerals | D178: =INDEX(tblIndicators!$D$2:$D$75,$B178) -> 3 | E178: =INDEX(tblIndicators!$X$2:$X$75,$B178) -> 1 | G178: MINENG_2_2
A179: MINENG_2_3 | B179: 51 | C179: =INDEX(tblIndicators!$AE$2:$AE$75,$B179) -> 4.2.3) On-site reviews | D179: =INDEX(tblIndicators!$D$2:$D$75,$B179) -> 3 | E179: =INDEX(tblIndicators!$X$2:$X$75,$B179) -> 1 | G179: MINENG_2_3
A180: MINENG_2_4 | B180: 52 | C180: =INDEX(tblIndicators!$AE$2:$AE$75,$B180) -> 4.2.4) Collection of oil spills data | D180: =INDEX(tblIndicators!$D$2:$D$75,$B180) -> 3 | E180: =INDEX(tblIndicators!$X$2:$X$75,$B180) -> 2 | G180: MINENG_2_4
A181: MINENG_3 | B181: 53 | C181: =INDEX(tblIndicators!$AE$2:$AE$75,$B181) -> 4.3) Risk mitigation | D181: =INDEX(tblIndicators!$D$2:$D$75,$B181) -> 2 | E181: =INDEX(tblIndicators!$X$2:$X$75,$B181) -> 100 | G181: MINENG_3
A182: MINENG_3_1 | B182: 54 | C182: =INDEX(tblIndicators!$AE$2:$AE$75,$B182) -> 4.3.1) Adoption of the OPRC | D182: =INDEX(tblIndicators!$D$2:$D$75,$B182) -> 3 | E182: =INDEX(tblIndicators!$X$2:$X$75,$B182) -> 2 | G182: MINENG_3_1
A183: MINENG_3_2 | B183: 55 | C183: =INDEX(tblIndicators!$AE$2:$AE$75,$B183) -> 4.3.2) Emergency plan | D183: =INDEX(tblIndicators!$D$2:$D$75,$B183) -> 3 | E183: =INDEX(tblIndicators!$X$2:$X$75,$B183) -> 1 | G183: MINENG_3_2
A184: MINENG_3_3 | B184: 56 | C184: =INDEX(tblIndicators!$AE$2:$AE$75,$B184) -> 4.3.3) Off-limit areas | D184: =INDEX(tblIndicators!$D$2:$D$75,$B184) -> 3 | E184: =INDEX(tblIndicators!$X$2:$X$75,$B184) -> 1 | G184: MINENG_3_3
A185: LAND | B185: 57 | C185: =INDEX(tblIndicators!$AE$2:$AE$75,$B185) -> 5) LAND | D185: =INDEX(tblIndicators!$D$2:$D$75,$B185) -> 1 | E185: =INDEX(tblIndicators!$X$2:$X$75,$B185) -> 100 | G185: LAND
A186: LAND_1 | B186: 58 | C186: =INDEX(tblIndicators!$AE$2:$AE$75,$B186) -> 5.1) Prevalence of coastal protected areas | D186: =INDEX(tblIndicators!$D$2:$D$75,$B186) -> 2 | E186: =INDEX(tblIndicators!$X$2:$X$75,$B186) -> 100 | G186: LAND_1
A187: LAND_1_1 | B187: 59 | C187: =INDEX(tblIndicators!$AE$2:$AE$75,$B187) -> 5.1.1) Terrestrial protected areas | D187: =INDEX(tblIndicators!$D$2:$D$75,$B187) -> 3 | E187: =INDEX(tblIndicators!$X$2:$X$75,$B187) -> 2 | G187: LAND_1_1
A188: LAND_2 | B188: 60 | C188: =INDEX(tblIndicators!$AE$2:$AE$75,$B188) -> 5.2) Environmental impact of coastal development | D188: =INDEX(tblIndicators!$D$2:$D$75,$B188) -> 2 | E188: =INDEX(tblIndicators!$X$2:$X$75,$B188) -> 100 | G188: LAND_2
A189: LAND_2_1 | B189: 61 | C189: =INDEX(tblIndicators!$AE$2:$AE$75,$B189) -> 5.2.1) Environment impact assessment for coastal development | D189: =INDEX(tblIndicators!$D$2:$D$75,$B189) -> 3 | E189: =INDEX(tblIndicators!$X$2:$X$75,$B189) -> 1 | G189: LAND_2_1
A190: LAND_2_2 | B190: 62 | C190: =INDEX(tblIndicators!$AE$2:$AE$75,$B190) -> 5.2.2) On-site reviews | D190: =INDEX(tblIndicators!$D$2:$D$75,$B190) -> 3 | E190: =INDEX(tblIndicators!$X$2:$X$75,$B190) -> 1 | G190: LAND_2_2
A191: LAND_3 | B191: 63 | C191: =INDEX(tblIndicators!$AE$2:$AE$75,$B191) -> 5.3) Government commitment to sustainability in coastal tourism development | D191: =INDEX(tblIndicators!$D$2:$D$75,$B191) -> 2 | E191: =INDEX(tblIndicators!$X$2:$X$75,$B191) -> 100 | G191: LAND_3
A192: LAND_3_1 | B192: 64 | C192: =INDEX(tblIndicators!$AE$2:$AE$75,$B192) -> 5.3.1) Sustainability of tourism | D192: =INDEX(tblIndicators!$D$2:$D$75,$B192) -> 3 | E192: =INDEX(tblIndicators!$X$2:$X$75,$B192) -> 6 | G192: LAND_3_1
A193: =INDEX(G193:M193,$B$128) -> LAND_4 | B193: =MATCH(A193,lu_indicode,0) -> 65 | C193: =INDEX(tblIndicators!$AE$2:$AE$75,$B193) -> 5.4) Natural disaster risk mitigation | D193: =INDEX(tblIndicators!$D$2:$D$75,$B193) -> 2 | E193: =INDEX(tblIndicators!$X$2:$X$75,$B193) -> 100 | G193: LAND_4
A194: LAND_4_1 | B194: 66 | C194: =INDEX(tblIndicators!$AE$2:$AE$75,$B194) -> 5.4.1) Strategy for risk mitigation | D194: =INDEX(tblIndicators!$D$2:$D$75,$B194) -> 3 | E194: =INDEX(tblIndicators!$X$2:$X$75,$B194) -> 1 | G194: LAND_4_1
A195: LIVRES | B195: 67 | C195: =INDEX(tblIndicators!$AE$2:$AE$75,$B195) -> 6) LIVING RESOURCES | D195: =INDEX(tblIndicators!$D$2:$D$75,$B195) -> 1 | E195: =INDEX(tblIndicators!$X$2:$X$75,$B195) -> 100 | G195: LIVRES
A196: LIVRES_1 | B196: 68 | C196: =INDEX(tblIndicators!$AE$2:$AE$75,$B196) -> 6.1) Fisheries governance and management effectiveness | D196: =INDEX(tblIndicators!$D$2:$D$75,$B196) -> 2 | E196: =INDEX(tblIndicators!$X$2:$X$75,$B196) -> 100 | G196: LIVRES_1
A197: LIVRES_1_1 | B197: 69 | C197: =INDEX(tblIndicators!$AE$2:$AE$75,$B197) -> 6.1.1) Fisheries governance and management effectiveness | D197: =INDEX(tblIndicators!$D$2:$D$75,$B197) -> 3 | E197: =INDEX(tblIndicators!$X$2:$X$75,$B197) -> 1 | G197: LIVRES_1_1
A198: LIVRES_2 | B198: 70 | C198: =INDEX(tblIndicators!$AE$2:$AE$75,$B198) -> 6.2) Protection for marine/coastal species | D198: =INDEX(tblIndicators!$D$2:$D$75,$B198) -> 2 | E198: =INDEX(tblIndicators!$X$2:$X$75,$B198) -> 100 | G198: LIVRES_2
A199: LIVRES_2_1 | B199: 71 | C199: =INDEX(tblIndicators!$AE$2:$AE$75,$B199) -> 6.2.1) Protection of threatened species and populations | D199: =INDEX(tblIndicators!$D$2:$D$75,$B199) -> 3 | E199: =INDEX(tblIndicators!$X$2:$X$75,$B199) -> 1 | G199: LIVRES_2_1
A200: LIVRES_2_2 | B200: 72 | C200: =INDEX(tblIndicators!$AE$2:$AE$75,$B200) -> 6.2.2) Prevalence of marine protected areas | D200: =INDEX(tblIndicators!$D$2:$D$75,$B200) -> 3 | E200: =INDEX(tblIndicators!$X$2:$X$75,$B200) -> 2 | G200: LIVRES_2_2
A201: LIVRES_3 | B201: 73 | C201: =INDEX(tblIndicators!$AE$2:$AE$75,$B201) -> 6.3) Ballast water treatment | D201: =INDEX(tblIndicators!$D$2:$D$75,$B201) -> 2 | E201: =INDEX(tblIndicators!$X$2:$X$75,$B201) -> 100 | G201: LIVRES_3
A202: LIVRES_3_1 | B202: =MATCH(A202,lu_indicode,0) -> 74 | C202: =INDEX(tblIndicators!$AE$2:$AE$75,$B202) -> 6.3.1) Mechanisms to control pathways of introduction | D202: =INDEX(tblIndicators!$D$2:$D$75,$B202) -> 3 | E202: =INDEX(tblIndicators!$X$2:$X$75,$B202) -> 1 | G202: LIVRES_3_1
A205: BG | B205: =MATCH(A205,tblIndicators!$B$76:$B$80,0) -> 1 | C205: =INDEX(tblIndicators!$F$76:$F$80,$B205) -> BACKGROUND INDICATORS
A206: BG_01 | B206: =MATCH(A206,tblIndicators!$B$76:$B$80,0) -> 2 | C206: =INDEX(tblIndicators!$F$76:$F$80,$B206) -> GDP per head (PPP, $, 2014)
A207: BG_02 | B207: =MATCH(A207,tblIndicators!$B$76:$B$80,0) -> 3 | C207: =INDEX(tblIndicators!$F$76:$F$80,$B207) -> Environmental Performance Index scores (2014)
A208: BG_03 | B208: =MATCH(A208,tblIndicators!$B$76:$B$80,0) -> 4 | C208: =INDEX(tblIndicators!$F$76:$F$80,$B208) -> Human Development Index (2013)
... 1 more rows

Sheet iPalette (hidden)
A1: ColorIndex | B1: R | C1: G | D1: B | E1: Fill | F1: Text | G1: Role
A2: 2 | B2: 0 | C2: 0 | D2: 0 | F2: Lorem ipsum | G2: Normal Text
A3: 1 | B3: 255 | C3: 255 | D3: 255 | F3: Lorem ipsum | G3: Background
A4: 3 | B4: 0 | C4: 176 | D4: 80 | F4: Lorem ipsum | G4: Improved / Top Group
A5: 4 | B5: 255 | C5: 0 | D5: 0 | F5: Lorem ipsum | G5: Declined / Bottom Group
A6: 5 | B6: 128 | C6: 128 | D6: 128 | F6: Lorem ipsum | G6: Low impact text
A7: 6 | B7: 138 | C7: 187 | D7: 209 | F7: Lorem ipsum | G7: Table_Head_Background
A8: 7 | B8: 83 | C8: 142 | D8: 213 | F8: Lorem ipsum | G8: Navigation_Background | K8: 83 | L8: 142 | M8: 213
A9: 8 | B9: 242 | C9: 242 | D9: 242 | F9: Lorem ipsum | G9: Option_Background | K9: 229 | L9: 238 | M9: 243
A10: 9 | B10: 252 | C10: 213 | D10: 180 | G10: Table_Data_Row_Secondary Highlight
A11: 10 | B11: 234 | C11: 233 | D11: 223 | F11: Lorem ipsum | G11: Table_Data_Row_Fill
A12: 11 | B12: 255 | C12: 153 | D12: 9 | F12: Lorem ipsum | G12: Table_Data_Row_HIGHLIGHT
A13: 12 | B13: 0 | C13: 51 | D13: 102 | G13: OVERALL_TABLE_HEAD
A14: 13 | B14: 138 | C14: 187 | D14: 209 | F14: Lorem ipsum | G14: CATEGORY_TABLE_HEAD
A15: 14 | B15: 229 | C15: 242 | D15: 247 | G15: GENERAL TABLE HEAD (OR TOP NAV?) - NTI COLOUR
A16: 15 | B16: 85 | C16: 117 | D16: 148 | G16: NTI HEADING/NAV TEXT
A17: 16 | B17: 255 | C17: 255 | D17: 0 | G17: Middle Group
A18: 17 | B18: 220 | C18: 230 | D18: 242 | G18: Subtle shade (range on radar)
A19: 18 | B19: 255 | C19: 153 | D19: 9 | G19: Country_Comp_Country_1
A20: 19 | B20: 83 | C20: 142 | D20: 213 | G20: Country_Comp_Country_2

Sheet iRankIndi (hidden)
A1: INDI_ID | B1: =iWorks!$B$49 -> 1 | D1: Format | E1: =iWorks!AA49 -> #0
A2: INDI_MAX | B2: =iWorks!$B$50 -> 100
A3: RANK_BY_ID | B3: 1 | AW3: CAT_ID | BI3: CAT_ID | BU3: CAT_ID | CG3: CAT_ID | CS3: CAT_ID | DE3: CAT_ID | DQ3: CAT_ID
A4: =iWorks!A29 -> ACTIVE_COUNTRY_COUNT | B4: =iWorks!$B$29 -> 20 | AW4: 1 | BD4: =INDEX(tblIndiSets!$C$3:$C$9,AW4) -> OVERALL SCORE | BI4: 2 | BP4: =INDEX(tblIndiSets!$C$3:$C$9,BI4) -> 1) POLICY AND INSTITUTIONAL CAPACITY | BU4: 3 | CB4: =INDEX(tblIndiSets!$C$3:$C$9,BU4) -> 2) BUSINESS ENVIRONMENT FOR COASTAL ACTIVITIES | CG4: 4 | CN4: =INDEX(tblIndiSets!$C$3:$C$9,CG4) -> 3) WATER QUALITY | CS4: 5 | CZ4: =INDEX(tblIndiSets!$C$3:$C$9,CS4) -> 4) MINERALS AND ENERGY | DE4: 6 | DL4: =INDEX(tblIndiSets!$C$3:$C$9,DE4) -> 5) LAND | DQ4: 7 | DX4: =INDEX(tblIndiSets!$C$3:$C$9,DQ4) -> 6) LIVING RESOURCES
A5: Depth | B5: =iWorks!E49 -> 0 | E5: INDI_ID | AH5: IMPROVED / DECLINED / NO CHANGE. LET'S DO A PIE CHART! | AW5: INDI_ID | BI5: INDI_ID | BU5: INDI_ID | CG5: INDI_ID | CS5: INDI_ID | DE5: INDI_ID | DQ5: INDI_ID
E6: =B1 -> 1 | P6: 40 | AW6: =INDEX(tblIndiSets!$B$3:$B$9,AW4) -> 1 | BI6: =INDEX(tblIndiSets!$B$3:$B$9,BI4) -> 2 | BU6: =INDEX(tblIndiSets!$B$3:$B$9,BU4) -> 20 | CG6: =INDEX(tblIndiSets!$B$3:$B$9,CG4) -> 34 | CS6: =INDEX(tblIndiSets!$B$3:$B$9,CS4) -> 44 | DE6: =INDEX(tblIndiSets!$B$3:$B$9,DE4) -> 57 | DQ6: =INDEX(tblIndiSets!$B$3:$B$9,DQ4) -> 67
AA7: 1 | AB7: 2 | AC7: 3
A8: =tblCountries!H90 -> HC | B8: =tblCountries!I90 -> COUNTRY_ID | C8: =tblCountries!J90 -> STATUS | E8: RANK_VALUE | F8: RANK | G8: RANK_TIE | H8: IS_TIE | I8: LU | J8: COUNTRY_ID | K8: STATUS | L8: RANK | M8: Rank = Tie | N8: COUNTRY | O8: Score | P8: MiniBar | S8: RANK | T8: RANK_TIE | U8: IS_TIE | V8: LU | W8: COUNTRY_ID | X8: Delta | Y8: GROUP | AA8: 0 | AB8: 0 | AC8: 0 | AH8: STATUS | AL8: STATUS | AP8: STATUS | AW8: RANK_VALUE | AX8: RANK | AY8: RANK_TIE | AZ8: IS_TIE | BA8: LU | BB8: COUNTRY_ID | BC8: STATUS | BD8: RANK | BE8: Rank = Tie | BF8: COUNTRY | BG8: Score | BI8: RANK_VALUE | BJ8: RANK | BK8: RANK_TIE | BL8: IS_TIE | BM8: LU | BN8: COUNTRY_ID | BO8: STATUS | BP8: RANK | BQ8: Rank = Tie | BR8: COUNTRY | BS8: Score | BU8: RANK_VALUE | BV8: RANK | BW8: RANK_TIE | BX8: IS_TIE | BY8: LU | BZ8: COUNTRY_ID | CA8: STATUS | CB8: RANK | CC8: Rank = Tie | CD8: COUNTRY | CE8: Score | CG8: RANK_VALUE | CH8: RANK | CI8: RANK_TIE | CJ8: IS_TIE | CK8: LU | CL8: COUNTRY_ID | CM8: STATUS | CN8: RANK | CO8: Rank = Tie | CP8: COUNTRY | CQ8: Score | CS8: RANK_VALUE | CT8: RANK | CU8: RANK_TIE | CV8: IS_TIE | CW8: LU | CX8: COUNTRY_ID | CY8: STATUS | CZ8: RANK | DA8: Rank = Tie | DB8: COUNTRY | DC8: Score | DE8: RANK_VALUE | DF8: RANK | DG8: RANK_TIE | DH8: IS_TIE | DI8: LU | DJ8: COUNTRY_ID | DK8: STATUS | DL8: RANK | DM8: Rank = Tie | DN8: COUNTRY | DO8: Score | DQ8: RANK_VALUE | DR8: RANK | DS8: RANK_TIE | DT8: IS_TIE | DU8: LU | DV8: COUNTRY_ID | DW8: STATUS | DX8: RANK | DY8: Rank = Tie | DZ8: COUNTRY | EA8: Score
A9: =tblCountries!H91 -> 1 | B9: =tblCountries!I91 -> 1 | C9: =tblCountries!J91 -> 1 | E9: =INDEX(ROUND(aScores,2),E$6,$B9) -> 66.51 | F9: =IF(E9="n/a",$B$4-COUNTIF(E10:E$28,"n/a"),RANK(E9,OFFSET(E$9,0,0,$B$4,1))+COUNTIF(OFFSET(E$9,0,0,$A9,1),E9)-1) -> 11 | G9: =IF(E9="n/a","-",RANK(E9,OFFSET(E$9,0,0,$B$4,1))) -> 11 | H9: =IF(E9="n/a","",IF(COUNTIF(G$9:G$28,G9)>1,"=","")) ->  | I9: =MATCH($A9,F$9:F$28,0) -> 10 | J9: =INDEX($B$9:$B$28,I9) -> 10 | K9: =IF($A9=0,"",INDEX(luCountry_Status,J9)) -> 1 | L9: =IF($A9=0,"",INDEX(aRanks,E$6,J9)) -> 1 | M9: =IF(I9="","",IF(OR(L9=L8,L9=L10),CONCATENATE("=",L9),L9)) -> 1 | N9: =IF($A9=0,"",INDEX(luCountries,J9)) -> New Zealand | O9: =IF($A9=0,"",IF($B$5=3,INDEX(aData,E$6,J9),INDEX(aScores,E$6,J9))) -> 86.16336642 | P9: =IF(ISNUMBER(O9),REPT("|",O9/$B$2*P$6),"") -> |||||||||||||||||||||||||||||||||| | S9: =RANK(R9,OFFSET(R$9,0,0,$B$4,1))+COUNTIF(OFFSET(R$9,0,0,$A9,1),R9)-1 ->  | T9: =RANK(R9,OFFSET(R$9,0,0,$B$4,1)) ->  | U9: =IF(COUNTIF(T$9:T$28,T9)>1,"=","") -> = | V9: =MATCH($A9,S$9:S$28,0) ->  | W9: =INDEX($B$9:$B$28,V9) ->  | X9: =IF($A9=0,"",INDEX(aDeltas,E$6,W9)) ->  | Y9: =IF(X9>0,1,IF(X9<0,2,IF(X9=0,3,100))) ->  | AA9: =(AA8+MATCH(AA$7,OFFSET(Y$9:Y$28,AA8,0),0)) ->  | AB9: =AB8+MATCH(AB$7,OFFSET(Y$9:Y$28,AB8,0),0) ->  | AC9: =AC8+MATCH(AC$7,OFFSET(Y$9:Y$28,AC8,0),0) ->  | AE9: =INDEX($W$9:$W$28,AA9) ->  | AF9: =INDEX($W$9:$W$28,AB9) ->  | AG9: =INDEX($W$9:$W$28,AC9) ->  | AH9: =IF(ISERROR(AE9),0,INDEX(luCountry_Status,AE9)) -> 0 | AI9: =IF(ISERROR(AE9),"",INDEX(luCountries,AE9)) ->  | AJ9: =IF(ISERROR(AE9),"",INDEX(aScores,$E$6,AE9)) ->  | AK9: =IF(ISERROR(AE9),"",INDEX(aDeltas,$E$6,AE9)) ->  | AL9: =IF(ISERROR(AF9),0,INDEX(luCountry_Status,AF9)) -> 0 | AM9: =IF(ISERROR(AF9),"",INDEX(luCountries,AF9)) ->  | AN9: =IF(ISERROR(AF9),"",INDEX(aScores,$E$6,AF9)) ->  | AO9: =IF(ISERROR(AF9),"",INDEX(aDeltas,$E$6,AF9)) ->  | AP9: =IF(ISERROR(AG9),0,INDEX(luCountry_Status,AG9)) -> 0 | AQ9: =IF(ISERROR(AG9),"",INDEX(luCountries,AG9)) ->  | AR9: =IF(ISERROR(AG9),"",INDEX(aScores,$E$6,AG9)) ->  | AS9: =IF(ISERROR(AG9),"",INDEX(aDeltas,$E$6,AG9)) ->  | AW9: =INDEX(ROUND(aScores,0),AW$6,$B9) -> 67 | AX9: =RANK(AW9,OFFSET(AW$9,0,0,$B$4,1))+COUNTIF(OFFSET(AW$9,0,0,$A9,1),AW9)-1 -> 10 | AY9: =RANK(AW9,OFFSET(AW$9,0,0,$B$4,1)) -> 10 | AZ9: =IF(COUNTIF(AY$9:AY$28,AY9)>1,"=","") -> = | BA9: =MATCH($A9,AX$9:AX$28,0) -> 10 | BB9: =INDEX($B$9:$B$28,BA9) -> 10 | BC9: =IF($A9=0,"",INDEX(luCountry_Status,BB9)) -> 1 | BD9: =IF($A9=0,"",INDEX(aRanks,AW$6,BB9)) -> 1 | BE9: =IF(BA9="","",IF(OR(BD9=BD8,BD9=BD10),CONCATENATE("=",BD9),BD9)) -> 1 | BF9: =IF($A9=0,"",INDEX(luCountries,BB9)) -> New Zealand | BG9: =IF($A9=0,"",INDEX(aScores,AW$6,BB9)) -> 86.16336642 | BI9: =INDEX(ROUND(aScores,0),BI$6,$B9) -> 64 | BJ9: =RANK(BI9,OFFSET(BI$9,0,0,$B$4,1))+COUNTIF(OFFSET(BI$9,0,0,$A9,1),BI9)-1 -> 14 | BK9: =RANK(BI9,OFFSET(BI$9,0,0,$B$4,1)) -> 14 | BL9: =IF(COUNTIF(BK$9:BK$28,BK9)>1,"=","") ->  | BM9: =MATCH($A9,BJ$9:BJ$28,0) -> 12 | BN9: =INDEX($B$9:$B$28,BM9) -> 12 | BO9: =IF($A9=0,"",INDEX(luCountry_Status,BN9)) -> 1 | BP9: =IF($A9=0,"",INDEX(aRanks,BI$6,BN9)) -> =1 | BQ9: =IF(BM9="","",IF(OR(BP9=BP8,BP9=BP10),CONCATENATE("=",BP9),BP9)) -> ==1 | BR9: =IF($A9=0,"",INDEX(luCountries,BN9)) -> Norway | BS9: =IF($A9=0,"",INDEX(aScores,BI$6,BN9)) -> 85.71428571 | BU9: =INDEX(ROUND(aScores,0),BU$6,$B9) -> 50 | BV9: =RANK(BU9,OFFSET(BU$9,0,0,$B$4,1))+COUNTIF(OFFSET(BU$9,0,0,$A9,1),BU9)-1 -> 12 | BW9: =RANK(BU9,OFFSET(BU$9,0,0,$B$4,1)) -> 12 | BX9: =IF(COUNTIF(BW$9:BW$28,BW9)>1,"=","") ->  | BY9: =MATCH($A9,BV$9:BV$28,0) -> 2 | BZ9: =INDEX($B$9:$B$28,BY9) -> 2 | CA9: =IF($A9=0,"",INDEX(luCountry_Status,BZ9)) -> 1 | CB9: =IF($A9=0,"",INDEX(aRanks,BU$6,BZ9)) -> 1 | CC9: =IF(BY9="","",IF(OR(CB9=CB8,CB9=CB10),CONCATENATE("=",CB9),CB9)) -> 1 | CD9: =IF($A9=0,"",INDEX(luCountries,BZ9)) -> Canada | CE9: =IF($A9=0,"",INDEX(aScores,BU$6,BZ9)) -> 89.0164422 | CG9: =INDEX(ROUND(aScores,0),CG$6,$B9) -> 75 | CH9: =RANK(CG9,OFFSET(CG$9,0,0,$B$4,1))+COUNTIF(OFFSET(CG$9,0,0,$A9,1),CG9)-1 -> 11 | CI9: =RANK(CG9,OFFSET(CG$9,0,0,$B$4,1)) -> 11 | CJ9: =IF(COUNTIF(CI$9:CI$28,CI9)>1,"=","") -> = | CK9: =MATCH($A9,CH$9:CH$28,0) -> 5 | CL9: =INDEX($B$9:$B$28,CK9) -> 5 | CM9: =IF($A9=0,"",INDEX(luCountry_Status,CL9)) -> 1 | CN9: =IF($A9=0,"",INDEX(aRanks,CG$6,CL9)) -> =1 | CO9: =IF(CK9="","",IF(OR(CN9=CN8,CN9=CN10),CONCATENATE("=",CN9),CN9)) -> ==1 | CP9: =IF($A9=0,"",INDEX(luCountries,CL9)) -> France | CQ9: =IF($A9=0,"",INDEX(aScores,CG$6,CL9)) -> 83.42222222 | CS9: =INDEX(ROUND(aScores,1),CS$6,$B9) -> 81.9 | CT9: =RANK(CS9,OFFSET(CS$9,0,0,$B$4,1))+COUNTIF(OFFSET(CS$9,0,0,$A9,1),CS9)-1 -> 6 | CU9: =RANK(CS9,OFFSET(CS$9,0,0,$B$4,1)) -> 6 | CV9: =IF(COUNTIF(CU$9:CU$28,CU9)>1,"=","") -> = | CW9: =MATCH($A9,CT$9:CT$28,0) -> 8 | CX9: =INDEX($B$9:$B$28,CW9) -> 8 | CY9: =IF($A9=0,"",INDEX(luCountry_Status,CX9)) -> 1 | CZ9: =IF($A9=0,"",INDEX(aRanks,CS$6,CX9)) -> =1 | DA9: =IF(CW9="","",IF(OR(CZ9=CZ8,CZ9=CZ10),CONCATENATE("=",CZ9),CZ9)) -> ==1 | DB9: =IF($A9=0,"",INDEX(luCountries,CX9)) -> Japan | DC9: =IF($A9=0,"",INDEX(aScores,CS$6,CX9)) -> 91.66666667 | DE9: =INDEX(ROUND(aScores,0),DE$6,$B9) -> 50 | DF9: =RANK(DE9,OFFSET(DE$9,0,0,$B$4,1))+COUNTIF(OFFSET(DE$9,0,0,$A9,1),DE9)-1 -> 19 | DG9: =RANK(DE9,OFFSET(DE$9,0,0,$B$4,1)) -> 19 | DH9: =IF(COUNTIF(DG$9:DG$28,DG9)>1,"=","") ->  | DI9: =MATCH($A9,DF$9:DF$28,0) -> 10 | DJ9: =INDEX($B$9:$B$28,DI9) -> 10 | DK9: =IF($A9=0,"",INDEX(luCountry_Status,DJ9)) -> 1 | DL9: =IF($A9=0,"",INDEX(aRanks,DE$6,DJ9)) -> 1 | DM9: =IF(DI9="","",IF(OR(DL9=DL8,DL9=DL10),CONCATENATE("=",DL9),DL9)) -> 1 | DN9: =IF($A9=0,"",INDEX(luCountries,DJ9)) -> New Zealand | DO9: =IF($A9=0,"",INDEX(aScores,DE$6,DJ9)) -> 96.08333333 | DQ9: =INDEX(ROUND(aScores,0),DQ$6,$B9) -> 78 | DR9: =RANK(DQ9,OFFSET(DQ$9,0,0,$B$4,1))+COUNTIF(OFFSET(DQ$9,0,0,$A9,1),DQ9)-1 -> 6 | DS9: =RANK(DQ9,OFFSET(DQ$9,0,0,$B$4,1)) -> 6 | DT9: =IF(COUNTIF(DS$9:DS$28,DS9)>1,"=","") ->  | DU9: =MATCH($A9,DR$9:DR$28,0) -> 19 | DV9: =INDEX($B$9:$B$28,DU9) -> 19 | DW9: =IF($A9=0,"",INDEX(luCountry_Status,DV9)) -> 1 | DX9: =IF($A9=0,"",INDEX(aRanks,DQ$6,DV9)) -> 1 | DY9: =IF(DU9="","",IF(OR(DX9=DX8,DX9=DX10),CONCATENATE("=",DX9),DX9)) -> 1 | DZ9: =IF($A9=0,"",INDEX(luCountries,DV9)) -> United States | EA9: =IF($A9=0,"",INDEX(aScores,DQ$6,DV9)) -> 96.83939957
A10: =tblCountries!H92 -> 2 | B10: =tblCountries!I92 -> 2 | C10: =tblCountries!J92 -> 1 | E10: 76.2 | F10: =IF(E10="n/a",$B$4-COUNTIF(E11:E$28,"n/a"),RANK(E10,OFFSET(E$9,0,0,$B$4,1))+COUNTIF(OFFSET(E$9,0,0,$A10,1),E10)-1) -> 7 | G10: =IF(E10="n/a","-",RANK(E10,OFFSET(E$9,0,0,$B$4,1))) -> 7 | I10: 19 | J10: 19 | K10: =IF($A10=0,"",INDEX(luCountry_Status,J10)) -> 1 | L10: =IF($A10=0,"",INDEX(aRanks,E$6,J10)) -> 2 | M10: =IF(I10="","",IF(OR(L10=L9,L10=L11),CONCATENATE("=",L10),L10)) -> 2 | N10: =IF($A10=0,"",INDEX(luCountries,J10)) -> United States | O10: 85.42288839 | P10: =IF(ISNUMBER(O10),REPT("|",O10/$B$2*P$6),"") -> |||||||||||||||||||||||||||||||||| | S10: =RANK(R10,OFFSET(R$9,0,0,$B$4,1))+COUNTIF(OFFSET(R$9,0,0,$A10,1),R10)-1 ->  | T10: =RANK(R10,OFFSET(R$9,0,0,$B$4,1)) ->  | U10: = | X10: =IF($A10=0,"",INDEX(aDeltas,E$6,W10)) ->  | Y10: =IF(X10>0,1,IF(X10<0,2,IF(X10=0,3,100))) ->  | AH10: 0 | AI10: =IF(ISERROR(AE10),"",INDEX(luCountries,AE10)) ->  | AJ10: =IF(ISERROR(AE10),"",INDEX(aScores,$E$6,AE10)) ->  | AK10: =IF(ISERROR(AE10),"",INDEX(aDeltas,$E$6,AE10)) ->  | AL10: 0 | AM10: =IF(ISERROR(AF10),"",INDEX(luCountries,AF10)) ->  | AN10: =IF(ISERROR(AF10),"",INDEX(aScores,$E$6,AF10)) ->  | AO10: =IF(ISERROR(AF10),"",INDEX(aDeltas,$E$6,AF10)) ->  | AP10: =IF(ISERROR(AG10),0,INDEX(luCountry_Status,AG10)) -> 0 | AQ10: =IF(ISERROR(AG10),"",INDEX(luCountries,AG10)) ->  | AR10: =IF(ISERROR(AG10),"",INDEX(aScores,$E$6,AG10)) ->  | AS10: =IF(ISERROR(AG10),"",INDEX(aDeltas,$E$6,AG10)) ->  | AW10: 76 | AX10: =RANK(AW10,OFFSET(AW$9,0,0,$B$4,1))+COUNTIF(OFFSET(AW$9,0,0,$A10,1),AW10)-1 -> 7 | AY10: =RANK(AW10,OFFSET(AW$9,0,0,$B$4,1)) -> 7 | BA10: 19 | BB10: 19 | BC10: =IF($A10=0,"",INDEX(luCountry_Status,BB10)) -> 1 | BD10: =IF($A10=0,"",INDEX(aRanks,AW$6,BB10)) -> 2 | BE10: =IF(BA10="","",IF(OR(BD10=BD9,BD10=BD11),CONCATENATE("=",BD10),BD10)) -> 2 | BF10: =IF($A10=0,"",INDEX(luCountries,BB10)) -> United States | BG10: =IF($A10=0,"",INDEX(aScores,AW$6,BB10)) -> 85.42288839 | BI10: 71 | BJ10: =RANK(BI10,OFFSET(BI$9,0,0,$B$4,1))+COUNTIF(OFFSET(BI$9,0,0,$A10,1),BI10)-1 -> 8 | BK10: =RANK(BI10,OFFSET(BI$9,0,0,$B$4,1)) -> 8 | BL10: = | BM10: 18 | BN10: 18 | BO10: =IF($A10=0,"",INDEX(luCountry_Status,BN10)) -> 1 | BP10: =IF($A10=0,"",INDEX(aRanks,BI$6,BN10)) -> =1 | BQ10: =IF(BM10="","",IF(OR(BP10=BP9,BP10=BP11),CONCATENATE("=",BP10),BP10)) -> ==1 | BR10: =IF($A10=0,"",INDEX(luCountries,BN10)) -> Spain | BS10: =IF($A10=0,"",INDEX(aScores,BI$6,BN10)) -> 85.71428571 | BU10: 89 | BV10: =RANK(BU10,OFFSET(BU$9,0,0,$B$4,1))+COUNTIF(OFFSET(BU$9,0,0,$A10,1),BU10)-1 -> 1 | BW10: =RANK(BU10,OFFSET(BU$9,0,0,$B$4,1)) -> 1 | BY10: 12 | BZ10: 12 | CA10: =IF($A10=0,"",INDEX(luCountry_Status,BZ10)) -> 1 | CB10: =IF($A10=0,"",INDEX(aRanks,BU$6,BZ10)) -> 2 | CC10: =IF(BY10="","",IF(OR(CB10=CB9,CB10=CB11),CONCATENATE("=",CB10),CB10)) -> 2 | CD10: =IF($A10=0,"",INDEX(luCountries,BZ10)) -> Norway | CE10: =IF($A10=0,"",INDEX(aScores,BU$6,BZ10)) -> 87.54060032 | CG10: 67 | CH10: =RANK(CG10,OFFSET(CG$9,0,0,$B$4,1))+COUNTIF(OFFSET(CG$9,0,0,$A10,1),CG10)-1 -> 16 | CI10: =RANK(CG10,OFFSET(CG$9,0,0,$B$4,1)) -> 16 | CK10: 10 | CL10: 10 | CM10: =IF($A10=0,"",INDEX(luCountry_Status,CL10)) -> 1 | CN10: =IF($A10=0,"",INDEX(aRanks,CG$6,CL10)) -> =1 | CO10: =IF(CK10="","",IF(OR(CN10=CN9,CN10=CN11),CONCATENATE("=",CN10),CN10)) -> ==1 | CP10: =IF($A10=0,"",INDEX(luCountries,CL10)) -> New Zealand | CQ10: =IF($A10=0,"",INDEX(aScores,CG$6,CL10)) -> 83.21111111 | CS10: 86.1 | CT10: =RANK(CS10,OFFSET(CS$9,0,0,$B$4,1))+COUNTIF(OFFSET(CS$9,0,0,$A10,1),CS10)-1 -> 3 | CU10: =RANK(CS10,OFFSET(CS$9,0,0,$B$4,1)) -> 3 | CV10: = | CW10: 12 | CX10: 12 | CY10: =IF($A10=0,"",INDEX(luCountry_Status,CX10)) -> 1 | CZ10: =IF($A10=0,"",INDEX(aRanks,CS$6,CX10)) -> =1 | DA10: =IF(CW10="","",IF(OR(CZ10=CZ9,CZ10=CZ11),CONCATENATE("=",CZ10),CZ10)) -> ==1 | DB10: =IF($A10=0,"",INDEX(luCountries,CX10)) -> Norway | DC10: =IF($A10=0,"",INDEX(aScores,CS$6,CX10)) -> 91.66666667 | DE10: 67 | DF10: =RANK(DE10,OFFSET(DE$9,0,0,$B$4,1))+COUNTIF(OFFSET(DE$9,0,0,$A10,1),DE10)-1 -> 10 | DG10: =RANK(DE10,OFFSET(DE$9,0,0,$B$4,1)) -> 10 | DH10: = | DI10: 5 | DJ10: 5 | DK10: =IF($A10=0,"",INDEX(luCountry_Status,DJ10)) -> 1 | DL10: =IF($A10=0,"",INDEX(aRanks,DE$6,DJ10)) -> 2 | DM10: =IF(DI10="","",IF(OR(DL10=DL9,DL10=DL11),CONCATENATE("=",DL10),DL10)) -> 2 | DN10: =IF($A10=0,"",INDEX(luCountries,DJ10)) -> France | DO10: =IF($A10=0,"",INDEX(aScores,DE$6,DJ10)) -> 91.625 | DQ10: 77 | DR10: =RANK(DQ10,OFFSET(DQ$9,0,0,$B$4,1))+COUNTIF(OFFSET(DQ$9,0,0,$A10,1),DQ10)-1 -> 7 | DS10: =RANK(DQ10,OFFSET(DQ$9,0,0,$B$4,1)) -> 7 | DU10: 10 | DV10: 10 | DW10: =IF($A10=0,"",INDEX(luCountry_Status,DV10)) -> 1 | DX10: =IF($A10=0,"",INDEX(aRanks,DQ$6,DV10)) -> 2 | DY10: =IF(DU10="","",IF(OR(DX10=DX9,DX10=DX11),CONCATENATE("=",DX10),DX10)) -> 2 | DZ10: =IF($A10=0,"",INDEX(luCountries,DV10)) -> New Zealand | EA10: =IF($A10=0,"",INDEX(aScores,DQ$6,DV10)) -> 93.71948214
A11: =tblCountries!H93 -> 3 | B11: =tblCountries!I93 -> 3 | C11: =tblCountries!J93 -> 1 | E11: 67.33 | F11: =IF(E11="n/a",$B$4-COUNTIF(E12:E$28,"n/a"),RANK(E11,OFFSET(E$9,0,0,$B$4,1))+COUNTIF(OFFSET(E$9,0,0,$A11,1),E11)-1) -> 10 | G11: 10 | I11: 5 | J11: 5 | K11: 1 | L11: 3 | M11: 3 | N11: France | O11: 81.98812879 | P11: |||||||||||||||||||||||||||||||| | U11: = | X11: =IF($A11=0,"",INDEX(aDeltas,E$6,W11)) ->  | AH11: 0 | AL11: 0 | AP11: 0 | AW11: 67 | AX11: 11 | AY11: 10 | AZ11: = | BA11: 5 | BB11: 5 | BC11: 1 | BD11: 3 | BE11: 3 | BF11: France | BG11: 81.98812879 | BI11: 36 | BJ11: 18 | BK11: 18 | BM11: 19 | BN11: 19 | BO11: 1 | BP11: 3 | BQ11: 3 | BR11: United States | BS11: 84.52380952 | BU11: 76 | BV11: 8 | BW11: 8 | BY11: 10 | BZ11: 10 | CA11: 1 | CB11: 3 | CC11: 3 | CD11: New Zealand | CE11: 87.02182752 | CG11: 82 | CH11: 3 | CI11: 3 | CJ11: = | CK11: 3 | CL11: 3 | CM11: 1 | CN11: =3 | CO11: ==3 | CP11: Chile | CQ11: 81.76111111 | CS11: 75 | CT11: 11 | CU11: 11 | CW11: 2 | CX11: 2 | CY11: 1 | CZ11: =3 | DA11: ==3 | DB11: Canada | DC11: 86.11111111 | DE11: 64 | DF11: 12 | DG11: 12 | DI11: 18 | DJ11: 18 | DK11: 1 | DL11: 3 | DM11: 3 | DN11: Spain | DO11: 79.5 | DQ11: 71 | DR11: 8 | DS11: 8 | DU11: 5 | DV11: 5 | DW11: 1 | DX11: 3 | DY11: 3 | DZ11: France | EA11: 91.3161709
A12: =tblCountries!H94 -> 4 | B12: =tblCountries!I94 -> 4 | C12: =tblCountries!J94 -> 1 | E12: 60.65 | F12: =IF(E12="n/a",$B$4-COUNTIF(E13:E$28,"n/a"),RANK(E12,OFFSET(E$9,0,0,$B$4,1))+COUNTIF(OFFSET(E$9,0,0,$A12,1),E12)-1) -> 12 | G12: 12 | I12: 18 | J12: 18 | K12: 1 | L12: 4 | M12: 4 | N12: Spain | O12: 79.82000573 | P12: ||||||||||||||||||||||||||||||| | U12: = | X12: =IF($A12=0,"",INDEX(aDeltas,E$6,W12)) ->  | AH12: 0 | AL12: 0 | AP12: 0 | AW12: 61 | AX12: 12 | AY12: 12 | BA12: 18 | BB12: 18 | BC12: 1 | BD12: 4 | BE12: 4 | BF12: Spain | BG12: 79.82000573 | BI12: 71 | BJ12: 9 | BK12: 8 | BL12: = | BM12: 5 | BN12: 5 | BO12: 1 | BP12: =4 | BQ12: ==4 | BR12: France | BS12: 78.57142857 | BU12: 47 | BV12: 13 | BW12: 13 | BY12: 19 | BZ12: 19 | CA12: 1 | CB12: 4 | CC12: 4 | CD12: United States | CE12: 86.08578793 | CG12: 66 | CH12: 17 | CI12: 17 | CK12: 8 | CL12: 8 | CM12: 1 | CN12: =3 | CO12: ==3 | CP12: Japan | CQ12: 82.02888889 | CS12: 76.4 | CT12: 10 | CU12: 10 | CW12: 11 | CX12: 11 | CY12: 1 | CZ12: =3 | DA12: ==3 | DB12: Nigeria | DC12: 86.11111111 | DE12: 78 | DF12: 5 | DG12: 5 | DH12: = | DI12: 19 | DJ12: 19 | DK12: 1 | DL12: 4 | DM12: 4 | DN12: United States | DO12: 79.125 | DQ12: 25 | DR12: 20 | DS12: 20 | DU12: 18 | DV12: 18 | DW12: 1 | DX12: 4 | DY12: 4 | DZ12: Spain | EA12: 83.07682626
A13: =tblCountries!H95 -> 5 | B13: =tblCountries!I95 -> 5 | C13: =tblCountries!J95 -> 1 | E13: 81.99 | F13: =IF(E13="n/a",$B$4-COUNTIF(E14:E$28,"n/a"),RANK(E13,OFFSET(E$9,0,0,$B$4,1))+COUNTIF(OFFSET(E$9,0,0,$A13,1),E13)-1) -> 3 | G13: 3 | I13: 12 | J13: 12 | K13: 1 | L13: 5 | M13: 5 | N13: Norway | O13: 79.09809323 | P13: ||||||||||||||||||||||||||||||| | U13: = | X13: =IF($A13=0,"",INDEX(aDeltas,E$6,W13)) ->  | AH13: 0 | AL13: 0 | AP13: 0 | AW13: 82 | AX13: 3 | AY13: 3 | BA13: 12 | BB13: 12 | BC13: 1 | BD13: 5 | BE13: 5 | BF13: Norway | BG13: 79.09809323 | BI13: 79 | BJ13: 4 | BK13: 4 | BL13: = | BM13: 8 | BN13: 8 | BO13: 1 | BP13: =4 | BQ13: ==4 | BR13: Japan | BS13: 78.57142857 | BU13: 83 | BV13: 5 | BW13: 5 | BY13: 5 | BZ13: 5 | CA13: 1 | CB13: 5 | CC13: 5 | CD13: France | CE13: 83.10506218 | CG13: 83 | CH13: 1 | CI13: 1 | CJ13: = | CK13: 19 | CL13: 19 | CM13: 1 | CN13: 5 | CO13: 5 | CP13: United States | CQ13: 79.85222222 | CS13: 63.9 | CT13: 18 | CU13: 18 | CW13: 19 | CX13: 19 | CY13: 1 | CZ13: =3 | DA13: ==3 | DB13: United States | DC13: 86.11111111 | DE13: 92 | DF13: 2 | DG13: 2 | DI13: 4 | DJ13: 4 | DK13: 1 | DL13: =5 | DM13: ==5 | DN13: China | DO13: 78 | DQ13: 91 | DR13: 3 | DS13: 3 | DU13: 12 | DV13: 12 | DW13: 1 | DX13: 5 | DY13: 5 | DZ13: Norway | EA13: 79.42534003
A14: =tblCountries!H96 -> 6 | B14: =tblCountries!I96 -> 6 | C14: =tblCountries!J96 -> 1 | E14: 56.07 | F14: =IF(E14="n/a",$B$4-COUNTIF(E15:E$28,"n/a"),RANK(E14,OFFSET(E$9,0,0,$B$4,1))+COUNTIF(OFFSET(E$9,0,0,$A14,1),E14)-1) -> 17 | G14: 17 | I14: 8 | J14: 8 | K14: 1 | L14: 6 | M14: 6 | N14: Japan | O14: 78.16415526 | P14: ||||||||||||||||||||||||||||||| | U14: = | X14: =IF($A14=0,"",INDEX(aDeltas,E$6,W14)) ->  | AH14: 0 | AL14: 0 | AP14: 0 | AW14: 56 | AX14: 17 | AY14: 17 | BA14: 8 | BB14: 8 | BC14: 1 | BD14: 6 | BE14: 6 | BF14: Japan | BG14: 78.16415526 | BI14: 54 | BJ14: 16 | BK14: 16 | BM14: 10 | BN14: 10 | BO14: 1 | BP14: 6 | BQ14: 6 | BR14: New Zealand | BS14: 75 | BU14: 40 | BV14: 17 | BW14: 17 | BY14: 18 | BZ14: 18 | CA14: 1 | CB14: 6 | CC14: 6 | CD14: Spain | CE14: 79.53670019 | CG14: 75 | CH14: 12 | CI14: 11 | CJ14: = | CK14: 18 | CL14: 18 | CM14: 1 | CN14: 6 | CO14: 6 | CP14: Spain | CQ14: 78.87 | CS14: 73.6 | CT14: 12 | CU14: 12 | CW14: 1 | CX14: 1 | CY14: 1 | CZ14: =6 | DA14: ==6 | DB14: Brazil | DC14: 81.94444444 | DE14: 63 | DF14: 13 | DG14: 13 | DH14: = | DI14: 13 | DJ14: 13 | DK14: 1 | DL14: =5 | DM14: ==5 | DN14: Peru | DO14: 78.20833333 | DQ14: 31 | DR14: 17 | DS14: 17 | DT14: = | DU14: 1 | DV14: 1 | DW14: 1 | DX14: 6 | DY14: 6 | DZ14: Brazil | EA14: 78.06031124
A15: =tblCountries!H97 -> 7 | B15: =tblCountries!I97 -> 7 | C15: =tblCountries!J97 -> 1 | E15: 56.95 | F15: =IF(E15="n/a",$B$4-COUNTIF(E16:E$28,"n/a"),RANK(E15,OFFSET(E$9,0,0,$B$4,1))+COUNTIF(OFFSET(E$9,0,0,$A15,1),E15)-1) -> 15 | G15: 15 | I15: 2 | J15: 2 | K15: 1 | L15: 7 | M15: 7 | N15: Canada | O15: 76.2031135 | P15: |||||||||||||||||||||||||||||| | U15: = | X15: =IF($A15=0,"",INDEX(aDeltas,E$6,W15)) ->  | AH15: 0 | AL15: 0 | AP15: 0 | AW15: 57 | AX15: 15 | AY15: 15 | AZ15: = | BA15: 2 | BB15: 2 | BC15: 1 | BD15: 7 | BE15: 7 | BF15: Canada | BG15: 76.2031135 | BI15: 69 | BJ15: 12 | BK15: 12 | BM15: 14 | BN15: 14 | BO15: 1 | BP15: 7 | BQ15: 7 | BR15: Philippines | BS15: 73.80952381 | BU15: 39 | BV15: 18 | BW15: 18 | BY15: 8 | BZ15: 8 | CA15: 1 | CB15: 7 | CC15: 7 | CD15: Japan | CE15: 77.91189802 | CG15: 73 | CH15: 14 | CI15: 14 | CK15: 17 | CL15: 17 | CM15: 1 | CN15: 7 | CO15: 7 | CP15: South Korea | CQ15: 77.85333333 | CS15: 47.2 | CT15: 20 | CU15: 20 | CW15: 10 | CX15: 10 | CY15: 1 | CZ15: =6 | DA15: ==6 | DB15: New Zealand | DC15: 81.94444444 | DE15: 76 | DF15: 8 | DG15: 8 | DH15: = | DI15: 8 | DJ15: 8 | DK15: 1 | DL15: 7 | DM15: 7 | DN15: Japan | DO15: 77.20833333 | DQ15: 37 | DR15: 14 | DS15: 14 | DT15: = | DU15: 2 | DV15: 2 | DW15: 1 | DX15: 7 | DY15: 7 | DZ15: Canada | EA15: 77.08811184
A16: =tblCountries!H98 -> 8 | B16: =tblCountries!I98 -> 8 | C16: =tblCountries!J98 -> 1 | E16: 78.16 | F16: =IF(E16="n/a",$B$4-COUNTIF(E17:E$28,"n/a"),RANK(E16,OFFSET(E$9,0,0,$B$4,1))+COUNTIF(OFFSET(E$9,0,0,$A16,1),E16)-1) -> 6 | G16: 6 | I16: 17 | J16: 17 | K16: 1 | L16: 8 | M16: 8 | N16: South Korea | O16: 72.02769992 | P16: |||||||||||||||||||||||||||| | U16: = | X16: =IF($A16=0,"",INDEX(aDeltas,E$6,W16)) ->  | AH16: 0 | AL16: 0 | AP16: 0 | AW16: 78 | AX16: 6 | AY16: 6 | BA16: 17 | BB16: 17 | BC16: 1 | BD16: 8 | BE16: 8 | BF16: South Korea | BG16: 72.02769992 | BI16: 79 | BJ16: 5 | BK16: 4 | BL16: = | BM16: 2 | BN16: 2 | BO16: 1 | BP16: =8 | BQ16: ==8 | BR16: Canada | BS16: 71.42857143 | BU16: 78 | BV16: 7 | BW16: 7 | BY16: 3 | BZ16: 3 | CA16: 1 | CB16: 8 | CC16: 8 | CD16: Chile | CE16: 76.15795653 | CG16: 82 | CH16: 4 | CI16: 3 | CJ16: = | CK16: 9 | CL16: 9 | CM16: 1 | CN16: =8 | CO16: ==8 | CP16: Mexico | CQ16: 76.93888889 | CS16: 91.7 | CT16: 1 | CU16: 1 | CV16: = | CW16: 16 | CX16: 16 | CY16: 1 | CZ16: =6 | DA16: ==6 | DB16: South Africa | DC16: 81.94444444 | DE16: 77 | DF16: 7 | DG16: 7 | DI16: 7 | DJ16: 7 | DK16: 1 | DL16: =8 | DM16: ==8 | DN16: Indonesia | DO16: 76.33333333 | DQ16: 62 | DR16: 10 | DS16: 10 | DT16: = | DU16: 3 | DV16: 3 | DW16: 1 | DX16: 8 | DY16: 8 | DZ16: Chile | EA16: 71.15657671
A17: =tblCountries!H99 -> 9 | B17: =tblCountries!I99 -> 9 | C17: =tblCountries!J99 -> 1 | E17: 59.8 | F17: =IF(E17="n/a",$B$4-COUNTIF(E18:E$28,"n/a"),RANK(E17,OFFSET(E$9,0,0,$B$4,1))+COUNTIF(OFFSET(E$9,0,0,$A17,1),E17)-1) -> 13 | G17: 13 | I17: 16 | J17: 16 | K17: 1 | L17: 9 | M17: 9 | N17: South Africa | O17: 67.87156979 | P17: ||||||||||||||||||||||||||| | U17: = | X17: =IF($A17=0,"",INDEX(aDeltas,E$6,W17)) ->  | AH17: 0 | AL17: 0 | AP17: 0 | AW17: 60 | AX17: 13 | AY17: 13 | BA17: 16 | BB17: 16 | BC17: 1 | BD17: 9 | BE17: 9 | BF17: South Africa | BG17: 67.87156979 | BI17: 57 | BJ17: 15 | BK17: 15 | BM17: 4 | BN17: 4 | BO17: 1 | BP17: =8 | BQ17: ==8 | BR17: China | BS17: 71.42857143 | BU17: 54 | BV17: 11 | BW17: 11 | BY17: 17 | BZ17: 17 | CA17: 1 | CB17: 9 | CC17: 9 | CD17: South Korea | CE17: 73.19801309 | CG17: 77 | CH17: 8 | CI17: 8 | CJ17: = | CK17: 12 | CL17: 12 | CM17: 1 | CN17: =8 | CO17: ==8 | CP17: Norway | CQ17: 77.11666667 | CS17: 66.7 | CT17: 15 | CU17: 15 | CV17: = | CW17: 17 | CX17: 17 | CY17: 1 | CZ17: 9 | DA17: 9 | DB17: South Korea | DC17: 80.55555556 | DE17: 53 | DF17: 17 | DG17: 17 | DH17: = | DI17: 14 | DJ17: 14 | DK17: 1 | DL17: =8 | DM17: ==8 | DN17: Philippines | DO17: 75.54166667 | DQ17: 51 | DR17: 13 | DS17: 13 | DU17: 17 | DV17: 17 | DW17: 1 | DX17: 9 | DY17: 9 | DZ17: South Korea | EA17: 69.78548801
A18: =tblCountries!H100 -> 10 | B18: =tblCountries!I100 -> 10 | C18: =tblCountries!J100 -> 1 | E18: 86.16 | F18: =IF(E18="n/a",$B$4-COUNTIF(E19:E$28,"n/a"),RANK(E18,OFFSET(E$9,0,0,$B$4,1))+COUNTIF(OFFSET(E$9,0,0,$A18,1),E18)-1) -> 1 | G18: 1 | I18: 3 | J18: 3 | K18: 1 | L18: =10 | M18: ==10 | N18: Chile | O18: 67.32609945 | P18: |||||||||||||||||||||||||| | U18: = | X18: =IF($A18=0,"",INDEX(aDeltas,E$6,W18)) ->  | AH18: 0 | AL18: 0 | AP18: 0 | AW18: 86 | AX18: 1 | AY18: 1 | BA18: 1 | BB18: 1 | BC18: 1 | BD18: =10 | BE18: ==10 | BF18: Brazil | BG18: 66.51266312 | BI18: 75 | BJ18: 6 | BK18: 6 | BM18: 16 | BN18: 16 | BO18: 1 | BP18: =8 | BQ18: ==8 | BR18: South Africa | BS18: 71.42857143 | BU18: 87 | BV18: 3 | BW18: 3 | BY18: 16 | BZ18: 16 | CA18: 1 | CB18: 10 | CC18: 10 | CD18: South Africa | CE18: 55.89870992 | CG18: 83 | CH18: 2 | CI18: 1 | CJ18: = | CK18: 13 | CL18: 13 | CM18: 1 | CN18: 10 | CO18: 10 | CP18: Peru | CQ18: 75.55333333 | CS18: 81.9 | CT18: 7 | CU18: 6 | CV18: = | CW18: 4 | CX18: 4 | CY18: 1 | CZ18: 10 | DA18: 10 | DB18: China | DC18: 76.38888889 | DE18: 96 | DF18: 1 | DG18: 1 | DI18: 2 | DJ18: 2 | DK18: 1 | DL18: =10 | DM18: ==10 | DN18: Canada | DO18: 66.75 | DQ18: 94 | DR18: 2 | DS18: 2 | DU18: 8 | DV18: 8 | DW18: 1 | DX18: =10 | DY18: ==10 | DZ18: Japan | EA18: 61.59771605
A19: =tblCountries!H101 -> 11 | B19: =tblCountries!I101 -> 11 | C19: =tblCountries!J101 -> 1 | E19: 50.08 | F19: =IF(E19="n/a",$B$4-COUNTIF(E20:E$28,"n/a"),RANK(E19,OFFSET(E$9,0,0,$B$4,1))+COUNTIF(OFFSET(E$9,0,0,$A19,1),E19)-1) -> 19 | G19: 19 | I19: 1 | J19: 1 | K19: 1 | L19: =10 | M19: ==10 | N19: Brazil | O19: 66.51266312 | P19: |||||||||||||||||||||||||| | U19: = | X19: =IF($A19=0,"",INDEX(aDeltas,E$6,W19)) ->  | AH19: 0 | AL19: 0 | AP19: 0 | AW19: 50 | AX19: 19 | AY19: 19 | BA19: 3 | BB19: 3 | BC19: 1 | BD19: =10 | BE19: ==10 | BF19: Chile | BG19: 67.32609945 | BI19: 43 | BJ19: 17 | BK19: 17 | BM19: 20 | BN19: 20 | BO19: 1 | BP19: =8 | BQ19: ==8 | BR19: Vietnam | BS19: 71.42857143 | BU19: 17 | BV19: 20 | BW19: 20 | BY19: 9 | BZ19: 9 | CA19: 1 | CB19: 11 | CC19: 11 | CD19: Mexico | CE19: 54.17382138 | CG19: 62 | CH19: 18 | CI19: 18 | CK19: 1 | CL19: 1 | CM19: 1 | CN19: =11 | CO19: ==11 | CP19: Brazil | CQ19: 74.87444444 | CS19: 86.1 | CT19: 4 | CU19: 3 | CV19: = | CW19: 3 | CX19: 3 | CY19: 1 | CZ19: 11 | DA19: 11 | DB19: Chile | DC19: 75 | DE19: 61 | DF19: 16 | DG19: 16 | DI19: 16 | DJ19: 16 | DK19: 1 | DL19: =10 | DM19: ==10 | DN19: South Africa | DO19: 66.5 | DQ19: 31 | DR19: 18 | DS19: 17 | DT19: = | DU19: 15 | DV19: 15 | DW19: 1 | DX19: =10 | DY19: ==10 | DZ19: Russia | EA19: 62.07958234
A20: =tblCountries!H102 -> 12 | B20: =tblCountries!I102 -> 12 | C20: =tblCountries!J102 -> 1 | E20: 79.1 | F20: =IF(E20="n/a",$B$4-COUNTIF(E21:E$28,"n/a"),RANK(E20,OFFSET(E$9,0,0,$B$4,1))+COUNTIF(OFFSET(E$9,0,0,$A20,1),E20)-1) -> 5 | G20: 5 | I20: 4 | J20: 4 | K20: 1 | L20: 12 | M20: 12 | N20: China | O20: 60.65429662 | P20: |||||||||||||||||||||||| | U20: = | X20: =IF($A20=0,"",INDEX(aDeltas,E$6,W20)) ->  | AH20: 0 | AL20: 0 | AP20: 0 | AW20: 79 | AX20: 5 | AY20: 5 | BA20: 4 | BB20: 4 | BC20: 1 | BD20: 12 | BE20: 12 | BF20: China | BG20: 60.65429662 | BI20: 86 | BJ20: 1 | BK20: 1 | BL20: = | BM20: 7 | BN20: 7 | BO20: 1 | BP20: 12 | BQ20: 12 | BR20: Indonesia | BS20: 69.04761905 | BU20: 88 | BV20: 2 | BW20: 2 | BY20: 1 | BZ20: 1 | CA20: 1 | CB20: 12 | CC20: 12 | CD20: Brazil | CE20: 50.11939766 | CG20: 77 | CH20: 9 | CI20: 8 | CJ20: = | CK20: 6 | CL20: 6 | CM20: 1 | CN20: =11 | CO20: ==11 | CP20: India | CQ20: 75.27666667 | CS20: 91.7 | CT20: 2 | CU20: 1 | CV20: = | CW20: 6 | CX20: 6 | CY20: 1 | CZ20: 12 | DA20: 12 | DB20: India | DC20: 73.61111111 | DE20: 53 | DF20: 18 | DG20: 17 | DH20: = | DI20: 3 | DJ20: 3 | DK20: 1 | DL20: 12 | DM20: 12 | DN20: Chile | DO20: 64.16666667 | DQ20: 79 | DR20: 5 | DS20: 5 | DU20: 16 | DV20: 16 | DW20: 1 | DX20: 12 | DY20: 12 | DZ20: South Africa | EA20: 60.25102629
A21: =tblCountries!H103 -> 13 | B21: =tblCountries!I103 -> 13 | C21: =tblCountries!J103 -> 1 | E21: 55.14 | F21: =IF(E21="n/a",$B$4-COUNTIF(E22:E$28,"n/a"),RANK(E21,OFFSET(E$9,0,0,$B$4,1))+COUNTIF(OFFSET(E$9,0,0,$A21,1),E21)-1) -> 18 | G21: 18 | I21: 9 | J21: 9 | K21: 1 | L21: 13 | M21: 13 | N21: Mexico | O21: 59.80011143 | P21: ||||||||||||||||||||||| | U21: = | X21: =IF($A21=0,"",INDEX(aDeltas,E$6,W21)) ->  | AH21: 0 | AL21: 0 | AP21: 0 | AW21: 55 | AX21: 18 | AY21: 18 | BA21: 9 | BB21: 9 | BC21: 1 | BD21: 13 | BE21: 13 | BF21: Mexico | BG21: 59.80011143 | BI21: 32 | BJ21: 19 | BK21: 19 | BM21: 17 | BN21: 17 | BO21: 1 | BP21: 13 | BQ21: 13 | BR21: South Korea | BS21: 67.85714286 | BU21: 41 | BV21: 16 | BW21: 16 | BY21: 4 | BZ21: 4 | CA21: 1 | CB21: 13 | CC21: 13 | CD21: China | CE21: 47.05969252 | CG21: 76 | CH21: 10 | CI21: 10 | CK21: 20 | CL21: 20 | CM21: 1 | CN21: 13 | CO21: 13 | CP21: Vietnam | CQ21: 73.68222222 | CS21: 66.7 | CT21: 16 | CU21: 15 | CV21: = | CW21: 18 | CX21: 18 | CY21: 1 | CZ21: 13 | DA21: 13 | DB21: Spain | DC21: 72.22222222 | DE21: 78 | DF21: 6 | DG21: 5 | DH21: = | DI21: 6 | DJ21: 6 | DK21: 1 | DL21: =13 | DM21: ==13 | DN21: India | DO21: 62.875 | DQ21: 37 | DR21: 15 | DS21: 14 | DT21: = | DU21: 9 | DV21: 9 | DW21: 1 | DX21: 13 | DY21: 13 | DZ21: Mexico | EA21: 51.25343451
A22: =tblCountries!H104 -> 14 | B22: =tblCountries!I104 -> 14 | C22: =tblCountries!J104 -> 1 | E22: 59.34 | F22: =IF(E22="n/a",$B$4-COUNTIF(E23:E$28,"n/a"),RANK(E22,OFFSET(E$9,0,0,$B$4,1))+COUNTIF(OFFSET(E$9,0,0,$A22,1),E22)-1) -> 14 | G22: 14 | I22: 14 | J22: 14 | K22: 1 | L22: 14 | M22: 14 | N22: Philippines | O22: 59.34476703 | P22: ||||||||||||||||||||||| | U22: = | X22: =IF($A22=0,"",INDEX(aDeltas,E$6,W22)) ->  | AH22: 0 | AL22: 0 | AP22: 0 | AW22: 59 | AX22: 14 | AY22: 14 | BA22: 14 | BB22: 14 | BC22: 1 | BD22: 14 | BE22: 14 | BF22: Philippines | BG22: 59.34476703 | BI22: 74 | BJ22: 7 | BK22: 7 | BM22: 1 | BN22: 1 | BO22: 1 | BP22: 14 | BQ22: 14 | BR22: Brazil | BS22: 64.28571429 | BU22: 44 | BV22: 14 | BW22: 14 | BY22: 14 | BZ22: 14 | CA22: 1 | CB22: 14 | CC22: 14 | CD22: Philippines | CE22: 44.22205666 | CG22: 61 | CH22: 19 | CI22: 19 | CK22: 7 | CL22: 7 | CM22: 1 | CN22: 14 | CO22: 14 | CP22: Indonesia | CQ22: 73.22444444 | CS22: 70.8 | CT22: 14 | CU22: 14 | CW22: 14 | CX22: 14 | CY22: 1 | CZ22: 14 | DA22: 14 | DB22: Philippines | DC22: 70.83333333 | DE22: 76 | DF22: 9 | DG22: 8 | DH22: = | DI22: 17 | DJ22: 17 | DK22: 1 | DL22: =13 | DM22: ==13 | DN22: South Korea | DO22: 62.91666667 | DQ22: 31 | DR22: 19 | DS22: 17 | DT22: = | DU22: 7 | DV22: 7 | DW22: 1 | DX22: =14 | DY22: ==14 | DZ22: Indonesia | EA22: 37.25765459
A23: =tblCountries!H105 -> 15 | B23: =tblCountries!I105 -> 15 | C23: =tblCountries!J105 -> 1 | E23: 42.27 | F23: =IF(E23="n/a",$B$4-COUNTIF(E24:E$28,"n/a"),RANK(E23,OFFSET(E$9,0,0,$B$4,1))+COUNTIF(OFFSET(E$9,0,0,$A23,1),E23)-1) -> 20 | G23: 20 | I23: 7 | J23: 7 | K23: 1 | L23: =15 | M23: ==15 | N23: Indonesia | O23: 56.95300634 | P23: |||||||||||||||||||||| | U23: = | X23: =IF($A23=0,"",INDEX(aDeltas,E$6,W23)) ->  | AH23: 0 | AL23: 0 | AP23: 0 | AW23: 42 | AX23: 20 | AY23: 20 | BA23: 7 | BB23: 7 | BC23: 1 | BD23: =15 | BE23: ==15 | BF23: Indonesia | BG23: 56.95300634 | BI23: 14 | BJ23: 20 | BK23: 20 | BM23: 9 | BN23: 9 | BO23: 1 | BP23: 15 | BQ23: 15 | BR23: Mexico | BS23: 57.14285714 | BU23: 32 | BV23: 19 | BW23: 19 | BY23: 20 | BZ23: 20 | CA23: 1 | CB23: 15 | CC23: 15 | CD23: Vietnam | CE23: 42.25718026 | CG23: 57 | CH23: 20 | CI23: 20 | CK23: 16 | CL23: 16 | CM23: 1 | CN23: 15 | CO23: 15 | CP23: South Africa | CQ23: 71.20666667 | CS23: 66.7 | CT23: 17 | CU23: 15 | CV23: = | CW23: 9 | CX23: 9 | CY23: 1 | CZ23: =15 | DA23: ==15 | DB23: Mexico | DC23: 66.66666667 | DE23: 22 | DF23: 20 | DG23: 20 | DI23: 20 | DJ23: 20 | DK23: 1 | DL23: 15 | DM23: 15 | DN23: Vietnam | DO23: 61.54166667 | DQ23: 62 | DR23: 11 | DS23: 10 | DT23: = | DU23: 13 | DV23: 13 | DW23: 1 | DX23: =14 | DY23: ==14 | DZ23: Peru | EA23: 37.4907637
A24: =tblCountries!H106 -> 16 | B24: =tblCountries!I106 -> 16 | C24: =tblCountries!J106 -> 1 | E24: 67.87 | F24: =IF(E24="n/a",$B$4-COUNTIF(E25:E$28,"n/a"),RANK(E24,OFFSET(E$9,0,0,$B$4,1))+COUNTIF(OFFSET(E$9,0,0,$A24,1),E24)-1) -> 9 | G24: 9 | I24: 20 | J24: 20 | K24: 1 | L24: =15 | M24: ==15 | N24: Vietnam | O24: 56.70482683 | P24: |||||||||||||||||||||| | U24: = | X24: =IF($A24=0,"",INDEX(aDeltas,E$6,W24)) ->  | AH24: 0 | AL24: 0 | AP24: 0 | AW24: 68 | AX24: 9 | AY24: 9 | BA24: 20 | BB24: 20 | BC24: 1 | BD24: =15 | BE24: ==15 | BF24: Vietnam | BG24: 56.70482683 | BI24: 71 | BJ24: 10 | BK24: 8 | BL24: = | BM24: 6 | BN24: 6 | BO24: 1 | BP24: 16 | BQ24: 16 | BR24: India | BS24: 53.57142857 | BU24: 56 | BV24: 10 | BW24: 10 | BY24: 13 | BZ24: 13 | CA24: 1 | CB24: 16 | CC24: 16 | CD24: Peru | CE24: 40.76830488 | CG24: 71 | CH24: 15 | CI24: 15 | CK24: 2 | CL24: 2 | CM24: 1 | CN24: 16 | CO24: 16 | CP24: Canada | CQ24: 66.82444444 | CS24: 81.9 | CT24: 8 | CU24: 6 | CV24: = | CW24: 13 | CX24: 13 | CY24: 1 | CZ24: =15 | DA24: ==15 | DB24: Peru | DC24: 66.66666667 | DE24: 67 | DF24: 11 | DG24: 10 | DH24: = | DI24: 11 | DJ24: 11 | DK24: 1 | DL24: 16 | DM24: 16 | DN24: Nigeria | DO24: 61.04166667 | DQ24: 60 | DR24: 12 | DS24: 12 | DU24: 20 | DV24: 20 | DW24: 1 | DX24: 16 | DY24: 16 | DZ24: Vietnam | EA24: 34.37487599
A25: =tblCountries!H107 -> 17 | B25: =tblCountries!I107 -> 17 | C25: =tblCountries!J107 -> 1 | E25: 72.03 | F25: =IF(E25="n/a",$B$4-COUNTIF(E26:E$28,"n/a"),RANK(E25,OFFSET(E$9,0,0,$B$4,1))+COUNTIF(OFFSET(E$9,0,0,$A25,1),E25)-1) -> 8 | G25: 8 | I25: 6 | J25: 6 | K25: 1 | L25: 17 | M25: 17 | N25: India | O25: 56.07380539 | P25: |||||||||||||||||||||| | U25: = | X25: =IF($A25=0,"",INDEX(aDeltas,E$6,W25)) ->  | AH25: 0 | AL25: 0 | AP25: 0 | AW25: 72 | AX25: 8 | AY25: 8 | BA25: 6 | BB25: 6 | BC25: 1 | BD25: 17 | BE25: 17 | BF25: India | BG25: 56.07380539 | BI25: 68 | BJ25: 13 | BK25: 13 | BM25: 11 | BN25: 11 | BO25: 1 | BP25: 17 | BQ25: 17 | BR25: Nigeria | BS25: 42.85714286 | BU25: 73 | BV25: 9 | BW25: 9 | BY25: 6 | BZ25: 6 | CA25: 1 | CB25: 17 | CC25: 17 | CD25: India | CE25: 39.72636828 | CG25: 78 | CH25: 7 | CI25: 7 | CK25: 4 | CL25: 4 | CM25: 1 | CN25: 17 | CO25: 17 | CP25: China | CQ25: 66.13111111 | CS25: 80.6 | CT25: 9 | CU25: 9 | CW25: 15 | CX25: 15 | CY25: 1 | CZ25: =15 | DA25: ==15 | DB25: Russia | DC25: 66.66666667 | DE25: 63 | DF25: 14 | DG25: 13 | DH25: = | DI25: 9 | DJ25: 9 | DK25: 1 | DL25: =17 | DM25: ==17 | DN25: Mexico | DO25: 52.625 | DQ25: 70 | DR25: 9 | DS25: 9 | DU25: 6 | DV25: 6 | DW25: 1 | DX25: =17 | DY25: ==17 | DZ25: India | EA25: 31.38225771
A26: =tblCountries!H108 -> 18 | B26: =tblCountries!I108 -> 18 | C26: =tblCountries!J108 -> 1 | E26: 79.82 | F26: =IF(E26="n/a",$B$4-COUNTIF(E27:E$28,"n/a"),RANK(E26,OFFSET(E$9,0,0,$B$4,1))+COUNTIF(OFFSET(E$9,0,0,$A26,1),E26)-1) -> 4 | G26: 4 | I26: 13 | J26: 13 | K26: 1 | L26: 18 | M26: 18 | N26: Peru | O26: 55.13837651 | P26: |||||||||||||||||||||| | U26: = | X26: =IF($A26=0,"",INDEX(aDeltas,E$6,W26)) ->  | AH26: 0 | AL26: 0 | AP26: 0 | AW26: 80 | AX26: 4 | AY26: 4 | BA26: 13 | BB26: 13 | BC26: 1 | BD26: 18 | BE26: 18 | BF26: Peru | BG26: 55.13837651 | BI26: 86 | BJ26: 2 | BK26: 1 | BL26: = | BM26: 3 | BN26: 3 | BO26: 1 | BP26: 18 | BQ26: 18 | BR26: Chile | BS26: 35.71428571 | BU26: 80 | BV26: 6 | BW26: 6 | BY26: 7 | BZ26: 7 | CA26: 1 | CB26: 18 | CC26: 18 | CD26: Indonesia | CE26: 38.63276441 | CG26: 79 | CH26: 6 | CI26: 6 | CK26: 11 | CL26: 11 | CM26: 1 | CN26: 18 | CO26: 18 | CP26: Nigeria | CQ26: 62.23111111 | CS26: 72.2 | CT26: 13 | CU26: 13 | CW26: 5 | CX26: 5 | CY26: 1 | CZ26: 18 | DA26: 18 | DB26: France | DC26: 63.88888889 | DE26: 80 | DF26: 3 | DG26: 3 | DI26: 12 | DJ26: 12 | DK26: 1 | DL26: =17 | DM26: ==17 | DN26: Norway | DO26: 53.125 | DQ26: 83 | DR26: 4 | DS26: 4 | DU26: 11 | DV26: 11 | DW26: 1 | DX26: =17 | DY26: ==17 | DZ26: Nigeria | EA26: 31.42148592
A27: =tblCountries!H109 -> 19 | B27: =tblCountries!I109 -> 19 | C27: =tblCountries!J109 -> 1 | E27: 85.42 | F27: =IF(E27="n/a",$B$4-COUNTIF(E28:E$28,"n/a"),RANK(E27,OFFSET(E$9,0,0,$B$4,1))+COUNTIF(OFFSET(E$9,0,0,$A27,1),E27)-1) -> 2 | G27: 2 | I27: 11 | J27: 11 | K27: 1 | L27: 19 | M27: 19 | N27: Nigeria | O27: 50.07506229 | P27: |||||||||||||||||||| | U27: = | X27: =IF($A27=0,"",INDEX(aDeltas,E$6,W27)) ->  | AH27: 0 | AL27: 0 | AP27: 0 | AW27: 85 | AX27: 2 | AY27: 2 | BA27: 11 | BB27: 11 | BC27: 1 | BD27: 19 | BE27: 19 | BF27: Nigeria | BG27: 50.07506229 | BI27: 85 | BJ27: 3 | BK27: 3 | BM27: 13 | BN27: 13 | BO27: 1 | BP27: 19 | BQ27: 19 | BR27: Peru | BS27: 32.14285714 | BU27: 86 | BV27: 4 | BW27: 4 | BY27: 15 | BZ27: 15 | CA27: 1 | CB27: 19 | CC27: 19 | CD27: Russia | CE27: 32.4148 | CG27: 80 | CH27: 5 | CI27: 5 | CK27: 14 | CL27: 14 | CM27: 1 | CN27: 19 | CO27: 19 | CP27: Philippines | CQ27: 60.83666667 | CS27: 86.1 | CT27: 5 | CU27: 3 | CV27: = | CW27: 20 | CX27: 20 | CY27: 1 | CZ27: 19 | DA27: 19 | DB27: Vietnam | DC27: 56.94444444 | DE27: 79 | DF27: 4 | DG27: 4 | DI27: 1 | DJ27: 1 | DK27: 1 | DL27: 19 | DM27: 19 | DN27: Brazil | DO27: 49.79166667 | DQ27: 97 | DR27: 1 | DS27: 1 | DU27: 14 | DV27: 14 | DW27: 1 | DX27: =17 | DY27: ==17 | DZ27: Philippines | EA27: 30.82535506
A28: =tblCountries!H110 -> 20 | B28: =tblCountries!I110 -> 20 | C28: =tblCountries!J110 -> 1 | E28: 56.7 | F28: =IF(E28="n/a",$B$4-COUNTIF(#REF!,"n/a"),RANK(E28,OFFSET(E$9,0,0,$B$4,1))+COUNTIF(OFFSET(E$9,0,0,$A28,1),E28)-1) -> 16 | G28: 16 | I28: 15 | J28: 15 | K28: 1 | L28: 20 | M28: 20 | N28: Russia | O28: 42.26890499 | P28: |||||||||||||||| | U28: = | X28: =IF($A28=0,"",INDEX(aDeltas,E$6,W28)) ->  | AH28: 0 | AL28: 0 | AP28: 0 | AW28: 57 | AX28: 16 | AY28: 15 | AZ28: = | BA28: 15 | BB28: 15 | BC28: 1 | BD28: 20 | BE28: 20 | BF28: Russia | BG28: 42.26890499 | BI28: 71 | BJ28: 11 | BK28: 8 | BL28: = | BM28: 15 | BN28: 15 | BO28: 1 | BP28: 20 | BQ28: 20 | BR28: Russia | BS28: 14.28571429 | BU28: 42 | BV28: 15 | BW28: 15 | BY28: 11 | BZ28: 11 | CA28: 1 | CB28: 20 | CC28: 20 | CD28: Nigeria | CE28: 16.78785604 | CG28: 74 | CH28: 13 | CI28: 13 | CK28: 15 | CL28: 15 | CM28: 1 | CN28: 20 | CO28: 20 | CP28: Russia | CQ28: 56.5 | CS28: 56.9 | CT28: 19 | CU28: 19 | CW28: 7 | CX28: 7 | CY28: 1 | CZ28: 20 | DA28: 20 | DB28: Indonesia | DC28: 47.22222222 | DE28: 62 | DF28: 15 | DG28: 15 | DI28: 15 | DJ28: 15 | DK28: 1 | DL28: 20 | DM28: 20 | DN28: Russia | DO28: 21.66666667 | DQ28: 34 | DR28: 16 | DS28: 16 | DU28: 4 | DV28: 4 | DW28: 1 | DX28: 20 | DY28: 20 | DZ28: China | EA28: 24.91751576
AG31: IMPROVED | AH31: =COUNTIF(AH9:AH28,">0") -> 0
AG32: DECLINED | AH32: =COUNTIF(AL9:AL28,">0") -> 0
AG33: NO CHANGE | AH33: =COUNTIF(AP9:AP28,">0") -> 0

Sheet tblCountries (hidden)
A1: ID | B1: ISO | C1: EIU | D1: Country | E1: STATUS | F1: InRegFilter | G1: InRegHighlight | H1: InRegAvg | I1: CoreRegion | N1: RegionID | O1: Region | P1: Include in regional ranking? | Q1: All Countries | R1: UN: Africa | S1: UN: Central Asia | T1: UN: Eastern Asia | U1: UN: Southern Asia | V1: UN: Western Asia | W1: UN: Europe | X1: UN: Latin America and the Caribbean | Y1: UN: Northern America | Z1: UN: Oceania | AA1: African Union | AB1: EU | AC1: FSU | AD1: G8 | AE1: G20 | AF1: OAS | AG1: NAM | AH1: NATO | AI1: 2010 Nuclear Security Summit | AJ1: GICNT | AK1: G8 Global Partnership | AL1: CPPNM | AM1: 2005 CPPNM Amendment | AN1: ICSANT | AO1: Nuclear Power Programs (IAEA) | AP1: Planned/Proposed Nuc Pwr Prgms (WNA) | AQ1: 2012 Nuclear Security Summit | AR1: Nuclear-Armed States | AS1: Non-Nuclear-Weapon States | AW1: MATERIALS_3_1 | AX1: MATERIALS_3_1 | AY1: MATERIALS_3_1 | AZ1: NORMS_2_1 | BA1: NORMS_2_2 | BB1: NORMS_2_3 | BC1: NORMS_2_4 | BD1: NORMS_1_1 | BE1: NORMS_1_2 | BF1: NORMS_1_3 | BG1: SOCIETY_3_1
A2: 0 | D2: <none> | K2: HIGHLIGHT_ID | L2: =iWorks!$B$31 -> 0 | N2: 0 | O2: <none> | Q2: =SUM(Q3:Q22) -> 20 | R2: 0 | S2: 1 | T2: 3 | U2: 3 | V2: 1 | W2: 9 | X2: 1 | Y2: 1 | Z2: 1 | AA2: 0 | AB2: 6 | AC2: 3 | AD2: 6 | AE2: 10 | AF2: 2 | AG2: 5 | AH2: 8 | AI2: 17 | AJ2: 18 | AK2: 12 | AL2: 18 | AM2: 13 | AN2: 17 | AO2: 12 | AP2: 5 | AQ2: 17 | AR2: 7 | AS2: 13 | AV2: ROW -> | AW2: =MATCH(AW1,lu_indicode,0) -> 
A3: 1 | D3: Brazil | E3: =IF(A3=$L$2,3,IF(F3=0,0,IF(G3=1,2,1))) -> 1 | F3: =INDEX($Q3:$AU3,$L$3) -> 1 | G3: =IF($L$4=0,0,INDEX($Q3:$AU3,$L$4)) -> 0 | H3: =INDEX($Q3:$AU3,$L$5) -> 1 | K3: REGION_FILTER_ID | L3: =iWorks!$B$28 -> 1 | N3: 1 | O3: =INDEX(Q$1:AS$1,$N3) -> All Countries | Q3: 1 | R3: 0 | S3: 0 | T3: 0 | U3: 0 | V3: 0 | W3: 0 | X3: 1 | Y3: 0 | Z3: 0 | AA3: 0 | AB3: 0 | AC3: 0 | AD3: 0 | AE3: 1 | AF3: 1 | AG3: 0 | AH3: 0 | AI3: 1 | AJ3: 1 | AK3: 0 | AL3: 1 | AM3: 1 | AN3: 1 | AO3: 1 | AP3: 0 | AQ3: 1 | AR3: 0 | AS3: 1 | AW3: =INDEX(aRawScores,AW$2,$A3) -> 
A4: 2 | D4: Canada | E4: =IF(A4=$L$2,3,IF(F4=0,0,IF(G4=1,2,1))) -> 1 | F4: =INDEX($Q4:$AU4,$L$3) -> 1 | G4: =IF($L$4=0,0,INDEX($Q4:$AU4,$L$4)) -> 0 | H4: =INDEX($Q4:$AU4,$L$5) -> 1 | K4: REGION_HIGHLIGHT_ID | L4: =iWorks!$B$34 -> 0 | N4: 2 | O4: =INDEX(Q$1:AS$1,$N4) -> UN: Africa | Q4: 1 | R4: 0 | S4: 0 | T4: 0 | U4: 0 | V4: 0 | W4: 0 | X4: 0 | Y4: 0 | Z4: 1 | AA4: 0 | AB4: 0 | AC4: 0 | AD4: 0 | AE4: 1 | AF4: 0 | AG4: 0 | AH4: 0 | AI4: 1 | AJ4: 1 | AK4: 1 | AL4: 1 | AM4: 1 | AN4: 1 | AO4: 0 | AP4: 0 | AQ4: 1 | AR4: 0 | AS4: 1
A5: 3 | D5: Chile | E5: 1 | F5: 1 | G5: 0 | H5: 1 | K5: REGION_AVERAGE | L5: =iWorks!$B$38 -> 1 | N5: 3 | O5: UN: Central Asia | Q5: 1 | R5: 0 | S5: 0 | T5: 0 | U5: 0 | V5: 0 | W5: 1 | X5: 0 | Y5: 0 | Z5: 0 | AA5: 0 | AB5: 0 | AC5: 1 | AD5: 0 | AE5: 0 | AF5: 0 | AG5: 1 | AH5: 0 | AI5: 0 | AJ5: 1 | AK5: 0 | AL5: 1 | AM5: 0 | AN5: 1 | AO5: 0 | AP5: 1 | AQ5: 0 | AR5: 0 | AS5: 1
A6: 4 | D6: China | E6: 1 | F6: 1 | G6: 0 | H6: 1 | N6: 4 | O6: UN: Eastern Asia | Q6: 1 | R6: 0 | S6: 0 | T6: 0 | U6: 0 | V6: 0 | W6: 1 | X6: 0 | Y6: 0 | Z6: 0 | AA6: 0 | AB6: 1 | AC6: 0 | AD6: 0 | AE6: 0 | AF6: 0 | AG6: 0 | AH6: 1 | AI6: 1 | AJ6: 1 | AK6: 1 | AL6: 1 | AM6: 1 | AN6: 1 | AO6: 1 | AP6: 0 | AQ6: 1 | AR6: 0 | AS6: 1
A7: 5 | D7: France | E7: 1 | F7: 1 | G7: 0 | H7: 1 | K7: ACTIVE_COUNTRY_COUNT | L7: =SUM($F$3:$F$23) -> 20 | N7: 5 | O7: UN: Southern Asia | Q7: 1 | R7: 0 | S7: 0 | T7: 0 | U7: 0 | V7: 0 | W7: 0 | X7: 0 | Y7: 1 | Z7: 0 | AA7: 0 | AB7: 0 | AC7: 0 | AD7: 1 | AE7: 1 | AF7: 1 | AG7: 0 | AH7: 1 | AI7: 1 | AJ7: 1 | AK7: 1 | AL7: 1 | AM7: 0 | AN7: 1 | AO7: 1 | AP7: 0 | AQ7: 1 | AR7: 0 | AS7: 1
A8: 6 | D8: India | E8: 1 | F8: 1 | G8: 0 | H8: 1 | N8: 6 | O8: UN: Western Asia | Q8: 1 | R8: 0 | S8: 0 | T8: 1 | U8: 0 | V8: 0 | W8: 0 | X8: 0 | Y8: 0 | Z8: 0 | AA8: 0 | AB8: 0 | AC8: 0 | AD8: 0 | AE8: 1 | AF8: 0 | AG8: 0 | AH8: 0 | AI8: 1 | AJ8: 1 | AK8: 0 | AL8: 1 | AM8: 1 | AN8: 1 | AO8: 1 | AP8: 0 | AQ8: 1 | AR8: 1 | AS8: 0
A9: 7 | D9: Indonesia | E9: 1 | F9: 1 | G9: 0 | H9: 1 | N9: 7 | O9: UN: Europe | Q9: 1 | R9: 0 | S9: 0 | T9: 0 | U9: 0 | V9: 0 | W9: 1 | X9: 0 | Y9: 0 | Z9: 0 | AA9: 0 | AB9: 1 | AC9: 0 | AD9: 1 | AE9: 1 | AF9: 0 | AG9: 0 | AH9: 1 | AI9: 1 | AJ9: 1 | AK9: 1 | AL9: 1 | AM9: 1 | AN9: 1 | AO9: 1 | AP9: 0 | AQ9: 1 | AR9: 1 | AS9: 0
A10: 8 | D10: Japan | E10: 1 | F10: 1 | G10: 0 | H10: 1 | N10: 8 | O10: UN: Latin America and the Caribbean | Q10: 1 | R10: 0 | S10: 0 | T10: 0 | U10: 0 | V10: 0 | W10: 1 | X10: 0 | Y10: 0 | Z10: 0 | AA10: 0 | AB10: 1 | AC10: 0 | AD10: 1 | AE10: 1 | AF10: 0 | AG10: 0 | AH10: 1 | AI10: 1 | AJ10: 1 | AK10: 1 | AL10: 1 | AM10: 1 | AN10: 1 | AO10: 1 | AP10: 0 | AQ10: 1 | AR10: 0 | AS10: 1
A11: 9 | D11: Mexico | E11: 1 | F11: 1 | G11: 0 | H11: 1 | N11: 9 | O11: UN: Northern America | Q11: 1 | R11: 0 | S11: 0 | T11: 0 | U11: 1 | V11: 0 | W11: 0 | X11: 0 | Y11: 0 | Z11: 0 | AA11: 0 | AB11: 0 | AC11: 0 | AD11: 0 | AE11: 1 | AF11: 0 | AG11: 1 | AH11: 0 | AI11: 1 | AJ11: 1 | AK11: 0 | AL11: 1 | AM11: 1 | AN11: 1 | AO11: 1 | AP11: 0 | AQ11: 1 | AR11: 1 | AS11: 0
A12: 10 | D12: New Zealand | E12: 1 | F12: 1 | G12: 0 | H12: 1 | N12: 10 | O12: UN: Oceania | Q12: 1 | R12: 0 | S12: 0 | T12: 0 | U12: 1 | V12: 0 | W12: 0 | X12: 0 | Y12: 0 | Z12: 0 | AA12: 0 | AB12: 0 | AC12: 0 | AD12: 0 | AE12: 0 | AF12: 0 | AG12: 1 | AH12: 0 | AI12: 0 | AJ12: 0 | AK12: 0 | AL12: 0 | AM12: 0 | AN12: 0 | AO12: 1 | AP12: 0 | AQ12: 0 | AR12: 0 | AS12: 1 | AW12: =INDEX(aRawScores,AW$2,$A12) -> 
A13: 11 | D13: Nigeria | E13: 1 | F13: 1 | G13: 0 | H13: 1 | N13: 11 | O13: African Union | Q13: 1 | R13: 0 | S13: 0 | T13: 0 | U13: 0 | V13: 1 | W13: 0 | X13: 0 | Y13: 0 | Z13: 0 | AA13: 0 | AB13: 0 | AC13: 0 | AD13: 0 | AE13: 0 | AF13: 0 | AG13: 0 | AH13: 0 | AI13: 1 | AJ13: 1 | AK13: 0 | AL13: 1 | AM13: 1 | AN13: 1 | AO13: 0 | AP13: 1 | AQ13: 1 | AR13: 1 | AS13: 0
A14: 12 | D14: Norway | E14: 1 | F14: 1 | G14: 0 | H14: 1 | N14: 12 | O14: EU | Q14: 1 | R14: 0 | S14: 0 | T14: 0 | U14: 0 | V14: 0 | W14: 1 | X14: 0 | Y14: 0 | Z14: 0 | AA14: 0 | AB14: 1 | AC14: 0 | AD14: 1 | AE14: 1 | AF14: 0 | AG14: 0 | AH14: 1 | AI14: 1 | AJ14: 1 | AK14: 1 | AL14: 1 | AM14: 0 | AN14: 1 | AO14: 0 | AP14: 1 | AQ14: 1 | AR14: 0 | AS14: 1
A15: 13 | D15: Peru | E15: 1 | F15: 1 | G15: 0 | H15: 1 | N15: 13 | O15: FSU | Q15: 1 | R15: 0 | S15: 0 | T15: 1 | U15: 0 | V15: 0 | W15: 0 | X15: 0 | Y15: 0 | Z15: 0 | AA15: 0 | AB15: 0 | AC15: 0 | AD15: 1 | AE15: 1 | AF15: 0 | AG15: 0 | AH15: 0 | AI15: 1 | AJ15: 1 | AK15: 1 | AL15: 1 | AM15: 0 | AN15: 1 | AO15: 1 | AP15: 0 | AQ15: 1 | AR15: 0 | AS15: 1
A16: 14 | D16: Philippines | E16: 1 | F16: 1 | G16: 0 | H16: 1 | N16: 14 | O16: G8 | Q16: 1 | R16: 0 | S16: 1 | T16: 0 | U16: 0 | V16: 0 | W16: 0 | X16: 0 | Y16: 0 | Z16: 0 | AA16: 0 | AB16: 0 | AC16: 1 | AD16: 0 | AE16: 0 | AF16: 0 | AG16: 0 | AH16: 0 | AI16: 1 | AJ16: 1 | AK16: 1 | AL16: 1 | AM16: 1 | AN16: 1 | AO16: 0 | AP16: 1 | AQ16: 1 | AR16: 0 | AS16: 1
A17: 15 | D17: Russia | E17: 1 | F17: 1 | G17: 0 | H17: 1 | N17: 15 | O17: G20 | Q17: 1 | R17: 0 | S17: 0 | T17: 0 | U17: 0 | V17: 0 | W17: 1 | X17: 0 | Y17: 0 | Z17: 0 | AA17: 0 | AB17: 1 | AC17: 0 | AD17: 0 | AE17: 0 | AF17: 0 | AG17: 0 | AH17: 1 | AI17: 1 | AJ17: 1 | AK17: 1 | AL17: 1 | AM17: 1 | AN17: 1 | AO17: 1 | AP17: 0 | AQ17: 1 | AR17: 0 | AS17: 1
A18: 16 | D18: South Africa | E18: 1 | F18: 1 | G18: 0 | H18: 1 | N18: 16 | O18: OAS | Q18: 1 | R18: 0 | S18: 0 | T18: 1 | U18: 0 | V18: 0 | W18: 0 | X18: 0 | Y18: 0 | Z18: 0 | AA18: 0 | AB18: 0 | AC18: 0 | AD18: 0 | AE18: 0 | AF18: 0 | AG18: 1 | AH18: 0 | AI18: 0 | AJ18: 0 | AK18: 0 | AL18: 0 | AM18: 0 | AN18: 0 | AO18: 0 | AP18: 1 | AQ18: 0 | AR18: 1 | AS18: 0
A19: 17 | D19: South Korea | E19: 1 | F19: 1 | G19: 0 | H19: 1 | N19: 17 | O19: NAM | Q19: 1 | R19: 0 | S19: 0 | T19: 0 | U19: 0 | V19: 0 | W19: 1 | X19: 0 | Y19: 0 | Z19: 0 | AA19: 0 | AB19: 0 | AC19: 0 | AD19: 0 | AE19: 0 | AF19: 0 | AG19: 0 | AH19: 1 | AI19: 1 | AJ19: 1 | AK19: 1 | AL19: 1 | AM19: 1 | AN19: 1 | AO19: 0 | AP19: 0 | AQ19: 1 | AR19: 0 | AS19: 1
A20: 18 | D20: Spain | E20: 1 | F20: 1 | G20: 0 | H20: 1 | N20: 18 | O20: NATO | Q20: 1 | R20: 0 | S20: 0 | T20: 0 | U20: 1 | V20: 0 | W20: 0 | X20: 0 | Y20: 0 | Z20: 0 | AA20: 0 | AB20: 0 | AC20: 0 | AD20: 0 | AE20: 0 | AF20: 0 | AG20: 1 | AH20: 0 | AI20: 1 | AJ20: 1 | AK20: 0 | AL20: 1 | AM20: 0 | AN20: 0 | AO20: 1 | AP20: 0 | AQ20: 1 | AR20: 1 | AS20: 0
A21: 19 | D21: United States | E21: 1 | F21: 1 | G21: 0 | H21: 1 | N21: 19 | O21: 2010 Nuclear Security Summit | Q21: 1 | R21: 0 | S21: 0 | T21: 0 | U21: 0 | V21: 0 | W21: 1 | X21: 0 | Y21: 0 | Z21: 0 | AA21: 0 | AB21: 1 | AC21: 0 | AD21: 0 | AE21: 0 | AF21: 0 | AG21: 0 | AH21: 1 | AI21: 1 | AJ21: 1 | AK21: 1 | AL21: 1 | AM21: 1 | AN21: 1 | AO21: 0 | AP21: 0 | AQ21: 1 | AR21: 0 | AS21: 1 | AW21: =INDEX(aRawScores,AW$2,$A21) -> 
A22: 20 | D22: Vietnam | E22: 1 | F22: 1 | G22: 0 | H22: 1 | N22: 20 | O22: GICNT | Q22: 1 | R22: 0 | S22: 0 | T22: 0 | U22: 0 | V22: 0 | W22: 1 | X22: 0 | Y22: 0 | Z22: 0 | AA22: 0 | AB22: 0 | AC22: 1 | AD22: 1 | AE22: 1 | AF22: 0 | AG22: 0 | AH22: 0 | AI22: 1 | AJ22: 1 | AK22: 1 | AL22: 1 | AM22: 1 | AN22: 1 | AO22: 1 | AP22: 0 | AQ22: 1 | AR22: 1 | AS22: 0
N23: 26 | O23: Planned/Proposed Nuc Pwr Prgms (WNA)
N24: 27 | O24: 2012 Nuclear Security Summit | AW24: =INDEX(aRawScores,AW$2,$A24) -> 
N25: 28 | O25: Nuclear-Armed States
N26: 29 | O26: =INDEX(Q$1:AS$1,$N26) -> Non-Nuclear-Weapon States
A90: FILTERED COUNTRIES | E90: 0 | H90: HC | I90: COUNTRY_ID | J90: STATUS
A91: 1 | E91: =E90+MATCH(1,OFFSET($F$3:$F$23,E90,0),0) -> 1 | H91: =IF(ISNUMBER(E91),A91,0) -> 1 | I91: =IF(ISNUMBER(E91),E91,0) -> 1 | J91: =IF(ISNUMBER(E91),INDEX($E$3:$E$23,E91),0) -> 1
A92: 2 | E92: 2 | H92: =IF(ISNUMBER(E92),A92,0) -> 2 | I92: =IF(ISNUMBER(E92),E92,0) -> 2 | J92: 1
A93: 3 | E93: 3 | H93: 3 | I93: 3 | J93: 1
A94: 4 | E94: 4 | H94: 4 | I94: 4 | J94: 1
A95: 5 | E95: 5 | H95: 5 | I95: 5 | J95: 1
A96: 6 | E96: 6 | H96: 6 | I96: 6 | J96: 1
A97: 7 | E97: 7 | H97: 7 | I97: 7 | J97: 1
A98: 8 | E98: 8 | H98: 8 | I98: 8 | J98: 1
A99: 9 | E99: 9 | H99: 9 | I99: 9 | J99: 1
A100: 10 | E100: 10 | H100: 10 | I100: 10 | J100: 1
A101: 11 | E101: 11 | H101: 11 | I101: 11 | J101: 1
A102: 12 | E102: 12 | H102: 12 | I102: 12 | J102: 1
A103: 13 | E103: 13 | H103: 13 | I103: 13 | J103: 1
A104: 14 | E104: 14 | H104: 14 | I104: 14 | J104: 1
A105: 15 | E105: 15 | H105: 15 | I105: 15 | J105: 1
A106: 16 | E106: 16 | H106: 16 | I106: 16 | J106: 1
A107: 17 | E107: 17 | H107: 17 | I107: 17 | J107: 1
A108: 18 | E108: 18 | H108: 18 | I108: 18 | J108: 1
A109: 19 | E109: 19 | H109: 19 | I109: 19 | J109: 1
A110: 20 | E110: 20 | H110: 20 | I110: 20 | J110: 1
A111: 21 | H111: 0 | I111: 0 | J111: 0
A112: 22 | H112: 0 | I112: 0 | J112: 0
A113: 23 | H113: 0 | I113: 0 | J113: 0
A114: 24 | H114: 0 | I114: 0 | J114: 0
A115: 25 | H115: 0 | I115: 0 | J115: 0
A116: 26 | H116: 0 | I116: 0 | J116: 0
A117: 27 | H117: 0 | I117: 0 | J117: 0
A118: 28 | H118: 0 | I118: 0 | J118: 0
A119: 29 | H119: 0 | I119: 0 | J119: 0
A120: 30 | H120: 0 | I120: 0 | J120: 0
A121: 31 | H121: 0 | I121: 0 | J121: 0

Sheet Data_raw (hidden)
B1: Brazil | C1: Canada | D1: Chile | E1: China | F1: France | G1: India | H1: Indonesia | I1: Japan | J1: Mexico | K1: New Zealand | L1: Nigeria | M1: Norway | N1: Peru | O1: Philippines | P1: Russia | Q1: South Africa | R1: South Korea | S1: Spain | T1: United States | U1: Vietnam
A2: 1.1.1 | B2: 1 | C2: 1 | D2: 1 | E2: 1 | F2: 1 | G2: 1 | H2: 1 | I2: 1 | J2: 1 | K2: 1 | L2: 0 | M2: 1 | N2: 0 | O2: 1 | P2: 0 | Q2: 1 | R2: 1 | S2: 1 | T2: 1 | U2: 1
A3: 1.1.2 | B3: 2 | C3: 2 | D3: 0 | E3: 2 | F3: 0 | G3: 1 | H3: 2 | I3: 2 | J3: 1 | K3: 1 | L3: 0 | M3: 2 | N3: 0 | O3: 2 | P3: 0 | Q3: 1 | R3: 2 | S3: 2 | T3: 2 | U3: 2
A4: 1.2.1 | B4: 2 | C4: 1 | D4: 0 | E4: 2 | F4: 2 | G4: 1 | H4: 1 | I4: 2 | J4: 1 | K4: 1 | L4: 0 | M4: 2 | N4: 1 | O4: 1 | P4: 0 | Q4: 2 | R4: 1 | S4: 2 | T4: 2 | U4: 2
A5: 1.3.1 | B5: 1 | C5: 2 | D5: 1 | E5: 2 | F5: 2 | G5: 1 | H5: 2 | I5: 1 | J5: 1 | K5: 2 | L5: 2 | M5: 1 | N5: 1 | O5: 1 | P5: 0 | Q5: 2 | R5: 2 | S5: 2 | T5: 2 | U5: 1
A6: 1.4.1 | B6: 0 | C6: 1 | D6: 0 | E6: 2 | F6: 1 | G6: 0 | H6: 0 | I6: 0 | J6: 2 | K6: 1 | L6: 0 | M6: 2 | N6: 0 | O6: 1 | P6: 0 | Q6: 1 | R6: 0 | S6: 2 | T6: 1 | U6: 2
A7: 1.4.2 | B7: 0 | C7: 1 | D7: 0 | E7: 2 | F7: 1 | G7: 0 | H7: 1 | I7: 0 | J7: 2 | K7: 1 | L7: 0 | M7: 2 | N7: 0 | O7: 1 | P7: 0 | Q7: 0 | R7: 0 | S7: 2 | T7: 2 | U7: 2
A8: 1.5.1 | B8: 2 | C8: 2 | D8: 2 | E8: 0 | F8: 2 | G8: 2 | H8: 1 | I8: 2 | J8: 1 | K8: 2 | L8: 0 | M8: 2 | N8: 1 | O8: 2 | P8: 0 | Q8: 2 | R8: 1 | S8: 2 | T8: 2 | U8: 0
A9: 1.5.2 | B9: 1 | C9: 1 | D9: 0 | E9: 0 | F9: 0 | G9: 1 | H9: 1 | I9: 1 | J9: 0 | K9: 0 | L9: 0 | M9: 0 | N9: 0 | O9: 1 | P9: 0 | Q9: 1 | R9: 0 | S9: 1 | T9: 1 | U9: 1
A10: 1.6.1 | B10: 0 | C10: 0 | D10: 0 | E10: 0 | F10: 3 | G10: 0 | H10: 1 | I10: 3 | J10: 0 | K10: 3 | L10: 3 | M10: 3 | N10: 3 | O10: 2 | P10: 0 | Q10: 0 | R10: 3 | S10: 0 | T10: 2 | U10: 0
A11: 1.7.1 | B11: 2 | C11: 2 | D11: 2 | E11: 2 | F11: 2 | G11: 2 | H11: 2 | I11: 2 | J11: 2 | K11: 2 | L11: 2 | M11: 2 | N11: 0 | O11: 2 | P11: 2 | Q11: 2 | R11: 2 | S11: 2 | T11: 1 | U11: 2
A12: 2.1.1 | B12: 5.5 | C12: 7.3 | D12: 6.9 | E12: 5.3 | F12: 6.4 | G12: 4.9 | H12: 4.8 | I12: 6.2 | J12: 5.9 | K12: 7.1 | L12: 3.6 | M12: 7 | N12: 5.2 | O12: 5.1 | P12: 4.7 | Q12: 5.1 | R12: 6.3 | S12: 6.2 | T12: 7.2 | U12: 4.7
A13: 2.2.1 | B13: 55.02392 | C13: 95.21531 | D13: 90.43062 | E13: 46.88995 | F13: 88.03828 | G13: 35.88517 | H13: 31.57895 | I13: 92.82297 | J13: 39.23445 | K13: 99.52153 | L13: 9.09091 | M13: 98.56459 | N13: 42.10526 | O13: 43.54067 | P13: 16.74641 | Q13: 54.54546 | R13: 70.33493 | S13: 75.11961 | T13: 85.16747 | U13: 36.84211
A14: 2.3.1 | B14: 2 | C14: 4 | D14: 3 | E14: 1 | F14: 3 | G14: 1 | H14: 1 | I14: 3 | J14: 2 | K14: 4 | L14: 0 | M14: 4 | N14: 1 | O14: 2 | P14: 0 | Q14: 3 | R14: 3 | S14: 3 | T14: 4 | U14: 1
A15: 2.3.2 | B15: 2 | C15: 4 | D15: 3 | E15: 1 | F15: 4 | G15: 1 | H15: 1 | I15: 2 | J15: 3 | K15: 4 | L15: 0 | M15: 4 | N15: 1 | O15: 1 | P15: 1 | Q15: 2 | R15: 3 | S15: 4 | T15: 4 | U15: 2
A16: 2.4.1 | B16: 1.67621195 | C16: 4.46786254 | D16: 4.03192284 | E16: 3.56254371 | F16: 4.19552447 | G16: 3.01754613 | H16: 2.97480981 | I16: 4.34324852 | J16: 3.27567293 | K16: 4.75805099 | L16: 2.1611189 | M16: 4.68569932 | N16: 2.74685446 | O16: 2.456131 | P16: 2.9383198 | Q16: 3.86333493 | R16: 4.32940116 | S16: 4.82316486 | T16: 4.68996938 | U16: 2.74171729
A17: 2.4.2 | B17: 3.11161622 | C17: 5.51501326 | D17: 4.35982332 | E17: 4.22392538 | F17: 5.47290466 | G17: 2.43365713 | H17: 3.3401525 | I17: 5.27466664 | J17: 3.57618385 | K17: 5.19979731 | L17: 0.57573404 | M17: 5.72195877 | N17: 3.85357512 | O17: 3.20197068 | P17: 3.8006195 | Q17: 2.5784275 | R17: 4.53794549 | S17: 5.32129027 | T17: 5.28626609 | U17: 3.18949994
A18: 2.4.3 | B18: 1.75318855 | C18: 4.34258586 | D18: 4.12132962 | E18: 3.61418508 | F18: 5.17004247 | G18: 2.79489901 | H18: 2.92627087 | I18: 4.91520112 | J18: 3.42275743 | K18: 3.94707116 | L18: 1.67712012 | M18: 2.86074393 | N18: 2.2331615 | O18: 2.56955303 | P18: 1.71716756 | Q18: 3.93475439 | R18: 4.60012074 | S18: 4.90954874 | T18: 4.69363919 | U18: 2.20391515
A19: 2.4.4 | B19: 0.73535114 | C19: 3.84234265 | D19: 1.46288605 | E19: 3.84832519 | F19: 4.89278568 | G19: 3.24985533 | H19: 2.68699911 | I19: 5.69760368 | J19: 1.77496978 | K19: 2.7213479 | L19: 0.51398119 | M19: 2.87760803 | N19: 0.87926344 | O19: 1.28561228 | P19: 3.29086347 | Q19: 2.42349708 | R19: 4.61446932 | S19: 4.97768669 | T19: 3.89402986 | U19: 2.01518426
A20: 2.4.5 | B20: 50.44 | C20: 95.9 | D20: 79.74 | E20: 33.15 | F20: 100 | G20: 26.28 | H20: 24.29 | I20: 100 | J20: 46.2 | K20: 71.28 | L20: 8.17 | M20: 100 | N20: 29.07 | O20: 37.35 | P20: 45.17 | Q20: 36.08 | R20: 85.92 | S20: 99.33 | T20: 86.48 | U20: 43.15
A21: 3.1.1 | B21: 2 | C21: 1 | D21: 2 | E21: 2 | F21: 2 | G21: 2 | H21: 2 | I21: 2 | J21: 2 | K21: 2 | L21: 2 | M21: 2 | N21: 2 | O21: 2 | P21: 2 | Q21: 2 | R21: 2 | S21: 2 | T21: 2 | U21: 2
A22: 3.2.1 | B22: 1 | C22: 1 | D22: 1 | E22: 1 | F22: 1 | G22: 1 | H22: 1 | I22: 1 | J22: 1 | K22: 1 | L22: 1 | M22: 1 | N22: 1 | O22: 1 | P22: 1 | Q22: 1 | R22: 1 | S22: 1 | T22: 1 | U22: 1
A23: 3.2.2 | B23: 22 | C23: 24 | D23: 23 | E23: 13 | F23: 23 | G23: 23 | H23: 21 | I23: 23 | J23: 20 | K23: 24 | L23: 21 | M23: 23 | N23: 21 | O23: 18 | P23: 3 | Q23: 22 | R23: 23 | S23: 23 | T23: 20 | U23: 22
A24: 3.2.3 | B24: 10.87 | C24: 80.42 | D24: 68.85 | E24: 18.18 | F24: 83.8 | G24: 10.49 | H24: 0.02 | I24: 71.26 | J24: 37.45 | K24: 77.9 | L24: 1.08 | M24: 77.05 | N24: 20.98 | O24: 0.53 | P24: 21.5 | Q24: 27.86 | R24: 83.68 | S24: 92.83 | T24: 63.67 | U24: 0.14
A25: 3.3.1 | B25: 3 | C25: 3 | D25: 3 | E25: 2 | F25: 3 | G25: 3 | H25: 3 | I25: 3 | J25: 3 | K25: 3 | L25: 1 | M25: 2 | N25: 3 | O25: 1 | P25: 1 | Q25: 2 | R25: 2 | S25: 2 | T25: 3 | U25: 3
A26: 3.3.2 | B26: 1 | C26: 1 | D26: 1 | E26: 1 | F26: 1 | G26: 1 | H26: 1 | I26: 1 | J26: 1 | K26: 1 | L26: 1 | M26: 1 | N26: 1 | O26: 1 | P26: 1 | Q26: 1 | R26: 1 | S26: 1 | T26: 1 | U26: 1
A27: 4.1.1 | B27: 2 | C27: 2 | D27: 1 | E27: 2 | F27: 2 | G27: 1 | H27: 1 | I27: 2 | J27: 1 | K27: 2 | L27: 2 | M27: 2 | N27: 2 | O27: 2 | P27: 2 | Q27: 2 | R27: 2 | S27: 2 | T27: 2 | U27: 1
A28: 4.1.2 | B28: 2 | C28: 2 | D28: 1 | E28: 2 | F28: 2 | G28: 2 | H28: 0 | I28: 2 | J28: 2 | K28: 2 | L28: 2 | M28: 2 | N28: 2 | O28: 2 | P28: 2 | Q28: 2 | R28: 2 | S28: 2 | T28: 2 | U28: 2
A29: 4.2.1 | B29: 1 | C29: 1 | D29: 1 | E29: 1 | F29: 1 | G29: 1 | H29: 1 | I29: 1 | J29: 1 | K29: 1 | L29: 1 | M29: 1 | N29: 1 | O29: 1 | P29: 1 | Q29: 1 | R29: 1 | S29: 1 | T29: 1 | U29: 1
A30: 4.2.2 | B30: 1 | C30: 1 | D30: 1 | E30: 1 | F30: 1 | G30: 1 | H30: 1 | I30: 1 | J30: 1 | K30: 1 | L30: 1 | M30: 1 | N30: 1 | O30: 1 | P30: 1 | Q30: 1 | R30: 1 | S30: 1 | T30: 1 | U30: 1
A31: 4.2.3 | B31: 1 | C31: 1 | D31: 1 | E31: 1 | F31: 0 | G31: 1 | H31: 1 | I31: 1 | J31: 1 | K31: 1 | L31: 1 | M31: 1 | N31: 1 | O31: 1 | P31: 1 | Q31: 1 | R31: 1 | S31: 0 | T31: 1 | U31: 1
A32: 4.2.4 | B32: 1 | C32: 2 | D32: 2 | E32: 1 | F32: 0 | G32: 1 | H32: 0 | I32: 2 | J32: 2 | K32: 1 | L32: 2 | M32: 2 | N32: 0 | O32: 1 | P32: 0 | Q32: 1 | R32: 2 | S32: 2 | T32: 2 | U32: 1
A33: 4.3.1 | B33: 1 | C33: 1 | D33: 2 | E33: 2 | F33: 2 | G33: 1 | H33: 0 | I33: 2 | J33: 1 | K33: 1 | L33: 1 | M33: 2 | N33: 1 | O33: 1 | P33: 1 | Q33: 1 | R33: 2 | S33: 2 | T33: 1 | U33: 0
A34: 4.3.2 | B34: 1 | C34: 1 | D34: 1 | E34: 1 | F34: 1 | G34: 1 | H34: 1 | I34: 1 | J34: 1 | K34: 1 | L34: 1 | M34: 1 | N34: 1 | O34: 0 | P34: 1 | Q34: 1 | R34: 1 | S34: 1 | T34: 1 | U34: 1
A35: 4.3.3 | B35: 1 | C35: 1 | D35: 1 | E35: 0 | F35: 0 | G35: 1 | H35: 1 | I35: 1 | J35: 0 | K35: 1 | L35: 1 | M35: 1 | N35: 0 | O35: 1 | P35: 0 | Q35: 1 | R35: 0 | S35: 0 | T35: 1 | U35: 0
A36: 5.1.1 | B36: 2 | C36: 0 | D36: 2 | E36: 1 | F36: 2 | G36: 0 | H36: 1 | I36: 1 | J36: 1 | K36: 2 | L36: 1 | M36: 1 | N36: 2 | O36: 1 | P36: 1 | Q36: 0 | R36: 0 | S36: 2 | T36: 1 | U36: 0
A37: 5.2.1 | B37: 1 | C37: 1 | D37: 1 | E37: 1 | F37: 1 | G37: 1 | H37: 1 | I37: 1 | J37: 1 | K37: 1 | L37: 1 | M37: 1 | N37: 0 | O37: 1 | P37: 0 | Q37: 1 | R37: 1 | S37: 1 | T37: 1 | U37: 1
A38: 5.2.2 | B38: 0 | C38: 1 | D38: 1 | E38: 1 | F38: 1 | G38: 1 | H38: 1 | I38: 1 | J38: 1 | K38: 1 | L38: 0 | M38: 1 | N38: 1 | O38: 1 | P38: 0 | Q38: 1 | R38: 1 | S38: 0 | T38: 1 | U38: 1
A39: 5.3.1 | B39: 2.95 | C39: 4.02 | D39: 3.4 | E39: 3.72 | F39: 3.99 | G39: 3.09 | H39: 3.32 | I39: 3.53 | J39: 3.63 | K39: 5.06 | L39: 2.65 | M39: 3.75 | N39: 3.77 | O39: 3.13 | P39: 2.2 | Q39: 3.96 | R39: 3.1 | S39: 4.08 | T39: 3.99 | U39: 2.77
A40: 5.4.1 | B40: 0 | C40: 1 | D40: 0 | E40: 1 | F40: 1 | G40: 1 | H40: 1 | I40: 1 | J40: 0 | K40: 1 | L40: 1 | M40: 0 | N40: 1 | O40: 1 | P40: 0 | Q40: 1 | R40: 1 | S40: 1 | T40: 1 | U40: 1
A41: 6.1.1 | B41: 0.3418093371 | C41: 0.8126433552 | D41: 0.6346973014 | E41: 0.2475254728 | F41: 0.7394851271 | G41: 0.4414677312 | H41: 0.3677296377 | I41: 0.5979314815 | J41: 0.5376030353 | K41: 0.8115844641 | L41: 0.4426445777 | M41: 0.8827602008 | N41: 0.6247229109 | O41: 0.4247606518 | P41: 0.8623874702 | Q41: 0.8075307888 | R41: 0.5935646404 | S41: 0.7423047879 | T41: 0.9051819872 | U41: 0.5312462798
A42: 6.2.1 | B42: 1 | C42: 1 | D42: 1 | E42: 1 | F42: 1 | G42: 1 | H42: 1 | I42: 0 | J42: 1 | K42: 1 | L42: 1 | M42: 1 | N42: 1 | O42: 1 | P42: 1 | Q42: 1 | R42: 1 | S42: 1 | T42: 1 | U42: 1
A43: 6.2.2 | B43: 2 | C43: 0 | D43: 0 | E43: 0 | F43: 2 | G43: 0 | H43: 1 | I43: 1 | J43: 2 | K43: 2 | L43: 0 | M43: 0 | N43: 0 | O43: 0 | P43: 2 | Q43: 2 | R43: 0 | S43: 1 | T43: 2 | U43: 0
A44: 6.3.1 | B44: 1 | C44: 1 | D44: 1 | E44: 0 | F44: 1 | G44: 0 | H44: 0 | I44: 1 | J44: 0 | K44: 1 | L44: 0 | M44: 1 | N44: 0 | O44: 0 | P44: 0 | Q44: 0 | R44: 1 | S44: 1 | T44: 1 | U44: 0
A45: 7.1 | B45: 16050 | C45: 44295.9 | D45: 22450 | E45: 13390 | F45: 39000 | G45: 5850 | H45: 10540 | I45: 36820 | J45: 16773.1 | K45: 35360 | L45: 5880 | M45: 68070 | N45: 10840 | O45: 6910 | P45: 24590 | Q45: 13404.6 | R45: 35140 | S45: 33710 | T45: 54633.9 | U45: 5520
A46: 7.2 | B46: 52.97 | C46: 73.14 | D46: 69.63 | E46: 43 | F46: 71.05 | G46: 31.23 | H46: 44.36 | I46: 72.35 | J46: 55.03 | K46: 76.41 | L46: 39.2 | M46: 78.04 | N46: 45.05 | O46: 44.02 | P46: 53.45 | Q46: 53.51 | R46: 63.79 | S46: 79.79 | T46: 67.52 | U46: 38.17
A47: 7.3 | B47: 0.744 | C47: 0.902 | D47: 0.822 | E47: 0.719 | F47: 0.884 | G47: 0.586 | H47: 0.684 | I47: 0.89 | J47: 0.756 | K47: 0.91 | L47: 0.504 | M47: 0.944 | N47: 0.737 | O47: 0.66 | P47: 0.778 | Q47: 0.658 | R47: 0.891 | S47: 0.869 | T47: 0.914 | U47: 0.638
A48: 7.4 | B48: 7.379084967 | C48: 9.079365079 | D48: 7.796335201 | E48: 3.000466853 | F48: 8.040499533 | G48: 7.922035481 | H48: 6.949159664 | I48: 8.08076564 | J48: 6.68487395 | K48: 9.259920635 | L48: 3.761134454 | M48: 9.928571429 | N48: 6.539215686 | O48: 6.769957983 | P48: 3.393977591 | Q48: 7.820961718 | R48: 8.055088702 | S48: 8.047035481 | T48: 8.108660131 | U48: 3.409080299

Sheet Cover
B30: Publication date: 26 May 2015
B31: EIU Research Director: Hilary Steiner [HilarySteiner@economist.com]
B32: All rights reserved.

Sheet Contents
A1: CONTENTS
B3: Click the circle icon in any worksheet to return to this page
B5: SUMMARY
B6: Provides the overall and category rankings and scores.
B7: INDICATOR RANKINGS
B8: Displays the scores and ranks by indicator and sub-indicator.
B9: COUNTRY SUMMARY
B10: Provides the scores and ranks by country based on performance against the average.
B11: COUNTRY SCORES
B12: Provides a list of the scores and ranks for all categories and indicators by country.
B13: SIX COUNTRY COMPARISON
B14: Compares the scores of up to six countries and “all country average”.
B15: SCATTER PLOT
B16: Shows correlation of index scores against select background indicators.
B17: WEIGHTS
B18: Displays the weights applied to each category and indicator. Allows the user to customize weights.
B19: DATA
B20: Provides the raw data for all sub-indicators across the 20 countries.
B21: SCORES
B22: Displays the normalized scores at the sub-indicator, indicator and category level across 20 countries.

Sheet Summary
A1: SUMMARY | J1: WEIGHT PROFILE
J2: COUNTRY HIGHLIGHT
D4: Overall and category scores and ranks for 2015. Scored 0-100 where 100=most favorable.
D5: =iWorks!$B$10 -> = denotes tie in rank
D8: =iRankIndi!BD4 -> OVERALL SCORE | I8: =iRankIndi!BP4 -> 1) POLICY AND INSTITUTIONAL CAPACITY | N8: =iRankIndi!CB4 -> 2) BUSINESS ENVIRONMENT FOR COASTAL ACTIVITIES | S8: =iRankIndi!CN4 -> 3) WATER QUALITY | X8: =iRankIndi!CZ4 -> 4) MINERALS AND ENERGY | AC8: =iRankIndi!DL4 -> 5) LAND | AH8: =iRankIndi!DX4 -> 6) LIVING RESOURCES
D9: =iWorks!$C$9 -> Rank / 20 | F9: Score / 100 | I9: =iWorks!$C$9 -> Rank / 20 | K9: Score / 100 | N9: =iWorks!$C$9 -> Rank / 20 | P9: Score / 100 | S9: =iWorks!$C$9 -> Rank / 20 | U9: Score / 100 | X9: =iWorks!$C$9 -> Rank / 20 | Z9: Score / 100 | AC9: =iWorks!$C$9 -> Rank / 20 | AE9: Score / 100 | AH9: =iWorks!$C$9 -> Rank / 20 | AJ9: Score / 100
C10: =iRankIndi!BC9 -> 1 | D10: =iRankIndi!BD9 -> 1 | E10: =iRankIndi!BF9 -> New Zealand | F10: =iRankIndi!BG9 -> 86.16336642 | H10: =iRankIndi!BO9 -> 1 | I10: =iRankIndi!BP9 -> =1 | J10: =iRankIndi!BR9 -> Norway | K10: =iRankIndi!BS9 -> 85.71428571 | M10: =iRankIndi!CA9 -> 1 | N10: =iRankIndi!CB9 -> 1 | O10: =iRankIndi!CD9 -> Canada | P10: =iRankIndi!CE9 -> 89.0164422 | R10: =iRankIndi!CM9 -> 1 | S10: =iRankIndi!CN9 -> =1 | T10: =iRankIndi!CP9 -> France | U10: =iRankIndi!CQ9 -> 83.42222222 | W10: =iRankIndi!CY9 -> 1 | X10: =iRankIndi!CZ9 -> =1 | Y10: =iRankIndi!DB9 -> Japan | Z10: =iRankIndi!DC9 -> 91.66666667 | AB10: =iRankIndi!DK9 -> 1 | AC10: =iRankIndi!DL9 -> 1 | AD10: =iRankIndi!DN9 -> New Zealand | AE10: =iRankIndi!DO9 -> 96.08333333 | AG10: =iRankIndi!DW9 -> 1 | AH10: =iRankIndi!DX9 -> 1 | AI10: =iRankIndi!DZ9 -> United States | AJ10: =iRankIndi!EA9 -> 96.83939957
C11: =iRankIndi!BC10 -> 1 | D11: =iRankIndi!BD10 -> 2 | E11: =iRankIndi!BF10 -> United States | F11: =iRankIndi!BG10 -> 85.42288839 | H11: =iRankIndi!BO10 -> 1 | I11: =iRankIndi!BP10 -> =1 | J11: =iRankIndi!BR10 -> Spain | K11: =iRankIndi!BS10 -> 85.71428571 | M11: =iRankIndi!CA10 -> 1 | N11: =iRankIndi!CB10 -> 2 | O11: =iRankIndi!CD10 -> Norway | P11: =iRankIndi!CE10 -> 87.54060032 | R11: =iRankIndi!CM10 -> 1 | S11: =iRankIndi!CN10 -> =1 | T11: =iRankIndi!CP10 -> New Zealand | U11: =iRankIndi!CQ10 -> 83.21111111 | W11: =iRankIndi!CY10 -> 1 | X11: =iRankIndi!CZ10 -> =1 | Y11: =iRankIndi!DB10 -> Norway | Z11: =iRankIndi!DC10 -> 91.66666667 | AB11: =iRankIndi!DK10 -> 1 | AC11: =iRankIndi!DL10 -> 2 | AD11: =iRankIndi!DN10 -> France | AE11: =iRankIndi!DO10 -> 91.625 | AG11: =iRankIndi!DW10 -> 1 | AH11: =iRankIndi!DX10 -> 2 | AI11: =iRankIndi!DZ10 -> New Zealand | AJ11: =iRankIndi!EA10 -> 93.71948214
C12: =iRankIndi!BC11 -> 1 | D12: =iRankIndi!BD11 -> 3 | E12: =iRankIndi!BF11 -> France | F12: =iRankIndi!BG11 -> 81.98812879 | H12: =iRankIndi!BO11 -> 1 | I12: =iRankIndi!BP11 -> 3 | J12: =iRankIndi!BR11 -> United States | K12: =iRankIndi!BS11 -> 84.52380952 | M12: =iRankIndi!CA11 -> 1 | N12: =iRankIndi!CB11 -> 3 | O12: =iRankIndi!CD11 -> New Zealand | P12: =iRankIndi!CE11 -> 87.02182752 | R12: =iRankIndi!CM11 -> 1 | S12: =iRankIndi!CN11 -> =3 | T12: =iRankIndi!CP11 -> Chile | U12: =iRankIndi!CQ11 -> 81.76111111 | W12: =iRankIndi!CY11 -> 1 | X12: =iRankIndi!CZ11 -> =3 | Y12: =iRankIndi!DB11 -> Canada | Z12: =iRankIndi!DC11 -> 86.11111111 | AB12: =iRankIndi!DK11 -> 1 | AC12: =iRankIndi!DL11 -> 3 | AD12: =iRankIndi!DN11 -> Spain | AE12: =iRankIndi!DO11 -> 79.5 | AG12: =iRankIndi!DW11 -> 1 | AH12: =iRankIndi!DX11 -> 3 | AI12: =iRankIndi!DZ11 -> France | AJ12: =iRankIndi!EA11 -> 91.3161709
C13: =iRankIndi!BC12 -> 1 | D13: =iRankIndi!BD12 -> 4 | E13: =iRankIndi!BF12 -> Spain | F13: =iRankIndi!BG12 -> 79.82000573 | H13: =iRankIndi!BO12 -> 1 | I13: =iRankIndi!BP12 -> =4 | J13: =iRankIndi!BR12 -> France | K13: =iRankIndi!BS12 -> 78.57142857 | M13: =iRankIndi!CA12 -> 1 | N13: =iRankIndi!CB12 -> 4 | O13: =iRankIndi!CD12 -> United States | P13: =iRankIndi!CE12 -> 86.08578793 | R13: =iRankIndi!CM12 -> 1 | S13: =iRankIndi!CN12 -> =3 | T13: =iRankIndi!CP12 -> Japan | U13: =iRankIndi!CQ12 -> 82.02888889 | W13: =iRankIndi!CY12 -> 1 | X13: =iRankIndi!CZ12 -> =3 | Y13: =iRankIndi!DB12 -> Nigeria | Z13: =iRankIndi!DC12 -> 86.11111111 | AB13: =iRankIndi!DK12 -> 1 | AC13: =iRankIndi!DL12 -> 4 | AD13: =iRankIndi!DN12 -> United States | AE13: =iRankIndi!DO12 -> 79.125 | AG13: =iRankIndi!DW12 -> 1 | AH13: =iRankIndi!DX12 -> 4 | AI13: =iRankIndi!DZ12 -> Spain | AJ13: =iRankIndi!EA12 -> 83.07682626
C14: =iRankIndi!BC13 -> 1 | D14: =iRankIndi!BD13 -> 5 | E14: =iRankIndi!BF13 -> Norway | F14: =iRankIndi!BG13 -> 79.09809323 | H14: =iRankIndi!BO13 -> 1 | I14: =iRankIndi!BP13 -> =4 | J14: =iRankIndi!BR13 -> Japan | K14: =iRankIndi!BS13 -> 78.57142857 | M14: =iRankIndi!CA13 -> 1 | N14: =iRankIndi!CB13 -> 5 | O14: =iRankIndi!CD13 -> France | P14: =iRankIndi!CE13 -> 83.10506218 | R14: =iRankIndi!CM13 -> 1 | S14: =iRankIndi!CN13 -> 5 | T14: =iRankIndi!CP13 -> United States | U14: =iRankIndi!CQ13 -> 79.85222222 | W14: =iRankIndi!CY13 -> 1 | X14: =iRankIndi!CZ13 -> =3 | Y14: =iRankIndi!DB13 -> United States | Z14: =iRankIndi!DC13 -> 86.11111111 | AB14: =iRankIndi!DK13 -> 1 | AC14: =iRankIndi!DL13 -> =5 | AD14: =iRankIndi!DN13 -> China | AE14: =iRankIndi!DO13 -> 78 | AG14: =iRankIndi!DW13 -> 1 | AH14: =iRankIndi!DX13 -> 5 | AI14: =iRankIndi!DZ13 -> Norway | AJ14: =iRankIndi!EA13 -> 79.42534003
C15: =iRankIndi!BC14 -> 1 | D15: =iRankIndi!BD14 -> 6 | E15: =iRankIndi!BF14 -> Japan | F15: =iRankIndi!BG14 -> 78.16415526 | H15: =iRankIndi!BO14 -> 1 | I15: =iRankIndi!BP14 -> 6 | J15: =iRankIndi!BR14 -> New Zealand | K15: =iRankIndi!BS14 -> 75 | M15: =iRankIndi!CA14 -> 1 | N15: =iRankIndi!CB14 -> 6 | O15: =iRankIndi!CD14 -> Spain | P15: =iRankIndi!CE14 -> 79.53670019 | R15: =iRankIndi!CM14 -> 1 | S15: =iRankIndi!CN14 -> 6 | T15: =iRankIndi!CP14 -> Spain | U15: =iRankIndi!CQ14 -> 78.87 | W15: =iRankIndi!CY14 -> 1 | X15: =iRankIndi!CZ14 -> =6 | Y15: =iRankIndi!DB14 -> Brazil | Z15: =iRankIndi!DC14 -> 81.94444444 | AB15: =iRankIndi!DK14 -> 1 | AC15: =iRankIndi!DL14 -> =5 | AD15: =iRankIndi!DN14 -> Peru | AE15: =iRankIndi!DO14 -> 78.20833333 | AG15: =iRankIndi!DW14 -> 1 | AH15: =iRankIndi!DX14 -> 6 | AI15: =iRankIndi!DZ14 -> Brazil | AJ15: =iRankIndi!EA14 -> 78.06031124
C16: =iRankIndi!BC15 -> 1 | D16: =iRankIndi!BD15 -> 7 | E16: =iRankIndi!BF15 -> Canada | F16: =iRankIndi!BG15 -> 76.2031135 | H16: =iRankIndi!BO15 -> 1 | I16: =iRankIndi!BP15 -> 7 | J16: =iRankIndi!BR15 -> Philippines | K16: =iRankIndi!BS15 -> 73.80952381 | M16: =iRankIndi!CA15 -> 1 | N16: =iRankIndi!CB15 -> 7 | O16: =iRankIndi!CD15 -> Japan | P16: =iRankIndi!CE15 -> 77.91189802 | R16: =iRankIndi!CM15 -> 1 | S16: =iRankIndi!CN15 -> 7 | T16: =iRankIndi!CP15 -> South Korea | U16: =iRankIndi!CQ15 -> 77.85333333 | W16: =iRankIndi!CY15 -> 1 | X16: =iRankIndi!CZ15 -> =6 | Y16: =iRankIndi!DB15 -> New Zealand | Z16: =iRankIndi!DC15 -> 81.94444444 | AB16: =iRankIndi!DK15 -> 1 | AC16: =iRankIndi!DL15 -> 7 | AD16: =iRankIndi!DN15 -> Japan | AE16: =iRankIndi!DO15 -> 77.20833333 | AG16: =iRankIndi!DW15 -> 1 | AH16: =iRankIndi!DX15 -> 7 | AI16: =iRankIndi!DZ15 -> Canada | AJ16: =iRankIndi!EA15 -> 77.08811184
C17: =iRankIndi!BC16 -> 1 | D17: =iRankIndi!BD16 -> 8 | E17: =iRankIndi!BF16 -> South Korea | F17: =iRankIndi!BG16 -> 72.02769992 | H17: =iRankIndi!BO16 -> 1 | I17: =iRankIndi!BP16 -> =8 | J17: =iRankIndi!BR16 -> Canada | K17: =iRankIndi!BS16 -> 71.42857143 | M17: =iRankIndi!CA16 -> 1 | N17: =iRankIndi!CB16 -> 8 | O17: =iRankIndi!CD16 -> Chile | P17: =iRankIndi!CE16 -> 76.15795653 | R17: =iRankIndi!CM16 -> 1 | S17: =iRankIndi!CN16 -> =8 | T17: =iRankIndi!CP16 -> Mexico | U17: =iRankIndi!CQ16 -> 76.93888889 | W17: =iRankIndi!CY16 -> 1 | X17: =iRankIndi!CZ16 -> =6 | Y17: =iRankIndi!DB16 -> South Africa | Z17: =iRankIndi!DC16 -> 81.94444444 | AB17: =iRankIndi!DK16 -> 1 | AC17: =iRankIndi!DL16 -> =8 | AD17: =iRankIndi!DN16 -> Indonesia | AE17: =iRankIndi!DO16 -> 76.33333333 | AG17: =iRankIndi!DW16 -> 1 | AH17: =iRankIndi!DX16 -> 8 | AI17: =iRankIndi!DZ16 -> Chile | AJ17: =iRankIndi!EA16 -> 71.15657671
C18: =iRankIndi!BC17 -> 1 | D18: =iRankIndi!BD17 -> 9 | E18: =iRankIndi!BF17 -> South Africa | F18: =iRankIndi!BG17 -> 67.87156979 | H18: =iRankIndi!BO17 -> 1 | I18: =iRankIndi!BP17 -> =8 | J18: =iRankIndi!BR17 -> China | K18: =iRankIndi!BS17 -> 71.42857143 | M18: =iRankIndi!CA17 -> 1 | N18: =iRankIndi!CB17 -> 9 | O18: =iRankIndi!CD17 -> South Korea | P18: =iRankIndi!CE17 -> 73.19801309 | R18: =iRankIndi!CM17 -> 1 | S18: =iRankIndi!CN17 -> =8 | T18: =iRankIndi!CP17 -> Norway | U18: =iRankIndi!CQ17 -> 77.11666667 | W18: =iRankIndi!CY17 -> 1 | X18: =iRankIndi!CZ17 -> 9 | Y18: =iRankIndi!DB17 -> South Korea | Z18: =iRankIndi!DC17 -> 80.55555556 | AB18: =iRankIndi!DK17 -> 1 | AC18: =iRankIndi!DL17 -> =8 | AD18: =iRankIndi!DN17 -> Philippines | AE18: =iRankIndi!DO17 -> 75.54166667 | AG18: =iRankIndi!DW17 -> 1 | AH18: =iRankIndi!DX17 -> 9 | AI18: =iRankIndi!DZ17 -> South Korea | AJ18: =iRankIndi!EA17 -> 69.78548801
C19: =iRankIndi!BC18 -> 1 | D19: =iRankIndi!BD18 -> =10 | E19: =iRankIndi!BF18 -> Brazil | F19: =iRankIndi!BG18 -> 66.51266312 | H19: =iRankIndi!BO18 -> 1 | I19: =iRankIndi!BP18 -> =8 | J19: =iRankIndi!BR18 -> South Africa | K19: =iRankIndi!BS18 -> 71.42857143 | M19: =iRankIndi!CA18 -> 1 | N19: =iRankIndi!CB18 -> 10 | O19: =iRankIndi!CD18 -> South Africa | P19: =iRankIndi!CE18 -> 55.89870992 | R19: =iRankIndi!CM18 -> 1 | S19: =iRankIndi!CN18 -> 10 | T19: =iRankIndi!CP18 -> Peru | U19: =iRankIndi!CQ18 -> 75.55333333 | W19: =iRankIndi!CY18 -> 1 | X19: =iRankIndi!CZ18 -> 10 | Y19: =iRankIndi!DB18 -> China | Z19: =iRankIndi!DC18 -> 76.38888889 | AB19: =iRankIndi!DK18 -> 1 | AC19: =iRankIndi!DL18 -> =10 | AD19: =iRankIndi!DN18 -> Canada | AE19: =iRankIndi!DO18 -> 66.75 | AG19: =iRankIndi!DW18 -> 1 | AH19: =iRankIndi!DX18 -> =10 | AI19: =iRankIndi!DZ18 -> Japan | AJ19: =iRankIndi!EA18 -> 61.59771605
C20: =iRankIndi!BC19 -> 1 | D20: =iRankIndi!BD19 -> =10 | E20: =iRankIndi!BF19 -> Chile | F20: =iRankIndi!BG19 -> 67.32609945 | H20: =iRankIndi!BO19 -> 1 | I20: =iRankIndi!BP19 -> =8 | J20: =iRankIndi!BR19 -> Vietnam | K20: =iRankIndi!BS19 -> 71.42857143 | M20: =iRankIndi!CA19 -> 1 | N20: =iRankIndi!CB19 -> 11 | O20: =iRankIndi!CD19 -> Mexico | P20: =iRankIndi!CE19 -> 54.17382138 | R20: =iRankIndi!CM19 -> 1 | S20: =iRankIndi!CN19 -> =11 | T20: =iRankIndi!CP19 -> Brazil | U20: =iRankIndi!CQ19 -> 74.87444444 | W20: =iRankIndi!CY19 -> 1 | X20: =iRankIndi!CZ19 -> 11 | Y20: =iRankIndi!DB19 -> Chile | Z20: =iRankIndi!DC19 -> 75 | AB20: =iRankIndi!DK19 -> 1 | AC20: =iRankIndi!DL19 -> =10 | AD20: =iRankIndi!DN19 -> South Africa | AE20: =iRankIndi!DO19 -> 66.5 | AG20: =iRankIndi!DW19 -> 1 | AH20: =iRankIndi!DX19 -> =10 | AI20: =iRankIndi!DZ19 -> Russia | AJ20: =iRankIndi!EA19 -> 62.07958234
C21: =iRankIndi!BC20 -> 1 | D21: =iRankIndi!BD20 -> 12 | E21: =iRankIndi!BF20 -> China | F21: =iRankIndi!BG20 -> 60.65429662 | H21: =iRankIndi!BO20 -> 1 | I21: =iRankIndi!BP20 -> 12 | J21: =iRankIndi!BR20 -> Indonesia | K21: =iRankIndi!BS20 -> 69.04761905 | M21: =iRankIndi!CA20 -> 1 | N21: =iRankIndi!CB20 -> 12 | O21: =iRankIndi!CD20 -> Brazil | P21: =iRankIndi!CE20 -> 50.11939766 | R21: =iRankIndi!CM20 -> 1 | S21: =iRankIndi!CN20 -> =11 | T21: =iRankIndi!CP20 -> India | U21: =iRankIndi!CQ20 -> 75.27666667 | W21: =iRankIndi!CY20 -> 1 | X21: =iRankIndi!CZ20 -> 12 | Y21: =iRankIndi!DB20 -> India | Z21: =iRankIndi!DC20 -> 73.61111111 | AB21: =iRankIndi!DK20 -> 1 | AC21: =iRankIndi!DL20 -> 12 | AD21: =iRankIndi!DN20 -> Chile | AE21: =iRankIndi!DO20 -> 64.16666667 | AG21: =iRankIndi!DW20 -> 1 | AH21: =iRankIndi!DX20 -> 12 | AI21: =iRankIndi!DZ20 -> South Africa | AJ21: =iRankIndi!EA20 -> 60.25102629
C22: =iRankIndi!BC21 -> 1 | D22: =iRankIndi!BD21 -> 13 | E22: =iRankIndi!BF21 -> Mexico | F22: =iRankIndi!BG21 -> 59.80011143 | H22: =iRankIndi!BO21 -> 1 | I22: =iRankIndi!BP21 -> 13 | J22: =iRankIndi!BR21 -> South Korea | K22: =iRankIndi!BS21 -> 67.85714286 | M22: =iRankIndi!CA21 -> 1 | N22: =iRankIndi!CB21 -> 13 | O22: =iRankIndi!CD21 -> China | P22: =iRankIndi!CE21 -> 47.05969252 | R22: =iRankIndi!CM21 -> 1 | S22: =iRankIndi!CN21 -> 13 | T22: =iRankIndi!CP21 -> Vietnam | U22: =iRankIndi!CQ21 -> 73.68222222 | W22: =iRankIndi!CY21 -> 1 | X22: =iRankIndi!CZ21 -> 13 | Y22: =iRankIndi!DB21 -> Spain | Z22: =iRankIndi!DC21 -> 72.22222222 | AB22: =iRankIndi!DK21 -> 1 | AC22: =iRankIndi!DL21 -> =13 | AD22: =iRankIndi!DN21 -> India | AE22: =iRankIndi!DO21 -> 62.875 | AG22: =iRankIndi!DW21 -> 1 | AH22: =iRankIndi!DX21 -> 13 | AI22: =iRankIndi!DZ21 -> Mexico | AJ22: =iRankIndi!EA21 -> 51.25343451
C23: =iRankIndi!BC22 -> 1 | D23: =iRankIndi!BD22 -> 14 | E23: =iRankIndi!BF22 -> Philippines | F23: =iRankIndi!BG22 -> 59.34476703 | H23: =iRankIndi!BO22 -> 1 | I23: =iRankIndi!BP22 -> 14 | J23: =iRankIndi!BR22 -> Brazil | K23: =iRankIndi!BS22 -> 64.28571429 | M23: =iRankIndi!CA22 -> 1 | N23: =iRankIndi!CB22 -> 14 | O23: =iRankIndi!CD22 -> Philippines | P23: =iRankIndi!CE22 -> 44.22205666 | R23: =iRankIndi!CM22 -> 1 | S23: =iRankIndi!CN22 -> 14 | T23: =iRankIndi!CP22 -> Indonesia | U23: =iRankIndi!CQ22 -> 73.22444444 | W23: =iRankIndi!CY22 -> 1 | X23: =iRankIndi!CZ22 -> 14 | Y23: =iRankIndi!DB22 -> Philippines | Z23: =iRankIndi!DC22 -> 70.83333333 | AB23: =iRankIndi!DK22 -> 1 | AC23: =iRankIndi!DL22 -> =13 | AD23: =iRankIndi!DN22 -> South Korea | AE23: =iRankIndi!DO22 -> 62.91666667 | AG23: =iRankIndi!DW22 -> 1 | AH23: =iRankIndi!DX22 -> =14 | AI23: =iRankIndi!DZ22 -> Indonesia | AJ23: =iRankIndi!EA22 -> 37.25765459
C24: =iRankIndi!BC23 -> 1 | D24: =iRankIndi!BD23 -> =15 | E24: =iRankIndi!BF23 -> Indonesia | F24: =iRankIndi!BG23 -> 56.95300634 | H24: =iRankIndi!BO23 -> 1 | I24: =iRankIndi!BP23 -> 15 | J24: =iRankIndi!BR23 -> Mexico | K24: =iRankIndi!BS23 -> 57.14285714 | M24: =iRankIndi!CA23 -> 1 | N24: =iRankIndi!CB23 -> 15 | O24: =iRankIndi!CD23 -> Vietnam | P24: =iRankIndi!CE23 -> 42.25718026 | R24: =iRankIndi!CM23 -> 1 | S24: =iRankIndi!CN23 -> 15 | T24: =iRankIndi!CP23 -> South Africa | U24: =iRankIndi!CQ23 -> 71.20666667 | W24: =iRankIndi!CY23 -> 1 | X24: =iRankIndi!CZ23 -> =15 | Y24: =iRankIndi!DB23 -> Mexico | Z24: =iRankIndi!DC23 -> 66.66666667 | AB24: =iRankIndi!DK23 -> 1 | AC24: =iRankIndi!DL23 -> 15 | AD24: =iRankIndi!DN23 -> Vietnam | AE24: =iRankIndi!DO23 -> 61.54166667 | AG24: =iRankIndi!DW23 -> 1 | AH24: =iRankIndi!DX23 -> =14 | AI24: =iRankIndi!DZ23 -> Peru | AJ24: =iRankIndi!EA23 -> 37.4907637
C25: =iRankIndi!BC24 -> 1 | D25: =iRankIndi!BD24 -> =15 | E25: =iRankIndi!BF24 -> Vietnam | F25: =iRankIndi!BG24 -> 56.70482683 | H25: =iRankIndi!BO24 -> 1 | I25: =iRankIndi!BP24 -> 16 | J25: =iRankIndi!BR24 -> India | K25: =iRankIndi!BS24 -> 53.57142857 | M25: =iRankIndi!CA24 -> 1 | N25: =iRankIndi!CB24 -> 16 | O25: =iRankIndi!CD24 -> Peru | P25: =iRankIndi!CE24 -> 40.76830488 | R25: =iRankIndi!CM24 -> 1 | S25: =iRankIndi!CN24 -> 16 | T25: =iRankIndi!CP24 -> Canada | U25: =iRankIndi!CQ24 -> 66.82444444 | W25: =iRankIndi!CY24 -> 1 | X25: =iRankIndi!CZ24 -> =15 | Y25: =iRankIndi!DB24 -> Peru | Z25: =iRankIndi!DC24 -> 66.66666667 | AB25: =iRankIndi!DK24 -> 1 | AC25: =iRankIndi!DL24 -> 16 | AD25: =iRankIndi!DN24 -> Nigeria | AE25: =iRankIndi!DO24 -> 61.04166667 | AG25: =iRankIndi!DW24 -> 1 | AH25: =iRankIndi!DX24 -> 16 | AI25: =iRankIndi!DZ24 -> Vietnam | AJ25: =iRankIndi!EA24 -> 34.37487599
C26: =iRankIndi!BC25 -> 1 | D26: =iRankIndi!BD25 -> 17 | E26: =iRankIndi!BF25 -> India | F26: =iRankIndi!BG25 -> 56.07380539 | H26: =iRankIndi!BO25 -> 1 | I26: =iRankIndi!BP25 -> 17 | J26: =iRankIndi!BR25 -> Nigeria | K26: =iRankIndi!BS25 -> 42.85714286 | M26: =iRankIndi!CA25 -> 1 | N26: =iRankIndi!CB25 -> 17 | O26: =iRankIndi!CD25 -> India | P26: =iRankIndi!CE25 -> 39.72636828 | R26: =iRankIndi!CM25 -> 1 | S26: =iRankIndi!CN25 -> 17 | T26: =iRankIndi!CP25 -> China | U26: =iRankIndi!CQ25 -> 66.13111111 | W26: =iRankIndi!CY25 -> 1 | X26: =iRankIndi!CZ25 -> =15 | Y26: =iRankIndi!DB25 -> Russia | Z26: =iRankIndi!DC25 -> 66.66666667 | AB26: =iRankIndi!DK25 -> 1 | AC26: =iRankIndi!DL25 -> =17 | AD26: =iRankIndi!DN25 -> Mexico | AE26: =iRankIndi!DO25 -> 52.625 | AG26: =iRankIndi!DW25 -> 1 | AH26: =iRankIndi!DX25 -> =17 | AI26: =iRankIndi!DZ25 -> India | AJ26: =iRankIndi!EA25 -> 31.38225771
C27: =iRankIndi!BC26 -> 1 | D27: =iRankIndi!BD26 -> 18 | E27: =iRankIndi!BF26 -> Peru | F27: =iRankIndi!BG26 -> 55.13837651 | H27: =iRankIndi!BO26 -> 1 | I27: =iRankIndi!BP26 -> 18 | J27: =iRankIndi!BR26 -> Chile | K27: =iRankIndi!BS26 -> 35.71428571 | M27: =iRankIndi!CA26 -> 1 | N27: =iRankIndi!CB26 -> 18 | O27: =iRankIndi!CD26 -> Indonesia | P27: =iRankIndi!CE26 -> 38.63276441 | R27: =iRankIndi!CM26 -> 1 | S27: =iRankIndi!CN26 -> 18 | T27: =iRankIndi!CP26 -> Nigeria | U27: =iRankIndi!CQ26 -> 62.23111111 | W27: =iRankIndi!CY26 -> 1 | X27: =iRankIndi!CZ26 -> 18 | Y27: =iRankIndi!DB26 -> France | Z27: =iRankIndi!DC26 -> 63.88888889 | AB27: =iRankIndi!DK26 -> 1 | AC27: =iRankIndi!DL26 -> =17 | AD27: =iRankIndi!DN26 -> Norway | AE27: =iRankIndi!DO26 -> 53.125 | AG27: =iRankIndi!DW26 -> 1 | AH27: =iRankIndi!DX26 -> =17 | AI27: =iRankIndi!DZ26 -> Nigeria | AJ27: =iRankIndi!EA26 -> 31.42148592
C28: =iRankIndi!BC27 -> 1 | D28: =iRankIndi!BD27 -> 19 | E28: =iRankIndi!BF27 -> Nigeria | F28: =iRankIndi!BG27 -> 50.07506229 | H28: =iRankIndi!BO27 -> 1 | I28: =iRankIndi!BP27 -> 19 | J28: =iRankIndi!BR27 -> Peru | K28: =iRankIndi!BS27 -> 32.14285714 | M28: =iRankIndi!CA27 -> 1 | N28: =iRankIndi!CB27 -> 19 | O28: =iRankIndi!CD27 -> Russia | P28: =iRankIndi!CE27 -> 32.4148 | R28: =iRankIndi!CM27 -> 1 | S28: =iRankIndi!CN27 -> 19 | T28: =iRankIndi!CP27 -> Philippines | U28: =iRankIndi!CQ27 -> 60.83666667 | W28: =iRankIndi!CY27 -> 1 | X28: =iRankIndi!CZ27 -> 19 | Y28: =iRankIndi!DB27 -> Vietnam | Z28: =iRankIndi!DC27 -> 56.94444444 | AB28: =iRankIndi!DK27 -> 1 | AC28: =iRankIndi!DL27 -> 19 | AD28: =iRankIndi!DN27 -> Brazil | AE28: =iRankIndi!DO27 -> 49.79166667 | AG28: =iRankIndi!DW27 -> 1 | AH28: =iRankIndi!DX27 -> =17 | AI28: =iRankIndi!DZ27 -> Philippines | AJ28: =iRankIndi!EA27 -> 30.82535506
C29: =iRankIndi!BC28 -> 1 | D29: =iRankIndi!BD28 -> 20 | E29: =iRankIndi!BF28 -> Russia | F29: =iRankIndi!BG28 -> 42.26890499 | H29: =iRankIndi!BO28 -> 1 | I29: =iRankIndi!BP28 -> 20 | J29: =iRankIndi!BR28 -> Russia | K29: =iRankIndi!BS28 -> 14.28571429 | M29: =iRankIndi!CA28 -> 1 | N29: =iRankIndi!CB28 -> 20 | O29: =iRankIndi!CD28 -> Nigeria | P29: =iRankIndi!CE28 -> 16.78785604 | R29: =iRankIndi!CM28 -> 1 | S29: =iRankIndi!CN28 -> 20 | T29: =iRankIndi!CP28 -> Russia | U29: =iRankIndi!CQ28 -> 56.5 | W29: =iRankIndi!CY28 -> 1 | X29: =iRankIndi!CZ28 -> 20 | Y29: =iRankIndi!DB28 -> Indonesia | Z29: =iRankIndi!DC28 -> 47.22222222 | AB29: =iRankIndi!DK28 -> 1 | AC29: =iRankIndi!DL28 -> 20 | AD29: =iRankIndi!DN28 -> Russia | AE29: =iRankIndi!DO28 -> 21.66666667 | AG29: =iRankIndi!DW28 -> 1 | AH29: =iRankIndi!DX28 -> 20 | AI29: =iRankIndi!DZ28 -> China | AJ29: =iRankIndi!EA28 -> 24.91751576

Sheet Indicator_Rankings
A1: SCORES AND INDICATOR RANKINGS | F1: WEIGHT PROFILE
B2: SELECT CATEGORY | F2: =iWorks!$B$52 -> 
F3: =iWorks!$AE$49 -> OVERALL SCORE
B4: SELECT INDICATOR | F4: =iWorks!$B$60 -> Scored 0-100 where 100=most favorable conditions The OVERALL SCORE is the combination of the six category scores, as determined by the weighting profile (see Scoring Notes).
F6: =iWorks!$K$49 -> 
F8: =iWorks!$B$10 -> = denotes tie in rank
F9: =iWorks!$C$9 -> Rank / 20 | H9: =iWorks!$B$61 -> Score / 100 | J9: WEIGHT
E10: =iRankIndi!K9 -> 1 | F10: =iRankIndi!L9 -> 1 | G10: =iRankIndi!N9 -> New Zealand | H10: =TEXT(iRankIndi!O9,iRankIndi!$E$1) -> 86 | J10: =iWorks!$B$63 -> 
E11: =iRankIndi!K10 -> 1 | F11: =iRankIndi!L10 -> 2 | G11: =iRankIndi!N10 -> United States | H11: =TEXT(iRankIndi!O10,iRankIndi!$E$1) -> 85 | J11: SOURCE
E12: =iRankIndi!K11 -> 1 | F12: =iRankIndi!L11 -> 3 | G12: =iRankIndi!N11 -> France | H12: =TEXT(iRankIndi!O11,iRankIndi!$E$1) -> 82 | J12: =iWorks!$I$49 -> Calculated from category scores
E13: =iRankIndi!K12 -> 1 | F13: =iRankIndi!L12 -> 4 | G13: =iRankIndi!N12 -> Spain | H13: =TEXT(iRankIndi!O12,iRankIndi!$E$1) -> 80
E14: =iRankIndi!K13 -> 1 | F14: =iRankIndi!L13 -> 5 | G14: =iRankIndi!N13 -> Norway | H14: =TEXT(iRankIndi!O13,iRankIndi!$E$1) -> 79 | J14: SCORING NOTES
E15: =iRankIndi!K14 -> 1 | F15: =iRankIndi!L14 -> 6 | G15: =iRankIndi!N14 -> Japan | H15: =TEXT(iRankIndi!O14,iRankIndi!$E$1) -> 78 | J15: =SUBSTITUTE(SUBSTITUTE(iWorks!$J$49,"\n",CHAR(10)),"\z",CHAR(10)) -> Weighted total of the following six categories: 1) Policy and Institutional Capacity 2) Business Environment for Coastal Activities 3) Water Quality 4) Minerals and Energy 5) Land 6) Living Resources
E16: =iRankIndi!K15 -> 1 | F16: =iRankIndi!L15 -> 7 | G16: =iRankIndi!N15 -> Canada | H16: =TEXT(iRankIndi!O15,iRankIndi!$E$1) -> 76
E17: =iRankIndi!K16 -> 1 | F17: =iRankIndi!L16 -> 8 | G17: =iRankIndi!N16 -> South Korea | H17: =TEXT(iRankIndi!O16,iRankIndi!$E$1) -> 72
E18: =iRankIndi!K17 -> 1 | F18: =iRankIndi!L17 -> 9 | G18: =iRankIndi!N17 -> South Africa | H18: =TEXT(iRankIndi!O17,iRankIndi!$E$1) -> 68
E19: =iRankIndi!K18 -> 1 | F19: =iRankIndi!L18 -> =10 | G19: =iRankIndi!N18 -> Chile | H19: =TEXT(iRankIndi!O18,iRankIndi!$E$1) -> 67
E20: =iRankIndi!K19 -> 1 | F20: =iRankIndi!L19 -> =10 | G20: =iRankIndi!N19 -> Brazil | H20: =TEXT(iRankIndi!O19,iRankIndi!$E$1) -> 67
B21: COUNTRY HIGHLIGHT | E21: =iRankIndi!K20 -> 1 | F21: =iRankIndi!L20 -> 12 | G21: =iRankIndi!N20 -> China | H21: =TEXT(iRankIndi!O20,iRankIndi!$E$1) -> 61
E22: =iRankIndi!K21 -> 1 | F22: =iRankIndi!L21 -> 13 | G22: =iRankIndi!N21 -> Mexico | H22: =TEXT(iRankIndi!O21,iRankIndi!$E$1) -> 60
E23: =iRankIndi!K22 -> 1 | F23: =iRankIndi!L22 -> 14 | G23: =iRankIndi!N22 -> Philippines | H23: =TEXT(iRankIndi!O22,iRankIndi!$E$1) -> 59
E24: =iRankIndi!K23 -> 1 | F24: =iRankIndi!L23 -> =15 | G24: =iRankIndi!N23 -> Indonesia | H24: =TEXT(iRankIndi!O23,iRankIndi!$E$1) -> 57
E25: =iRankIndi!K24 -> 1 | F25: =iRankIndi!L24 -> =15 | G25: =iRankIndi!N24 -> Vietnam | H25: =TEXT(iRankIndi!O24,iRankIndi!$E$1) -> 57
E26: =iRankIndi!K25 -> 1 | F26: =iRankIndi!L25 -> 17 | G26: =iRankIndi!N25 -> India | H26: =TEXT(iRankIndi!O25,iRankIndi!$E$1) -> 56
E27: =iRankIndi!K26 -> 1 | F27: =iRankIndi!L26 -> 18 | G27: =iRankIndi!N26 -> Peru | H27: =TEXT(iRankIndi!O26,iRankIndi!$E$1) -> 55
E28: =iRankIndi!K27 -> 1 | F28: =iRankIndi!L27 -> 19 | G28: =iRankIndi!N27 -> Nigeria | H28: =TEXT(iRankIndi!O27,iRankIndi!$E$1) -> 50
E29: =iRankIndi!K28 -> 1 | F29: =iRankIndi!L28 -> 20 | G29: =iRankIndi!N28 -> Russia | H29: =TEXT(iRankIndi!O28,iRankIndi!$E$1) -> 42

Sheet iRank (hidden)
A1: DATA TABLE, 2014
D6: 1 | E6: 2 | F6: 3 | G6: 4 | H6: 5 | I6: 6 | J6: 7 | K6: 8 | L6: 9 | M6: 10 | N6: 11 | O6: 12 | P6: 13 | Q6: 14 | R6: 15 | S6: 16 | T6: 17 | U6: 18 | V6: 19 | W6: 20
B7: =tblIndicators!F1 -> INDICATOR | C7: =tblIndicators!G1 -> UNIT | D7: =INDEX(luCountries,D6) -> Brazil | E7: Canada | F7: Chile | G7: China | H7: France | I7: India | J7: Indonesia | K7: Japan | L7: Mexico | M7: New Zealand | N7: Nigeria | O7: Norway | P7: Peru | Q7: Philippines | R7: Russia | S7: South Africa | T7: South Korea | U7: Spain | V7: United States | W7: Vietnam
B8: =tblIndicators!AE2 -> OVERALL SCORE | D8: =RANK(Scores!P8,Scores!$P8:$AI8,0) -> 11 | E8: =RANK(Scores!Q8,Scores!$P8:$AI8,0) -> 7 | F8: =RANK(Scores!R8,Scores!$P8:$AI8,0) -> 10 | G8: =RANK(Scores!S8,Scores!$P8:$AI8,0) -> 12 | H8: =RANK(Scores!T8,Scores!$P8:$AI8,0) -> 3 | I8: =RANK(Scores!U8,Scores!$P8:$AI8,0) -> 17 | J8: =RANK(Scores!V8,Scores!$P8:$AI8,0) -> 15 | K8: =RANK(Scores!W8,Scores!$P8:$AI8,0) -> 6 | L8: =RANK(Scores!X8,Scores!$P8:$AI8,0) -> 13 | M8: =RANK(Scores!Y8,Scores!$P8:$AI8,0) -> 1 | N8: =RANK(Scores!Z8,Scores!$P8:$AI8,0) -> 19 | O8: =RANK(Scores!AA8,Scores!$P8:$AI8,0) -> 5 | P8: =RANK(Scores!AB8,Scores!$P8:$AI8,0) -> 18 | Q8: =RANK(Scores!AC8,Scores!$P8:$AI8,0) -> 14 | R8: =RANK(Scores!AD8,Scores!$P8:$AI8,0) -> 20 | S8: =RANK(Scores!AE8,Scores!$P8:$AI8,0) -> 9 | T8: =RANK(Scores!AF8,Scores!$P8:$AI8,0) -> 8 | U8: =RANK(Scores!AG8,Scores!$P8:$AI8,0) -> 4 | V8: =RANK(Scores!AH8,Scores!$P8:$AI8,0) -> 2 | W8: =RANK(Scores!AI8,Scores!$P8:$AI8,0) -> 16
B9: =tblIndicators!AE3 -> 1) POLICY AND INSTITUTIONAL CAPACITY | D9: =RANK(Scores!P9,Scores!$P9:$AI9,0) -> 14 | E9: =RANK(Scores!Q9,Scores!$P9:$AI9,0) -> 8 | F9: =RANK(Scores!R9,Scores!$P9:$AI9,0) -> 18 | G9: =RANK(Scores!S9,Scores!$P9:$AI9,0) -> 8 | H9: =RANK(Scores!T9,Scores!$P9:$AI9,0) -> 4 | I9: =RANK(Scores!U9,Scores!$P9:$AI9,0) -> 16 | J9: =RANK(Scores!V9,Scores!$P9:$AI9,0) -> 12 | K9: =RANK(Scores!W9,Scores!$P9:$AI9,0) -> 4 | L9: =RANK(Scores!X9,Scores!$P9:$AI9,0) -> 15 | M9: =RANK(Scores!Y9,Scores!$P9:$AI9,0) -> 6 | N9: =RANK(Scores!Z9,Scores!$P9:$AI9,0) -> 17 | O9: =RANK(Scores!AA9,Scores!$P9:$AI9,0) -> 1 | P9: =RANK(Scores!AB9,Scores!$P9:$AI9,0) -> 19 | Q9: =RANK(Scores!AC9,Scores!$P9:$AI9,0) -> 7 | R9: =RANK(Scores!AD9,Scores!$P9:$AI9,0) -> 20 | S9: =RANK(Scores!AE9,Scores!$P9:$AI9,0) -> 8 | T9: =RANK(Scores!AF9,Scores!$P9:$AI9,0) -> 13 | U9: =RANK(Scores!AG9,Scores!$P9:$AI9,0) -> 1 | V9: =RANK(Scores!AH9,Scores!$P9:$AI9,0) -> 3 | W9: =RANK(Scores!AI9,Scores!$P9:$AI9,0) -> 8
B10: =tblIndicators!AE4 -> 1.1) Coastal management policy and strategy | D10: =RANK(Scores!P10,Scores!$P10:$AI10,0) -> 1 | E10: =RANK(Scores!Q10,Scores!$P10:$AI10,0) -> 1 | F10: =RANK(Scores!R10,Scores!$P10:$AI10,0) -> 16 | G10: =RANK(Scores!S10,Scores!$P10:$AI10,0) -> 1 | H10: =RANK(Scores!T10,Scores!$P10:$AI10,0) -> 16 | I10: =RANK(Scores!U10,Scores!$P10:$AI10,0) -> 12 | J10: =RANK(Scores!V10,Scores!$P10:$AI10,0) -> 1 | K10: =RANK(Scores!W10,Scores!$P10:$AI10,0) -> 1 | L10: =RANK(Scores!X10,Scores!$P10:$AI10,0) -> 12 | M10: =RANK(Scores!Y10,Scores!$P10:$AI10,0) -> 12 | N10: =RANK(Scores!Z10,Scores!$P10:$AI10,0) -> 18 | O10: =RANK(Scores!AA10,Scores!$P10:$AI10,0) -> 1 | P10: =RANK(Scores!AB10,Scores!$P10:$AI10,0) -> 18 | Q10: =RANK(Scores!AC10,Scores!$P10:$AI10,0) -> 1 | R10: =RANK(Scores!AD10,Scores!$P10:$AI10,0) -> 18 | S10: =RANK(Scores!AE10,Scores!$P10:$AI10,0) -> 12 | T10: =RANK(Scores!AF10,Scores!$P10:$AI10,0) -> 1 | U10: =RANK(Scores!AG10,Scores!$P10:$AI10,0) -> 1 | V10: =RANK(Scores!AH10,Scores!$P10:$AI10,0) -> 1 | W10: =RANK(Scores!AI10,Scores!$P10:$AI10,0) -> 1
B11: =tblIndicators!AE5 -> 1.1.1) Coastal management policy | D11: =RANK(Scores!P11,Scores!$P11:$AI11,0) -> 1 | E11: =RANK(Scores!Q11,Scores!$P11:$AI11,0) -> 1 | F11: =RANK(Scores!R11,Scores!$P11:$AI11,0) -> 1 | G11: =RANK(Scores!S11,Scores!$P11:$AI11,0) -> 1 | H11: =RANK(Scores!T11,Scores!$P11:$AI11,0) -> 1 | I11: =RANK(Scores!U11,Scores!$P11:$AI11,0) -> 1 | J11: =RANK(Scores!V11,Scores!$P11:$AI11,0) -> 1 | K11: =RANK(Scores!W11,Scores!$P11:$AI11,0) -> 1 | L11: =RANK(Scores!X11,Scores!$P11:$AI11,0) -> 1 | M11: =RANK(Scores!Y11,Scores!$P11:$AI11,0) -> 1 | N11: =RANK(Scores!Z11,Scores!$P11:$AI11,0) -> 18 | O11: =RANK(Scores!AA11,Scores!$P11:$AI11,0) -> 1 | P11: =RANK(Scores!AB11,Scores!$P11:$AI11,0) -> 18 | Q11: =RANK(Scores!AC11,Scores!$P11:$AI11,0) -> 1 | R11: =RANK(Scores!AD11,Scores!$P11:$AI11,0) -> 18 | S11: =RANK(Scores!AE11,Scores!$P11:$AI11,0) -> 1 | T11: =RANK(Scores!AF11,Scores!$P11:$AI11,0) -> 1 | U11: =RANK(Scores!AG11,Scores!$P11:$AI11,0) -> 1 | V11: =RANK(Scores!AH11,Scores!$P11:$AI11,0) -> 1 | W11: =RANK(Scores!AI11,Scores!$P11:$AI11,0) -> 1
B12: =tblIndicators!AE6 -> 1.1.2) Coastal management strategy | D12: =RANK(Scores!P12,Scores!$P12:$AI12,0) -> 1 | E12: =RANK(Scores!Q12,Scores!$P12:$AI12,0) -> 1 | F12: =RANK(Scores!R12,Scores!$P12:$AI12,0) -> 16 | G12: =RANK(Scores!S12,Scores!$P12:$AI12,0) -> 1 | H12: =RANK(Scores!T12,Scores!$P12:$AI12,0) -> 16 | I12: =RANK(Scores!U12,Scores!$P12:$AI12,0) -> 12 | J12: =RANK(Scores!V12,Scores!$P12:$AI12,0) -> 1 | K12: =RANK(Scores!W12,Scores!$P12:$AI12,0) -> 1 | L12: =RANK(Scores!X12,Scores!$P12:$AI12,0) -> 12 | M12: =RANK(Scores!Y12,Scores!$P12:$AI12,0) -> 12 | N12: =RANK(Scores!Z12,Scores!$P12:$AI12,0) -> 16 | O12: =RANK(Scores!AA12,Scores!$P12:$AI12,0) -> 1 | P12: =RANK(Scores!AB12,Scores!$P12:$AI12,0) -> 16 | Q12: =RANK(Scores!AC12,Scores!$P12:$AI12,0) -> 1 | R12: =RANK(Scores!AD12,Scores!$P12:$AI12,0) -> 16 | S12: =RANK(Scores!AE12,Scores!$P12:$AI12,0) -> 12 | T12: =RANK(Scores!AF12,Scores!$P12:$AI12,0) -> 1 | U12: =RANK(Scores!AG12,Scores!$P12:$AI12,0) -> 1 | V12: =RANK(Scores!AH12,Scores!$P12:$AI12,0) -> 1 | W12: =RANK(Scores!AI12,Scores!$P12:$AI12,0) -> 1
B13: =tblIndicators!AE7 -> 1.2) Presence of established institution(s) | D13: =RANK(Scores!P13,Scores!$P13:$AI13,0) -> 1 | E13: =RANK(Scores!Q13,Scores!$P13:$AI13,0) -> 10 | F13: =RANK(Scores!R13,Scores!$P13:$AI13,0) -> 18 | G13: =RANK(Scores!S13,Scores!$P13:$AI13,0) -> 1 | H13: =RANK(Scores!T13,Scores!$P13:$AI13,0) -> 1 | I13: =RANK(Scores!U13,Scores!$P13:$AI13,0) -> 10 | J13: =RANK(Scores!V13,Scores!$P13:$AI13,0) -> 10 | K13: =RANK(Scores!W13,Scores!$P13:$AI13,0) -> 1 | L13: =RANK(Scores!X13,Scores!$P13:$AI13,0) -> 10 | M13: =RANK(Scores!Y13,Scores!$P13:$AI13,0) -> 10 | N13: =RANK(Scores!Z13,Scores!$P13:$AI13,0) -> 18 | O13: =RANK(Scores!AA13,Scores!$P13:$AI13,0) -> 1 | P13: =RANK(Scores!AB13,Scores!$P13:$AI13,0) -> 10 | Q13: =RANK(Scores!AC13,Scores!$P13:$AI13,0) -> 10 | R13: =RANK(Scores!AD13,Scores!$P13:$AI13,0) -> 18 | S13: =RANK(Scores!AE13,Scores!$P13:$AI13,0) -> 1 | T13: =RANK(Scores!AF13,Scores!$P13:$AI13,0) -> 10 | U13: =RANK(Scores!AG13,Scores!$P13:$AI13,0) -> 1 | V13: =RANK(Scores!AH13,Scores!$P13:$AI13,0) -> 1 | W13: =RANK(Scores!AI13,Scores!$P13:$AI13,0) -> 1
B14: =tblIndicators!AE8 -> 1.2.1) Presence of coastal management strategy authority | D14: =RANK(Scores!P14,Scores!$P14:$AI14,0) -> 1 | E14: =RANK(Scores!Q14,Scores!$P14:$AI14,0) -> 10 | F14: =RANK(Scores!R14,Scores!$P14:$AI14,0) -> 18 | G14: =RANK(Scores!S14,Scores!$P14:$AI14,0) -> 1 | H14: =RANK(Scores!T14,Scores!$P14:$AI14,0) -> 1 | I14: =RANK(Scores!U14,Scores!$P14:$AI14,0) -> 10 | J14: =RANK(Scores!V14,Scores!$P14:$AI14,0) -> 10 | K14: =RANK(Scores!W14,Scores!$P14:$AI14,0) -> 1 | L14: =RANK(Scores!X14,Scores!$P14:$AI14,0) -> 10 | M14: =RANK(Scores!Y14,Scores!$P14:$AI14,0) -> 10 | N14: =RANK(Scores!Z14,Scores!$P14:$AI14,0) -> 18 | O14: =RANK(Scores!AA14,Scores!$P14:$AI14,0) -> 1 | P14: =RANK(Scores!AB14,Scores!$P14:$AI14,0) -> 10 | Q14: =RANK(Scores!AC14,Scores!$P14:$AI14,0) -> 10 | R14: =RANK(Scores!AD14,Scores!$P14:$AI14,0) -> 18 | S14: =RANK(Scores!AE14,Scores!$P14:$AI14,0) -> 1 | T14: =RANK(Scores!AF14,Scores!$P14:$AI14,0) -> 10 | U14: =RANK(Scores!AG14,Scores!$P14:$AI14,0) -> 1 | V14: =RANK(Scores!AH14,Scores!$P14:$AI14,0) -> 1 | W14: =RANK(Scores!AI14,Scores!$P14:$AI14,0) -> 1
B15: =tblIndicators!AE9 -> 1.3) National strategy to adapt to climate change | D15: =RANK(Scores!P15,Scores!$P15:$AI15,0) -> 11 | E15: =RANK(Scores!Q15,Scores!$P15:$AI15,0) -> 1 | F15: =RANK(Scores!R15,Scores!$P15:$AI15,0) -> 11 | G15: =RANK(Scores!S15,Scores!$P15:$AI15,0) -> 1 | H15: =RANK(Scores!T15,Scores!$P15:$AI15,0) -> 1 | I15: =RANK(Scores!U15,Scores!$P15:$AI15,0) -> 11 | J15: =RANK(Scores!V15,Scores!$P15:$AI15,0) -> 1 | K15: =RANK(Scores!W15,Scores!$P15:$AI15,0) -> 11 | L15: =RANK(Scores!X15,Scores!$P15:$AI15,0) -> 11 | M15: =RANK(Scores!Y15,Scores!$P15:$AI15,0) -> 1 | N15: =RANK(Scores!Z15,Scores!$P15:$AI15,0) -> 1 | O15: =RANK(Scores!AA15,Scores!$P15:$AI15,0) -> 11 | P15: =RANK(Scores!AB15,Scores!$P15:$AI15,0) -> 11 | Q15: =RANK(Scores!AC15,Scores!$P15:$AI15,0) -> 11 | R15: =RANK(Scores!AD15,Scores!$P15:$AI15,0) -> 20 | S15: =RANK(Scores!AE15,Scores!$P15:$AI15,0) -> 1 | T15: =RANK(Scores!AF15,Scores!$P15:$AI15,0) -> 1 | U15: =RANK(Scores!AG15,Scores!$P15:$AI15,0) -> 1 | V15: =RANK(Scores!AH15,Scores!$P15:$AI15,0) -> 1 | W15: =RANK(Scores!AI15,Scores!$P15:$AI15,0) -> 11
B16: =tblIndicators!AE10 -> 1.3.1) Strategy to adapt coastal areas to climate change | D16: =RANK(Scores!P16,Scores!$P16:$AI16,0) -> 11 | E16: =RANK(Scores!Q16,Scores!$P16:$AI16,0) -> 1 | F16: =RANK(Scores!R16,Scores!$P16:$AI16,0) -> 11 | G16: =RANK(Scores!S16,Scores!$P16:$AI16,0) -> 1 | H16: =RANK(Scores!T16,Scores!$P16:$AI16,0) -> 1 | I16: =RANK(Scores!U16,Scores!$P16:$AI16,0) -> 11 | J16: =RANK(Scores!V16,Scores!$P16:$AI16,0) -> 1 | K16: =RANK(Scores!W16,Scores!$P16:$AI16,0) -> 11 | L16: =RANK(Scores!X16,Scores!$P16:$AI16,0) -> 11 | M16: =RANK(Scores!Y16,Scores!$P16:$AI16,0) -> 1 | N16: =RANK(Scores!Z16,Scores!$P16:$AI16,0) -> 1 | O16: =RANK(Scores!AA16,Scores!$P16:$AI16,0) -> 11 | P16: =RANK(Scores!AB16,Scores!$P16:$AI16,0) -> 11 | Q16: =RANK(Scores!AC16,Scores!$P16:$AI16,0) -> 11 | R16: =RANK(Scores!AD16,Scores!$P16:$AI16,0) -> 20 | S16: =RANK(Scores!AE16,Scores!$P16:$AI16,0) -> 1 | T16: =RANK(Scores!AF16,Scores!$P16:$AI16,0) -> 1 | U16: =RANK(Scores!AG16,Scores!$P16:$AI16,0) -> 1 | V16: =RANK(Scores!AH16,Scores!$P16:$AI16,0) -> 1 | W16: =RANK(Scores!AI16,Scores!$P16:$AI16,0) -> 11
B17: =tblIndicators!AE11 -> 1.4) Maritime Spatial Planning | D17: =RANK(Scores!P17,Scores!$P17:$AI17,0) -> 13 | E17: =RANK(Scores!Q17,Scores!$P17:$AI17,0) -> 7 | F17: =RANK(Scores!R17,Scores!$P17:$AI17,0) -> 13 | G17: =RANK(Scores!S17,Scores!$P17:$AI17,0) -> 1 | H17: =RANK(Scores!T17,Scores!$P17:$AI17,0) -> 7 | I17: =RANK(Scores!U17,Scores!$P17:$AI17,0) -> 13 | J17: =RANK(Scores!V17,Scores!$P17:$AI17,0) -> 11 | K17: =RANK(Scores!W17,Scores!$P17:$AI17,0) -> 13 | L17: =RANK(Scores!X17,Scores!$P17:$AI17,0) -> 1 | M17: =RANK(Scores!Y17,Scores!$P17:$AI17,0) -> 7 | N17: =RANK(Scores!Z17,Scores!$P17:$AI17,0) -> 13 | O17: =RANK(Scores!AA17,Scores!$P17:$AI17,0) -> 1 | P17: =RANK(Scores!AB17,Scores!$P17:$AI17,0) -> 13 | Q17: =RANK(Scores!AC17,Scores!$P17:$AI17,0) -> 7 | R17: =RANK(Scores!AD17,Scores!$P17:$AI17,0) -> 13 | S17: =RANK(Scores!AE17,Scores!$P17:$AI17,0) -> 11 | T17: =RANK(Scores!AF17,Scores!$P17:$AI17,0) -> 13 | U17: =RANK(Scores!AG17,Scores!$P17:$AI17,0) -> 1 | V17: =RANK(Scores!AH17,Scores!$P17:$AI17,0) -> 6 | W17: =RANK(Scores!AI17,Scores!$P17:$AI17,0) -> 1
B18: =tblIndicators!AE12 -> 1.4.1) Legal basis for maritime spatial planning | D18: =RANK(Scores!P18,Scores!$P18:$AI18,0) -> 12 | E18: =RANK(Scores!Q18,Scores!$P18:$AI18,0) -> 6 | F18: =RANK(Scores!R18,Scores!$P18:$AI18,0) -> 12 | G18: =RANK(Scores!S18,Scores!$P18:$AI18,0) -> 1 | H18: =RANK(Scores!T18,Scores!$P18:$AI18,0) -> 6 | I18: =RANK(Scores!U18,Scores!$P18:$AI18,0) -> 12 | J18: =RANK(Scores!V18,Scores!$P18:$AI18,0) -> 12 | K18: =RANK(Scores!W18,Scores!$P18:$AI18,0) -> 12 | L18: =RANK(Scores!X18,Scores!$P18:$AI18,0) -> 1 | M18: =RANK(Scores!Y18,Scores!$P18:$AI18,0) -> 6 | N18: =RANK(Scores!Z18,Scores!$P18:$AI18,0) -> 12 | O18: =RANK(Scores!AA18,Scores!$P18:$AI18,0) -> 1 | P18: =RANK(Scores!AB18,Scores!$P18:$AI18,0) -> 12 | Q18: =RANK(Scores!AC18,Scores!$P18:$AI18,0) -> 6 | R18: =RANK(Scores!AD18,Scores!$P18:$AI18,0) -> 12 | S18: =RANK(Scores!AE18,Scores!$P18:$AI18,0) -> 6 | T18: =RANK(Scores!AF18,Scores!$P18:$AI18,0) -> 12 | U18: =RANK(Scores!AG18,Scores!$P18:$AI18,0) -> 1 | V18: =RANK(Scores!AH18,Scores!$P18:$AI18,0) -> 6 | W18: =RANK(Scores!AI18,Scores!$P18:$AI18,0) -> 1
B19: =tblIndicators!AE13 -> 1.4.2) Institution for maritime spatial planning | D19: =RANK(Scores!P19,Scores!$P19:$AI19,0) -> 12 | E19: =RANK(Scores!Q19,Scores!$P19:$AI19,0) -> 7 | F19: =RANK(Scores!R19,Scores!$P19:$AI19,0) -> 12 | G19: =RANK(Scores!S19,Scores!$P19:$AI19,0) -> 1 | H19: =RANK(Scores!T19,Scores!$P19:$AI19,0) -> 7 | I19: =RANK(Scores!U19,Scores!$P19:$AI19,0) -> 12 | J19: =RANK(Scores!V19,Scores!$P19:$AI19,0) -> 7 | K19: =RANK(Scores!W19,Scores!$P19:$AI19,0) -> 12 | L19: =RANK(Scores!X19,Scores!$P19:$AI19,0) -> 1 | M19: =RANK(Scores!Y19,Scores!$P19:$AI19,0) -> 7 | N19: =RANK(Scores!Z19,Scores!$P19:$AI19,0) -> 12 | O19: =RANK(Scores!AA19,Scores!$P19:$AI19,0) -> 1 | P19: =RANK(Scores!AB19,Scores!$P19:$AI19,0) -> 12 | Q19: =RANK(Scores!AC19,Scores!$P19:$AI19,0) -> 7 | R19: =RANK(Scores!AD19,Scores!$P19:$AI19,0) -> 12 | S19: =RANK(Scores!AE19,Scores!$P19:$AI19,0) -> 12 | T19: =RANK(Scores!AF19,Scores!$P19:$AI19,0) -> 12 | U19: =RANK(Scores!AG19,Scores!$P19:$AI19,0) -> 1 | V19: =RANK(Scores!AH19,Scores!$P19:$AI19,0) -> 1 | W19: =RANK(Scores!AI19,Scores!$P19:$AI19,0) -> 1
B20: =tblIndicators!AE14 -> 1.5) Stakeholder engagement | D20: =RANK(Scores!P20,Scores!$P20:$AI20,0) -> 1 | E20: =RANK(Scores!Q20,Scores!$P20:$AI20,0) -> 1 | F20: =RANK(Scores!R20,Scores!$P20:$AI20,0) -> 10 | G20: =RANK(Scores!S20,Scores!$P20:$AI20,0) -> 18 | H20: =RANK(Scores!T20,Scores!$P20:$AI20,0) -> 10 | I20: =RANK(Scores!U20,Scores!$P20:$AI20,0) -> 1 | J20: =RANK(Scores!V20,Scores!$P20:$AI20,0) -> 9 | K20: =RANK(Scores!W20,Scores!$P20:$AI20,0) -> 1 | L20: =RANK(Scores!X20,Scores!$P20:$AI20,0) -> 15 | M20: =RANK(Scores!Y20,Scores!$P20:$AI20,0) -> 10 | N20: =RANK(Scores!Z20,Scores!$P20:$AI20,0) -> 18 | O20: =RANK(Scores!AA20,Scores!$P20:$AI20,0) -> 10 | P20: =RANK(Scores!AB20,Scores!$P20:$AI20,0) -> 15 | Q20: =RANK(Scores!AC20,Scores!$P20:$AI20,0) -> 1 | R20: =RANK(Scores!AD20,Scores!$P20:$AI20,0) -> 18 | S20: =RANK(Scores!AE20,Scores!$P20:$AI20,0) -> 1 | T20: =RANK(Scores!AF20,Scores!$P20:$AI20,0) -> 15 | U20: =RANK(Scores!AG20,Scores!$P20:$AI20,0) -> 1 | V20: =RANK(Scores!AH20,Scores!$P20:$AI20,0) -> 1 | W20: =RANK(Scores!AI20,Scores!$P20:$AI20,0) -> 10
B21: =tblIndicators!AE15 -> 1.5.1) Grievance redress | D21: =RANK(Scores!P21,Scores!$P21:$AI21,0) -> 1 | E21: =RANK(Scores!Q21,Scores!$P21:$AI21,0) -> 1 | F21: =RANK(Scores!R21,Scores!$P21:$AI21,0) -> 1 | G21: =RANK(Scores!S21,Scores!$P21:$AI21,0) -> 17 | H21: =RANK(Scores!T21,Scores!$P21:$AI21,0) -> 1 | I21: =RANK(Scores!U21,Scores!$P21:$AI21,0) -> 1 | J21: =RANK(Scores!V21,Scores!$P21:$AI21,0) -> 13 | K21: =RANK(Scores!W21,Scores!$P21:$AI21,0) -> 1 | L21: =RANK(Scores!X21,Scores!$P21:$AI21,0) -> 13 | M21: =RANK(Scores!Y21,Scores!$P21:$AI21,0) -> 1 | N21: =RANK(Scores!Z21,Scores!$P21:$AI21,0) -> 17 | O21: =RANK(Scores!AA21,Scores!$P21:$AI21,0) -> 1 | P21: =RANK(Scores!AB21,Scores!$P21:$AI21,0) -> 13 | Q21: =RANK(Scores!AC21,Scores!$P21:$AI21,0) -> 1 | R21: =RANK(Scores!AD21,Scores!$P21:$AI21,0) -> 17 | S21: =RANK(Scores!AE21,Scores!$P21:$AI21,0) -> 1 | T21: =RANK(Scores!AF21,Scores!$P21:$AI21,0) -> 13 | U21: =RANK(Scores!AG21,Scores!$P21:$AI21,0) -> 1 | V21: =RANK(Scores!AH21,Scores!$P21:$AI21,0) -> 1 | W21: =RANK(Scores!AI21,Scores!$P21:$AI21,0) -> 17
B22: =tblIndicators!AE16 -> 1.5.2) Multi-stakeholder engagement | D22: =RANK(Scores!P22,Scores!$P22:$AI22,0) -> 1 | E22: =RANK(Scores!Q22,Scores!$P22:$AI22,0) -> 1 | F22: =RANK(Scores!R22,Scores!$P22:$AI22,0) -> 11 | G22: =RANK(Scores!S22,Scores!$P22:$AI22,0) -> 11 | H22: =RANK(Scores!T22,Scores!$P22:$AI22,0) -> 11 | I22: =RANK(Scores!U22,Scores!$P22:$AI22,0) -> 1 | J22: =RANK(Scores!V22,Scores!$P22:$AI22,0) -> 1 | K22: =RANK(Scores!W22,Scores!$P22:$AI22,0) -> 1 | L22: =RANK(Scores!X22,Scores!$P22:$AI22,0) -> 11 | M22: =RANK(Scores!Y22,Scores!$P22:$AI22,0) -> 11 | N22: =RANK(Scores!Z22,Scores!$P22:$AI22,0) -> 11 | O22: =RANK(Scores!AA22,Scores!$P22:$AI22,0) -> 11 | P22: =RANK(Scores!AB22,Scores!$P22:$AI22,0) -> 11 | Q22: =RANK(Scores!AC22,Scores!$P22:$AI22,0) -> 1 | R22: =RANK(Scores!AD22,Scores!$P22:$AI22,0) -> 11 | S22: =RANK(Scores!AE22,Scores!$P22:$AI22,0) -> 1 | T22: =RANK(Scores!AF22,Scores!$P22:$AI22,0) -> 11 | U22: =RANK(Scores!AG22,Scores!$P22:$AI22,0) -> 1 | V22: =RANK(Scores!AH22,Scores!$P22:$AI22,0) -> 1 | W22: =RANK(Scores!AI22,Scores!$P22:$AI22,0) -> 1
B23: =tblIndicators!AE17 -> 1.6) Extractive industries transparency | D23: =RANK(Scores!P23,Scores!$P23:$AI23,0) -> 11 | E23: =RANK(Scores!Q23,Scores!$P23:$AI23,0) -> 11 | F23: =RANK(Scores!R23,Scores!$P23:$AI23,0) -> 11 | G23: =RANK(Scores!S23,Scores!$P23:$AI23,0) -> 11 | H23: =RANK(Scores!T23,Scores!$P23:$AI23,0) -> 1 | I23: =RANK(Scores!U23,Scores!$P23:$AI23,0) -> 11 | J23: =RANK(Scores!V23,Scores!$P23:$AI23,0) -> 10 | K23: =RANK(Scores!W23,Scores!$P23:$AI23,0) -> 1 | L23: =RANK(Scores!X23,Scores!$P23:$AI23,0) -> 11 | M23: =RANK(Scores!Y23,Scores!$P23:$AI23,0) -> 1 | N23: =RANK(Scores!Z23,Scores!$P23:$AI23,0) -> 1 | O23: =RANK(Scores!AA23,Scores!$P23:$AI23,0) -> 1 | P23: =RANK(Scores!AB23,Scores!$P23:$AI23,0) -> 1 | Q23: =RANK(Scores!AC23,Scores!$P23:$AI23,0) -> 8 | R23: =RANK(Scores!AD23,Scores!$P23:$AI23,0) -> 11 | S23: =RANK(Scores!AE23,Scores!$P23:$AI23,0) -> 11 | T23: =RANK(Scores!AF23,Scores!$P23:$AI23,0) -> 1 | U23: =RANK(Scores!AG23,Scores!$P23:$AI23,0) -> 11 | V23: =RANK(Scores!AH23,Scores!$P23:$AI23,0) -> 8 | W23: =RANK(Scores!AI23,Scores!$P23:$AI23,0) -> 11
B24: =tblIndicators!AE18 -> 1.6.1) Adoption of EITI standards | D24: =RANK(Scores!P24,Scores!$P24:$AI24,0) -> 11 | E24: =RANK(Scores!Q24,Scores!$P24:$AI24,0) -> 11 | F24: =RANK(Scores!R24,Scores!$P24:$AI24,0) -> 11 | G24: =RANK(Scores!S24,Scores!$P24:$AI24,0) -> 11 | H24: =RANK(Scores!T24,Scores!$P24:$AI24,0) -> 1 | I24: =RANK(Scores!U24,Scores!$P24:$AI24,0) -> 11 | J24: =RANK(Scores!V24,Scores!$P24:$AI24,0) -> 10 | K24: =RANK(Scores!W24,Scores!$P24:$AI24,0) -> 1 | L24: =RANK(Scores!X24,Scores!$P24:$AI24,0) -> 11 | M24: =RANK(Scores!Y24,Scores!$P24:$AI24,0) -> 1 | N24: =RANK(Scores!Z24,Scores!$P24:$AI24,0) -> 1 | O24: =RANK(Scores!AA24,Scores!$P24:$AI24,0) -> 1 | P24: =RANK(Scores!AB24,Scores!$P24:$AI24,0) -> 1 | Q24: =RANK(Scores!AC24,Scores!$P24:$AI24,0) -> 8 | R24: =RANK(Scores!AD24,Scores!$P24:$AI24,0) -> 11 | S24: =RANK(Scores!AE24,Scores!$P24:$AI24,0) -> 11 | T24: =RANK(Scores!AF24,Scores!$P24:$AI24,0) -> 1 | U24: =RANK(Scores!AG24,Scores!$P24:$AI24,0) -> 11 | V24: =RANK(Scores!AH24,Scores!$P24:$AI24,0) -> 8 | W24: =RANK(Scores!AI24,Scores!$P24:$AI24,0) -> 11
B25: =tblIndicators!AE19 -> 1.7) Adoption of the United Nations Convention on the Law of the Sea (UNCLOS) | D25: =RANK(Scores!P25,Scores!$P25:$AI25,0) -> 1 | E25: =RANK(Scores!Q25,Scores!$P25:$AI25,0) -> 1 | F25: =RANK(Scores!R25,Scores!$P25:$AI25,0) -> 1 | G25: =RANK(Scores!S25,Scores!$P25:$AI25,0) -> 1 | H25: =RANK(Scores!T25,Scores!$P25:$AI25,0) -> 1 | I25: =RANK(Scores!U25,Scores!$P25:$AI25,0) -> 1 | J25: =RANK(Scores!V25,Scores!$P25:$AI25,0) -> 1 | K25: =RANK(Scores!W25,Scores!$P25:$AI25,0) -> 1 | L25: =RANK(Scores!X25,Scores!$P25:$AI25,0) -> 1 | M25: =RANK(Scores!Y25,Scores!$P25:$AI25,0) -> 1 | N25: =RANK(Scores!Z25,Scores!$P25:$AI25,0) -> 1 | O25: =RANK(Scores!AA25,Scores!$P25:$AI25,0) -> 1 | P25: =RANK(Scores!AB25,Scores!$P25:$AI25,0) -> 20 | Q25: =RANK(Scores!AC25,Scores!$P25:$AI25,0) -> 1 | R25: =RANK(Scores!AD25,Scores!$P25:$AI25,0) -> 1 | S25: =RANK(Scores!AE25,Scores!$P25:$AI25,0) -> 1 | T25: =RANK(Scores!AF25,Scores!$P25:$AI25,0) -> 1 | U25: =RANK(Scores!AG25,Scores!$P25:$AI25,0) -> 1 | V25: =RANK(Scores!AH25,Scores!$P25:$AI25,0) -> 19 | W25: =RANK(Scores!AI25,Scores!$P25:$AI25,0) -> 1
B26: =tblIndicators!AE20 -> 1.7.1) Adoption of UNCLOS | D26: =RANK(Scores!P26,Scores!$P26:$AI26,0) -> 1 | E26: =RANK(Scores!Q26,Scores!$P26:$AI26,0) -> 1 | F26: =RANK(Scores!R26,Scores!$P26:$AI26,0) -> 1 | G26: =RANK(Scores!S26,Scores!$P26:$AI26,0) -> 1 | H26: =RANK(Scores!T26,Scores!$P26:$AI26,0) -> 1 | I26: =RANK(Scores!U26,Scores!$P26:$AI26,0) -> 1 | J26: =RANK(Scores!V26,Scores!$P26:$AI26,0) -> 1 | K26: =RANK(Scores!W26,Scores!$P26:$AI26,0) -> 1 | L26: =RANK(Scores!X26,Scores!$P26:$AI26,0) -> 1 | M26: =RANK(Scores!Y26,Scores!$P26:$AI26,0) -> 1 | N26: =RANK(Scores!Z26,Scores!$P26:$AI26,0) -> 1 | O26: =RANK(Scores!AA26,Scores!$P26:$AI26,0) -> 1 | P26: =RANK(Scores!AB26,Scores!$P26:$AI26,0) -> 20 | Q26: =RANK(Scores!AC26,Scores!$P26:$AI26,0) -> 1 | R26: =RANK(Scores!AD26,Scores!$P26:$AI26,0) -> 1 | S26: =RANK(Scores!AE26,Scores!$P26:$AI26,0) -> 1 | T26: =RANK(Scores!AF26,Scores!$P26:$AI26,0) -> 1 | U26: =RANK(Scores!AG26,Scores!$P26:$AI26,0) -> 1 | V26: =RANK(Scores!AH26,Scores!$P26:$AI26,0) -> 19 | W26: =RANK(Scores!AI26,Scores!$P26:$AI26,0) -> 1
B27: =tblIndicators!AE21 -> 2) BUSINESS ENVIRONMENT FOR COASTAL ACTIVITIES | D27: =RANK(Scores!P27,Scores!$P27:$AI27,0) -> 12 | E27: =RANK(Scores!Q27,Scores!$P27:$AI27,0) -> 1 | F27: =RANK(Scores!R27,Scores!$P27:$AI27,0) -> 8 | G27: =RANK(Scores!S27,Scores!$P27:$AI27,0) -> 13 | H27: =RANK(Scores!T27,Scores!$P27:$AI27,0) -> 5 | I27: =RANK(Scores!U27,Scores!$P27:$AI27,0) -> 17 | J27: =RANK(Scores!V27,Scores!$P27:$AI27,0) -> 18 | K27: =RANK(Scores!W27,Scores!$P27:$AI27,0) -> 7 | L27: =RANK(Scores!X27,Scores!$P27:$AI27,0) -> 11 | M27: =RANK(Scores!Y27,Scores!$P27:$AI27,0) -> 3 | N27: =RANK(Scores!Z27,Scores!$P27:$AI27,0) -> 20 | O27: =RANK(Scores!AA27,Scores!$P27:$AI27,0) -> 2 | P27: =RANK(Scores!AB27,Scores!$P27:$AI27,0) -> 16 | Q27: =RANK(Scores!AC27,Scores!$P27:$AI27,0) -> 14 | R27: =RANK(Scores!AD27,Scores!$P27:$AI27,0) -> 19 | S27: =RANK(Scores!AE27,Scores!$P27:$AI27,0) -> 10 | T27: =RANK(Scores!AF27,Scores!$P27:$AI27,0) -> 9 | U27: =RANK(Scores!AG27,Scores!$P27:$AI27,0) -> 6 | V27: =RANK(Scores!AH27,Scores!$P27:$AI27,0) -> 4 | W27: =RANK(Scores!AI27,Scores!$P27:$AI27,0) -> 15
B28: =tblIndicators!AE22 -> 2.1) Ease of doing business | D28: =RANK(Scores!P28,Scores!$P28:$AI28,0) -> 11 | E28: =RANK(Scores!Q28,Scores!$P28:$AI28,0) -> 1 | F28: =RANK(Scores!R28,Scores!$P28:$AI28,0) -> 5 | G28: =RANK(Scores!S28,Scores!$P28:$AI28,0) -> 12 | H28: =RANK(Scores!T28,Scores!$P28:$AI28,0) -> 6 | I28: =RANK(Scores!U28,Scores!$P28:$AI28,0) -> 16 | J28: =RANK(Scores!V28,Scores!$P28:$AI28,0) -> 17 | K28: =RANK(Scores!W28,Scores!$P28:$AI28,0) -> 8 | L28: =RANK(Scores!X28,Scores!$P28:$AI28,0) -> 10 | M28: =RANK(Scores!Y28,Scores!$P28:$AI28,0) -> 3 | N28: =RANK(Scores!Z28,Scores!$P28:$AI28,0) -> 20 | O28: =RANK(Scores!AA28,Scores!$P28:$AI28,0) -> 4 | P28: =RANK(Scores!AB28,Scores!$P28:$AI28,0) -> 13 | Q28: =RANK(Scores!AC28,Scores!$P28:$AI28,0) -> 14 | R28: =RANK(Scores!AD28,Scores!$P28:$AI28,0) -> 18 | S28: =RANK(Scores!AE28,Scores!$P28:$AI28,0) -> 14 | T28: =RANK(Scores!AF28,Scores!$P28:$AI28,0) -> 7 | U28: =RANK(Scores!AG28,Scores!$P28:$AI28,0) -> 8 | V28: =RANK(Scores!AH28,Scores!$P28:$AI28,0) -> 2 | W28: =RANK(Scores!AI28,Scores!$P28:$AI28,0) -> 18
B29: =tblIndicators!AE23 -> 2.1.1) Business environment | D29: =RANK(Scores!P29,Scores!$P29:$AI29,0) -> 11 | E29: =RANK(Scores!Q29,Scores!$P29:$AI29,0) -> 1 | F29: =RANK(Scores!R29,Scores!$P29:$AI29,0) -> 5 | G29: =RANK(Scores!S29,Scores!$P29:$AI29,0) -> 12 | H29: =RANK(Scores!T29,Scores!$P29:$AI29,0) -> 6 | I29: =RANK(Scores!U29,Scores!$P29:$AI29,0) -> 16 | J29: =RANK(Scores!V29,Scores!$P29:$AI29,0) -> 17 | K29: =RANK(Scores!W29,Scores!$P29:$AI29,0) -> 8 | L29: =RANK(Scores!X29,Scores!$P29:$AI29,0) -> 10 | M29: =RANK(Scores!Y29,Scores!$P29:$AI29,0) -> 3 | N29: =RANK(Scores!Z29,Scores!$P29:$AI29,0) -> 20 | O29: =RANK(Scores!AA29,Scores!$P29:$AI29,0) -> 4 | P29: =RANK(Scores!AB29,Scores!$P29:$AI29,0) -> 13 | Q29: =RANK(Scores!AC29,Scores!$P29:$AI29,0) -> 14 | R29: =RANK(Scores!AD29,Scores!$P29:$AI29,0) -> 18 | S29: =RANK(Scores!AE29,Scores!$P29:$AI29,0) -> 14 | T29: =RANK(Scores!AF29,Scores!$P29:$AI29,0) -> 7 | U29: =RANK(Scores!AG29,Scores!$P29:$AI29,0) -> 8 | V29: =RANK(Scores!AH29,Scores!$P29:$AI29,0) -> 2 | W29: =RANK(Scores!AI29,Scores!$P29:$AI29,0) -> 18
B30: =tblIndicators!AE24 -> 2.2) Corruption perception | D30: =RANK(Scores!P30,Scores!$P30:$AI30,0) -> 10 | E30: =RANK(Scores!Q30,Scores!$P30:$AI30,0) -> 3 | F30: =RANK(Scores!R30,Scores!$P30:$AI30,0) -> 5 | G30: =RANK(Scores!S30,Scores!$P30:$AI30,0) -> 12 | H30: =RANK(Scores!T30,Scores!$P30:$AI30,0) -> 6 | I30: =RANK(Scores!U30,Scores!$P30:$AI30,0) -> 17 | J30: =RANK(Scores!V30,Scores!$P30:$AI30,0) -> 18 | K30: =RANK(Scores!W30,Scores!$P30:$AI30,0) -> 4 | L30: =RANK(Scores!X30,Scores!$P30:$AI30,0) -> 15 | M30: =RANK(Scores!Y30,Scores!$P30:$AI30,0) -> 1 | N30: =RANK(Scores!Z30,Scores!$P30:$AI30,0) -> 20 | O30: =RANK(Scores!AA30,Scores!$P30:$AI30,0) -> 2 | P30: =RANK(Scores!AB30,Scores!$P30:$AI30,0) -> 14 | Q30: =RANK(Scores!AC30,Scores!$P30:$AI30,0) -> 13 | R30: =RANK(Scores!AD30,Scores!$P30:$AI30,0) -> 19 | S30: =RANK(Scores!AE30,Scores!$P30:$AI30,0) -> 11 | T30: =RANK(Scores!AF30,Scores!$P30:$AI30,0) -> 9 | U30: =RANK(Scores!AG30,Scores!$P30:$AI30,0) -> 8 | V30: =RANK(Scores!AH30,Scores!$P30:$AI30,0) -> 7 | W30: =RANK(Scores!AI30,Scores!$P30:$AI30,0) -> 16
B31: =tblIndicators!AE25 -> 2.2.1) Control of corruption | D31: =RANK(Scores!P31,Scores!$P31:$AI31,0) -> 10 | E31: =RANK(Scores!Q31,Scores!$P31:$AI31,0) -> 3 | F31: =RANK(Scores!R31,Scores!$P31:$AI31,0) -> 5 | G31: =RANK(Scores!S31,Scores!$P31:$AI31,0) -> 12 | H31: =RANK(Scores!T31,Scores!$P31:$AI31,0) -> 6 | I31: =RANK(Scores!U31,Scores!$P31:$AI31,0) -> 17 | J31: =RANK(Scores!V31,Scores!$P31:$AI31,0) -> 18 | K31: =RANK(Scores!W31,Scores!$P31:$AI31,0) -> 4 | L31: =RANK(Scores!X31,Scores!$P31:$AI31,0) -> 15 | M31: =RANK(Scores!Y31,Scores!$P31:$AI31,0) -> 1 | N31: =RANK(Scores!Z31,Scores!$P31:$AI31,0) -> 20 | O31: =RANK(Scores!AA31,Scores!$P31:$AI31,0) -> 2 | P31: =RANK(Scores!AB31,Scores!$P31:$AI31,0) -> 14 | Q31: =RANK(Scores!AC31,Scores!$P31:$AI31,0) -> 13 | R31: =RANK(Scores!AD31,Scores!$P31:$AI31,0) -> 19 | S31: =RANK(Scores!AE31,Scores!$P31:$AI31,0) -> 11 | T31: =RANK(Scores!AF31,Scores!$P31:$AI31,0) -> 9 | U31: =RANK(Scores!AG31,Scores!$P31:$AI31,0) -> 8 | V31: =RANK(Scores!AH31,Scores!$P31:$AI31,0) -> 7 | W31: =RANK(Scores!AI31,Scores!$P31:$AI31,0) -> 16
B32: =tblIndicators!AE26 -> 2.3) Effectiveness of dispute resolution mechanisms | D32: =RANK(Scores!P32,Scores!$P32:$AI32,0) -> 12 | E32: =RANK(Scores!Q32,Scores!$P32:$AI32,0) -> 1 | F32: =RANK(Scores!R32,Scores!$P32:$AI32,0) -> 7 | G32: =RANK(Scores!S32,Scores!$P32:$AI32,0) -> 15 | H32: =RANK(Scores!T32,Scores!$P32:$AI32,0) -> 5 | I32: =RANK(Scores!U32,Scores!$P32:$AI32,0) -> 15 | J32: =RANK(Scores!V32,Scores!$P32:$AI32,0) -> 15 | K32: =RANK(Scores!W32,Scores!$P32:$AI32,0) -> 9 | L32: =RANK(Scores!X32,Scores!$P32:$AI32,0) -> 9 | M32: =RANK(Scores!Y32,Scores!$P32:$AI32,0) -> 1 | N32: =RANK(Scores!Z32,Scores!$P32:$AI32,0) -> 20 | O32: =RANK(Scores!AA32,Scores!$P32:$AI32,0) -> 1 | P32: =RANK(Scores!AB32,Scores!$P32:$AI32,0) -> 15 | Q32: =RANK(Scores!AC32,Scores!$P32:$AI32,0) -> 13 | R32: =RANK(Scores!AD32,Scores!$P32:$AI32,0) -> 19 | S32: =RANK(Scores!AE32,Scores!$P32:$AI32,0) -> 9 | T32: =RANK(Scores!AF32,Scores!$P32:$AI32,0) -> 7 | U32: =RANK(Scores!AG32,Scores!$P32:$AI32,0) -> 5 | V32: =RANK(Scores!AH32,Scores!$P32:$AI32,0) -> 1 | W32: =RANK(Scores!AI32,Scores!$P32:$AI32,0) -> 13
B33: =tblIndicators!AE27 -> 2.3.1) Fairness of judicial process | D33: =RANK(Scores!P33,Scores!$P33:$AI33,0) -> 11 | E33: =RANK(Scores!Q33,Scores!$P33:$AI33,0) -> 1 | F33: =RANK(Scores!R33,Scores!$P33:$AI33,0) -> 5 | G33: =RANK(Scores!S33,Scores!$P33:$AI33,0) -> 14 | H33: =RANK(Scores!T33,Scores!$P33:$AI33,0) -> 5 | I33: =RANK(Scores!U33,Scores!$P33:$AI33,0) -> 14 | J33: =RANK(Scores!V33,Scores!$P33:$AI33,0) -> 14 | K33: =RANK(Scores!W33,Scores!$P33:$AI33,0) -> 5 | L33: =RANK(Scores!X33,Scores!$P33:$AI33,0) -> 11 | M33: =RANK(Scores!Y33,Scores!$P33:$AI33,0) -> 1 | N33: =RANK(Scores!Z33,Scores!$P33:$AI33,0) -> 19 | O33: =RANK(Scores!AA33,Scores!$P33:$AI33,0) -> 1 | P33: =RANK(Scores!AB33,Scores!$P33:$AI33,0) -> 14 | Q33: =RANK(Scores!AC33,Scores!$P33:$AI33,0) -> 11 | R33: =RANK(Scores!AD33,Scores!$P33:$AI33,0) -> 19 | S33: =RANK(Scores!AE33,Scores!$P33:$AI33,0) -> 5 | T33: =RANK(Scores!AF33,Scores!$P33:$AI33,0) -> 5 | U33: =RANK(Scores!AG33,Scores!$P33:$AI33,0) -> 5 | V33: =RANK(Scores!AH33,Scores!$P33:$AI33,0) -> 1 | W33: =RANK(Scores!AI33,Scores!$P33:$AI33,0) -> 14
B34: =tblIndicators!AE28 -> 2.3.2) Enforceability of contracts | D34: =RANK(Scores!P34,Scores!$P34:$AI34,0) -> 10 | E34: =RANK(Scores!Q34,Scores!$P34:$AI34,0) -> 1 | F34: =RANK(Scores!R34,Scores!$P34:$AI34,0) -> 7 | G34: =RANK(Scores!S34,Scores!$P34:$AI34,0) -> 14 | H34: =RANK(Scores!T34,Scores!$P34:$AI34,0) -> 1 | I34: =RANK(Scores!U34,Scores!$P34:$AI34,0) -> 14 | J34: =RANK(Scores!V34,Scores!$P34:$AI34,0) -> 14 | K34: =RANK(Scores!W34,Scores!$P34:$AI34,0) -> 10 | L34: =RANK(Scores!X34,Scores!$P34:$AI34,0) -> 7 | M34: =RANK(Scores!Y34,Scores!$P34:$AI34,0) -> 1 | N34: =RANK(Scores!Z34,Scores!$P34:$AI34,0) -> 20 | O34: =RANK(Scores!AA34,Scores!$P34:$AI34,0) -> 1 | P34: =RANK(Scores!AB34,Scores!$P34:$AI34,0) -> 14 | Q34: =RANK(Scores!AC34,Scores!$P34:$AI34,0) -> 14 | R34: =RANK(Scores!AD34,Scores!$P34:$AI34,0) -> 14 | S34: =RANK(Scores!AE34,Scores!$P34:$AI34,0) -> 10 | T34: =RANK(Scores!AF34,Scores!$P34:$AI34,0) -> 7 | U34: =RANK(Scores!AG34,Scores!$P34:$AI34,0) -> 1 | V34: =RANK(Scores!AH34,Scores!$P34:$AI34,0) -> 1 | W34: =RANK(Scores!AI34,Scores!$P34:$AI34,0) -> 10
B35: =tblIndicators!AE29 -> 2.4) Quality of coastal infrastructure | D35: =RANK(Scores!P35,Scores!$P35:$AI35,0) -> 19 | E35: =RANK(Scores!Q35,Scores!$P35:$AI35,0) -> 4 | F35: =RANK(Scores!R35,Scores!$P35:$AI35,0) -> 9 | G35: =RANK(Scores!S35,Scores!$P35:$AI35,0) -> 10 | H35: =RANK(Scores!T35,Scores!$P35:$AI35,0) -> 3 | I35: =RANK(Scores!U35,Scores!$P35:$AI35,0) -> 15 | J35: =RANK(Scores!V35,Scores!$P35:$AI35,0) -> 14 | K35: =RANK(Scores!W35,Scores!$P35:$AI35,0) -> 1 | L35: =RANK(Scores!X35,Scores!$P35:$AI35,0) -> 12 | M35: =RANK(Scores!Y35,Scores!$P35:$AI35,0) -> 8 | N35: =RANK(Scores!Z35,Scores!$P35:$AI35,0) -> 20 | O35: =RANK(Scores!AA35,Scores!$P35:$AI35,0) -> 7 | P35: =RANK(Scores!AB35,Scores!$P35:$AI35,0) -> 18 | Q35: =RANK(Scores!AC35,Scores!$P35:$AI35,0) -> 17 | R35: =RANK(Scores!AD35,Scores!$P35:$AI35,0) -> 13 | S35: =RANK(Scores!AE35,Scores!$P35:$AI35,0) -> 11 | T35: =RANK(Scores!AF35,Scores!$P35:$AI35,0) -> 6 | U35: =RANK(Scores!AG35,Scores!$P35:$AI35,0) -> 2 | V35: =RANK(Scores!AH35,Scores!$P35:$AI35,0) -> 5 | W35: =RANK(Scores!AI35,Scores!$P35:$AI35,0) -> 16
B36: =tblIndicators!AE30 -> 2.4.1) Quality of port facilities | D36: =RANK(Scores!P36,Scores!$P36:$AI36,0) -> 20 | E36: =RANK(Scores!Q36,Scores!$P36:$AI36,0) -> 5 | F36: =RANK(Scores!R36,Scores!$P36:$AI36,0) -> 9 | G36: =RANK(Scores!S36,Scores!$P36:$AI36,0) -> 11 | H36: =RANK(Scores!T36,Scores!$P36:$AI36,0) -> 8 | I36: =RANK(Scores!U36,Scores!$P36:$AI36,0) -> 13 | J36: =RANK(Scores!V36,Scores!$P36:$AI36,0) -> 14 | K36: =RANK(Scores!W36,Scores!$P36:$AI36,0) -> 6 | L36: =RANK(Scores!X36,Scores!$P36:$AI36,0) -> 12 | M36: =RANK(Scores!Y36,Scores!$P36:$AI36,0) -> 2 | N36: =RANK(Scores!Z36,Scores!$P36:$AI36,0) -> 19 | O36: =RANK(Scores!AA36,Scores!$P36:$AI36,0) -> 4 | P36: =RANK(Scores!AB36,Scores!$P36:$AI36,0) -> 16 | Q36: =RANK(Scores!AC36,Scores!$P36:$AI36,0) -> 18 | R36: =RANK(Scores!AD36,Scores!$P36:$AI36,0) -> 15 | S36: =RANK(Scores!AE36,Scores!$P36:$AI36,0) -> 10 | T36: =RANK(Scores!AF36,Scores!$P36:$AI36,0) -> 7 | U36: =RANK(Scores!AG36,Scores!$P36:$AI36,0) -> 1 | V36: =RANK(Scores!AH36,Scores!$P36:$AI36,0) -> 3 | W36: =RANK(Scores!AI36,Scores!$P36:$AI36,0) -> 17
B37: =tblIndicators!AE31 -> 2.4.2) Quality of electricity supply | D37: =RANK(Scores!P37,Scores!$P37:$AI37,0) -> 17 | E37: =RANK(Scores!Q37,Scores!$P37:$AI37,0) -> 2 | F37: =RANK(Scores!R37,Scores!$P37:$AI37,0) -> 9 | G37: =RANK(Scores!S37,Scores!$P37:$AI37,0) -> 10 | H37: =RANK(Scores!T37,Scores!$P37:$AI37,0) -> 3 | I37: =RANK(Scores!U37,Scores!$P37:$AI37,0) -> 19 | J37: =RANK(Scores!V37,Scores!$P37:$AI37,0) -> 14 | K37: =RANK(Scores!W37,Scores!$P37:$AI37,0) -> 6 | L37: =RANK(Scores!X37,Scores!$P37:$AI37,0) -> 13 | M37: =RANK(Scores!Y37,Scores!$P37:$AI37,0) -> 7 | N37: =RANK(Scores!Z37,Scores!$P37:$AI37,0) -> 20 | O37: =RANK(Scores!AA37,Scores!$P37:$AI37,0) -> 1 | P37: =RANK(Scores!AB37,Scores!$P37:$AI37,0) -> 11 | Q37: =RANK(Scores!AC37,Scores!$P37:$AI37,0) -> 15 | R37: =RANK(Scores!AD37,Scores!$P37:$AI37,0) -> 12 | S37: =RANK(Scores!AE37,Scores!$P37:$AI37,0) -> 18 | T37: =RANK(Scores!AF37,Scores!$P37:$AI37,0) -> 8 | U37: =RANK(Scores!AG37,Scores!$P37:$AI37,0) -> 4 | V37: =RANK(Scores!AH37,Scores!$P37:$AI37,0) -> 5 | W37: =RANK(Scores!AI37,Scores!$P37:$AI37,0) -> 16
B38: =tblIndicators!AE32 -> 2.4.3) Quality of road infrastructure | D38: =RANK(Scores!P38,Scores!$P38:$AI38,0) -> 18 | E38: =RANK(Scores!Q38,Scores!$P38:$AI38,0) -> 6 | F38: =RANK(Scores!R38,Scores!$P38:$AI38,0) -> 7 | G38: =RANK(Scores!S38,Scores!$P38:$AI38,0) -> 10 | H38: =RANK(Scores!T38,Scores!$P38:$AI38,0) -> 1 | I38: =RANK(Scores!U38,Scores!$P38:$AI38,0) -> 14 | J38: =RANK(Scores!V38,Scores!$P38:$AI38,0) -> 12 | K38: =RANK(Scores!W38,Scores!$P38:$AI38,0) -> 2 | L38: =RANK(Scores!X38,Scores!$P38:$AI38,0) -> 11 | M38: =RANK(Scores!Y38,Scores!$P38:$AI38,0) -> 8 | N38: =RANK(Scores!Z38,Scores!$P38:$AI38,0) -> 20 | O38: =RANK(Scores!AA38,Scores!$P38:$AI38,0) -> 13 | P38: =RANK(Scores!AB38,Scores!$P38:$AI38,0) -> 16 | Q38: =RANK(Scores!AC38,Scores!$P38:$AI38,0) -> 15 | R38: =RANK(Scores!AD38,Scores!$P38:$AI38,0) -> 19 | S38: =RANK(Scores!AE38,Scores!$P38:$AI38,0) -> 9 | T38: =RANK(Scores!AF38,Scores!$P38:$AI38,0) -> 5 | U38: =RANK(Scores!AG38,Scores!$P38:$AI38,0) -> 3 | V38: =RANK(Scores!AH38,Scores!$P38:$AI38,0) -> 4 | W38: =RANK(Scores!AI38,Scores!$P38:$AI38,0) -> 17
B39: =tblIndicators!AE33 -> 2.4.4) Quality of railroad infrastructure | D39: =RANK(Scores!P39,Scores!$P39:$AI39,0) -> 19 | E39: =RANK(Scores!Q39,Scores!$P39:$AI39,0) -> 7 | F39: =RANK(Scores!R39,Scores!$P39:$AI39,0) -> 16 | G39: =RANK(Scores!S39,Scores!$P39:$AI39,0) -> 6 | H39: =RANK(Scores!T39,Scores!$P39:$AI39,0) -> 3 | I39: =RANK(Scores!U39,Scores!$P39:$AI39,0) -> 9 | J39: =RANK(Scores!V39,Scores!$P39:$AI39,0) -> 12 | K39: =RANK(Scores!W39,Scores!$P39:$AI39,0) -> 1 | L39: =RANK(Scores!X39,Scores!$P39:$AI39,0) -> 15 | M39: =RANK(Scores!Y39,Scores!$P39:$AI39,0) -> 11 | N39: =RANK(Scores!Z39,Scores!$P39:$AI39,0) -> 20 | O39: =RANK(Scores!AA39,Scores!$P39:$AI39,0) -> 10 | P39: =RANK(Scores!AB39,Scores!$P39:$AI39,0) -> 18 | Q39: =RANK(Scores!AC39,Scores!$P39:$AI39,0) -> 17 | R39: =RANK(Scores!AD39,Scores!$P39:$AI39,0) -> 8 | S39: =RANK(Scores!AE39,Scores!$P39:$AI39,0) -> 13 | T39: =RANK(Scores!AF39,Scores!$P39:$AI39,0) -> 4 | U39: =RANK(Scores!AG39,Scores!$P39:$AI39,0) -> 2 | V39: =RANK(Scores!AH39,Scores!$P39:$AI39,0) -> 5 | W39: =RANK(Scores!AI39,Scores!$P39:$AI39,0) -> 14
B40: =tblIndicators!AE34 -> 2.4.5) Quality of water infrastructure | D40: =RANK(Scores!P40,Scores!$P40:$AI40,0) -> 10 | E40: =RANK(Scores!Q40,Scores!$P40:$AI40,0) -> 5 | F40: =RANK(Scores!R40,Scores!$P40:$AI40,0) -> 8 | G40: =RANK(Scores!S40,Scores!$P40:$AI40,0) -> 16 | H40: =RANK(Scores!T40,Scores!$P40:$AI40,0) -> 1 | I40: =RANK(Scores!U40,Scores!$P40:$AI40,0) -> 18 | J40: =RANK(Scores!V40,Scores!$P40:$AI40,0) -> 19 | K40: =RANK(Scores!W40,Scores!$P40:$AI40,0) -> 1 | L40: =RANK(Scores!X40,Scores!$P40:$AI40,0) -> 11 | M40: =RANK(Scores!Y40,Scores!$P40:$AI40,0) -> 9 | N40: =RANK(Scores!Z40,Scores!$P40:$AI40,0) -> 20 | O40: =RANK(Scores!AA40,Scores!$P40:$AI40,0) -> 1 | P40: =RANK(Scores!AB40,Scores!$P40:$AI40,0) -> 17 | Q40: =RANK(Scores!AC40,Scores!$P40:$AI40,0) -> 14 | R40: =RANK(Scores!AD40,Scores!$P40:$AI40,0) -> 12 | S40: =RANK(Scores!AE40,Scores!$P40:$AI40,0) -> 15 | T40: =RANK(Scores!AF40,Scores!$P40:$AI40,0) -> 7 | U40: =RANK(Scores!AG40,Scores!$P40:$AI40,0) -> 4 | V40: =RANK(Scores!AH40,Scores!$P40:$AI40,0) -> 6 | W40: =RANK(Scores!AI40,Scores!$P40:$AI40,0) -> 13
B41: =tblIndicators!AE35 -> 3) WATER QUALITY | D41: =RANK(Scores!P41,Scores!$P41:$AI41,0) -> 12 | E41: =RANK(Scores!Q41,Scores!$P41:$AI41,0) -> 16 | F41: =RANK(Scores!R41,Scores!$P41:$AI41,0) -> 4 | G41: =RANK(Scores!S41,Scores!$P41:$AI41,0) -> 17 | H41: =RANK(Scores!T41,Scores!$P41:$AI41,0) -> 1 | I41: =RANK(Scores!U41,Scores!$P41:$AI41,0) -> 11 | J41: =RANK(Scores!V41,Scores!$P41:$AI41,0) -> 14 | K41: =RANK(Scores!W41,Scores!$P41:$AI41,0) -> 3 | L41: =RANK(Scores!X41,Scores!$P41:$AI41,0) -> 9 | M41: =RANK(Scores!Y41,Scores!$P41:$AI41,0) -> 2 | N41: =RANK(Scores!Z41,Scores!$P41:$AI41,0) -> 18 | O41: =RANK(Scores!AA41,Scores!$P41:$AI41,0) -> 8 | P41: =RANK(Scores!AB41,Scores!$P41:$AI41,0) -> 10 | Q41: =RANK(Scores!AC41,Scores!$P41:$AI41,0) -> 19 | R41: =RANK(Scores!AD41,Scores!$P41:$AI41,0) -> 20 | S41: =RANK(Scores!AE41,Scores!$P41:$AI41,0) -> 15 | T41: =RANK(Scores!AF41,Scores!$P41:$AI41,0) -> 7 | U41: =RANK(Scores!AG41,Scores!$P41:$AI41,0) -> 6 | V41: =RANK(Scores!AH41,Scores!$P41:$AI41,0) -> 5 | W41: =RANK(Scores!AI41,Scores!$P41:$AI41,0) -> 13
B42: =tblIndicators!AE36 -> 3.1) Agency | D42: =RANK(Scores!P42,Scores!$P42:$AI42,0) -> 1 | E42: =RANK(Scores!Q42,Scores!$P42:$AI42,0) -> 20 | F42: =RANK(Scores!R42,Scores!$P42:$AI42,0) -> 1 | G42: =RANK(Scores!S42,Scores!$P42:$AI42,0) -> 1 | H42: =RANK(Scores!T42,Scores!$P42:$AI42,0) -> 1 | I42: =RANK(Scores!U42,Scores!$P42:$AI42,0) -> 1 | J42: =RANK(Scores!V42,Scores!$P42:$AI42,0) -> 1 | K42: =RANK(Scores!W42,Scores!$P42:$AI42,0) -> 1 | L42: =RANK(Scores!X42,Scores!$P42:$AI42,0) -> 1 | M42: =RANK(Scores!Y42,Scores!$P42:$AI42,0) -> 1 | N42: =RANK(Scores!Z42,Scores!$P42:$AI42,0) -> 1 | O42: =RANK(Scores!AA42,Scores!$P42:$AI42,0) -> 1 | P42: =RANK(Scores!AB42,Scores!$P42:$AI42,0) -> 1 | Q42: =RANK(Scores!AC42,Scores!$P42:$AI42,0) -> 1 | R42: =RANK(Scores!AD42,Scores!$P42:$AI42,0) -> 1 | S42: =RANK(Scores!AE42,Scores!$P42:$AI42,0) -> 1 | T42: =RANK(Scores!AF42,Scores!$P42:$AI42,0) -> 1 | U42: =RANK(Scores!AG42,Scores!$P42:$AI42,0) -> 1 | V42: =RANK(Scores!AH42,Scores!$P42:$AI42,0) -> 1 | W42: =RANK(Scores!AI42,Scores!$P42:$AI42,0) -> 1
B43: =tblIndicators!AE37 -> 3.1.1) Agency responsible for freshwater pollution controls | D43: =RANK(Scores!P43,Scores!$P43:$AI43,0) -> 1 | E43: =RANK(Scores!Q43,Scores!$P43:$AI43,0) -> 20 | F43: =RANK(Scores!R43,Scores!$P43:$AI43,0) -> 1 | G43: =RANK(Scores!S43,Scores!$P43:$AI43,0) -> 1 | H43: =RANK(Scores!T43,Scores!$P43:$AI43,0) -> 1 | I43: =RANK(Scores!U43,Scores!$P43:$AI43,0) -> 1 | J43: =RANK(Scores!V43,Scores!$P43:$AI43,0) -> 1 | K43: =RANK(Scores!W43,Scores!$P43:$AI43,0) -> 1 | L43: =RANK(Scores!X43,Scores!$P43:$AI43,0) -> 1 | M43: =RANK(Scores!Y43,Scores!$P43:$AI43,0) -> 1 | N43: =RANK(Scores!Z43,Scores!$P43:$AI43,0) -> 1 | O43: =RANK(Scores!AA43,Scores!$P43:$AI43,0) -> 1 | P43: =RANK(Scores!AB43,Scores!$P43:$AI43,0) -> 1 | Q43: =RANK(Scores!AC43,Scores!$P43:$AI43,0) -> 1 | R43: =RANK(Scores!AD43,Scores!$P43:$AI43,0) -> 1 | S43: =RANK(Scores!AE43,Scores!$P43:$AI43,0) -> 1 | T43: =RANK(Scores!AF43,Scores!$P43:$AI43,0) -> 1 | U43: =RANK(Scores!AG43,Scores!$P43:$AI43,0) -> 1 | V43: =RANK(Scores!AH43,Scores!$P43:$AI43,0) -> 1 | W43: =RANK(Scores!AI43,Scores!$P43:$AI43,0) -> 1
B44: =tblIndicators!AE38 -> 3.2) Regulatory standards for water pollution | D44: =RANK(Scores!P44,Scores!$P44:$AI44,0) -> 14 | E44: =RANK(Scores!Q44,Scores!$P44:$AI44,0) -> 2 | F44: =RANK(Scores!R44,Scores!$P44:$AI44,0) -> 8 | G44: =RANK(Scores!S44,Scores!$P44:$AI44,0) -> 19 | H44: =RANK(Scores!T44,Scores!$P44:$AI44,0) -> 3 | I44: =RANK(Scores!U44,Scores!$P44:$AI44,0) -> 13 | J44: =RANK(Scores!V44,Scores!$P44:$AI44,0) -> 17 | K44: =RANK(Scores!W44,Scores!$P44:$AI44,0) -> 7 | L44: =RANK(Scores!X44,Scores!$P44:$AI44,0) -> 10 | M44: =RANK(Scores!Y44,Scores!$P44:$AI44,0) -> 5 | N44: =RANK(Scores!Z44,Scores!$P44:$AI44,0) -> 16 | O44: =RANK(Scores!AA44,Scores!$P44:$AI44,0) -> 6 | P44: =RANK(Scores!AB44,Scores!$P44:$AI44,0) -> 12 | Q44: =RANK(Scores!AC44,Scores!$P44:$AI44,0) -> 18 | R44: =RANK(Scores!AD44,Scores!$P44:$AI44,0) -> 20 | S44: =RANK(Scores!AE44,Scores!$P44:$AI44,0) -> 11 | T44: =RANK(Scores!AF44,Scores!$P44:$AI44,0) -> 4 | U44: =RANK(Scores!AG44,Scores!$P44:$AI44,0) -> 1 | V44: =RANK(Scores!AH44,Scores!$P44:$AI44,0) -> 9 | W44: =RANK(Scores!AI44,Scores!$P44:$AI44,0) -> 15
B45: =tblIndicators!AE39 -> 3.2.1) Standards for point source pollution | D45: =RANK(Scores!P45,Scores!$P45:$AI45,0) -> 1 | E45: =RANK(Scores!Q45,Scores!$P45:$AI45,0) -> 1 | F45: =RANK(Scores!R45,Scores!$P45:$AI45,0) -> 1 | G45: =RANK(Scores!S45,Scores!$P45:$AI45,0) -> 1 | H45: =RANK(Scores!T45,Scores!$P45:$AI45,0) -> 1 | I45: =RANK(Scores!U45,Scores!$P45:$AI45,0) -> 1 | J45: =RANK(Scores!V45,Scores!$P45:$AI45,0) -> 1 | K45: =RANK(Scores!W45,Scores!$P45:$AI45,0) -> 1 | L45: =RANK(Scores!X45,Scores!$P45:$AI45,0) -> 1 | M45: =RANK(Scores!Y45,Scores!$P45:$AI45,0) -> 1 | N45: =RANK(Scores!Z45,Scores!$P45:$AI45,0) -> 1 | O45: =RANK(Scores!AA45,Scores!$P45:$AI45,0) -> 1 | P45: =RANK(Scores!AB45,Scores!$P45:$AI45,0) -> 1 | Q45: =RANK(Scores!AC45,Scores!$P45:$AI45,0) -> 1 | R45: =RANK(Scores!AD45,Scores!$P45:$AI45,0) -> 1 | S45: =RANK(Scores!AE45,Scores!$P45:$AI45,0) -> 1 | T45: =RANK(Scores!AF45,Scores!$P45:$AI45,0) -> 1 | U45: =RANK(Scores!AG45,Scores!$P45:$AI45,0) -> 1 | V45: =RANK(Scores!AH45,Scores!$P45:$AI45,0) -> 1 | W45: =RANK(Scores!AI45,Scores!$P45:$AI45,0) -> 1
B46: =tblIndicators!AE40 -> 3.2.2) Restrictions on "Dirty Dozen" persistent pollutants | D46: =RANK(Scores!P46,Scores!$P46:$AI46,0) -> 10 | E46: =RANK(Scores!Q46,Scores!$P46:$AI46,0) -> 1 | F46: =RANK(Scores!R46,Scores!$P46:$AI46,0) -> 3 | G46: =RANK(Scores!S46,Scores!$P46:$AI46,0) -> 19 | H46: =RANK(Scores!T46,Scores!$P46:$AI46,0) -> 3 | I46: =RANK(Scores!U46,Scores!$P46:$AI46,0) -> 3 | J46: =RANK(Scores!V46,Scores!$P46:$AI46,0) -> 13 | K46: =RANK(Scores!W46,Scores!$P46:$AI46,0) -> 3 | L46: =RANK(Scores!X46,Scores!$P46:$AI46,0) -> 16 | M46: =RANK(Scores!Y46,Scores!$P46:$AI46,0) -> 1 | N46: =RANK(Scores!Z46,Scores!$P46:$AI46,0) -> 13 | O46: =RANK(Scores!AA46,Scores!$P46:$AI46,0) -> 3 | P46: =RANK(Scores!AB46,Scores!$P46:$AI46,0) -> 13 | Q46: =RANK(Scores!AC46,Scores!$P46:$AI46,0) -> 18 | R46: =RANK(Scores!AD46,Scores!$P46:$AI46,0) -> 20 | S46: =RANK(Scores!AE46,Scores!$P46:$AI46,0) -> 10 | T46: =RANK(Scores!AF46,Scores!$P46:$AI46,0) -> 3 | U46: =RANK(Scores!AG46,Scores!$P46:$AI46,0) -> 3 | V46: =RANK(Scores!AH46,Scores!$P46:$AI46,0) -> 16 | W46: =RANK(Scores!AI46,Scores!$P46:$AI46,0) -> 10
B47: =tblIndicators!AE41 -> 3.2.3) Wastewater treatment | D47: =RANK(Scores!P47,Scores!$P47:$AI47,0) -> 15 | E47: =RANK(Scores!Q47,Scores!$P47:$AI47,0) -> 4 | F47: =RANK(Scores!R47,Scores!$P47:$AI47,0) -> 8 | G47: =RANK(Scores!S47,Scores!$P47:$AI47,0) -> 14 | H47: =RANK(Scores!T47,Scores!$P47:$AI47,0) -> 2 | I47: =RANK(Scores!U47,Scores!$P47:$AI47,0) -> 16 | J47: =RANK(Scores!V47,Scores!$P47:$AI47,0) -> 20 | K47: =RANK(Scores!W47,Scores!$P47:$AI47,0) -> 7 | L47: =RANK(Scores!X47,Scores!$P47:$AI47,0) -> 10 | M47: =RANK(Scores!Y47,Scores!$P47:$AI47,0) -> 5 | N47: =RANK(Scores!Z47,Scores!$P47:$AI47,0) -> 17 | O47: =RANK(Scores!AA47,Scores!$P47:$AI47,0) -> 6 | P47: =RANK(Scores!AB47,Scores!$P47:$AI47,0) -> 13 | Q47: =RANK(Scores!AC47,Scores!$P47:$AI47,0) -> 18 | R47: =RANK(Scores!AD47,Scores!$P47:$AI47,0) -> 12 | S47: =RANK(Scores!AE47,Scores!$P47:$AI47,0) -> 11 | T47: =RANK(Scores!AF47,Scores!$P47:$AI47,0) -> 3 | U47: =RANK(Scores!AG47,Scores!$P47:$AI47,0) -> 1 | V47: =RANK(Scores!AH47,Scores!$P47:$AI47,0) -> 9 | W47: =RANK(Scores!AI47,Scores!$P47:$AI47,0) -> 19
B48: =tblIndicators!AE42 -> 3.3) Monitoring and enforcement | D48: =RANK(Scores!P48,Scores!$P48:$AI48,0) -> 1 | E48: =RANK(Scores!Q48,Scores!$P48:$AI48,0) -> 1 | F48: =RANK(Scores!R48,Scores!$P48:$AI48,0) -> 1 | G48: =RANK(Scores!S48,Scores!$P48:$AI48,0) -> 13 | H48: =RANK(Scores!T48,Scores!$P48:$AI48,0) -> 1 | I48: =RANK(Scores!U48,Scores!$P48:$AI48,0) -> 1 | J48: =RANK(Scores!V48,Scores!$P48:$AI48,0) -> 1 | K48: =RANK(Scores!W48,Scores!$P48:$AI48,0) -> 1 | L48: =RANK(Scores!X48,Scores!$P48:$AI48,0) -> 1 | M48: =RANK(Scores!Y48,Scores!$P48:$AI48,0) -> 1 | N48: =RANK(Scores!Z48,Scores!$P48:$AI48,0) -> 18 | O48: =RANK(Scores!AA48,Scores!$P48:$AI48,0) -> 13 | P48: =RANK(Scores!AB48,Scores!$P48:$AI48,0) -> 1 | Q48: =RANK(Scores!AC48,Scores!$P48:$AI48,0) -> 18 | R48: =RANK(Scores!AD48,Scores!$P48:$AI48,0) -> 18 | S48: =RANK(Scores!AE48,Scores!$P48:$AI48,0) -> 13 | T48: =RANK(Scores!AF48,Scores!$P48:$AI48,0) -> 13 | U48: =RANK(Scores!AG48,Scores!$P48:$AI48,0) -> 13 | V48: =RANK(Scores!AH48,Scores!$P48:$AI48,0) -> 1 | W48: =RANK(Scores!AI48,Scores!$P48:$AI48,0) -> 1
B49: =tblIndicators!AE43 -> 3.3.1) Coastal water quality data | D49: =RANK(Scores!P49,Scores!$P49:$AI49,0) -> 1 | E49: =RANK(Scores!Q49,Scores!$P49:$AI49,0) -> 1 | F49: =RANK(Scores!R49,Scores!$P49:$AI49,0) -> 1 | G49: =RANK(Scores!S49,Scores!$P49:$AI49,0) -> 13 | H49: =RANK(Scores!T49,Scores!$P49:$AI49,0) -> 1 | I49: =RANK(Scores!U49,Scores!$P49:$AI49,0) -> 1 | J49: =RANK(Scores!V49,Scores!$P49:$AI49,0) -> 1 | K49: =RANK(Scores!W49,Scores!$P49:$AI49,0) -> 1 | L49: =RANK(Scores!X49,Scores!$P49:$AI49,0) -> 1 | M49: =RANK(Scores!Y49,Scores!$P49:$AI49,0) -> 1 | N49: =RANK(Scores!Z49,Scores!$P49:$AI49,0) -> 18 | O49: =RANK(Scores!AA49,Scores!$P49:$AI49,0) -> 13 | P49: =RANK(Scores!AB49,Scores!$P49:$AI49,0) -> 1 | Q49: =RANK(Scores!AC49,Scores!$P49:$AI49,0) -> 18 | R49: =RANK(Scores!AD49,Scores!$P49:$AI49,0) -> 18 | S49: =RANK(Scores!AE49,Scores!$P49:$AI49,0) -> 13 | T49: =RANK(Scores!AF49,Scores!$P49:$AI49,0) -> 13 | U49: =RANK(Scores!AG49,Scores!$P49:$AI49,0) -> 13 | V49: =RANK(Scores!AH49,Scores!$P49:$AI49,0) -> 1 | W49: =RANK(Scores!AI49,Scores!$P49:$AI49,0) -> 1
B50: =tblIndicators!AE44 -> 3.3.2) Penalties for water quality violations | D50: =RANK(Scores!P50,Scores!$P50:$AI50,0) -> 1 | E50: =RANK(Scores!Q50,Scores!$P50:$AI50,0) -> 1 | F50: =RANK(Scores!R50,Scores!$P50:$AI50,0) -> 1 | G50: =RANK(Scores!S50,Scores!$P50:$AI50,0) -> 1 | H50: =RANK(Scores!T50,Scores!$P50:$AI50,0) -> 1 | I50: =RANK(Scores!U50,Scores!$P50:$AI50,0) -> 1 | J50: =RANK(Scores!V50,Scores!$P50:$AI50,0) -> 1 | K50: =RANK(Scores!W50,Scores!$P50:$AI50,0) -> 1 | L50: =RANK(Scores!X50,Scores!$P50:$AI50,0) -> 1 | M50: =RANK(Scores!Y50,Scores!$P50:$AI50,0) -> 1 | N50: =RANK(Scores!Z50,Scores!$P50:$AI50,0) -> 1 | O50: =RANK(Scores!AA50,Scores!$P50:$AI50,0) -> 1 | P50: =RANK(Scores!AB50,Scores!$P50:$AI50,0) -> 1 | Q50: =RANK(Scores!AC50,Scores!$P50:$AI50,0) -> 1 | R50: =RANK(Scores!AD50,Scores!$P50:$AI50,0) -> 1 | S50: =RANK(Scores!AE50,Scores!$P50:$AI50,0) -> 1 | T50: =RANK(Scores!AF50,Scores!$P50:$AI50,0) -> 1 | U50: =RANK(Scores!AG50,Scores!$P50:$AI50,0) -> 1 | V50: =RANK(Scores!AH50,Scores!$P50:$AI50,0) -> 1 | W50: =RANK(Scores!AI50,Scores!$P50:$AI50,0) -> 1
B51: =tblIndicators!AE45 -> 4) MINERALS AND ENERGY | D51: =RANK(Scores!P51,Scores!$P51:$AI51,0) -> 6 | E51: =RANK(Scores!Q51,Scores!$P51:$AI51,0) -> 3 | F51: =RANK(Scores!R51,Scores!$P51:$AI51,0) -> 11 | G51: =RANK(Scores!S51,Scores!$P51:$AI51,0) -> 10 | H51: =RANK(Scores!T51,Scores!$P51:$AI51,0) -> 18 | I51: =RANK(Scores!U51,Scores!$P51:$AI51,0) -> 12 | J51: =RANK(Scores!V51,Scores!$P51:$AI51,0) -> 20 | K51: =RANK(Scores!W51,Scores!$P51:$AI51,0) -> 1 | L51: =RANK(Scores!X51,Scores!$P51:$AI51,0) -> 15 | M51: =RANK(Scores!Y51,Scores!$P51:$AI51,0) -> 6 | N51: =RANK(Scores!Z51,Scores!$P51:$AI51,0) -> 3 | O51: =RANK(Scores!AA51,Scores!$P51:$AI51,0) -> 1 | P51: =RANK(Scores!AB51,Scores!$P51:$AI51,0) -> 15 | Q51: =RANK(Scores!AC51,Scores!$P51:$AI51,0) -> 14 | R51: =RANK(Scores!AD51,Scores!$P51:$AI51,0) -> 15 | S51: =RANK(Scores!AE51,Scores!$P51:$AI51,0) -> 6 | T51: =RANK(Scores!AF51,Scores!$P51:$AI51,0) -> 9 | U51: =RANK(Scores!AG51,Scores!$P51:$AI51,0) -> 13 | V51: =RANK(Scores!AH51,Scores!$P51:$AI51,0) -> 3 | W51: =RANK(Scores!AI51,Scores!$P51:$AI51,0) -> 19
B52: =tblIndicators!AE46 -> 4.1) Permitting and licensing | D52: =RANK(Scores!P52,Scores!$P52:$AI52,0) -> 1 | E52: =RANK(Scores!Q52,Scores!$P52:$AI52,0) -> 1 | F52: =RANK(Scores!R52,Scores!$P52:$AI52,0) -> 19 | G52: =RANK(Scores!S52,Scores!$P52:$AI52,0) -> 1 | H52: =RANK(Scores!T52,Scores!$P52:$AI52,0) -> 1 | I52: =RANK(Scores!U52,Scores!$P52:$AI52,0) -> 16 | J52: =RANK(Scores!V52,Scores!$P52:$AI52,0) -> 20 | K52: =RANK(Scores!W52,Scores!$P52:$AI52,0) -> 1 | L52: =RANK(Scores!X52,Scores!$P52:$AI52,0) -> 16 | M52: =RANK(Scores!Y52,Scores!$P52:$AI52,0) -> 1 | N52: =RANK(Scores!Z52,Scores!$P52:$AI52,0) -> 1 | O52: =RANK(Scores!AA52,Scores!$P52:$AI52,0) -> 1 | P52: =RANK(Scores!AB52,Scores!$P52:$AI52,0) -> 1 | Q52: =RANK(Scores!AC52,Scores!$P52:$AI52,0) -> 1 | R52: =RANK(Scores!AD52,Scores!$P52:$AI52,0) -> 1 | S52: =RANK(Scores!AE52,Scores!$P52:$AI52,0) -> 1 | T52: =RANK(Scores!AF52,Scores!$P52:$AI52,0) -> 1 | U52: =RANK(Scores!AG52,Scores!$P52:$AI52,0) -> 1 | V52: =RANK(Scores!AH52,Scores!$P52:$AI52,0) -> 1 | W52: =RANK(Scores!AI52,Scores!$P52:$AI52,0) -> 16
B53: =tblIndicators!AE47 -> 4.1.1) Oil and gas tenure | D53: =RANK(Scores!P53,Scores!$P53:$AI53,0) -> 1 | E53: =RANK(Scores!Q53,Scores!$P53:$AI53,0) -> 1 | F53: =RANK(Scores!R53,Scores!$P53:$AI53,0) -> 16 | G53: =RANK(Scores!S53,Scores!$P53:$AI53,0) -> 1 | H53: =RANK(Scores!T53,Scores!$P53:$AI53,0) -> 1 | I53: =RANK(Scores!U53,Scores!$P53:$AI53,0) -> 16 | J53: =RANK(Scores!V53,Scores!$P53:$AI53,0) -> 16 | K53: =RANK(Scores!W53,Scores!$P53:$AI53,0) -> 1 | L53: =RANK(Scores!X53,Scores!$P53:$AI53,0) -> 16 | M53: =RANK(Scores!Y53,Scores!$P53:$AI53,0) -> 1 | N53: =RANK(Scores!Z53,Scores!$P53:$AI53,0) -> 1 | O53: =RANK(Scores!AA53,Scores!$P53:$AI53,0) -> 1 | P53: =RANK(Scores!AB53,Scores!$P53:$AI53,0) -> 1 | Q53: =RANK(Scores!AC53,Scores!$P53:$AI53,0) -> 1 | R53: =RANK(Scores!AD53,Scores!$P53:$AI53,0) -> 1 | S53: =RANK(Scores!AE53,Scores!$P53:$AI53,0) -> 1 | T53: =RANK(Scores!AF53,Scores!$P53:$AI53,0) -> 1 | U53: =RANK(Scores!AG53,Scores!$P53:$AI53,0) -> 1 | V53: =RANK(Scores!AH53,Scores!$P53:$AI53,0) -> 1 | W53: =RANK(Scores!AI53,Scores!$P53:$AI53,0) -> 16
B54: =tblIndicators!AE48 -> 4.1.2) Mining and minerals tenure | D54: =RANK(Scores!P54,Scores!$P54:$AI54,0) -> 1 | E54: =RANK(Scores!Q54,Scores!$P54:$AI54,0) -> 1 | F54: =RANK(Scores!R54,Scores!$P54:$AI54,0) -> 19 | G54: =RANK(Scores!S54,Scores!$P54:$AI54,0) -> 1 | H54: =RANK(Scores!T54,Scores!$P54:$AI54,0) -> 1 | I54: =RANK(Scores!U54,Scores!$P54:$AI54,0) -> 1 | J54: =RANK(Scores!V54,Scores!$P54:$AI54,0) -> 20 | K54: =RANK(Scores!W54,Scores!$P54:$AI54,0) -> 1 | L54: =RANK(Scores!X54,Scores!$P54:$AI54,0) -> 1 | M54: =RANK(Scores!Y54,Scores!$P54:$AI54,0) -> 1 | N54: =RANK(Scores!Z54,Scores!$P54:$AI54,0) -> 1 | O54: =RANK(Scores!AA54,Scores!$P54:$AI54,0) -> 1 | P54: =RANK(Scores!AB54,Scores!$P54:$AI54,0) -> 1 | Q54: =RANK(Scores!AC54,Scores!$P54:$AI54,0) -> 1 | R54: =RANK(Scores!AD54,Scores!$P54:$AI54,0) -> 1 | S54: =RANK(Scores!AE54,Scores!$P54:$AI54,0) -> 1 | T54: =RANK(Scores!AF54,Scores!$P54:$AI54,0) -> 1 | U54: =RANK(Scores!AG54,Scores!$P54:$AI54,0) -> 1 | V54: =RANK(Scores!AH54,Scores!$P54:$AI54,0) -> 1 | W54: =RANK(Scores!AI54,Scores!$P54:$AI54,0) -> 1
B55: =tblIndicators!AE49 -> 4.2) Monitoring and enforcement | D55: =RANK(Scores!P55,Scores!$P55:$AI55,0) -> 9 | E55: =RANK(Scores!Q55,Scores!$P55:$AI55,0) -> 1 | F55: =RANK(Scores!R55,Scores!$P55:$AI55,0) -> 1 | G55: =RANK(Scores!S55,Scores!$P55:$AI55,0) -> 9 | H55: =RANK(Scores!T55,Scores!$P55:$AI55,0) -> 20 | I55: =RANK(Scores!U55,Scores!$P55:$AI55,0) -> 9 | J55: =RANK(Scores!V55,Scores!$P55:$AI55,0) -> 16 | K55: =RANK(Scores!W55,Scores!$P55:$AI55,0) -> 1 | L55: =RANK(Scores!X55,Scores!$P55:$AI55,0) -> 1 | M55: =RANK(Scores!Y55,Scores!$P55:$AI55,0) -> 9 | N55: =RANK(Scores!Z55,Scores!$P55:$AI55,0) -> 1 | O55: =RANK(Scores!AA55,Scores!$P55:$AI55,0) -> 1 | P55: =RANK(Scores!AB55,Scores!$P55:$AI55,0) -> 16 | Q55: =RANK(Scores!AC55,Scores!$P55:$AI55,0) -> 9 | R55: =RANK(Scores!AD55,Scores!$P55:$AI55,0) -> 16 | S55: =RANK(Scores!AE55,Scores!$P55:$AI55,0) -> 9 | T55: =RANK(Scores!AF55,Scores!$P55:$AI55,0) -> 1 | U55: =RANK(Scores!AG55,Scores!$P55:$AI55,0) -> 16 | V55: =RANK(Scores!AH55,Scores!$P55:$AI55,0) -> 1 | W55: =RANK(Scores!AI55,Scores!$P55:$AI55,0) -> 9
B56: =tblIndicators!AE50 -> 4.2.1) Environmental impact assessment for oil and gas | D56: =RANK(Scores!P56,Scores!$P56:$AI56,0) -> 1 | E56: =RANK(Scores!Q56,Scores!$P56:$AI56,0) -> 1 | F56: =RANK(Scores!R56,Scores!$P56:$AI56,0) -> 1 | G56: =RANK(Scores!S56,Scores!$P56:$AI56,0) -> 1 | H56: =RANK(Scores!T56,Scores!$P56:$AI56,0) -> 1 | I56: =RANK(Scores!U56,Scores!$P56:$AI56,0) -> 1 | J56: =RANK(Scores!V56,Scores!$P56:$AI56,0) -> 1 | K56: =RANK(Scores!W56,Scores!$P56:$AI56,0) -> 1 | L56: =RANK(Scores!X56,Scores!$P56:$AI56,0) -> 1 | M56: =RANK(Scores!Y56,Scores!$P56:$AI56,0) -> 1 | N56: =RANK(Scores!Z56,Scores!$P56:$AI56,0) -> 1 | O56: =RANK(Scores!AA56,Scores!$P56:$AI56,0) -> 1 | P56: =RANK(Scores!AB56,Scores!$P56:$AI56,0) -> 1 | Q56: =RANK(Scores!AC56,Scores!$P56:$AI56,0) -> 1 | R56: =RANK(Scores!AD56,Scores!$P56:$AI56,0) -> 1 | S56: =RANK(Scores!AE56,Scores!$P56:$AI56,0) -> 1 | T56: =RANK(Scores!AF56,Scores!$P56:$AI56,0) -> 1 | U56: =RANK(Scores!AG56,Scores!$P56:$AI56,0) -> 1 | V56: =RANK(Scores!AH56,Scores!$P56:$AI56,0) -> 1 | W56: =RANK(Scores!AI56,Scores!$P56:$AI56,0) -> 1
B57: =tblIndicators!AE51 -> 4.2.2) Environment impact assessment for mining and minerals | D57: =RANK(Scores!P57,Scores!$P57:$AI57,0) -> 1 | E57: =RANK(Scores!Q57,Scores!$P57:$AI57,0) -> 1 | F57: =RANK(Scores!R57,Scores!$P57:$AI57,0) -> 1 | G57: =RANK(Scores!S57,Scores!$P57:$AI57,0) -> 1 | H57: =RANK(Scores!T57,Scores!$P57:$AI57,0) -> 1 | I57: =RANK(Scores!U57,Scores!$P57:$AI57,0) -> 1 | J57: =RANK(Scores!V57,Scores!$P57:$AI57,0) -> 1 | K57: =RANK(Scores!W57,Scores!$P57:$AI57,0) -> 1 | L57: =RANK(Scores!X57,Scores!$P57:$AI57,0) -> 1 | M57: =RANK(Scores!Y57,Scores!$P57:$AI57,0) -> 1 | N57: =RANK(Scores!Z57,Scores!$P57:$AI57,0) -> 1 | O57: =RANK(Scores!AA57,Scores!$P57:$AI57,0) -> 1 | P57: =RANK(Scores!AB57,Scores!$P57:$AI57,0) -> 1 | Q57: =RANK(Scores!AC57,Scores!$P57:$AI57,0) -> 1 | R57: =RANK(Scores!AD57,Scores!$P57:$AI57,0) -> 1 | S57: =RANK(Scores!AE57,Scores!$P57:$AI57,0) -> 1 | T57: =RANK(Scores!AF57,Scores!$P57:$AI57,0) -> 1 | U57: =RANK(Scores!AG57,Scores!$P57:$AI57,0) -> 1 | V57: =RANK(Scores!AH57,Scores!$P57:$AI57,0) -> 1 | W57: =RANK(Scores!AI57,Scores!$P57:$AI57,0) -> 1
B58: =tblIndicators!AE52 -> 4.2.3) On-site reviews | D58: =RANK(Scores!P58,Scores!$P58:$AI58,0) -> 1 | E58: =RANK(Scores!Q58,Scores!$P58:$AI58,0) -> 1 | F58: =RANK(Scores!R58,Scores!$P58:$AI58,0) -> 1 | G58: =RANK(Scores!S58,Scores!$P58:$AI58,0) -> 1 | H58: =RANK(Scores!T58,Scores!$P58:$AI58,0) -> 19 | I58: =RANK(Scores!U58,Scores!$P58:$AI58,0) -> 1 | J58: =RANK(Scores!V58,Scores!$P58:$AI58,0) -> 1 | K58: =RANK(Scores!W58,Scores!$P58:$AI58,0) -> 1 | L58: =RANK(Scores!X58,Scores!$P58:$AI58,0) -> 1 | M58: =RANK(Scores!Y58,Scores!$P58:$AI58,0) -> 1 | N58: =RANK(Scores!Z58,Scores!$P58:$AI58,0) -> 1 | O58: =RANK(Scores!AA58,Scores!$P58:$AI58,0) -> 1 | P58: =RANK(Scores!AB58,Scores!$P58:$AI58,0) -> 1 | Q58: =RANK(Scores!AC58,Scores!$P58:$AI58,0) -> 1 | R58: =RANK(Scores!AD58,Scores!$P58:$AI58,0) -> 1 | S58: =RANK(Scores!AE58,Scores!$P58:$AI58,0) -> 1 | T58: =RANK(Scores!AF58,Scores!$P58:$AI58,0) -> 1 | U58: =RANK(Scores!AG58,Scores!$P58:$AI58,0) -> 19 | V58: =RANK(Scores!AH58,Scores!$P58:$AI58,0) -> 1 | W58: =RANK(Scores!AI58,Scores!$P58:$AI58,0) -> 1
B59: =tblIndicators!AE53 -> 4.2.4) Collection of oil spills data | D59: =RANK(Scores!P59,Scores!$P59:$AI59,0) -> 10 | E59: =RANK(Scores!Q59,Scores!$P59:$AI59,0) -> 1 | F59: =RANK(Scores!R59,Scores!$P59:$AI59,0) -> 1 | G59: =RANK(Scores!S59,Scores!$P59:$AI59,0) -> 10 | H59: =RANK(Scores!T59,Scores!$P59:$AI59,0) -> 17 | I59: =RANK(Scores!U59,Scores!$P59:$AI59,0) -> 10 | J59: =RANK(Scores!V59,Scores!$P59:$AI59,0) -> 17 | K59: =RANK(Scores!W59,Scores!$P59:$AI59,0) -> 1 | L59: =RANK(Scores!X59,Scores!$P59:$AI59,0) -> 1 | M59: =RANK(Scores!Y59,Scores!$P59:$AI59,0) -> 10 | N59: =RANK(Scores!Z59,Scores!$P59:$AI59,0) -> 1 | O59: =RANK(Scores!AA59,Scores!$P59:$AI59,0) -> 1 | P59: =RANK(Scores!AB59,Scores!$P59:$AI59,0) -> 17 | Q59: =RANK(Scores!AC59,Scores!$P59:$AI59,0) -> 10 | R59: =RANK(Scores!AD59,Scores!$P59:$AI59,0) -> 17 | S59: =RANK(Scores!AE59,Scores!$P59:$AI59,0) -> 10 | T59: =RANK(Scores!AF59,Scores!$P59:$AI59,0) -> 1 | U59: =RANK(Scores!AG59,Scores!$P59:$AI59,0) -> 1 | V59: =RANK(Scores!AH59,Scores!$P59:$AI59,0) -> 1 | W59: =RANK(Scores!AI59,Scores!$P59:$AI59,0) -> 10
B60: =tblIndicators!AE54 -> 4.3) Risk mitigation | D60: =RANK(Scores!P60,Scores!$P60:$AI60,0) -> 4 | E60: =RANK(Scores!Q60,Scores!$P60:$AI60,0) -> 4 | F60: =RANK(Scores!R60,Scores!$P60:$AI60,0) -> 1 | G60: =RANK(Scores!S60,Scores!$P60:$AI60,0) -> 11 | H60: =RANK(Scores!T60,Scores!$P60:$AI60,0) -> 11 | I60: =RANK(Scores!U60,Scores!$P60:$AI60,0) -> 4 | J60: =RANK(Scores!V60,Scores!$P60:$AI60,0) -> 11 | K60: =RANK(Scores!W60,Scores!$P60:$AI60,0) -> 1 | L60: =RANK(Scores!X60,Scores!$P60:$AI60,0) -> 16 | M60: =RANK(Scores!Y60,Scores!$P60:$AI60,0) -> 4 | N60: =RANK(Scores!Z60,Scores!$P60:$AI60,0) -> 4 | O60: =RANK(Scores!AA60,Scores!$P60:$AI60,0) -> 1 | P60: =RANK(Scores!AB60,Scores!$P60:$AI60,0) -> 16 | Q60: =RANK(Scores!AC60,Scores!$P60:$AI60,0) -> 16 | R60: =RANK(Scores!AD60,Scores!$P60:$AI60,0) -> 16 | S60: =RANK(Scores!AE60,Scores!$P60:$AI60,0) -> 4 | T60: =RANK(Scores!AF60,Scores!$P60:$AI60,0) -> 11 | U60: =RANK(Scores!AG60,Scores!$P60:$AI60,0) -> 11 | V60: =RANK(Scores!AH60,Scores!$P60:$AI60,0) -> 4 | W60: =RANK(Scores!AI60,Scores!$P60:$AI60,0) -> 20
B61: =tblIndicators!AE55 -> 4.3.1) Adoption of the OPRC | D61: =RANK(Scores!P61,Scores!$P61:$AI61,0) -> 8 | E61: =RANK(Scores!Q61,Scores!$P61:$AI61,0) -> 8 | F61: =RANK(Scores!R61,Scores!$P61:$AI61,0) -> 1 | G61: =RANK(Scores!S61,Scores!$P61:$AI61,0) -> 1 | H61: =RANK(Scores!T61,Scores!$P61:$AI61,0) -> 1 | I61: =RANK(Scores!U61,Scores!$P61:$AI61,0) -> 8 | J61: =RANK(Scores!V61,Scores!$P61:$AI61,0) -> 19 | K61: =RANK(Scores!W61,Scores!$P61:$AI61,0) -> 1 | L61: =RANK(Scores!X61,Scores!$P61:$AI61,0) -> 8 | M61: =RANK(Scores!Y61,Scores!$P61:$AI61,0) -> 8 | N61: =RANK(Scores!Z61,Scores!$P61:$AI61,0) -> 8 | O61: =RANK(Scores!AA61,Scores!$P61:$AI61,0) -> 1 | P61: =RANK(Scores!AB61,Scores!$P61:$AI61,0) -> 8 | Q61: =RANK(Scores!AC61,Scores!$P61:$AI61,0) -> 8 | R61: =RANK(Scores!AD61,Scores!$P61:$AI61,0) -> 8 | S61: =RANK(Scores!AE61,Scores!$P61:$AI61,0) -> 8 | T61: =RANK(Scores!AF61,Scores!$P61:$AI61,0) -> 1 | U61: =RANK(Scores!AG61,Scores!$P61:$AI61,0) -> 1 | V61: =RANK(Scores!AH61,Scores!$P61:$AI61,0) -> 8 | W61: =RANK(Scores!AI61,Scores!$P61:$AI61,0) -> 19
B62: =tblIndicators!AE56 -> 4.3.2) Emergency plan | D62: =RANK(Scores!P62,Scores!$P62:$AI62,0) -> 1 | E62: =RANK(Scores!Q62,Scores!$P62:$AI62,0) -> 1 | F62: =RANK(Scores!R62,Scores!$P62:$AI62,0) -> 1 | G62: =RANK(Scores!S62,Scores!$P62:$AI62,0) -> 1 | H62: =RANK(Scores!T62,Scores!$P62:$AI62,0) -> 1 | I62: =RANK(Scores!U62,Scores!$P62:$AI62,0) -> 1 | J62: =RANK(Scores!V62,Scores!$P62:$AI62,0) -> 1 | K62: =RANK(Scores!W62,Scores!$P62:$AI62,0) -> 1 | L62: =RANK(Scores!X62,Scores!$P62:$AI62,0) -> 1 | M62: =RANK(Scores!Y62,Scores!$P62:$AI62,0) -> 1 | N62: =RANK(Scores!Z62,Scores!$P62:$AI62,0) -> 1 | O62: =RANK(Scores!AA62,Scores!$P62:$AI62,0) -> 1 | P62: =RANK(Scores!AB62,Scores!$P62:$AI62,0) -> 1 | Q62: =RANK(Scores!AC62,Scores!$P62:$AI62,0) -> 20 | R62: =RANK(Scores!AD62,Scores!$P62:$AI62,0) -> 1 | S62: =RANK(Scores!AE62,Scores!$P62:$AI62,0) -> 1 | T62: =RANK(Scores!AF62,Scores!$P62:$AI62,0) -> 1 | U62: =RANK(Scores!AG62,Scores!$P62:$AI62,0) -> 1 | V62: =RANK(Scores!AH62,Scores!$P62:$AI62,0) -> 1 | W62: =RANK(Scores!AI62,Scores!$P62:$AI62,0) -> 1
B63: =tblIndicators!AE57 -> 4.3.3) Off-limit areas | D63: =RANK(Scores!P63,Scores!$P63:$AI63,0) -> 1 | E63: =RANK(Scores!Q63,Scores!$P63:$AI63,0) -> 1 | F63: =RANK(Scores!R63,Scores!$P63:$AI63,0) -> 1 | G63: =RANK(Scores!S63,Scores!$P63:$AI63,0) -> 13 | H63: =RANK(Scores!T63,Scores!$P63:$AI63,0) -> 13 | I63: =RANK(Scores!U63,Scores!$P63:$AI63,0) -> 1 | J63: =RANK(Scores!V63,Scores!$P63:$AI63,0) -> 1 | K63: =RANK(Scores!W63,Scores!$P63:$AI63,0) -> 1 | L63: =RANK(Scores!X63,Scores!$P63:$AI63,0) -> 13 | M63: =RANK(Scores!Y63,Scores!$P63:$AI63,0) -> 1 | N63: =RANK(Scores!Z63,Scores!$P63:$AI63,0) -> 1 | O63: =RANK(Scores!AA63,Scores!$P63:$AI63,0) -> 1 | P63: =RANK(Scores!AB63,Scores!$P63:$AI63,0) -> 13 | Q63: =RANK(Scores!AC63,Scores!$P63:$AI63,0) -> 1 | R63: =RANK(Scores!AD63,Scores!$P63:$AI63,0) -> 13 | S63: =RANK(Scores!AE63,Scores!$P63:$AI63,0) -> 1 | T63: =RANK(Scores!AF63,Scores!$P63:$AI63,0) -> 13 | U63: =RANK(Scores!AG63,Scores!$P63:$AI63,0) -> 13 | V63: =RANK(Scores!AH63,Scores!$P63:$AI63,0) -> 1 | W63: =RANK(Scores!AI63,Scores!$P63:$AI63,0) -> 13
B64: =tblIndicators!AE58 -> 5) LAND | D64: =RANK(Scores!P64,Scores!$P64:$AI64,0) -> 19 | E64: =RANK(Scores!Q64,Scores!$P64:$AI64,0) -> 10 | F64: =RANK(Scores!R64,Scores!$P64:$AI64,0) -> 12 | G64: =RANK(Scores!S64,Scores!$P64:$AI64,0) -> 6 | H64: =RANK(Scores!T64,Scores!$P64:$AI64,0) -> 2 | I64: =RANK(Scores!U64,Scores!$P64:$AI64,0) -> 14 | J64: =RANK(Scores!V64,Scores!$P64:$AI64,0) -> 8 | K64: =RANK(Scores!W64,Scores!$P64:$AI64,0) -> 7 | L64: =RANK(Scores!X64,Scores!$P64:$AI64,0) -> 18 | M64: =RANK(Scores!Y64,Scores!$P64:$AI64,0) -> 1 | N64: =RANK(Scores!Z64,Scores!$P64:$AI64,0) -> 16 | O64: =RANK(Scores!AA64,Scores!$P64:$AI64,0) -> 17 | P64: =RANK(Scores!AB64,Scores!$P64:$AI64,0) -> 5 | Q64: =RANK(Scores!AC64,Scores!$P64:$AI64,0) -> 9 | R64: =RANK(Scores!AD64,Scores!$P64:$AI64,0) -> 20 | S64: =RANK(Scores!AE64,Scores!$P64:$AI64,0) -> 11 | T64: =RANK(Scores!AF64,Scores!$P64:$AI64,0) -> 13 | U64: =RANK(Scores!AG64,Scores!$P64:$AI64,0) -> 3 | V64: =RANK(Scores!AH64,Scores!$P64:$AI64,0) -> 4 | W64: =RANK(Scores!AI64,Scores!$P64:$AI64,0) -> 15
B65: =tblIndicators!AE59 -> 5.1) Prevalence of coastal protected areas | D65: =RANK(Scores!P65,Scores!$P65:$AI65,0) -> 1 | E65: =RANK(Scores!Q65,Scores!$P65:$AI65,0) -> 16 | F65: =RANK(Scores!R65,Scores!$P65:$AI65,0) -> 1 | G65: =RANK(Scores!S65,Scores!$P65:$AI65,0) -> 7 | H65: =RANK(Scores!T65,Scores!$P65:$AI65,0) -> 1 | I65: =RANK(Scores!U65,Scores!$P65:$AI65,0) -> 16 | J65: =RANK(Scores!V65,Scores!$P65:$AI65,0) -> 7 | K65: =RANK(Scores!W65,Scores!$P65:$AI65,0) -> 7 | L65: =RANK(Scores!X65,Scores!$P65:$AI65,0) -> 7 | M65: =RANK(Scores!Y65,Scores!$P65:$AI65,0) -> 1 | N65: =RANK(Scores!Z65,Scores!$P65:$AI65,0) -> 7 | O65: =RANK(Scores!AA65,Scores!$P65:$AI65,0) -> 7 | P65: =RANK(Scores!AB65,Scores!$P65:$AI65,0) -> 1 | Q65: =RANK(Scores!AC65,Scores!$P65:$AI65,0) -> 7 | R65: =RANK(Scores!AD65,Scores!$P65:$AI65,0) -> 7 | S65: =RANK(Scores!AE65,Scores!$P65:$AI65,0) -> 16 | T65: =RANK(Scores!AF65,Scores!$P65:$AI65,0) -> 16 | U65: =RANK(Scores!AG65,Scores!$P65:$AI65,0) -> 1 | V65: =RANK(Scores!AH65,Scores!$P65:$AI65,0) -> 7 | W65: =RANK(Scores!AI65,Scores!$P65:$AI65,0) -> 16
B66: =tblIndicators!AE60 -> 5.1.1) Terrestrial protected areas | D66: =RANK(Scores!P66,Scores!$P66:$AI66,0) -> 1 | E66: =RANK(Scores!Q66,Scores!$P66:$AI66,0) -> 16 | F66: =RANK(Scores!R66,Scores!$P66:$AI66,0) -> 1 | G66: =RANK(Scores!S66,Scores!$P66:$AI66,0) -> 7 | H66: =RANK(Scores!T66,Scores!$P66:$AI66,0) -> 1 | I66: =RANK(Scores!U66,Scores!$P66:$AI66,0) -> 16 | J66: =RANK(Scores!V66,Scores!$P66:$AI66,0) -> 7 | K66: =RANK(Scores!W66,Scores!$P66:$AI66,0) -> 7 | L66: =RANK(Scores!X66,Scores!$P66:$AI66,0) -> 7 | M66: =RANK(Scores!Y66,Scores!$P66:$AI66,0) -> 1 | N66: =RANK(Scores!Z66,Scores!$P66:$AI66,0) -> 7 | O66: =RANK(Scores!AA66,Scores!$P66:$AI66,0) -> 7 | P66: =RANK(Scores!AB66,Scores!$P66:$AI66,0) -> 1 | Q66: =RANK(Scores!AC66,Scores!$P66:$AI66,0) -> 7 | R66: =RANK(Scores!AD66,Scores!$P66:$AI66,0) -> 7 | S66: =RANK(Scores!AE66,Scores!$P66:$AI66,0) -> 16 | T66: =RANK(Scores!AF66,Scores!$P66:$AI66,0) -> 16 | U66: =RANK(Scores!AG66,Scores!$P66:$AI66,0) -> 1 | V66: =RANK(Scores!AH66,Scores!$P66:$AI66,0) -> 7 | W66: =RANK(Scores!AI66,Scores!$P66:$AI66,0) -> 16
B67: =tblIndicators!AE61 -> 5.2) Environmental impact of coastal development | D67: =RANK(Scores!P67,Scores!$P67:$AI67,0) -> 16 | E67: =RANK(Scores!Q67,Scores!$P67:$AI67,0) -> 1 | F67: =RANK(Scores!R67,Scores!$P67:$AI67,0) -> 1 | G67: =RANK(Scores!S67,Scores!$P67:$AI67,0) -> 1 | H67: =RANK(Scores!T67,Scores!$P67:$AI67,0) -> 1 | I67: =RANK(Scores!U67,Scores!$P67:$AI67,0) -> 1 | J67: =RANK(Scores!V67,Scores!$P67:$AI67,0) -> 1 | K67: =RANK(Scores!W67,Scores!$P67:$AI67,0) -> 1 | L67: =RANK(Scores!X67,Scores!$P67:$AI67,0) -> 1 | M67: =RANK(Scores!Y67,Scores!$P67:$AI67,0) -> 1 | N67: =RANK(Scores!Z67,Scores!$P67:$AI67,0) -> 16 | O67: =RANK(Scores!AA67,Scores!$P67:$AI67,0) -> 1 | P67: =RANK(Scores!AB67,Scores!$P67:$AI67,0) -> 16 | Q67: =RANK(Scores!AC67,Scores!$P67:$AI67,0) -> 1 | R67: =RANK(Scores!AD67,Scores!$P67:$AI67,0) -> 20 | S67: =RANK(Scores!AE67,Scores!$P67:$AI67,0) -> 1 | T67: =RANK(Scores!AF67,Scores!$P67:$AI67,0) -> 1 | U67: =RANK(Scores!AG67,Scores!$P67:$AI67,0) -> 16 | V67: =RANK(Scores!AH67,Scores!$P67:$AI67,0) -> 1 | W67: =RANK(Scores!AI67,Scores!$P67:$AI67,0) -> 1
B68: =tblIndicators!AE62 -> 5.2.1) Environment impact assessment for coastal development | D68: =RANK(Scores!P68,Scores!$P68:$AI68,0) -> 1 | E68: =RANK(Scores!Q68,Scores!$P68:$AI68,0) -> 1 | F68: =RANK(Scores!R68,Scores!$P68:$AI68,0) -> 1 | G68: =RANK(Scores!S68,Scores!$P68:$AI68,0) -> 1 | H68: =RANK(Scores!T68,Scores!$P68:$AI68,0) -> 1 | I68: =RANK(Scores!U68,Scores!$P68:$AI68,0) -> 1 | J68: =RANK(Scores!V68,Scores!$P68:$AI68,0) -> 1 | K68: =RANK(Scores!W68,Scores!$P68:$AI68,0) -> 1 | L68: =RANK(Scores!X68,Scores!$P68:$AI68,0) -> 1 | M68: =RANK(Scores!Y68,Scores!$P68:$AI68,0) -> 1 | N68: =RANK(Scores!Z68,Scores!$P68:$AI68,0) -> 1 | O68: =RANK(Scores!AA68,Scores!$P68:$AI68,0) -> 1 | P68: =RANK(Scores!AB68,Scores!$P68:$AI68,0) -> 19 | Q68: =RANK(Scores!AC68,Scores!$P68:$AI68,0) -> 1 | R68: =RANK(Scores!AD68,Scores!$P68:$AI68,0) -> 19 | S68: =RANK(Scores!AE68,Scores!$P68:$AI68,0) -> 1 | T68: =RANK(Scores!AF68,Scores!$P68:$AI68,0) -> 1 | U68: =RANK(Scores!AG68,Scores!$P68:$AI68,0) -> 1 | V68: =RANK(Scores!AH68,Scores!$P68:$AI68,0) -> 1 | W68: =RANK(Scores!AI68,Scores!$P68:$AI68,0) -> 1
B69: =tblIndicators!AE63 -> 5.2.2) On-site reviews | D69: =RANK(Scores!P69,Scores!$P69:$AI69,0) -> 17 | E69: =RANK(Scores!Q69,Scores!$P69:$AI69,0) -> 1 | F69: =RANK(Scores!R69,Scores!$P69:$AI69,0) -> 1 | G69: =RANK(Scores!S69,Scores!$P69:$AI69,0) -> 1 | H69: =RANK(Scores!T69,Scores!$P69:$AI69,0) -> 1 | I69: =RANK(Scores!U69,Scores!$P69:$AI69,0) -> 1 | J69: =RANK(Scores!V69,Scores!$P69:$AI69,0) -> 1 | K69: =RANK(Scores!W69,Scores!$P69:$AI69,0) -> 1 | L69: =RANK(Scores!X69,Scores!$P69:$AI69,0) -> 1 | M69: =RANK(Scores!Y69,Scores!$P69:$AI69,0) -> 1 | N69: =RANK(Scores!Z69,Scores!$P69:$AI69,0) -> 17 | O69: =RANK(Scores!AA69,Scores!$P69:$AI69,0) -> 1 | P69: =RANK(Scores!AB69,Scores!$P69:$AI69,0) -> 1 | Q69: =RANK(Scores!AC69,Scores!$P69:$AI69,0) -> 1 | R69: =RANK(Scores!AD69,Scores!$P69:$AI69,0) -> 17 | S69: =RANK(Scores!AE69,Scores!$P69:$AI69,0) -> 1 | T69: =RANK(Scores!AF69,Scores!$P69:$AI69,0) -> 1 | U69: =RANK(Scores!AG69,Scores!$P69:$AI69,0) -> 17 | V69: =RANK(Scores!AH69,Scores!$P69:$AI69,0) -> 1 | W69: =RANK(Scores!AI69,Scores!$P69:$AI69,0) -> 1
B70: =tblIndicators!AE64 -> 5.3) Government commitment to sustainability in coastal tourism development | D70: =RANK(Scores!P70,Scores!$P70:$AI70,0) -> 17 | E70: =RANK(Scores!Q70,Scores!$P70:$AI70,0) -> 3 | F70: =RANK(Scores!R70,Scores!$P70:$AI70,0) -> 12 | G70: =RANK(Scores!S70,Scores!$P70:$AI70,0) -> 9 | H70: =RANK(Scores!T70,Scores!$P70:$AI70,0) -> 4 | I70: =RANK(Scores!U70,Scores!$P70:$AI70,0) -> 16 | J70: =RANK(Scores!V70,Scores!$P70:$AI70,0) -> 13 | K70: =RANK(Scores!W70,Scores!$P70:$AI70,0) -> 11 | L70: =RANK(Scores!X70,Scores!$P70:$AI70,0) -> 10 | M70: =RANK(Scores!Y70,Scores!$P70:$AI70,0) -> 1 | N70: =RANK(Scores!Z70,Scores!$P70:$AI70,0) -> 19 | O70: =RANK(Scores!AA70,Scores!$P70:$AI70,0) -> 8 | P70: =RANK(Scores!AB70,Scores!$P70:$AI70,0) -> 7 | Q70: =RANK(Scores!AC70,Scores!$P70:$AI70,0) -> 14 | R70: =RANK(Scores!AD70,Scores!$P70:$AI70,0) -> 20 | S70: =RANK(Scores!AE70,Scores!$P70:$AI70,0) -> 6 | T70: =RANK(Scores!AF70,Scores!$P70:$AI70,0) -> 15 | U70: =RANK(Scores!AG70,Scores!$P70:$AI70,0) -> 2 | V70: =RANK(Scores!AH70,Scores!$P70:$AI70,0) -> 4 | W70: =RANK(Scores!AI70,Scores!$P70:$AI70,0) -> 18
B71: =tblIndicators!AE65 -> 5.3.1) Sustainability of tourism | D71: =RANK(Scores!P71,Scores!$P71:$AI71,0) -> 17 | E71: =RANK(Scores!Q71,Scores!$P71:$AI71,0) -> 3 | F71: =RANK(Scores!R71,Scores!$P71:$AI71,0) -> 12 | G71: =RANK(Scores!S71,Scores!$P71:$AI71,0) -> 9 | H71: =RANK(Scores!T71,Scores!$P71:$AI71,0) -> 4 | I71: =RANK(Scores!U71,Scores!$P71:$AI71,0) -> 16 | J71: =RANK(Scores!V71,Scores!$P71:$AI71,0) -> 13 | K71: =RANK(Scores!W71,Scores!$P71:$AI71,0) -> 11 | L71: =RANK(Scores!X71,Scores!$P71:$AI71,0) -> 10 | M71: =RANK(Scores!Y71,Scores!$P71:$AI71,0) -> 1 | N71: =RANK(Scores!Z71,Scores!$P71:$AI71,0) -> 19 | O71: =RANK(Scores!AA71,Scores!$P71:$AI71,0) -> 8 | P71: =RANK(Scores!AB71,Scores!$P71:$AI71,0) -> 7 | Q71: =RANK(Scores!AC71,Scores!$P71:$AI71,0) -> 14 | R71: =RANK(Scores!AD71,Scores!$P71:$AI71,0) -> 20 | S71: =RANK(Scores!AE71,Scores!$P71:$AI71,0) -> 6 | T71: =RANK(Scores!AF71,Scores!$P71:$AI71,0) -> 15 | U71: =RANK(Scores!AG71,Scores!$P71:$AI71,0) -> 2 | V71: =RANK(Scores!AH71,Scores!$P71:$AI71,0) -> 4 | W71: =RANK(Scores!AI71,Scores!$P71:$AI71,0) -> 18
B72: =tblIndicators!AE66 -> 5.4) Natural disaster risk mitigation | D72: =RANK(Scores!P72,Scores!$P72:$AI72,0) -> 16 | E72: =RANK(Scores!Q72,Scores!$P72:$AI72,0) -> 1 | F72: =RANK(Scores!R72,Scores!$P72:$AI72,0) -> 16 | G72: =RANK(Scores!S72,Scores!$P72:$AI72,0) -> 1 | H72: =RANK(Scores!T72,Scores!$P72:$AI72,0) -> 1 | I72: =RANK(Scores!U72,Scores!$P72:$AI72,0) -> 1 | J72: =RANK(Scores!V72,Scores!$P72:$AI72,0) -> 1 | K72: =RANK(Scores!W72,Scores!$P72:$AI72,0) -> 1 | L72: =RANK(Scores!X72,Scores!$P72:$AI72,0) -> 16 | M72: =RANK(Scores!Y72,Scores!$P72:$AI72,0) -> 1 | N72: =RANK(Scores!Z72,Scores!$P72:$AI72,0) -> 1 | O72: =RANK(Scores!AA72,Scores!$P72:$AI72,0) -> 16 | P72: =RANK(Scores!AB72,Scores!$P72:$AI72,0) -> 1 | Q72: =RANK(Scores!AC72,Scores!$P72:$AI72,0) -> 1 | R72: =RANK(Scores!AD72,Scores!$P72:$AI72,0) -> 16 | S72: =RANK(Scores!AE72,Scores!$P72:$AI72,0) -> 1 | T72: =RANK(Scores!AF72,Scores!$P72:$AI72,0) -> 1 | U72: =RANK(Scores!AG72,Scores!$P72:$AI72,0) -> 1 | V72: =RANK(Scores!AH72,Scores!$P72:$AI72,0) -> 1 | W72: =RANK(Scores!AI72,Scores!$P72:$AI72,0) -> 1
B73: =tblIndicators!AE67 -> 5.4.1) Strategy for risk mitigation | D73: =RANK(Scores!P73,Scores!$P73:$AI73,0) -> 16 | E73: =RANK(Scores!Q73,Scores!$P73:$AI73,0) -> 1 | F73: =RANK(Scores!R73,Scores!$P73:$AI73,0) -> 16 | G73: =RANK(Scores!S73,Scores!$P73:$AI73,0) -> 1 | H73: =RANK(Scores!T73,Scores!$P73:$AI73,0) -> 1 | I73: =RANK(Scores!U73,Scores!$P73:$AI73,0) -> 1 | J73: =RANK(Scores!V73,Scores!$P73:$AI73,0) -> 1 | K73: =RANK(Scores!W73,Scores!$P73:$AI73,0) -> 1 | L73: =RANK(Scores!X73,Scores!$P73:$AI73,0) -> 16 | M73: =RANK(Scores!Y73,Scores!$P73:$AI73,0) -> 1 | N73: =RANK(Scores!Z73,Scores!$P73:$AI73,0) -> 1 | O73: =RANK(Scores!AA73,Scores!$P73:$AI73,0) -> 16 | P73: =RANK(Scores!AB73,Scores!$P73:$AI73,0) -> 1 | Q73: =RANK(Scores!AC73,Scores!$P73:$AI73,0) -> 1 | R73: =RANK(Scores!AD73,Scores!$P73:$AI73,0) -> 16 | S73: =RANK(Scores!AE73,Scores!$P73:$AI73,0) -> 1 | T73: =RANK(Scores!AF73,Scores!$P73:$AI73,0) -> 1 | U73: =RANK(Scores!AG73,Scores!$P73:$AI73,0) -> 1 | V73: =RANK(Scores!AH73,Scores!$P73:$AI73,0) -> 1 | W73: =RANK(Scores!AI73,Scores!$P73:$AI73,0) -> 1
B74: =tblIndicators!AE68 -> 6) LIVING RESOURCES | D74: =RANK(Scores!P74,Scores!$P74:$AI74,0) -> 6 | E74: =RANK(Scores!Q74,Scores!$P74:$AI74,0) -> 7 | F74: =RANK(Scores!R74,Scores!$P74:$AI74,0) -> 8 | G74: =RANK(Scores!S74,Scores!$P74:$AI74,0) -> 20 | H74: =RANK(Scores!T74,Scores!$P74:$AI74,0) -> 3 | I74: =RANK(Scores!U74,Scores!$P74:$AI74,0) -> 18 | J74: =RANK(Scores!V74,Scores!$P74:$AI74,0) -> 15 | K74: =RANK(Scores!W74,Scores!$P74:$AI74,0) -> 11 | L74: =RANK(Scores!X74,Scores!$P74:$AI74,0) -> 13 | M74: =RANK(Scores!Y74,Scores!$P74:$AI74,0) -> 2 | N74: =RANK(Scores!Z74,Scores!$P74:$AI74,0) -> 17 | O74: =RANK(Scores!AA74,Scores!$P74:$AI74,0) -> 5 | P74: =RANK(Scores!AB74,Scores!$P74:$AI74,0) -> 14 | Q74: =RANK(Scores!AC74,Scores!$P74:$AI74,0) -> 19 | R74: =RANK(Scores!AD74,Scores!$P74:$AI74,0) -> 10 | S74: =RANK(Scores!AE74,Scores!$P74:$AI74,0) -> 12 | T74: =RANK(Scores!AF74,Scores!$P74:$AI74,0) -> 9 | U74: =RANK(Scores!AG74,Scores!$P74:$AI74,0) -> 4 | V74: =RANK(Scores!AH74,Scores!$P74:$AI74,0) -> 1 | W74: =RANK(Scores!AI74,Scores!$P74:$AI74,0) -> 16
B75: =tblIndicators!AE69 -> 6.1) Fisheries governance and management effectiveness | D75: =RANK(Scores!P75,Scores!$P75:$AI75,0) -> 19 | E75: =RANK(Scores!Q75,Scores!$P75:$AI75,0) -> 4 | F75: =RANK(Scores!R75,Scores!$P75:$AI75,0) -> 9 | G75: =RANK(Scores!S75,Scores!$P75:$AI75,0) -> 20 | H75: =RANK(Scores!T75,Scores!$P75:$AI75,0) -> 8 | I75: =RANK(Scores!U75,Scores!$P75:$AI75,0) -> 16 | J75: =RANK(Scores!V75,Scores!$P75:$AI75,0) -> 18 | K75: =RANK(Scores!W75,Scores!$P75:$AI75,0) -> 11 | L75: =RANK(Scores!X75,Scores!$P75:$AI75,0) -> 13 | M75: =RANK(Scores!Y75,Scores!$P75:$AI75,0) -> 5 | N75: =RANK(Scores!Z75,Scores!$P75:$AI75,0) -> 15 | O75: =RANK(Scores!AA75,Scores!$P75:$AI75,0) -> 2 | P75: =RANK(Scores!AB75,Scores!$P75:$AI75,0) -> 10 | Q75: =RANK(Scores!AC75,Scores!$P75:$AI75,0) -> 17 | R75: =RANK(Scores!AD75,Scores!$P75:$AI75,0) -> 3 | S75: =RANK(Scores!AE75,Scores!$P75:$AI75,0) -> 6 | T75: =RANK(Scores!AF75,Scores!$P75:$AI75,0) -> 12 | U75: =RANK(Scores!AG75,Scores!$P75:$AI75,0) -> 7 | V75: =RANK(Scores!AH75,Scores!$P75:$AI75,0) -> 1 | W75: =RANK(Scores!AI75,Scores!$P75:$AI75,0) -> 14
B76: =tblIndicators!AE70 -> 6.1.1) Fisheries governance and management effectiveness | D76: =RANK(Scores!P76,Scores!$P76:$AI76,0) -> 19 | E76: =RANK(Scores!Q76,Scores!$P76:$AI76,0) -> 4 | F76: =RANK(Scores!R76,Scores!$P76:$AI76,0) -> 9 | G76: =RANK(Scores!S76,Scores!$P76:$AI76,0) -> 20 | H76: =RANK(Scores!T76,Scores!$P76:$AI76,0) -> 8 | I76: =RANK(Scores!U76,Scores!$P76:$AI76,0) -> 16 | J76: =RANK(Scores!V76,Scores!$P76:$AI76,0) -> 18 | K76: =RANK(Scores!W76,Scores!$P76:$AI76,0) -> 11 | L76: =RANK(Scores!X76,Scores!$P76:$AI76,0) -> 13 | M76: =RANK(Scores!Y76,Scores!$P76:$AI76,0) -> 5 | N76: =RANK(Scores!Z76,Scores!$P76:$AI76,0) -> 15 | O76: =RANK(Scores!AA76,Scores!$P76:$AI76,0) -> 2 | P76: =RANK(Scores!AB76,Scores!$P76:$AI76,0) -> 10 | Q76: =RANK(Scores!AC76,Scores!$P76:$AI76,0) -> 17 | R76: =RANK(Scores!AD76,Scores!$P76:$AI76,0) -> 3 | S76: =RANK(Scores!AE76,Scores!$P76:$AI76,0) -> 6 | T76: =RANK(Scores!AF76,Scores!$P76:$AI76,0) -> 12 | U76: =RANK(Scores!AG76,Scores!$P76:$AI76,0) -> 7 | V76: =RANK(Scores!AH76,Scores!$P76:$AI76,0) -> 1 | W76: =RANK(Scores!AI76,Scores!$P76:$AI76,0) -> 14
B77: =tblIndicators!AE71 -> 6.2) Protection for marine/coastal species | D77: =RANK(Scores!P77,Scores!$P77:$AI77,0) -> 1 | E77: =RANK(Scores!Q77,Scores!$P77:$AI77,0) -> 10 | F77: =RANK(Scores!R77,Scores!$P77:$AI77,0) -> 10 | G77: =RANK(Scores!S77,Scores!$P77:$AI77,0) -> 10 | H77: =RANK(Scores!T77,Scores!$P77:$AI77,0) -> 1 | I77: =RANK(Scores!U77,Scores!$P77:$AI77,0) -> 10 | J77: =RANK(Scores!V77,Scores!$P77:$AI77,0) -> 8 | K77: =RANK(Scores!W77,Scores!$P77:$AI77,0) -> 20 | L77: =RANK(Scores!X77,Scores!$P77:$AI77,0) -> 1 | M77: =RANK(Scores!Y77,Scores!$P77:$AI77,0) -> 1 | N77: =RANK(Scores!Z77,Scores!$P77:$AI77,0) -> 10 | O77: =RANK(Scores!AA77,Scores!$P77:$AI77,0) -> 10 | P77: =RANK(Scores!AB77,Scores!$P77:$AI77,0) -> 10 | Q77: =RANK(Scores!AC77,Scores!$P77:$AI77,0) -> 10 | R77: =RANK(Scores!AD77,Scores!$P77:$AI77,0) -> 1 | S77: =RANK(Scores!AE77,Scores!$P77:$AI77,0) -> 1 | T77: =RANK(Scores!AF77,Scores!$P77:$AI77,0) -> 10 | U77: =RANK(Scores!AG77,Scores!$P77:$AI77,0) -> 8 | V77: =RANK(Scores!AH77,Scores!$P77:$AI77,0) -> 1 | W77: =RANK(Scores!AI77,Scores!$P77:$AI77,0) -> 10
